Workbook

Sheet Assumption (hidden)
A1: Assumptions and Factors — Title IV 2021-22 Final
B2: Caution: Yellow Cells below drive inputs into the calculations in this model
C4: 2021-22 Final | D4: 2021-22 Preliminary | E4: 2020-21 Final | F4: 2020-21 Preliminary | G4: 2019-20 Final | H4: 2019-20 Preliminary | I4: 2019-20 Preliminary | J4: 2018-19 Final | K4: 2018-19 Preliminary | L4: 2017-18 Final | M4: 2017-18 Preliminary
B5: DOE statewide allocations | C5: 17768528 | D5: 17758258 | E5: 19060087 | F5: 19060087 | G5: 15971829 | H5: 15971829 | I5: 15971829 | J5: 15579355 | K5: 15576934 | L5: 6004278 | M5: 6004278
B6: Adjustment or Carryover | C6: 650000 | E6: 300000 | G6: 178787 | H6: 178787 | I6: 178787
B7: Total to be allocated | C7: =C5+C6 -> 18418528 | D7: =D5+D6 -> 17758258 | E7: 19360087 | F7: =F5+F6 -> 19060087 | G7: 16150616 | H7: 16150616 | I7: 16150616 | J7: 15579355 | K7: 15576934 | L7: 6004278 | M7: 6004278
A8: 0.01 | B8: Statewide Administration | C8: =ROUND(C5*-$A$8,0) -> -177685 | D8: =ROUND(D5*-$A$8,0) -> -177583 | E8: -190601 | F8: -190601 | G8: =ROUND(G5*-$A$8,0) -> -159718 | H8: -159718 | I8: =ROUND(I5*-$A$8,0) -> -159718 | J8: =ROUND(J5*-0.01,0) -> -155794 | K8: =ROUND(K5*-0.01,0) -> -155769 | L8: =ROUND(L5*-0.01,0) -> -60043 | M8: =ROUND(M5*-0.01,0) -> -60043
A10: 0.04 | B10: State level Activities | C10: =$A$10*C5*-1 -> -710741.12 | D10: =$A$10*D5*-1 -> -710330.32 | E10: -762403.48 | F10: -762403.48 | G10: =$A$10*G5*-1 -> -638873.16 | H10: -638873.16 | I10: =$A$10*I5*-1 -> -638873.16 | J10: =A10*J5*-1 -> -623174.2 | K10: =A10*K5*-1 -> -623077.36 | L10: =A10*L5*-1 -> -240171.12 | M10: =A10*M5*-1 -> -240171.12
B12: Subtotal to Districts | C12: =ROUND(+C7+C8+C10,0) -> 17530102 | D12: =ROUND(+D7+D8+D10,0) -> 16870345 | E12: =ROUND(+E7+E8+E10,0) -> 18407083 | F12: =ROUND(+F7+F8+F10,0) -> 18107083 | G12: =ROUND(+G7+G8+G10,0) -> 15352025 | H12: =+H7+H8+H10 -> 15352024.84 | I12: 15352024.84 | J12: 14800386.8 | K12: 14798087.64 | L12: 5704063.88 | M12: 5704063.88
B14: MOE | C14: ='SY 2021-22 Final'!R7 -> 0 | D14: ='SY 2021-22 Prelim'!R7 -> 0 | E14: ='SY 2020-21 Prelim'!R7 -> 0 | F14: ='SY 2020-21 Prelim'!S7 -> 0 | G14: ='SY 2019-20 Final'!S7 -> -43 | H14: ='SY 2019-20 Prelim'!S7 -> -43 | I14: ='SY 2019-20 Prelim'!S7 -> -43 | J14: ='SY 2018-19 Final'!S7 -> 0
B16: Net to Districts | C16: =C12+C14 -> 17530102 | D16: =D12+D14 -> 16870345 | E16: 18407083 | F16: 18107083 | G16: 15351982 | H16: 15351981.84 | I16: 15351981.84 | J16: 14800386.8
B18: Difference | C18: =C5/D5-1 -> 0.0005783224909 | D18: =D5/E5-1 -> -0.06830131468 | E18: =E5/F5-1 -> 0 | F18: =F5/G5-1 -> 0.1933565655 | G18: 0 | H18: 0 | I18: 0.02519192868 | J18: 0.0001554221132 | K18: 1.594305927 | L18: =K5/L5-1 -> 1.594305927

Sheet District
B3: Title IV A District Report
B6: Select from the District Drop-down -> | C6: ABERDEEN
B7: CCDDD | C7: =VLOOKUP(C6,CCDDD!B:C,2,0) -> 14005
C9: Current Year | D9: Previous Year
C10: 2021-22 Final | D10: 2020-21 Final
B12: Pervious Year Title I A Allocation | C12: =VLOOKUP(C7,'Title IA 2021'!A8:C350,3,0) -> 1629791 | D12: =VLOOKUP(C7,'Title IA 1920'!A8:C330,3,0) -> 1644739
B13: Pervious Year Title I A Allocation Percentage of State Total | C13: =IFERROR(C12/SUM('Title IA 2021'!C8:C317),0) -> 0.007177220337 | D13: =D12/SUM('Title IA 1920'!C8:C313) -> 0.007326365197
B15: Net to District Allocation | C15: =VLOOKUP(C7,'SY 2021-22 Final'!A9:Q350,17,0) -> 120470 | D15: =IFERROR(VLOOKUP(C7,'SY 2020-21 Final'!A9:Q350,17,0),0) -> 125144
B17: Percentage of Change | C17: =C15/D15-1 -> -0.03734897398

Sheet CCDDD (hidden)
A4: 14005 | B4: ABERDEEN | C4: =A4 -> 14005
A5: 21226 | B5: ADNA | C5: =A5 -> 21226
A6: 22017 | B6: ALMIRA | C6: 22017
A7: 29103 | B7: ANACORTES | C7: 29103
A8: 31016 | B8: ARLINGTON | C8: 31016
A9: 02420 | B9: ASOTIN-ANATONE | C9: 02420
A10: 17408 | B10: AUBURN | C10: 17408
A11: 18303 | B11: BAINBRIDGE ISLAND | C11: 18303
A12: 06119 | B12: BATTLE GROUND | C12: 06119
A13: 17405 | B13: BELLEVUE | C13: 17405
A14: 37501 | B14: BELLINGHAM | C14: 37501
A15: 01122 | B15: BENGE | C15: 01122
A16: 27403 | B16: BETHEL | C16: 27403
A17: 20203 | B17: BICKLETON | C17: 20203
A18: 37503 | B18: BLAINE | C18: 37503
A19: 21234 | B19: BOISTFORT | C19: 21234
A20: 18100 | B20: BREMERTON | C20: 18100
A21: 24111 | B21: BREWSTER | C21: 24111
A22: 09075 | B22: BRIDGEPORT | C22: 09075
A23: 16046 | B23: BRINNON | C23: 16046
A24: 29100 | B24: BURLINGTON-EDISON | C24: 29100
A25: 06117 | B25: CAMAS | C25: 06117
A26: 05401 | B26: CAPE FLATTERY | C26: 05401
A27: 27019 | B27: CARBONADO | C27: 27019
A28: 04228 | B28: CASCADE | C28: 04228
A29: 04222 | B29: CASHMERE | C29: 04222
A30: 08401 | B30: CASTLE ROCK | C30: 08401
A31: 18901 | B31: CATALYST BREMERTON CHARTER | C31: 18901
A32: 20215 | B32: CENTERVILLE | C32: 20215
A33: 18401 | B33: CENTRAL KITSAP | C33: 18401
A34: 32356 | B34: CENTRAL VALLEY | C34: 32356
A35: 21401 | B35: CENTRALIA | C35: 21401
A36: 21302 | B36: CHEHALIS | C36: 21302
A37: 32360 | B37: CHENEY | C37: 32360
A38: 33036 | B38: CHEWELAH | C38: 33036
A39: 16049 | B39: CHIMACUM | C39: 16049
A40: 02250 | B40: CLARKSTON | C40: 02250
A41: 19404 | B41: CLE ELUM-ROSLYN | C41: 19404
A42: 27400 | B42: CLOVER PARK | C42: 27400
A43: 38300 | B43: COLFAX | C43: 38300
A44: 36250 | B44: COLLEGE PLACE | C44: 36250
A45: 38306 | B45: COLTON | C45: 38306
A46: 33206 | B46: COLUMBIA (STEV) | C46: 33206
A47: 36400 | B47: COLUMBIA (WALLA) | C47: 36400
A48: 33115 | B48: COLVILLE | C48: 33115
A49: 29011 | B49: CONCRETE | C49: 29011
A50: 29317 | B50: CONWAY | C50: 29317
A51: 14099 | B51: COSMOPOLIS | C51: 14099
A52: 13151 | B52: COULEE-HARTLINE | C52: 13151
A53: 15204 | B53: COUPEVILLE | C53: 15204
A54: 05313 | B54: CRESCENT | C54: 05313
A55: 22073 | B55: CRESTON | C55: 22073
A56: 10050 | B56: CURLEW | C56: 10050
A57: 26059 | B57: CUSICK | C57: 26059
A58: 19007 | B58: DAMMAN | C58: 19007
A59: 31330 | B59: DARRINGTON | C59: 31330
A60: 22207 | B60: DAVENPORT | C60: 22207
A61: 07002 | B61: DAYTON | C61: 07002
A62: 32414 | B62: DEER PARK | C62: 32414
A63: 27343 | B63: DIERINGER | C63: 27343
A64: 36101 | B64: DIXIE | C64: 36101
A65: 32361 | B65: EAST VALLEY (SPK) | C65: 32361
A66: 39090 | B66: EAST VALLEY (YAK) | C66: 39090
A67: 09206 | B67: EASTMONT | C67: 09206
A68: 19028 | B68: EASTON | C68: 19028
A69: 27404 | B69: EATONVILLE | C69: =A69 -> 27404
A70: 31015 | B70: EDMONDS | C70: 31015
A71: 19401 | B71: ELLENSBURG | C71: 19401
A72: 14068 | B72: ELMA | C72: 14068
A73: 38308 | B73: ENDICOTT | C73: 38308
A74: 04127 | B74: ENTIAT | C74: 04127
A75: 17216 | B75: ENUMCLAW | C75: 17216
A76: 13165 | B76: EPHRATA | C76: 13165
A77: 21036 | B77: EVALINE | C77: 21036
A78: 31002 | B78: EVERETT | C78: 31002
A79: 06114 | B79: EVERGREEN (CLARK) | C79: 06114
A80: 33205 | B80: EVERGREEN (STEV) | C80: 33205
A81: 17210 | B81: FEDERAL WAY | C81: 17210
A82: 37502 | B82: FERNDALE | C82: 37502
A83: 27417 | B83: FIFE | C83: 27417
A84: 03053 | B84: FINLEY | C84: 03053
A85: 27402 | B85: FRANKLIN PIERCE | C85: 27402
A86: 32358 | B86: FREEMAN | C86: 32358
A87: 38302 | B87: GARFIELD | C87: 38302
A88: 20401 | B88: GLENWOOD | C88: 20401
A89: 20404 | B89: GOLDENDALE | C89: 20404
A90: 13301 | B90: GRAND COULEE | C90: 13301
A91: 39200 | B91: GRANDVIEW | C91: 39200
A92: 39204 | B92: GRANGER | C92: 39204
A93: 31332 | B93: GRANITE FALLS | C93: 31332
A94: 23054 | B94: GRAPEVIEW | C94: 23054
A95: 32312 | B95: GREAT NORTHERN | C95: 32312
A96: 06103 | B96: GREEN MOUNTAIN | C96: 06103
A97: 34324 | B97: GRIFFIN | C97: 34324
A98: 22204 | B98: HARRINGTON | C98: 22204
A99: 39203 | B99: HIGHLAND | C99: 39203
A100: 17401 | B100: HIGHLINE | C100: 17401
A101: 06098 | B101: HOCKINSON | C101: 06098
A102: 23404 | B102: HOOD CANAL | C102: 23404
A103: 14028 | B103: HOQUIAM | C103: 14028
A104: 27902 | B104: IMPACT COMMENCEMENT BAY CHARTER | C104: 27902
A105: 17911 | B105: IMPACT PUGET SOUND CHARTER | C105: 17911
A106: 17916 | B106: IMPACT SALISH SEA CHARTER | C106: 17916
A107: 10070 | B107: INCHELIUM | C107: 10070
A108: 31063 | B108: INDEX | C108: 31063
A109: 17411 | B109: ISSAQUAH | C109: 17411
A110: 11056 | B110: KAHLOTUS | C110: 11056
A111: 08402 | B111: KALAMA | C111: 08402
A112: 10003 | B112: KELLER | C112: 10003
A113: 08458 | B113: KELSO | C113: 08458
A114: 03017 | B114: KENNEWICK | C114: 03017
A115: 17415 | B115: KENT | C115: 17415
A116: 33212 | B116: KETTLE FALLS | C116: 33212
A117: 03052 | B117: KIONA-BENTON | C117: 03052
A118: 19403 | B118: KITTITAS | C118: 19403
A119: 20402 | B119: KLICKITAT | C119: 20402
A120: 06101 | B120: LA CENTER | C120: 06101
A121: 29311 | B121: LA CONNER | C121: 29311
A122: 38126 | B122: LACROSSE | C122: 38126
A123: 04129 | B123: LAKE CHELAN | C123: 04129
A124: 31004 | B124: LAKE STEVENS | C124: 31004
A125: 17414 | B125: LAKE WASHINGTON | C125: 17414
A126: 31306 | B126: LAKEWOOD | C126: 31306
A127: 38264 | B127: LAMONT | C127: 38264
A128: 32362 | B128: LIBERTY | C128: 32362
A129: 01158 | B129: LIND | C129: 01158
A130: 08122 | B130: LONGVIEW | C130: 08122
A131: 33183 | B131: LOON LAKE | C131: 33183
A132: 28144 | B132: LOPEZ | C132: =A132 -> 28144
A133: 32903 | B133: LUMEN CHARTER | C133: 32903
A134: 20406 | B134: LYLE | C134: 20406
A135: 37504 | B135: LYNDEN | C135: 37504
A136: 39120 | B136: MABTON | C136: 39120
A137: 09207 | B137: MANSFIELD | C137: 09207
A138: 04019 | B138: MANSON | C138: 04019
A139: 23311 | B139: MARY M KNIGHT | C139: 23311
A140: 33207 | B140: MARY WALKER | C140: 33207
A141: 31025 | B141: MARYSVILLE | C141: 31025
A142: 14065 | B142: MCCLEARY | C142: 14065
A143: 32354 | B143: MEAD | C143: 32354
A144: 32326 | B144: MEDICAL LAKE | C144: 32326
A145: 17400 | B145: MERCER ISLAND | C145: 17400
A146: 37505 | B146: MERIDIAN | C146: 37505
A147: 24350 | B147: METHOW VALLEY | C147: 24350
A148: 30031 | B148: MILL A | C148: 30031
A149: 31103 | B149: MONROE | C149: 31103
A150: 14066 | B150: MONTESANO | C150: 14066
A151: 21214 | B151: MORTON | C151: 21214
A152: 13161 | B152: MOSES LAKE | C152: 13161
A153: 21206 | B153: MOSSYROCK | C153: 21206
A154: 39209 | B154: MOUNT ADAMS | C154: 39209
A155: 37507 | B155: MOUNT BAKER | C155: 37507
A156: 30029 | B156: MOUNT PLEASANT | C156: 30029
A157: 29320 | B157: MOUNT VERNON | C157: 29320
A158: 31006 | B158: MUKILTEO | C158: 31006
A159: 39003 | B159: NACHES VALLEY | C159: 39003
A160: 21014 | B160: NAPAVINE | C160: 21014
A161: 25155 | B161: NASELLE-GRAYS | C161: 25155
A162: 24014 | B162: NESPELEM | C162: 24014
A163: 26056 | B163: NEWPORT | C163: 26056
A164: 32325 | B164: NINE MILE FALLS | C164: 32325
A165: 37506 | B165: NOOKSACK VALLEY | C165: 37506
A166: 14064 | B166: NORTH BEACH | C166: 14064
A167: 11051 | B167: NORTH FRANKLIN | C167: 11051
A168: 18400 | B168: NORTH KITSAP | C168: 18400
A169: 23403 | B169: NORTH MASON | C169: 23403
A170: 25200 | B170: NORTH RIVER | C170: 25200
A171: 34003 | B171: NORTH THURSTON | C171: 34003
A172: 33211 | B172: NORTHPORT | C172: 33211
A173: 17417 | B173: NORTHSHORE | C173: 17417
A174: 15201 | B174: OAK HARBOR | C174: 15201
A175: 38324 | B175: OAKESDALE | C175: 38324
A176: 14400 | B176: OAKVILLE | C176: 14400
A177: 25101 | B177: OCEAN BEACH | C177: 25101
A178: 14172 | B178: OCOSTA | C178: 14172
A179: 22105 | B179: ODESSA | C179: 22105
A180: 24105 | B180: OKANOGAN | C180: 24105
A181: 34111 | B181: OLYMPIA | C181: 34111
A182: 24019 | B182: OMAK | C182: 24019
A183: 21300 | B183: ONALASKA | C183: 21300
A184: 33030 | B184: ONION CREEK | C184: 33030
A185: 28137 | B185: ORCAS ISLAND | C185: 28137
A186: 32123 | B186: ORCHARD PRAIRIE | C186: 32123
A187: 10065 | B187: ORIENT | C187: 10065
A188: 09013 | B188: ORONDO | C188: 09013
A189: 24410 | B189: OROVILLE | C189: 24410
A190: 27344 | B190: ORTING | C190: 27344
A191: 01147 | B191: OTHELLO | C191: 01147
A192: 09102 | B192: PALISADES | C192: 09102
A193: 38301 | B193: PALOUSE | C193: 38301
A194: 11001 | B194: PASCO | C194: 11001
A195: 24122 | B195: PATEROS | C195: 24122
A196: 03050 | B196: PATERSON | C196: =A196 -> 03050
A197: 21301 | B197: PE ELL | C197: 21301
A198: 27401 | B198: PENINSULA | C198: 27401
A199: 04901 | B199: PINNACLE PREP CHARTER | C199: 04901
A200: 23402 | B200: PIONEER | C200: 23402
A201: 12110 | B201: POMEROY | C201: 12110
A202: 05121 | B202: PORT ANGELES | C202: 05121
A203: 16050 | B203: PORT TOWNSEND | C203: 16050
... 115 more rows

Sheet SY 2021-22 Final (hidden)
A1: Preliminary Title IV Allocations SY 2021-22 | C1: =Assumption!C12 -> 17530102
G2: First Reallocation | J2: Second Reallocation | M2: Third Reallocation | P2: Adjust until all eligible LEAs meet min.
B4: Min. Allocation | C4: Sufficient for $10K each LEA? | D4: Adjust to 100% | G4: Precentage to adjust other LEAs | H4: Allocation Pool | J4: Precentage to adjust other LEAs | K4: Allocation Pool | M4: Precentage to adjust other LEAs | N4: Allocation Pool
B5: 10000 | C5: =IF(C7<C1,"Yes","No") -> Yes | D5: =(1-D7)/COUNTIF(C9:C332,">0") -> -1.495249865e-18 | G5: =(G7-SUMIF(G9:G350,"=10000",E9:E350))/SUMIF(G9:G350,"=0",E9:E350) -> 0.03665920864 | H5: =$C$1-H7 -> 24.8 | J5: =(J7-SUMIF(J9:J350,"=10000",H9:H350))/SUMIF(J9:J350,"=0",H9:H350) -> 4.725728332e-05 | K5: =$C$1-K7 -> 65 | M5: =M7/SUMIF(M9:M350,"=0",K9:K350) -> 0 | N5: =$C$1-N7 -> 65 | Q5: =IF(C1=Q7,"rounding ok","adjust rounding") -> rounding ok
A6: CoDistID | B6: District | C6: Minimum Allocation | D6: % of Title IA Received | E6: Initial Formula Allocation | G6: Adjusted allocation for LEAs below $10K | H6: Adjusted Allocation for All Other LEAs | J6: Adjusted allocation for LEAs below $10K | K6: Adjusted Allocation for All Other LEAs | M6: Adjusted allocation for LEAs below $10K | N6: Adjusted Allocation for All Other LEAs | Q6: Subtotal After Re-allocation | R6: MOE | S6: MOE Deduction | T6: Final Allocation | U6: PY Allocation | V6: Difference | W6: % Change
B7: State Totals | C7: =SUM(C9:C350) -> 2970000 | D7: =SUM(D9:D350) -> 1 | E7: =SUM(E9:E350) -> 17530086.4 | G7: =SUM(G9:G350) -> 1140000 | H7: =SUM(H9:H350) -> 17530077.2 | J7: =SUM(J9:J350) -> 50000 | K7: =SUM(K9:K350) -> 17530037 | M7: =SUM(M9:M350) -> 0 | N7: =SUM(N9:N350) -> 17530037 | Q7: =SUM(Q9:Q350) -> 17530102 | R7: 0 | S7: 0 | T7: 17530102 | U7: 18407083 | V7: -876981 | W7: =AVERAGE(W9:W350) -> -0.04104939132
A9: 14005 | B9: ABERDEEN | C9: =_xlfn.IFNA(IF(VLOOKUP(A9,'Title IA 2021'!A:D,3,0)=0,0,$B$5),0) -> 10000 | D9: =IFERROR(VLOOKUP(A9,'Title IA 2021'!A:D,3,0)/'Title IA 2021'!$C$3,0) -> 0.007134042813 | E9: =IF(D9=0,0,ROUNDDOWN(D9*$C$1,1)+$C$1*$D$5) -> 125060.4 | G9: =IF(AND($C9<>0,E9<$B$5),$B$5,0) -> 0 | H9: =ROUNDDOWN(IF(G9=0,IF(E9=$B$5,$B$5,E9*(1-$G$5)),G9),1) -> 120475.7 | J9: =IF(AND($C9<>0,H9<10000),10000,0) -> 0 | K9: =ROUNDDOWN(IF(J9=0,IF(H9=$B$5,$B$5,H9*(1-$J$5)),J9),0) -> 120470 | M9: =IF(AND(C9<>0,K9<10000),10000,0) -> 0 | N9: =IF(M9=0,IF(K9=$B$5,$B$5,K9*(1-$M$5)),M9) -> 120470 | Q9: =N9 -> 120470 | S9: =ROUND(IF(R9>0,-(0.9-R9)*Q9,0),0) -> 0 | T9: =Q9+S9 -> 120470 | U9: =IFERROR(VLOOKUP(A9,'SY 2020-21 Final'!$A$9:$T$350,20,0),0) -> 125144 | V9: =T9-U9 -> -4674 | W9: =IFERROR(V9/U9,0) -> -0.03734897398
A10: 21226 | B10: ADNA | C10: =_xlfn.IFNA(IF(VLOOKUP(A10,'Title IA 2021'!A:D,3,0)=0,0,$B$5),0) -> 10000 | D10: =IFERROR(VLOOKUP(A10,'Title IA 2021'!A:D,3,0)/'Title IA 2021'!$C$3,0) -> 0.0005285996855 | E10: 9266.4 | G10: 10000 | H10: 10000 | J10: 0 | K10: 10000 | M10: 0 | N10: 10000 | Q10: 10000 | S10: 0 | T10: 10000 | U10: =IFERROR(VLOOKUP(A10,'SY 2020-21 Final'!$A$9:$T$350,20,0),0) -> 10815 | V10: -815 | W10: -0.07535829866
A11: 22017 | B11: ALMIRA | C11: =_xlfn.IFNA(IF(VLOOKUP(A11,'Title IA 2021'!A:D,3,0)=0,0,$B$5),0) -> 10000 | D11: =IFERROR(VLOOKUP(A11,'Title IA 2021'!A:D,3,0)/'Title IA 2021'!$C$3,0) -> 6.342670953e-06 | E11: 111.1 | G11: 10000 | H11: 10000 | J11: 0 | K11: 10000 | M11: 0 | N11: 10000 | Q11: 10000 | S11: 0 | T11: 10000 | U11: =IFERROR(VLOOKUP(A11,'SY 2020-21 Final'!$A$9:$T$350,20,0),0) -> 10000 | V11: 0 | W11: 0
A12: 29103 | B12: ANACORTES | C12: =_xlfn.IFNA(IF(VLOOKUP(A12,'Title IA 2021'!A:D,3,0)=0,0,$B$5),0) -> 10000 | D12: =IFERROR(VLOOKUP(A12,'Title IA 2021'!A:D,3,0)/'Title IA 2021'!$C$3,0) -> 0.001313952792 | E12: 23033.7 | G12: 0 | H12: 22189.3 | J12: 0 | K12: 22188 | M12: 0 | N12: 22188 | Q12: 22188 | S12: 0 | T12: 22188 | U12: =IFERROR(VLOOKUP(A12,'SY 2020-21 Final'!$A$9:$T$350,20,0),0) -> 23058 | V12: -870 | W12: -0.03773093937
A13: 31016 | B13: ARLINGTON | C13: =_xlfn.IFNA(IF(VLOOKUP(A13,'Title IA 2021'!A:D,3,0)=0,0,$B$5),0) -> 10000 | D13: =IFERROR(VLOOKUP(A13,'Title IA 2021'!A:D,3,0)/'Title IA 2021'!$C$3,0) -> 0.002230431538 | E13: 39099.6 | G13: 0 | H13: 37666.2 | J13: 0 | K13: 37664 | M13: 0 | N13: 37664 | Q13: 37664 | S13: 0 | T13: 37664 | U13: =IFERROR(VLOOKUP(A13,'SY 2020-21 Final'!$A$9:$T$350,20,0),0) -> 39133 | V13: -1469 | W13: -0.03753865024
A14: 02420 | B14: ASOTIN-ANATONE | C14: =_xlfn.IFNA(IF(VLOOKUP(A14,'Title IA 2021'!A:D,3,0)=0,0,$B$5),0) -> 10000 | D14: =IFERROR(VLOOKUP(A14,'Title IA 2021'!A:D,3,0)/'Title IA 2021'!$C$3,0) -> 0.0004481103594 | E14: 7855.4 | G14: 10000 | H14: 10000 | J14: 0 | K14: 10000 | M14: 0 | N14: 10000 | Q14: 10000 | S14: 0 | T14: 10000 | U14: =IFERROR(VLOOKUP(A14,'SY 2020-21 Final'!$A$9:$T$350,20,0),0) -> 10000 | V14: 0 | W14: 0
A15: 17408 | B15: AUBURN | C15: =_xlfn.IFNA(IF(VLOOKUP(A15,'Title IA 2021'!A:D,3,0)=0,0,$B$5),0) -> 10000 | D15: =IFERROR(VLOOKUP(A15,'Title IA 2021'!A:D,3,0)/'Title IA 2021'!$C$3,0) -> 0.01998276649 | E15: 350299.9 | G15: 0 | H15: 337458.1 | J15: 0 | K15: 337442 | M15: 0 | N15: 337442 | Q15: 337442 | S15: 0 | T15: 337442 | U15: =IFERROR(VLOOKUP(A15,'SY 2020-21 Final'!$A$9:$T$350,20,0),0) -> 350513 | V15: -13071 | W15: -0.03729105625
A16: 18303 | B16: BAINBRIDGE ISLAND | C16: =_xlfn.IFNA(IF(VLOOKUP(A16,'Title IA 2021'!A:D,3,0)=0,0,$B$5),0) -> 10000 | D16: =IFERROR(VLOOKUP(A16,'Title IA 2021'!A:D,3,0)/'Title IA 2021'!$C$3,0) -> 0.0004153946088 | E16: 7281.9 | G16: 10000 | H16: 10000 | J16: 0 | K16: 10000 | M16: 0 | N16: 10000 | Q16: 10000 | S16: 0 | T16: 10000 | U16: =IFERROR(VLOOKUP(A16,'SY 2020-21 Final'!$A$9:$T$350,20,0),0) -> 10000 | V16: 0 | W16: 0
A17: 06119 | B17: BATTLE GROUND | C17: =_xlfn.IFNA(IF(VLOOKUP(A17,'Title IA 2021'!A:D,3,0)=0,0,$B$5),0) -> 10000 | D17: =IFERROR(VLOOKUP(A17,'Title IA 2021'!A:D,3,0)/'Title IA 2021'!$C$3,0) -> 0.007383521203 | E17: 129433.8 | G17: 0 | H17: 124688.8 | J17: 0 | K17: 124682 | M17: 0 | N17: 124682 | Q17: 124682 | S17: 0 | T17: 124682 | U17: =IFERROR(VLOOKUP(A17,'SY 2020-21 Final'!$A$9:$T$350,20,0),0) -> 137839 | V17: -13157 | W17: -0.09545194031
A18: 17405 | B18: BELLEVUE | C18: =_xlfn.IFNA(IF(VLOOKUP(A18,'Title IA 2021'!A:D,3,0)=0,0,$B$5),0) -> 10000 | D18: =IFERROR(VLOOKUP(A18,'Title IA 2021'!A:D,3,0)/'Title IA 2021'!$C$3,0) -> 0.008532297537 | E18: 149572 | G18: 0 | H18: 144088.8 | J18: 0 | K18: 144081 | M18: 0 | N18: 144081 | Q18: 144081 | S18: 0 | T18: 144081 | U18: =IFERROR(VLOOKUP(A18,'SY 2020-21 Final'!$A$9:$T$350,20,0),0) -> 149669 | V18: -5588 | W18: -0.03733572082
A19: 37501 | B19: BELLINGHAM | C19: =_xlfn.IFNA(IF(VLOOKUP(A19,'Title IA 2021'!A:D,3,0)=0,0,$B$5),0) -> 10000 | D19: =IFERROR(VLOOKUP(A19,'Title IA 2021'!A:D,3,0)/'Title IA 2021'!$C$3,0) -> 0.009289837441 | E19: 162851.7 | G19: 0 | H19: 156881.6 | J19: 0 | K19: 156874 | M19: 0 | N19: 156874 | Q19: 156874 | S19: 0 | T19: 156874 | U19: =IFERROR(VLOOKUP(A19,'SY 2020-21 Final'!$A$9:$T$350,20,0),0) -> 151057 | V19: 5817 | W19: 0.03850864243
A20: 01122 | B20: BENGE | C20: =_xlfn.IFNA(IF(VLOOKUP(A20,'Title IA 2021'!A:D,3,0)=0,0,$B$5),0) -> 0 | D20: =IFERROR(VLOOKUP(A20,'Title IA 2021'!A:D,3,0)/'Title IA 2021'!$C$3,0) -> 0 | E20: 0 | G20: 0 | H20: 0 | J20: 0 | K20: 0 | M20: 0 | N20: 0 | Q20: 0 | S20: 0 | T20: 0 | U20: =IFERROR(VLOOKUP(A20,'SY 2020-21 Final'!$A$9:$T$350,20,0),0) -> 0 | V20: 0 | W20: 0
A21: 27403 | B21: BETHEL | C21: =_xlfn.IFNA(IF(VLOOKUP(A21,'Title IA 2021'!A:D,3,0)=0,0,$B$5),0) -> 10000 | D21: =IFERROR(VLOOKUP(A21,'Title IA 2021'!A:D,3,0)/'Title IA 2021'!$C$3,0) -> 0.01532949593 | E21: 268727.6 | G21: 0 | H21: 258876.2 | J21: 0 | K21: 258863 | M21: 0 | N21: 258863 | Q21: 258863 | S21: 0 | T21: 258863 | U21: =IFERROR(VLOOKUP(A21,'SY 2020-21 Final'!$A$9:$T$350,20,0),0) -> 270671 | V21: -11808 | W21: -0.04362491734
A22: 20203 | B22: BICKLETON | C22: =_xlfn.IFNA(IF(VLOOKUP(A22,'Title IA 2021'!A:D,3,0)=0,0,$B$5),0) -> 10000 | D22: =IFERROR(VLOOKUP(A22,'Title IA 2021'!A:D,3,0)/'Title IA 2021'!$C$3,0) -> 6.434593721e-06 | E22: 112.7 | G22: 10000 | H22: 10000 | J22: 0 | K22: 10000 | M22: 0 | N22: 10000 | Q22: 10000 | S22: 0 | T22: 10000 | U22: =IFERROR(VLOOKUP(A22,'SY 2020-21 Final'!$A$9:$T$350,20,0),0) -> 10000 | V22: 0 | W22: 0
A23: 37503 | B23: BLAINE | C23: =_xlfn.IFNA(IF(VLOOKUP(A23,'Title IA 2021'!A:D,3,0)=0,0,$B$5),0) -> 10000 | D23: =IFERROR(VLOOKUP(A23,'Title IA 2021'!A:D,3,0)/'Title IA 2021'!$C$3,0) -> 0.002396824879 | E23: 42016.5 | G23: 0 | H23: 40476.2 | J23: 0 | K23: 40474 | M23: 0 | N23: 40474 | Q23: 40474 | S23: 0 | T23: 40474 | U23: =IFERROR(VLOOKUP(A23,'SY 2020-21 Final'!$A$9:$T$350,20,0),0) -> 42052 | V23: -1578 | W23: -0.03752496909
A24: 21234 | B24: BOISTFORT | C24: =_xlfn.IFNA(IF(VLOOKUP(A24,'Title IA 2021'!A:D,3,0)=0,0,$B$5),0) -> 10000 | D24: =IFERROR(VLOOKUP(A24,'Title IA 2021'!A:D,3,0)/'Title IA 2021'!$C$3,0) -> 0.0001455925318 | E24: 2552.2 | G24: 10000 | H24: 10000 | J24: 0 | K24: 10000 | M24: 0 | N24: 10000 | Q24: 10000 | S24: 0 | T24: 10000 | U24: =IFERROR(VLOOKUP(A24,'SY 2020-21 Final'!$A$9:$T$350,20,0),0) -> 10000 | V24: 0 | W24: 0
A25: 18100 | B25: BREMERTON | C25: =_xlfn.IFNA(IF(VLOOKUP(A25,'Title IA 2021'!A:D,3,0)=0,0,$B$5),0) -> 10000 | D25: =IFERROR(VLOOKUP(A25,'Title IA 2021'!A:D,3,0)/'Title IA 2021'!$C$3,0) -> 0.005685576371 | E25: 99668.7 | G25: 0 | H25: 96014.9 | J25: 0 | K25: 96010 | M25: 0 | N25: 96010 | Q25: 96010 | S25: 0 | T25: 96010 | U25: =IFERROR(VLOOKUP(A25,'SY 2020-21 Final'!$A$9:$T$350,20,0),0) -> 98778 | V25: -2768 | W25: -0.02802243415
A26: 24111 | B26: BREWSTER | C26: =_xlfn.IFNA(IF(VLOOKUP(A26,'Title IA 2021'!A:D,3,0)=0,0,$B$5),0) -> 10000 | D26: =IFERROR(VLOOKUP(A26,'Title IA 2021'!A:D,3,0)/'Title IA 2021'!$C$3,0) -> 0.001318071808 | E26: 23105.9 | G26: 0 | H26: 22258.8 | J26: 0 | K26: 22257 | M26: 0 | N26: 22257 | Q26: 22257 | S26: 0 | T26: 22257 | U26: =IFERROR(VLOOKUP(A26,'SY 2020-21 Final'!$A$9:$T$350,20,0),0) -> 25331 | V26: -3074 | W26: -0.1213532825
A27: 09075 | B27: BRIDGEPORT | C27: =_xlfn.IFNA(IF(VLOOKUP(A27,'Title IA 2021'!A:D,3,0)=0,0,$B$5),0) -> 10000 | D27: =IFERROR(VLOOKUP(A27,'Title IA 2021'!A:D,3,0)/'Title IA 2021'!$C$3,0) -> 0.001341271363 | E27: 23512.6 | G27: 0 | H27: 22650.6 | J27: 0 | K27: 22649 | M27: 0 | N27: 22649 | Q27: 22649 | S27: 0 | T27: 22649 | U27: =IFERROR(VLOOKUP(A27,'SY 2020-21 Final'!$A$9:$T$350,20,0),0) -> 23682 | V27: -1033 | W27: -0.04361962672
A28: 16046 | B28: BRINNON | C28: =_xlfn.IFNA(IF(VLOOKUP(A28,'Title IA 2021'!A:D,3,0)=0,0,$B$5),0) -> 10000 | D28: =IFERROR(VLOOKUP(A28,'Title IA 2021'!A:D,3,0)/'Title IA 2021'!$C$3,0) -> 0.0001971655816 | E28: 3456.3 | G28: 10000 | H28: 10000 | J28: 0 | K28: 10000 | M28: 0 | N28: 10000 | Q28: 10000 | S28: 0 | T28: 10000 | U28: =IFERROR(VLOOKUP(A28,'SY 2020-21 Final'!$A$9:$T$350,20,0),0) -> 10000 | V28: 0 | W28: 0
A29: 29100 | B29: BURLINGTON-EDISON | C29: =_xlfn.IFNA(IF(VLOOKUP(A29,'Title IA 2021'!A:D,3,0)=0,0,$B$5),0) -> 10000 | D29: =IFERROR(VLOOKUP(A29,'Title IA 2021'!A:D,3,0)/'Title IA 2021'!$C$3,0) -> 0.003689123294 | E29: 64670.7 | G29: 0 | H29: 62299.9 | J29: 0 | K29: 62296 | M29: 0 | N29: 62296 | Q29: 62296 | S29: 0 | T29: 62296 | U29: =IFERROR(VLOOKUP(A29,'SY 2020-21 Final'!$A$9:$T$350,20,0),0) -> 69151 | V29: -6855 | W29: -0.09913088748
A30: 06117 | B30: CAMAS | C30: =_xlfn.IFNA(IF(VLOOKUP(A30,'Title IA 2021'!A:D,3,0)=0,0,$B$5),0) -> 10000 | D30: =IFERROR(VLOOKUP(A30,'Title IA 2021'!A:D,3,0)/'Title IA 2021'!$C$3,0) -> 0.0009052685455 | E30: 15869.4 | G30: 0 | H30: 15287.6 | J30: 0 | K30: 15286 | M30: 0 | N30: 15286 | Q30: 15286 | S30: 0 | T30: 15286 | U30: =IFERROR(VLOOKUP(A30,'SY 2020-21 Final'!$A$9:$T$350,20,0),0) -> 30426 | V30: -15140 | W30: -0.4976007362
A31: 05401 | B31: CAPE FLATTERY | C31: =_xlfn.IFNA(IF(VLOOKUP(A31,'Title IA 2021'!A:D,3,0)=0,0,$B$5),0) -> 10000 | D31: =IFERROR(VLOOKUP(A31,'Title IA 2021'!A:D,3,0)/'Title IA 2021'!$C$3,0) -> 0.0005279956216 | E31: 9255.8 | G31: 10000 | H31: 10000 | J31: 0 | K31: 10000 | M31: 0 | N31: 10000 | Q31: 10000 | S31: 0 | T31: 10000 | U31: =IFERROR(VLOOKUP(A31,'SY 2020-21 Final'!$A$9:$T$350,20,0),0) -> 10803 | V31: -803 | W31: -0.0743312043
A32: 27019 | B32: CARBONADO | C32: =_xlfn.IFNA(IF(VLOOKUP(A32,'Title IA 2021'!A:D,3,0)=0,0,$B$5),0) -> 10000 | D32: =IFERROR(VLOOKUP(A32,'Title IA 2021'!A:D,3,0)/'Title IA 2021'!$C$3,0) -> 8.241970419e-05 | E32: 1444.8 | G32: 10000 | H32: 10000 | J32: 0 | K32: 10000 | M32: 0 | N32: 10000 | Q32: 10000 | S32: 0 | T32: 10000 | U32: =IFERROR(VLOOKUP(A32,'SY 2020-21 Final'!$A$9:$T$350,20,0),0) -> 10000 | V32: 0 | W32: 0
A33: 04228 | B33: CASCADE | C33: =_xlfn.IFNA(IF(VLOOKUP(A33,'Title IA 2021'!A:D,3,0)=0,0,$B$5),0) -> 10000 | D33: =IFERROR(VLOOKUP(A33,'Title IA 2021'!A:D,3,0)/'Title IA 2021'!$C$3,0) -> 0.002225441445 | E33: 39012.2 | G33: 0 | H33: 37582 | J33: 0 | K33: 37580 | M33: 0 | N33: 37580 | Q33: 37580 | S33: 0 | T33: 37580 | U33: =IFERROR(VLOOKUP(A33,'SY 2020-21 Final'!$A$9:$T$350,20,0),0) -> 41651 | V33: -4071 | W33: -0.09774075052
A34: 04222 | B34: CASHMERE | C34: =_xlfn.IFNA(IF(VLOOKUP(A34,'Title IA 2021'!A:D,3,0)=0,0,$B$5),0) -> 10000 | D34: =IFERROR(VLOOKUP(A34,'Title IA 2021'!A:D,3,0)/'Title IA 2021'!$C$3,0) -> 0.001691365789 | E34: 29649.8 | G34: 0 | H34: 28562.8 | J34: 0 | K34: 28561 | M34: 0 | N34: 28561 | Q34: 28561 | S34: 0 | T34: 28561 | U34: =IFERROR(VLOOKUP(A34,'SY 2020-21 Final'!$A$9:$T$350,20,0),0) -> 29678 | V34: -1117 | W34: -0.0376373071
A35: 08401 | B35: CASTLE ROCK | C35: =_xlfn.IFNA(IF(VLOOKUP(A35,'Title IA 2021'!A:D,3,0)=0,0,$B$5),0) -> 10000 | D35: =IFERROR(VLOOKUP(A35,'Title IA 2021'!A:D,3,0)/'Title IA 2021'!$C$3,0) -> 0.001023341152 | E35: 17939.2 | G35: 0 | H35: 17281.5 | J35: 0 | K35: 17280 | M35: 0 | N35: 17280 | Q35: 17280 | S35: 0 | T35: 17280 | U35: =IFERROR(VLOOKUP(A35,'SY 2020-21 Final'!$A$9:$T$350,20,0),0) -> 17960 | V35: -680 | W35: -0.03786191537
A36: 18901 | B36: CATALYST BREMERTON CHARTER | C36: =_xlfn.IFNA(IF(VLOOKUP(A36,'Title IA 2021'!A:D,3,0)=0,0,$B$5),0) -> 10000 | D36: =IFERROR(VLOOKUP(A36,'Title IA 2021'!A:D,3,0)/'Title IA 2021'!$C$3,0) -> 0.0002535492562 | E36: 4444.7 | G36: 10000 | H36: 10000 | J36: 0 | K36: 10000 | M36: 0 | N36: 10000 | Q36: 10000 | S36: 0 | T36: 10000 | U36: =IFERROR(VLOOKUP(A36,'SY 2020-21 Final'!$A$9:$T$350,20,0),0) -> 0 | V36: 10000 | W36: 0
A37: 20215 | B37: CENTERVILLE | C37: =_xlfn.IFNA(IF(VLOOKUP(A37,'Title IA 2021'!A:D,3,0)=0,0,$B$5),0) -> 10000 | D37: =IFERROR(VLOOKUP(A37,'Title IA 2021'!A:D,3,0)/'Title IA 2021'!$C$3,0) -> 0.0001194514476 | E37: 2093.9 | G37: 10000 | H37: 10000 | J37: 0 | K37: 10000 | M37: 0 | N37: 10000 | Q37: 10000 | S37: 0 | T37: 10000 | U37: =IFERROR(VLOOKUP(A37,'SY 2020-21 Final'!$A$9:$T$350,20,0),0) -> 10000 | V37: 0 | W37: 0
A38: 18401 | B38: CENTRAL KITSAP | C38: =_xlfn.IFNA(IF(VLOOKUP(A38,'Title IA 2021'!A:D,3,0)=0,0,$B$5),0) -> 10000 | D38: =IFERROR(VLOOKUP(A38,'Title IA 2021'!A:D,3,0)/'Title IA 2021'!$C$3,0) -> 0.005520526853 | E38: 96775.3 | G38: 0 | H38: 93227.5 | J38: 0 | K38: 93223 | M38: 0 | N38: 93223 | Q38: 93223 | S38: 0 | T38: 93223 | U38: =IFERROR(VLOOKUP(A38,'SY 2020-21 Final'!$A$9:$T$350,20,0),0) -> 84445 | V38: 8778 | W38: 0.1039493161
A39: 32356 | B39: CENTRAL VALLEY | C39: =_xlfn.IFNA(IF(VLOOKUP(A39,'Title IA 2021'!A:D,3,0)=0,0,$B$5),0) -> 10000 | D39: =IFERROR(VLOOKUP(A39,'Title IA 2021'!A:D,3,0)/'Title IA 2021'!$C$3,0) -> 0.01279168342 | E39: 224239.5 | G39: 0 | H39: 216019 | J39: 0 | K39: 216008 | M39: 0 | N39: 216008 | Q39: 216008 | S39: 0 | T39: 216008 | U39: =IFERROR(VLOOKUP(A39,'SY 2020-21 Final'!$A$9:$T$350,20,0),0) -> 224380 | V39: -8372 | W39: -0.03731170336
A40: 21401 | B40: CENTRALIA | C40: =_xlfn.IFNA(IF(VLOOKUP(A40,'Title IA 2021'!A:D,3,0)=0,0,$B$5),0) -> 10000 | D40: =IFERROR(VLOOKUP(A40,'Title IA 2021'!A:D,3,0)/'Title IA 2021'!$C$3,0) -> 0.005683427129 | E40: 99631 | G40: 0 | H40: 95978.6 | J40: 0 | K40: 95974 | M40: 0 | N40: 95974 | Q40: 95974 | S40: 0 | T40: 95974 | U40: =IFERROR(VLOOKUP(A40,'SY 2020-21 Final'!$A$9:$T$350,20,0),0) -> 100445 | V40: -4471 | W40: -0.04451192195
A41: 21302 | B41: CHEHALIS | C41: =_xlfn.IFNA(IF(VLOOKUP(A41,'Title IA 2021'!A:D,3,0)=0,0,$B$5),0) -> 10000 | D41: =IFERROR(VLOOKUP(A41,'Title IA 2021'!A:D,3,0)/'Title IA 2021'!$C$3,0) -> 0.002354321542 | E41: 41271.4 | G41: 0 | H41: 39758.4 | J41: 0 | K41: 39756 | M41: 0 | N41: 39756 | Q41: 39756 | S41: 0 | T41: 39756 | U41: =IFERROR(VLOOKUP(A41,'SY 2020-21 Final'!$A$9:$T$350,20,0),0) -> 43319 | V41: -3563 | W41: -0.08225028279
A42: 32360 | B42: CHENEY | C42: =_xlfn.IFNA(IF(VLOOKUP(A42,'Title IA 2021'!A:D,3,0)=0,0,$B$5),0) -> 10000 | D42: =IFERROR(VLOOKUP(A42,'Title IA 2021'!A:D,3,0)/'Title IA 2021'!$C$3,0) -> 0.003585430035 | E42: 62852.9 | G42: 0 | H42: 60548.7 | J42: 0 | K42: 60545 | M42: 0 | N42: 60545 | Q42: 60545 | S42: 0 | T42: 60545 | U42: =IFERROR(VLOOKUP(A42,'SY 2020-21 Final'!$A$9:$T$350,20,0),0) -> 62900 | V42: -2355 | W42: -0.03744038156
A43: 33036 | B43: CHEWELAH | C43: =_xlfn.IFNA(IF(VLOOKUP(A43,'Title IA 2021'!A:D,3,0)=0,0,$B$5),0) -> 10000 | D43: =IFERROR(VLOOKUP(A43,'Title IA 2021'!A:D,3,0)/'Title IA 2021'!$C$3,0) -> 0.001531323874 | E43: 26844.2 | G43: 0 | H43: 25860.1 | J43: 0 | K43: 25858 | M43: 0 | N43: 25858 | Q43: 25858 | S43: 0 | T43: 25858 | U43: =IFERROR(VLOOKUP(A43,'SY 2020-21 Final'!$A$9:$T$350,20,0),0) -> 26870 | V43: -1012 | W43: -0.03766282099
A44: 16049 | B44: CHIMACUM | C44: =_xlfn.IFNA(IF(VLOOKUP(A44,'Title IA 2021'!A:D,3,0)=0,0,$B$5),0) -> 10000 | D44: =IFERROR(VLOOKUP(A44,'Title IA 2021'!A:D,3,0)/'Title IA 2021'!$C$3,0) -> 0.0007191599597 | E44: 12606.9 | G44: 0 | H44: 12144.7 | J44: 0 | K44: 12144 | M44: 0 | N44: 12144 | Q44: 12144 | S44: 0 | T44: 12144 | U44: =IFERROR(VLOOKUP(A44,'SY 2020-21 Final'!$A$9:$T$350,20,0),0) -> 12625 | V44: -481 | W44: -0.0380990099
A45: 02250 | B45: CLARKSTON | C45: =_xlfn.IFNA(IF(VLOOKUP(A45,'Title IA 2021'!A:D,3,0)=0,0,$B$5),0) -> 10000 | D45: =IFERROR(VLOOKUP(A45,'Title IA 2021'!A:D,3,0)/'Title IA 2021'!$C$3,0) -> 0.003275842909 | E45: 57425.8 | G45: 0 | H45: 55320.6 | J45: 0 | K45: 55317 | M45: 0 | N45: 55317 | Q45: 55317 | S45: 0 | T45: 55317 | U45: =IFERROR(VLOOKUP(A45,'SY 2020-21 Final'!$A$9:$T$350,20,0),0) -> 57470 | V45: -2153 | W45: -0.03746302419
A46: 19404 | B46: CLE ELUM-ROSLYN | C46: =_xlfn.IFNA(IF(VLOOKUP(A46,'Title IA 2021'!A:D,3,0)=0,0,$B$5),0) -> 10000 | D46: =IFERROR(VLOOKUP(A46,'Title IA 2021'!A:D,3,0)/'Title IA 2021'!$C$3,0) -> 0.0008692173116 | E46: 15237.4 | G46: 0 | H46: 14678.8 | J46: 0 | K46: 14678 | M46: 0 | N46: 14678 | Q46: 14678 | S46: 0 | T46: 14678 | U46: =IFERROR(VLOOKUP(A46,'SY 2020-21 Final'!$A$9:$T$350,20,0),0) -> 14093 | V46: 585 | W46: 0.04150996949
A47: 27400 | B47: CLOVER PARK | C47: =_xlfn.IFNA(IF(VLOOKUP(A47,'Title IA 2021'!A:D,3,0)=0,0,$B$5),0) -> 10000 | D47: =IFERROR(VLOOKUP(A47,'Title IA 2021'!A:D,3,0)/'Title IA 2021'!$C$3,0) -> 0.0172315312 | E47: 302070.4 | G47: 0 | H47: 290996.7 | J47: 0 | K47: 290982 | M47: 0 | N47: 290982 | Q47: 290982 | S47: 0 | T47: 290982 | U47: =IFERROR(VLOOKUP(A47,'SY 2020-21 Final'!$A$9:$T$350,20,0),0) -> 315964 | V47: -24982 | W47: -0.07906596954
A48: 38300 | B48: COLFAX | C48: =_xlfn.IFNA(IF(VLOOKUP(A48,'Title IA 2021'!A:D,3,0)=0,0,$B$5),0) -> 10000 | D48: =IFERROR(VLOOKUP(A48,'Title IA 2021'!A:D,3,0)/'Title IA 2021'!$C$3,0) -> 0.0004172505732 | E48: 7314.4 | G48: 10000 | H48: 10000 | J48: 0 | K48: 10000 | M48: 0 | N48: 10000 | Q48: 10000 | S48: 0 | T48: 10000 | U48: =IFERROR(VLOOKUP(A48,'SY 2020-21 Final'!$A$9:$T$350,20,0),0) -> 10000 | V48: 0 | W48: 0
A49: 36250 | B49: COLLEGE PLACE | C49: =_xlfn.IFNA(IF(VLOOKUP(A49,'Title IA 2021'!A:D,3,0)=0,0,$B$5),0) -> 10000 | D49: =IFERROR(VLOOKUP(A49,'Title IA 2021'!A:D,3,0)/'Title IA 2021'!$C$3,0) -> 0.001664222309 | E49: 29173.9 | G49: 0 | H49: 28104.4 | J49: 0 | K49: 28103 | M49: 0 | N49: 28103 | Q49: 28103 | S49: 0 | T49: 28103 | U49: =IFERROR(VLOOKUP(A49,'SY 2020-21 Final'!$A$9:$T$350,20,0),0) -> 32185 | V49: -4082 | W49: -0.1268292683
A50: 38306 | B50: COLTON | C50: =_xlfn.IFNA(IF(VLOOKUP(A50,'Title IA 2021'!A:D,3,0)=0,0,$B$5),0) -> 10000 | D50: =IFERROR(VLOOKUP(A50,'Title IA 2021'!A:D,3,0)/'Title IA 2021'!$C$3,0) -> 0.0001739704033 | E50: 3049.7 | G50: 10000 | H50: 10000 | J50: 0 | K50: 10000 | M50: 0 | N50: 10000 | Q50: 10000 | S50: 0 | T50: 10000 | U50: =IFERROR(VLOOKUP(A50,'SY 2020-21 Final'!$A$9:$T$350,20,0),0) -> 10000 | V50: 0 | W50: 0
A51: 33206 | B51: COLUMBIA (STEV) | C51: =_xlfn.IFNA(IF(VLOOKUP(A51,'Title IA 2021'!A:D,3,0)=0,0,$B$5),0) -> 10000 | D51: =IFERROR(VLOOKUP(A51,'Title IA 2021'!A:D,3,0)/'Title IA 2021'!$C$3,0) -> 0.000300451754 | E51: 5266.9 | G51: 10000 | H51: 10000 | J51: 0 | K51: 10000 | M51: 0 | N51: 10000 | Q51: 10000 | S51: 0 | T51: 10000 | U51: =IFERROR(VLOOKUP(A51,'SY 2020-21 Final'!$A$9:$T$350,20,0),0) -> 10000 | V51: 0 | W51: 0
A52: 36400 | B52: COLUMBIA (WALLA) | C52: =_xlfn.IFNA(IF(VLOOKUP(A52,'Title IA 2021'!A:D,3,0)=0,0,$B$5),0) -> 10000 | D52: =IFERROR(VLOOKUP(A52,'Title IA 2021'!A:D,3,0)/'Title IA 2021'!$C$3,0) -> 0.001023678202 | E52: 17945.1 | G52: 0 | H52: 17287.2 | J52: 0 | K52: 17286 | M52: 0 | N52: 17286 | Q52: 17286 | S52: 0 | T52: 17286 | U52: =IFERROR(VLOOKUP(A52,'SY 2020-21 Final'!$A$9:$T$350,20,0),0) -> 18101 | V52: -815 | W52: -0.04502513673
A53: 33115 | B53: COLVILLE | C53: =_xlfn.IFNA(IF(VLOOKUP(A53,'Title IA 2021'!A:D,3,0)=0,0,$B$5),0) -> 10000 | D53: =IFERROR(VLOOKUP(A53,'Title IA 2021'!A:D,3,0)/'Title IA 2021'!$C$3,0) -> 0.002698318424 | E53: 47301.7 | G53: 0 | H53: 45567.6 | J53: 0 | K53: 45565 | M53: 0 | N53: 45565 | Q53: 45565 | S53: 0 | T53: 45565 | U53: =IFERROR(VLOOKUP(A53,'SY 2020-21 Final'!$A$9:$T$350,20,0),0) -> 47811 | V53: -2246 | W53: -0.04697663718
A54: 29011 | B54: CONCRETE | C54: =_xlfn.IFNA(IF(VLOOKUP(A54,'Title IA 2021'!A:D,3,0)=0,0,$B$5),0) -> 10000 | D54: =IFERROR(VLOOKUP(A54,'Title IA 2021'!A:D,3,0)/'Title IA 2021'!$C$3,0) -> 0.0006009691671 | E54: 10535 | G54: 0 | H54: 10148.7 | J54: 0 | K54: 10148 | M54: 0 | N54: 10148 | Q54: 10148 | S54: 0 | T54: 10148 | U54: =IFERROR(VLOOKUP(A54,'SY 2020-21 Final'!$A$9:$T$350,20,0),0) -> 12295 | V54: -2147 | W54: -0.1746238308
A55: 29317 | B55: CONWAY | C55: =_xlfn.IFNA(IF(VLOOKUP(A55,'Title IA 2021'!A:D,3,0)=0,0,$B$5),0) -> 10000 | D55: =IFERROR(VLOOKUP(A55,'Title IA 2021'!A:D,3,0)/'Title IA 2021'!$C$3,0) -> 0.000181424902 | E55: 3180.3 | G55: 10000 | H55: 10000 | J55: 0 | K55: 10000 | M55: 0 | N55: 10000 | Q55: 10000 | S55: 0 | T55: 10000 | U55: =IFERROR(VLOOKUP(A55,'SY 2020-21 Final'!$A$9:$T$350,20,0),0) -> 10000 | V55: 0 | W55: 0
A56: 14099 | B56: COSMOPOLIS | C56: =_xlfn.IFNA(IF(VLOOKUP(A56,'Title IA 2021'!A:D,3,0)=0,0,$B$5),0) -> 10000 | D56: =IFERROR(VLOOKUP(A56,'Title IA 2021'!A:D,3,0)/'Title IA 2021'!$C$3,0) -> 0.0002165787946 | E56: 3796.6 | G56: 10000 | H56: 10000 | J56: 0 | K56: 10000 | M56: 0 | N56: 10000 | Q56: 10000 | S56: 0 | T56: 10000 | U56: =IFERROR(VLOOKUP(A56,'SY 2020-21 Final'!$A$9:$T$350,20,0),0) -> 10000 | V56: 0 | W56: 0
A57: 13151 | B57: COULEE-HARTLINE | C57: =_xlfn.IFNA(IF(VLOOKUP(A57,'Title IA 2021'!A:D,3,0)=0,0,$B$5),0) -> 10000 | D57: =IFERROR(VLOOKUP(A57,'Title IA 2021'!A:D,3,0)/'Title IA 2021'!$C$3,0) -> 0.0003359558286 | E57: 5889.3 | G57: 10000 | H57: 10000 | J57: 0 | K57: 10000 | M57: 0 | N57: 10000 | Q57: 10000 | S57: 0 | T57: 10000 | U57: =IFERROR(VLOOKUP(A57,'SY 2020-21 Final'!$A$9:$T$350,20,0),0) -> 10000 | V57: 0 | W57: 0
A58: 15204 | B58: COUPEVILLE | C58: =_xlfn.IFNA(IF(VLOOKUP(A58,'Title IA 2021'!A:D,3,0)=0,0,$B$5),0) -> 10000 | D58: =IFERROR(VLOOKUP(A58,'Title IA 2021'!A:D,3,0)/'Title IA 2021'!$C$3,0) -> 0.0009858716808 | E58: 17282.4 | G58: 0 | H58: 16648.8 | J58: 0 | K58: 16648 | M58: 0 | N58: 16648 | Q58: 16648 | S58: 0 | T58: 16648 | U58: =IFERROR(VLOOKUP(A58,'SY 2020-21 Final'!$A$9:$T$350,20,0),0) -> 18457 | V58: -1809 | W58: -0.09801159452
A59: 05313 | B59: CRESCENT | C59: =_xlfn.IFNA(IF(VLOOKUP(A59,'Title IA 2021'!A:D,3,0)=0,0,$B$5),0) -> 10000 | D59: =IFERROR(VLOOKUP(A59,'Title IA 2021'!A:D,3,0)/'Title IA 2021'!$C$3,0) -> 0.0004319932342 | E59: 7572.8 | G59: 10000 | H59: 10000 | J59: 0 | K59: 10000 | M59: 0 | N59: 10000 | Q59: 10000 | S59: 0 | T59: 10000 | U59: =IFERROR(VLOOKUP(A59,'SY 2020-21 Final'!$A$9:$T$350,20,0),0) -> 10000 | V59: 0 | W59: 0
A60: 22073 | B60: CRESTON | C60: =_xlfn.IFNA(IF(VLOOKUP(A60,'Title IA 2021'!A:D,3,0)=0,0,$B$5),0) -> 10000 | D60: =IFERROR(VLOOKUP(A60,'Title IA 2021'!A:D,3,0)/'Title IA 2021'!$C$3,0) -> 6.138689955e-05 | E60: 1076.1 | G60: 10000 | H60: 10000 | J60: 0 | K60: 10000 | M60: 0 | N60: 10000 | Q60: 10000 | S60: 0 | T60: 10000 | U60: =IFERROR(VLOOKUP(A60,'SY 2020-21 Final'!$A$9:$T$350,20,0),0) -> 10000 | V60: 0 | W60: 0
A61: 10050 | B61: CURLEW | C61: =_xlfn.IFNA(IF(VLOOKUP(A61,'Title IA 2021'!A:D,3,0)=0,0,$B$5),0) -> 10000 | D61: =IFERROR(VLOOKUP(A61,'Title IA 2021'!A:D,3,0)/'Title IA 2021'!$C$3,0) -> 0.0002833059692 | E61: 4966.3 | G61: 10000 | H61: 10000 | J61: 0 | K61: 10000 | M61: 0 | N61: 10000 | Q61: 10000 | S61: 0 | T61: 10000 | U61: =IFERROR(VLOOKUP(A61,'SY 2020-21 Final'!$A$9:$T$350,20,0),0) -> 10000 | V61: 0 | W61: 0
A62: 26059 | B62: CUSICK | C62: =_xlfn.IFNA(IF(VLOOKUP(A62,'Title IA 2021'!A:D,3,0)=0,0,$B$5),0) -> 10000 | D62: =IFERROR(VLOOKUP(A62,'Title IA 2021'!A:D,3,0)/'Title IA 2021'!$C$3,0) -> 0.0005919213404 | E62: 10376.4 | G62: 0 | H62: 9996 | J62: 10000 | K62: 10000 | M62: 0 | N62: 10000 | Q62: 10000 | S62: 0 | T62: 10000 | U62: =IFERROR(VLOOKUP(A62,'SY 2020-21 Final'!$A$9:$T$350,20,0),0) -> 10393 | V62: -393 | W62: -0.03781391321
A63: 19007 | B63: DAMMAN | C63: =_xlfn.IFNA(IF(VLOOKUP(A63,'Title IA 2021'!A:D,3,0)=0,0,$B$5),0) -> 0 | D63: =IFERROR(VLOOKUP(A63,'Title IA 2021'!A:D,3,0)/'Title IA 2021'!$C$3,0) -> 0 | E63: 0 | G63: 0 | H63: 0 | J63: 0 | K63: 0 | M63: 0 | N63: 0 | Q63: 0 | S63: 0 | T63: 0 | U63: =IFERROR(VLOOKUP(A63,'SY 2020-21 Final'!$A$9:$T$350,20,0),0) -> 0 | V63: 0 | W63: 0
A64: 31330 | B64: DARRINGTON | C64: =_xlfn.IFNA(IF(VLOOKUP(A64,'Title IA 2021'!A:D,3,0)=0,0,$B$5),0) -> 10000 | D64: =IFERROR(VLOOKUP(A64,'Title IA 2021'!A:D,3,0)/'Title IA 2021'!$C$3,0) -> 0.0006822901754 | E64: 11960.6 | G64: 0 | H64: 11522.1 | J64: 0 | K64: 11521 | M64: 0 | N64: 11521 | Q64: 11521 | S64: 0 | T64: 11521 | U64: =IFERROR(VLOOKUP(A64,'SY 2020-21 Final'!$A$9:$T$350,20,0),0) -> 12778 | V64: -1257 | W64: -0.09837220222
A65: 22207 | B65: DAVENPORT | C65: =_xlfn.IFNA(IF(VLOOKUP(A65,'Title IA 2021'!A:D,3,0)=0,0,$B$5),0) -> 10000 | D65: =IFERROR(VLOOKUP(A65,'Title IA 2021'!A:D,3,0)/'Title IA 2021'!$C$3,0) -> 0.0006185920748 | E65: 10843.9 | G65: 0 | H65: 10446.3 | J65: 0 | K65: 10445 | M65: 0 | N65: 10445 | Q65: 10445 | S65: 0 | T65: 10445 | U65: =IFERROR(VLOOKUP(A65,'SY 2020-21 Final'!$A$9:$T$350,20,0),0) -> 10861 | V65: -416 | W65: -0.03830218212
A66: 07002 | B66: DAYTON | C66: =_xlfn.IFNA(IF(VLOOKUP(A66,'Title IA 2021'!A:D,3,0)=0,0,$B$5),0) -> 10000 | D66: =IFERROR(VLOOKUP(A66,'Title IA 2021'!A:D,3,0)/'Title IA 2021'!$C$3,0) -> 0.0006259765371 | E66: 10973.4 | G66: 0 | H66: 10571.1 | J66: 0 | K66: 10570 | M66: 0 | N66: 10570 | Q66: 10570 | S66: 0 | T66: 10570 | U66: =IFERROR(VLOOKUP(A66,'SY 2020-21 Final'!$A$9:$T$350,20,0),0) -> 11179 | V66: -609 | W66: -0.05447714465
A67: 32414 | B67: DEER PARK | C67: =_xlfn.IFNA(IF(VLOOKUP(A67,'Title IA 2021'!A:D,3,0)=0,0,$B$5),0) -> 10000 | D67: =IFERROR(VLOOKUP(A67,'Title IA 2021'!A:D,3,0)/'Title IA 2021'!$C$3,0) -> 0.002177645983 | E67: 38174.3 | G67: 0 | H67: 36774.8 | J67: 0 | K67: 36773 | M67: 0 | N67: 36773 | Q67: 36773 | S67: 0 | T67: 36773 | U67: =IFERROR(VLOOKUP(A67,'SY 2020-21 Final'!$A$9:$T$350,20,0),0) -> 40775 | V67: -4002 | W67: -0.09814837523
A68: 27343 | B68: DIERINGER | C68: =_xlfn.IFNA(IF(VLOOKUP(A68,'Title IA 2021'!A:D,3,0)=0,0,$B$5),0) -> 10000 | D68: =IFERROR(VLOOKUP(A68,'Title IA 2021'!A:D,3,0)/'Title IA 2021'!$C$3,0) -> 0.0004550352079 | E68: 7976.8 | G68: 10000 | H68: 10000 | J68: 0 | K68: 10000 | M68: 0 | N68: 10000 | Q68: 10000 | S68: 0 | T68: 10000 | U68: =IFERROR(VLOOKUP(A68,'SY 2020-21 Final'!$A$9:$T$350,20,0),0) -> 10000 | V68: 0 | W68: 0
A69: 36101 | B69: DIXIE | C69: =_xlfn.IFNA(IF(VLOOKUP(A69,'Title IA 2021'!A:D,3,0)=0,0,$B$5),0) -> 10000 | D69: =IFERROR(VLOOKUP(A69,'Title IA 2021'!A:D,3,0)/'Title IA 2021'!$C$3,0) -> 9.963114808e-05 | E69: 1746.5 | G69: 10000 | H69: 10000 | J69: 0 | K69: 10000 | M69: 0 | N69: 10000 | Q69: 10000 | S69: 0 | T69: 10000 | U69: =IFERROR(VLOOKUP(A69,'SY 2020-21 Final'!$A$9:$T$350,20,0),0) -> 10000 | V69: 0 | W69: 0
A70: 32361 | B70: EAST VALLEY (SPK) | C70: =_xlfn.IFNA(IF(VLOOKUP(A70,'Title IA 2021'!A:D,3,0)=0,0,$B$5),0) -> 10000 | D70: =IFERROR(VLOOKUP(A70,'Title IA 2021'!A:D,3,0)/'Title IA 2021'!$C$3,0) -> 0.00479652125 | E70: 84083.5 | G70: 0 | H70: 81001 | J70: 0 | K70: 80997 | M70: 0 | N70: 80997 | Q70: 80997 | S70: 0 | T70: 80997 | U70: =IFERROR(VLOOKUP(A70,'SY 2020-21 Final'!$A$9:$T$350,20,0),0) -> 84143 | V70: -3146 | W70: -0.03738873109
A71: 39090 | B71: EAST VALLEY (YAK) | C71: =_xlfn.IFNA(IF(VLOOKUP(A71,'Title IA 2021'!A:D,3,0)=0,0,$B$5),0) -> 10000 | D71: =IFERROR(VLOOKUP(A71,'Title IA 2021'!A:D,3,0)/'Title IA 2021'!$C$3,0) -> 0.002647069293 | E71: 46403.3 | G71: 0 | H71: 44702.1 | J71: 0 | K71: 44699 | M71: 0 | N71: 44699 | Q71: 44699 | S71: 0 | T71: 44699 | U71: =IFERROR(VLOOKUP(A71,'SY 2020-21 Final'!$A$9:$T$350,20,0),0) -> 46441 | V71: -1742 | W71: -0.03750995887
A72: 09206 | B72: EASTMONT | C72: =_xlfn.IFNA(IF(VLOOKUP(A72,'Title IA 2021'!A:D,3,0)=0,0,$B$5),0) -> 10000 | D72: =IFERROR(VLOOKUP(A72,'Title IA 2021'!A:D,3,0)/'Title IA 2021'!$C$3,0) -> 0.006149142887 | E72: 107795.1 | G72: 0 | H72: 103843.4 | J72: 0 | K72: 103838 | M72: 0 | N72: 103838 | Q72: 103838 | S72: 0 | T72: 103838 | U72: =IFERROR(VLOOKUP(A72,'SY 2020-21 Final'!$A$9:$T$350,20,0),0) -> 114163 | V72: -10325 | W72: -0.09044086087
A73: 19028 | B73: EASTON | C73: =_xlfn.IFNA(IF(VLOOKUP(A73,'Title IA 2021'!A:D,3,0)=0,0,$B$5),0) -> 10000 | D73: =IFERROR(VLOOKUP(A73,'Title IA 2021'!A:D,3,0)/'Title IA 2021'!$C$3,0) -> 7.184858594e-05 | E73: =IF(D73=0,0,ROUNDDOWN(D73*$C$1,1)+$C$1*$D$5) -> 1259.5 | G73: =IF(AND($C73<>0,E73<$B$5),$B$5,0) -> 10000 | H73: =ROUNDDOWN(IF(G73=0,IF(E73=$B$5,$B$5,E73*(1-$G$5)),G73),1) -> 10000 | J73: =IF(AND($C73<>0,H73<10000),10000,0) -> 0 | K73: =ROUNDDOWN(IF(J73=0,IF(H73=$B$5,$B$5,H73*(1-$J$5)),J73),0) -> 10000 | M73: =IF(AND(C73<>0,K73<10000),10000,0) -> 0 | N73: =IF(M73=0,IF(K73=$B$5,$B$5,K73*(1-$M$5)),M73) -> 10000 | Q73: =N73 -> 10000 | S73: =ROUND(IF(R73>0,-(0.9-R73)*Q73,0),0) -> 0 | T73: =Q73+S73 -> 10000 | U73: =IFERROR(VLOOKUP(A73,'SY 2020-21 Final'!$A$9:$T$350,20,0),0) -> 10000 | V73: =T73-U73 -> 0 | W73: =IFERROR(V73/U73,0) -> 0
A74: 27404 | B74: EATONVILLE | C74: =_xlfn.IFNA(IF(VLOOKUP(A74,'Title IA 2021'!A:D,3,0)=0,0,$B$5),0) -> 10000 | D74: =IFERROR(VLOOKUP(A74,'Title IA 2021'!A:D,3,0)/'Title IA 2021'!$C$3,0) -> 0.0007961868615 | E74: 13957.2 | G74: 0 | H74: 13445.5 | J74: 0 | K74: 13444 | M74: 0 | N74: 13444 | Q74: 13444 | S74: 0 | T74: 13444 | U74: =IFERROR(VLOOKUP(A74,'SY 2020-21 Final'!$A$9:$T$350,20,0),0) -> 13976 | V74: -532 | W74: -0.03806525472
A75: 31015 | B75: EDMONDS | C75: =_xlfn.IFNA(IF(VLOOKUP(A75,'Title IA 2021'!A:D,3,0)=0,0,$B$5),0) -> 10000 | D75: =IFERROR(VLOOKUP(A75,'Title IA 2021'!A:D,3,0)/'Title IA 2021'!$C$3,0) -> 0.01211147245 | E75: 212315.3 | G75: 0 | H75: 204531.9 | J75: 0 | K75: 204522 | M75: 0 | N75: 204522 | Q75: 204522 | S75: 0 | T75: 204522 | U75: =IFERROR(VLOOKUP(A75,'SY 2020-21 Final'!$A$9:$T$350,20,0),0) -> 212449 | V75: -7927 | W75: -0.03731248441
A76: 19401 | B76: ELLENSBURG | C76: =_xlfn.IFNA(IF(VLOOKUP(A76,'Title IA 2021'!A:D,3,0)=0,0,$B$5),0) -> 10000 | D76: =IFERROR(VLOOKUP(A76,'Title IA 2021'!A:D,3,0)/'Title IA 2021'!$C$3,0) -> 0.002999483674 | E76: 52581.2 | G76: 0 | H76: 50653.6 | J76: 0 | K76: 50651 | M76: 0 | N76: 50651 | Q76: 50651 | S76: 0 | T76: 50651 | U76: =IFERROR(VLOOKUP(A76,'SY 2020-21 Final'!$A$9:$T$350,20,0),0) -> 55938 | V76: -5287 | W76: -0.09451535629
A77: 14068 | B77: ELMA | C77: =_xlfn.IFNA(IF(VLOOKUP(A77,'Title IA 2021'!A:D,3,0)=0,0,$B$5),0) -> 10000 | D77: =IFERROR(VLOOKUP(A77,'Title IA 2021'!A:D,3,0)/'Title IA 2021'!$C$3,0) -> 0.00185543042 | E77: 32525.8 | G77: 0 | H77: 31333.4 | J77: 0 | K77: 31331 | M77: 0 | N77: 31331 | Q77: 31331 | S77: 0 | T77: 31331 | U77: =IFERROR(VLOOKUP(A77,'SY 2020-21 Final'!$A$9:$T$350,20,0),0) -> 32799 | V77: -1468 | W77: -0.04475746212
A78: 38308 | B78: ENDICOTT | C78: =_xlfn.IFNA(IF(VLOOKUP(A78,'Title IA 2021'!A:D,3,0)=0,0,$B$5),0) -> 10000 | D78: =IFERROR(VLOOKUP(A78,'Title IA 2021'!A:D,3,0)/'Title IA 2021'!$C$3,0) -> 9.344605901e-05 | E78: 1638.1 | G78: 10000 | H78: 10000 | J78: 0 | K78: 10000 | M78: 0 | N78: 10000 | Q78: 10000 | S78: 0 | T78: 10000 | U78: =IFERROR(VLOOKUP(A78,'SY 2020-21 Final'!$A$9:$T$350,20,0),0) -> 10000 | V78: 0 | W78: 0
A79: 04127 | B79: ENTIAT | C79: =_xlfn.IFNA(IF(VLOOKUP(A79,'Title IA 2021'!A:D,3,0)=0,0,$B$5),0) -> 10000 | D79: =IFERROR(VLOOKUP(A79,'Title IA 2021'!A:D,3,0)/'Title IA 2021'!$C$3,0) -> 0.0007412345557 | E79: 12993.9 | G79: 0 | H79: 12517.5 | J79: 0 | K79: 12516 | M79: 0 | N79: 12516 | Q79: 12516 | S79: 0 | T79: 12516 | U79: =IFERROR(VLOOKUP(A79,'SY 2020-21 Final'!$A$9:$T$350,20,0),0) -> 13109 | V79: -593 | W79: -0.04523609734
A80: 17216 | B80: ENUMCLAW | C80: =_xlfn.IFNA(IF(VLOOKUP(A80,'Title IA 2021'!A:D,3,0)=0,0,$B$5),0) -> 10000 | D80: =IFERROR(VLOOKUP(A80,'Title IA 2021'!A:D,3,0)/'Title IA 2021'!$C$3,0) -> 0.002365768115 | E80: 41472.1 | G80: 0 | H80: 39951.7 | J80: 0 | K80: 39949 | M80: 0 | N80: 39949 | Q80: 39949 | S80: 0 | T80: 39949 | U80: =IFERROR(VLOOKUP(A80,'SY 2020-21 Final'!$A$9:$T$350,20,0),0) -> 44306 | V80: -4357 | W80: -0.09833882544
A81: 13165 | B81: EPHRATA | C81: =_xlfn.IFNA(IF(VLOOKUP(A81,'Title IA 2021'!A:D,3,0)=0,0,$B$5),0) -> 10000 | D81: =IFERROR(VLOOKUP(A81,'Title IA 2021'!A:D,3,0)/'Title IA 2021'!$C$3,0) -> 0.002432858604 | E81: 42648.2 | G81: 0 | H81: 41084.7 | J81: 0 | K81: 41082 | M81: 0 | N81: 41082 | Q81: 41082 | S81: 0 | T81: 41082 | U81: =IFERROR(VLOOKUP(A81,'SY 2020-21 Final'!$A$9:$T$350,20,0),0) -> 42684 | V81: -1602 | W81: -0.03753162778
A82: 21036 | B82: EVALINE | C82: =_xlfn.IFNA(IF(VLOOKUP(A82,'Title IA 2021'!A:D,3,0)=0,0,$B$5),0) -> 10000 | D82: =IFERROR(VLOOKUP(A82,'Title IA 2021'!A:D,3,0)/'Title IA 2021'!$C$3,0) -> 0.0003949133407 | E82: 6922.8 | G82: 10000 | H82: 10000 | J82: 0 | K82: 10000 | M82: 0 | N82: 10000 | Q82: 10000 | S82: 0 | T82: 10000 | U82: =IFERROR(VLOOKUP(A82,'SY 2020-21 Final'!$A$9:$T$350,20,0),0) -> 10000 | V82: 0 | W82: 0
A83: 31002 | B83: EVERETT | C83: =_xlfn.IFNA(IF(VLOOKUP(A83,'Title IA 2021'!A:D,3,0)=0,0,$B$5),0) -> 10000 | D83: =IFERROR(VLOOKUP(A83,'Title IA 2021'!A:D,3,0)/'Title IA 2021'!$C$3,0) -> 0.01370943157 | E83: 240327.7 | G83: 0 | H83: 231517.4 | J83: 0 | K83: 231506 | M83: 0 | N83: 231506 | Q83: 231506 | S83: 0 | T83: 231506 | U83: =IFERROR(VLOOKUP(A83,'SY 2020-21 Final'!$A$9:$T$350,20,0),0) -> 240477 | V83: -8971 | W83: -0.03730502293
A84: 06114 | B84: EVERGREEN (CLARK) | C84: =_xlfn.IFNA(IF(VLOOKUP(A84,'Title IA 2021'!A:D,3,0)=0,0,$B$5),0) -> 10000 | D84: =IFERROR(VLOOKUP(A84,'Title IA 2021'!A:D,3,0)/'Title IA 2021'!$C$3,0) -> 0.0244173134 | E84: 428037.9 | G84: 0 | H84: 412346.3 | J84: 0 | K84: 412326 | M84: 0 | N84: 412326 | Q84: 412326 | S84: 0 | T84: 412326 | U84: =IFERROR(VLOOKUP(A84,'SY 2020-21 Final'!$A$9:$T$350,20,0),0) -> 451118 | V84: -38792 | W84: -0.08599080507
A85: 33205 | B85: EVERGREEN (STEV) | C85: =_xlfn.IFNA(IF(VLOOKUP(A85,'Title IA 2021'!A:D,3,0)=0,0,$B$5),0) -> 10000 | D85: =IFERROR(VLOOKUP(A85,'Title IA 2021'!A:D,3,0)/'Title IA 2021'!$C$3,0) -> 1.18405279e-05 | E85: 207.5 | G85: 10000 | H85: 10000 | J85: 0 | K85: 10000 | M85: 0 | N85: 10000 | Q85: 10000 | S85: 0 | T85: 10000 | U85: =IFERROR(VLOOKUP(A85,'SY 2020-21 Final'!$A$9:$T$350,20,0),0) -> 10000 | V85: 0 | W85: 0
A86: 17210 | B86: FEDERAL WAY | C86: =_xlfn.IFNA(IF(VLOOKUP(A86,'Title IA 2021'!A:D,3,0)=0,0,$B$5),0) -> 10000 | D86: =IFERROR(VLOOKUP(A86,'Title IA 2021'!A:D,3,0)/'Title IA 2021'!$C$3,0) -> 0.03154414684 | E86: 552972.1 | G86: 0 | H86: 532700.5 | J86: 0 | K86: 532675 | M86: 0 | N86: 532675 | Q86: 532675 | S86: 0 | T86: 532675 | U86: =IFERROR(VLOOKUP(A86,'SY 2020-21 Final'!$A$9:$T$350,20,0),0) -> 553303 | V86: -20628 | W86: -0.03728156182
A87: 37502 | B87: FERNDALE | C87: =_xlfn.IFNA(IF(VLOOKUP(A87,'Title IA 2021'!A:D,3,0)=0,0,$B$5),0) -> 10000 | D87: =IFERROR(VLOOKUP(A87,'Title IA 2021'!A:D,3,0)/'Title IA 2021'!$C$3,0) -> 0.00425247854 | E87: 74546.3 | G87: 0 | H87: 71813.4 | J87: 0 | K87: 71810 | M87: 0 | N87: 71810 | Q87: 71810 | S87: 0 | T87: 71810 | U87: =IFERROR(VLOOKUP(A87,'SY 2020-21 Final'!$A$9:$T$350,20,0),0) -> 69708 | V87: 2102 | W87: 0.03015435818
A88: 27417 | B88: FIFE | C88: =_xlfn.IFNA(IF(VLOOKUP(A88,'Title IA 2021'!A:D,3,0)=0,0,$B$5),0) -> 10000 | D88: =IFERROR(VLOOKUP(A88,'Title IA 2021'!A:D,3,0)/'Title IA 2021'!$C$3,0) -> 0.002312680529 | E88: 40541.5 | G88: 0 | H88: 39055.2 | J88: 0 | K88: 39053 | M88: 0 | N88: 39053 | Q88: 39053 | S88: 0 | T88: 39053 | U88: =IFERROR(VLOOKUP(A88,'SY 2020-21 Final'!$A$9:$T$350,20,0),0) -> 40576 | V88: -1523 | W88: -0.03753450315
A89: 03053 | B89: FINLEY | C89: =_xlfn.IFNA(IF(VLOOKUP(A89,'Title IA 2021'!A:D,3,0)=0,0,$B$5),0) -> 10000 | D89: =IFERROR(VLOOKUP(A89,'Title IA 2021'!A:D,3,0)/'Title IA 2021'!$C$3,0) -> 0.0007824028237 | E89: 13715.6 | G89: 0 | H89: 13212.7 | J89: 0 | K89: 13212 | M89: 0 | N89: 13212 | Q89: 13212 | S89: 0 | T89: 13212 | U89: =IFERROR(VLOOKUP(A89,'SY 2020-21 Final'!$A$9:$T$350,20,0),0) -> 13734 | V89: -522 | W89: -0.0380078637
A90: 27402 | B90: FRANKLIN PIERCE | C90: =_xlfn.IFNA(IF(VLOOKUP(A90,'Title IA 2021'!A:D,3,0)=0,0,$B$5),0) -> 10000 | D90: =IFERROR(VLOOKUP(A90,'Title IA 2021'!A:D,3,0)/'Title IA 2021'!$C$3,0) -> 0.009702478744 | E90: 170085.4 | G90: 0 | H90: 163850.2 | J90: 0 | K90: 163842 | M90: 0 | N90: 163842 | Q90: 163842 | S90: 0 | T90: 163842 | U90: =IFERROR(VLOOKUP(A90,'SY 2020-21 Final'!$A$9:$T$350,20,0),0) -> 170195 | V90: -6353 | W90: -0.03732777109
A91: 32358 | B91: FREEMAN | C91: =_xlfn.IFNA(IF(VLOOKUP(A91,'Title IA 2021'!A:D,3,0)=0,0,$B$5),0) -> 10000 | D91: =IFERROR(VLOOKUP(A91,'Title IA 2021'!A:D,3,0)/'Title IA 2021'!$C$3,0) -> 0.0003065536749 | E91: 5373.9 | G91: 10000 | H91: 10000 | J91: 0 | K91: 10000 | M91: 0 | N91: 10000 | Q91: 10000 | S91: 0 | T91: 10000 | U91: =IFERROR(VLOOKUP(A91,'SY 2020-21 Final'!$A$9:$T$350,20,0),0) -> 10000 | V91: 0 | W91: 0
A92: 38302 | B92: GARFIELD | C92: =_xlfn.IFNA(IF(VLOOKUP(A92,'Title IA 2021'!A:D,3,0)=0,0,$B$5),0) -> 10000 | D92: =IFERROR(VLOOKUP(A92,'Title IA 2021'!A:D,3,0)/'Title IA 2021'!$C$3,0) -> 0.0003051179288 | E92: 5348.7 | G92: 10000 | H92: 10000 | J92: 0 | K92: 10000 | M92: 0 | N92: 10000 | Q92: 10000 | S92: 0 | T92: 10000 | U92: =IFERROR(VLOOKUP(A92,'SY 2020-21 Final'!$A$9:$T$350,20,0),0) -> 10000 | V92: 0 | W92: 0
A93: 20401 | B93: GLENWOOD | C93: =_xlfn.IFNA(IF(VLOOKUP(A93,'Title IA 2021'!A:D,3,0)=0,0,$B$5),0) -> 0 | D93: =IFERROR(VLOOKUP(A93,'Title IA 2021'!A:D,3,0)/'Title IA 2021'!$C$3,0) -> 0 | E93: 0 | G93: 0 | H93: 0 | J93: 0 | K93: 0 | M93: 0 | N93: 0 | Q93: 0 | S93: 0 | T93: 0 | U93: =IFERROR(VLOOKUP(A93,'SY 2020-21 Final'!$A$9:$T$350,20,0),0) -> 0 | V93: 0 | W93: 0
A94: 20404 | B94: GOLDENDALE | C94: =_xlfn.IFNA(IF(VLOOKUP(A94,'Title IA 2021'!A:D,3,0)=0,0,$B$5),0) -> 10000 | D94: =IFERROR(VLOOKUP(A94,'Title IA 2021'!A:D,3,0)/'Title IA 2021'!$C$3,0) -> 0.001658536229 | E94: 29074.3 | G94: 0 | H94: 28008.4 | J94: 0 | K94: 28007 | M94: 0 | N94: 28007 | Q94: 28007 | S94: 0 | T94: 28007 | U94: =IFERROR(VLOOKUP(A94,'SY 2020-21 Final'!$A$9:$T$350,20,0),0) -> 29319 | V94: -1312 | W94: -0.04474913878
A95: 13301 | B95: GRAND COULEE | C95: =_xlfn.IFNA(IF(VLOOKUP(A95,'Title IA 2021'!A:D,3,0)=0,0,$B$5),0) -> 10000 | D95: =IFERROR(VLOOKUP(A95,'Title IA 2021'!A:D,3,0)/'Title IA 2021'!$C$3,0) -> 0.0008160159156 | E95: 14304.8 | G95: 0 | H95: 13780.3 | J95: 0 | K95: 13779 | M95: 0 | N95: 13779 | Q95: 13779 | S95: 0 | T95: 13779 | U95: =IFERROR(VLOOKUP(A95,'SY 2020-21 Final'!$A$9:$T$350,20,0),0) -> 14324 | V95: -545 | W95: -0.03804803128
A96: 39200 | B96: GRANDVIEW | C96: =_xlfn.IFNA(IF(VLOOKUP(A96,'Title IA 2021'!A:D,3,0)=0,0,$B$5),0) -> 10000 | D96: =IFERROR(VLOOKUP(A96,'Title IA 2021'!A:D,3,0)/'Title IA 2021'!$C$3,0) -> 0.004758224474 | E96: 83412.1 | G96: 0 | H96: 80354.2 | J96: 0 | K96: 80350 | M96: 0 | N96: 80350 | Q96: 80350 | S96: 0 | T96: 80350 | U96: =IFERROR(VLOOKUP(A96,'SY 2020-21 Final'!$A$9:$T$350,20,0),0) -> 84750 | V96: -4400 | W96: -0.05191740413
A97: 39204 | B97: GRANGER | C97: =_xlfn.IFNA(IF(VLOOKUP(A97,'Title IA 2021'!A:D,3,0)=0,0,$B$5),0) -> 10000 | D97: =IFERROR(VLOOKUP(A97,'Title IA 2021'!A:D,3,0)/'Title IA 2021'!$C$3,0) -> 0.003858786459 | E97: 67644.9 | G97: 0 | H97: 65165 | J97: 0 | K97: 65161 | M97: 0 | N97: 65161 | Q97: 65161 | S97: 0 | T97: 65161 | U97: =IFERROR(VLOOKUP(A97,'SY 2020-21 Final'!$A$9:$T$350,20,0),0) -> 68201 | V97: -3040 | W97: -0.04457412648
A98: 31332 | B98: GRANITE FALLS | C98: =_xlfn.IFNA(IF(VLOOKUP(A98,'Title IA 2021'!A:D,3,0)=0,0,$B$5),0) -> 10000 | D98: =IFERROR(VLOOKUP(A98,'Title IA 2021'!A:D,3,0)/'Title IA 2021'!$C$3,0) -> 0.0008792237614 | E98: 15412.8 | G98: 0 | H98: 14847.7 | J98: 0 | K98: 14846 | M98: 0 | N98: 14846 | Q98: =N98 -> 14846 | S98: 0 | T98: 14846 | U98: =IFERROR(VLOOKUP(A98,'SY 2020-21 Final'!$A$9:$T$350,20,0),0) -> 15433 | V98: -587 | W98: -0.03803537873
A99: 23054 | B99: GRAPEVIEW | C99: =_xlfn.IFNA(IF(VLOOKUP(A99,'Title IA 2021'!A:D,3,0)=0,0,$B$5),0) -> 10000 | D99: =IFERROR(VLOOKUP(A99,'Title IA 2021'!A:D,3,0)/'Title IA 2021'!$C$3,0) -> 0.0002719031688 | E99: 4766.4 | G99: 10000 | H99: 10000 | J99: 0 | K99: 10000 | M99: 0 | N99: 10000 | Q99: =N99 -> 10000 | S99: 0 | T99: 10000 | U99: =IFERROR(VLOOKUP(A99,'SY 2020-21 Final'!$A$9:$T$350,20,0),0) -> 10000 | V99: 0 | W99: 0
A100: 32312 | B100: GREAT NORTHERN | C100: =_xlfn.IFNA(IF(VLOOKUP(A100,'Title IA 2021'!A:D,3,0)=0,0,$B$5),0) -> 10000 | D100: =IFERROR(VLOOKUP(A100,'Title IA 2021'!A:D,3,0)/'Title IA 2021'!$C$3,0) -> 9.44834731e-05 | E100: 1656.3 | G100: 10000 | H100: 10000 | J100: 0 | K100: 10000 | M100: 0 | N100: 10000 | Q100: 10000 | S100: 0 | T100: 10000 | U100: =IFERROR(VLOOKUP(A100,'SY 2020-21 Final'!$A$9:$T$350,20,0),0) -> 10000 | V100: 0 | W100: 0
A101: 06103 | B101: GREEN MOUNTAIN | C101: =_xlfn.IFNA(IF(VLOOKUP(A101,'Title IA 2021'!A:D,3,0)=0,0,$B$5),0) -> 10000 | D101: =IFERROR(VLOOKUP(A101,'Title IA 2021'!A:D,3,0)/'Title IA 2021'!$C$3,0) -> 7.326682292e-05 | E101: 1284.3 | G101: 10000 | H101: 10000 | J101: 0 | K101: 10000 | M101: 0 | N101: 10000 | Q101: 10000 | S101: 0 | T101: 10000 | U101: =IFERROR(VLOOKUP(A101,'SY 2020-21 Final'!$A$9:$T$350,20,0),0) -> 10000 | V101: 0 | W101: 0
A102: 34324 | B102: GRIFFIN | C102: =_xlfn.IFNA(IF(VLOOKUP(A102,'Title IA 2021'!A:D,3,0)=0,0,$B$5),0) -> 10000 | D102: =IFERROR(VLOOKUP(A102,'Title IA 2021'!A:D,3,0)/'Title IA 2021'!$C$3,0) -> 0.000154202631 | E102: 2703.1 | G102: 10000 | H102: 10000 | J102: 0 | K102: 10000 | M102: 0 | N102: 10000 | Q102: 10000 | S102: 0 | T102: 10000 | U102: =IFERROR(VLOOKUP(A102,'SY 2020-21 Final'!$A$9:$T$350,20,0),0) -> 10000 | V102: 0 | W102: 0
A103: 22204 | B103: HARRINGTON | C103: =_xlfn.IFNA(IF(VLOOKUP(A103,'Title IA 2021'!A:D,3,0)=0,0,$B$5),0) -> 10000 | D103: =IFERROR(VLOOKUP(A103,'Title IA 2021'!A:D,3,0)/'Title IA 2021'!$C$3,0) -> 0.0001546447358 | E103: 2710.9 | G103: 10000 | H103: 10000 | J103: 0 | K103: 10000 | M103: 0 | N103: 10000 | Q103: 10000 | S103: 0 | T103: 10000 | U103: =IFERROR(VLOOKUP(A103,'SY 2020-21 Final'!$A$9:$T$350,20,0),0) -> 10000 | V103: 0 | W103: 0
A104: 39203 | B104: HIGHLAND | C104: =_xlfn.IFNA(IF(VLOOKUP(A104,'Title IA 2021'!A:D,3,0)=0,0,$B$5),0) -> 10000 | D104: =IFERROR(VLOOKUP(A104,'Title IA 2021'!A:D,3,0)/'Title IA 2021'!$C$3,0) -> 0.001227160191 | E104: 21512.2 | G104: 0 | H104: 20723.5 | J104: 0 | K104: 20722 | M104: 0 | N104: 20722 | Q104: 20722 | S104: 0 | T104: 20722 | U104: =IFERROR(VLOOKUP(A104,'SY 2020-21 Final'!$A$9:$T$350,20,0),0) -> 24934 | V104: -4212 | W104: -0.1689259645
A105: 17401 | B105: HIGHLINE | C105: =_xlfn.IFNA(IF(VLOOKUP(A105,'Title IA 2021'!A:D,3,0)=0,0,$B$5),0) -> 10000 | D105: =IFERROR(VLOOKUP(A105,'Title IA 2021'!A:D,3,0)/'Title IA 2021'!$C$3,0) -> 0.03257440408 | E105: 571032.6 | G105: 0 | H105: 550098.9 | J105: 0 | K105: 550072 | M105: 0 | N105: 550072 | Q105: 550072 | S105: 0 | T105: 550072 | U105: =IFERROR(VLOOKUP(A105,'SY 2020-21 Final'!$A$9:$T$350,20,0),0) -> 571373 | V105: -21301 | W105: -0.03728037552
A106: 06098 | B106: HOCKINSON | C106: =_xlfn.IFNA(IF(VLOOKUP(A106,'Title IA 2021'!A:D,3,0)=0,0,$B$5),0) -> 10000 | D106: =IFERROR(VLOOKUP(A106,'Title IA 2021'!A:D,3,0)/'Title IA 2021'!$C$3,0) -> 0.0003084709211 | E106: 5407.5 | G106: 10000 | H106: 10000 | J106: 0 | K106: 10000 | M106: 0 | N106: 10000 | Q106: 10000 | S106: 0 | T106: 10000 | U106: =IFERROR(VLOOKUP(A106,'SY 2020-21 Final'!$A$9:$T$350,20,0),0) -> 10378 | V106: -378 | W106: -0.03642320293
A107: 23404 | B107: HOOD CANAL | C107: =_xlfn.IFNA(IF(VLOOKUP(A107,'Title IA 2021'!A:D,3,0)=0,0,$B$5),0) -> 10000 | D107: =IFERROR(VLOOKUP(A107,'Title IA 2021'!A:D,3,0)/'Title IA 2021'!$C$3,0) -> 0.0008338007825 | E107: 14616.6 | G107: 0 | H107: 14080.7 | J107: 0 | K107: 14080 | M107: 0 | N107: 14080 | Q107: 14080 | S107: 0 | T107: 14080 | U107: =IFERROR(VLOOKUP(A107,'SY 2020-21 Final'!$A$9:$T$350,20,0),0) -> 17054 | V107: -2974 | W107: -0.1743872405
A108: 14028 | B108: HOQUIAM | C108: =_xlfn.IFNA(IF(VLOOKUP(A108,'Title IA 2021'!A:D,3,0)=0,0,$B$5),0) -> 10000 | D108: =IFERROR(VLOOKUP(A108,'Title IA 2021'!A:D,3,0)/'Title IA 2021'!$C$3,0) -> 0.002809562482 | E108: 49251.9 | G108: 0 | H108: 47446.3 | J108: 0 | K108: 47444 | M108: 0 | N108: 47444 | Q108: 47444 | S108: 0 | T108: 47444 | U108: =IFERROR(VLOOKUP(A108,'SY 2020-21 Final'!$A$9:$T$350,20,0),0) -> 48764 | V108: -1320 | W108: -0.02706914937
A109: 27902 | B109: IMPACT COMMENCEMENT BAY CHARTER | C109: =_xlfn.IFNA(IF(VLOOKUP(A109,'Title IA 2021'!A:D,3,0)=0,0,$B$5),0) -> 0 | D109: =IFERROR(VLOOKUP(A109,'Title IA 2021'!A:D,3,0)/'Title IA 2021'!$C$3,0) -> 0 | E109: 0 | G109: 0 | H109: 0 | J109: 0 | K109: 0 | M109: 0 | N109: 0 | Q109: 0 | S109: 0 | T109: 0 | U109: =IFERROR(VLOOKUP(A109,'SY 2020-21 Final'!$A$9:$T$350,20,0),0) -> 0 | V109: 0 | W109: 0
A110: 17911 | B110: IMPACT PUGET SOUND CHARTER | C110: =_xlfn.IFNA(IF(VLOOKUP(A110,'Title IA 2021'!A:D,3,0)=0,0,$B$5),0) -> 10000 | D110: =IFERROR(VLOOKUP(A110,'Title IA 2021'!A:D,3,0)/'Title IA 2021'!$C$3,0) -> 0.000398375765 | E110: 6983.5 | G110: 10000 | H110: 10000 | J110: 0 | K110: 10000 | M110: 0 | N110: 10000 | Q110: 10000 | S110: 0 | T110: 10000 | U110: =IFERROR(VLOOKUP(A110,'SY 2020-21 Final'!$A$9:$T$350,20,0),0) -> 10000 | V110: 0 | W110: 0
A111: 17916 | B111: IMPACT SALISH SEA CHARTER | C111: =_xlfn.IFNA(IF(VLOOKUP(A111,'Title IA 2021'!A:D,3,0)=0,0,$B$5),0) -> 10000 | D111: =IFERROR(VLOOKUP(A111,'Title IA 2021'!A:D,3,0)/'Title IA 2021'!$C$3,0) -> 0.0003263214471 | E111: 5720.4 | G111: 10000 | H111: 10000 | J111: 0 | K111: 10000 | M111: 0 | N111: 10000 | Q111: 10000 | S111: 0 | T111: 10000 | U111: =IFERROR(VLOOKUP(A111,'SY 2020-21 Final'!$A$9:$T$350,20,0),0) -> 0 | V111: 10000 | W111: 0
A112: 10070 | B112: INCHELIUM | C112: =_xlfn.IFNA(IF(VLOOKUP(A112,'Title IA 2021'!A:D,3,0)=0,0,$B$5),0) -> 10000 | D112: =IFERROR(VLOOKUP(A112,'Title IA 2021'!A:D,3,0)/'Title IA 2021'!$C$3,0) -> 0.0004873745129 | E112: 8543.7 | G112: 10000 | H112: 10000 | J112: 0 | K112: 10000 | M112: 0 | N112: 10000 | Q112: 10000 | S112: 0 | T112: 10000 | U112: =IFERROR(VLOOKUP(A112,'SY 2020-21 Final'!$A$9:$T$350,20,0),0) -> 10000 | V112: 0 | W112: 0
A113: 31063 | B113: INDEX | C113: =_xlfn.IFNA(IF(VLOOKUP(A113,'Title IA 2021'!A:D,3,0)=0,0,$B$5),0) -> 0 | D113: =IFERROR(VLOOKUP(A113,'Title IA 2021'!A:D,3,0)/'Title IA 2021'!$C$3,0) -> 0 | E113: 0 | G113: 0 | H113: 0 | J113: 0 | K113: 0 | M113: 0 | N113: 0 | Q113: 0 | S113: 0 | T113: 0 | U113: =IFERROR(VLOOKUP(A113,'SY 2020-21 Final'!$A$9:$T$350,20,0),0) -> 0 | V113: 0 | W113: 0
A114: 17411 | B114: ISSAQUAH | C114: =_xlfn.IFNA(IF(VLOOKUP(A114,'Title IA 2021'!A:D,3,0)=0,0,$B$5),0) -> 10000 | D114: =IFERROR(VLOOKUP(A114,'Title IA 2021'!A:D,3,0)/'Title IA 2021'!$C$3,0) -> 0.002726976441 | E114: 47804.1 | G114: 0 | H114: 46051.6 | J114: 0 | K114: 46049 | M114: 0 | N114: 46049 | Q114: 46049 | S114: 0 | T114: 46049 | U114: =IFERROR(VLOOKUP(A114,'SY 2020-21 Final'!$A$9:$T$350,20,0),0) -> 47843 | V114: -1794 | W114: -0.03749764856
A115: 11056 | B115: KAHLOTUS | C115: =_xlfn.IFNA(IF(VLOOKUP(A115,'Title IA 2021'!A:D,3,0)=0,0,$B$5),0) -> 10000 | D115: =IFERROR(VLOOKUP(A115,'Title IA 2021'!A:D,3,0)/'Title IA 2021'!$C$3,0) -> 7.515780557e-06 | E115: 131.7 | G115: 10000 | H115: 10000 | J115: 0 | K115: 10000 | M115: 0 | N115: 10000 | Q115: 10000 | S115: 0 | T115: 10000 | U115: =IFERROR(VLOOKUP(A115,'SY 2020-21 Final'!$A$9:$T$350,20,0),0) -> 10000 | V115: 0 | W115: 0
A116: 08402 | B116: KALAMA | C116: =_xlfn.IFNA(IF(VLOOKUP(A116,'Title IA 2021'!A:D,3,0)=0,0,$B$5),0) -> 10000 | D116: =IFERROR(VLOOKUP(A116,'Title IA 2021'!A:D,3,0)/'Title IA 2021'!$C$3,0) -> 0.0006524459169 | E116: 11437.4 | G116: 0 | H116: 11018.1 | J116: 0 | K116: 11017 | M116: 0 | N116: 11017 | Q116: 11017 | S116: 0 | T116: 11017 | U116: =IFERROR(VLOOKUP(A116,'SY 2020-21 Final'!$A$9:$T$350,20,0),0) -> 11455 | V116: -438 | W116: -0.03823657791
A117: 10003 | B117: KELLER | C117: =_xlfn.IFNA(IF(VLOOKUP(A117,'Title IA 2021'!A:D,3,0)=0,0,$B$5),0) -> 10000 | D117: =IFERROR(VLOOKUP(A117,'Title IA 2021'!A:D,3,0)/'Title IA 2021'!$C$3,0) -> 0.0002307961827 | E117: 4045.8 | G117: 10000 | H117: 10000 | J117: 0 | K117: 10000 | M117: 0 | N117: 10000 | Q117: 10000 | S117: 0 | T117: 10000 | U117: =IFERROR(VLOOKUP(A117,'SY 2020-21 Final'!$A$9:$T$350,20,0),0) -> 10000 | V117: 0 | W117: 0
A118: 08458 | B118: KELSO | C118: =_xlfn.IFNA(IF(VLOOKUP(A118,'Title IA 2021'!A:D,3,0)=0,0,$B$5),0) -> 10000 | D118: =IFERROR(VLOOKUP(A118,'Title IA 2021'!A:D,3,0)/'Title IA 2021'!$C$3,0) -> 0.005851273725 | E118: 102573.4 | G118: 0 | H118: 98813.1 | J118: 0 | K118: 98808 | M118: 0 | N118: 98808 | Q118: 98808 | S118: 0 | T118: 98808 | U118: =IFERROR(VLOOKUP(A118,'SY 2020-21 Final'!$A$9:$T$350,20,0),0) -> 102643 | V118: -3835 | W118: -0.03736250889
A119: 03017 | B119: KENNEWICK | C119: =_xlfn.IFNA(IF(VLOOKUP(A119,'Title IA 2021'!A:D,3,0)=0,0,$B$5),0) -> 10000 | D119: =IFERROR(VLOOKUP(A119,'Title IA 2021'!A:D,3,0)/'Title IA 2021'!$C$3,0) -> 0.02254510488 | E119: 395217.9 | G119: 0 | H119: 380729.5 | J119: 0 | K119: 380711 | M119: 0 | N119: 380711 | Q119: 380711 | S119: 0 | T119: 380711 | U119: =IFERROR(VLOOKUP(A119,'SY 2020-21 Final'!$A$9:$T$350,20,0),0) -> 395457 | V119: -14746 | W119: -0.03728850419
A120: 17415 | B120: KENT | C120: =_xlfn.IFNA(IF(VLOOKUP(A120,'Title IA 2021'!A:D,3,0)=0,0,$B$5),0) -> 10000 | D120: =IFERROR(VLOOKUP(A120,'Title IA 2021'!A:D,3,0)/'Title IA 2021'!$C$3,0) -> 0.03808890781 | E120: 667702.4 | G120: 0 | H120: 643224.9 | J120: 0 | K120: 643194 | M120: 0 | N120: 643194 | Q120: 643194 | S120: 0 | T120: 643194 | U120: =IFERROR(VLOOKUP(A120,'SY 2020-21 Final'!$A$9:$T$350,20,0),0) -> 668099 | V120: -24905 | W120: -0.03727740949
A121: 33212 | B121: KETTLE FALLS | C121: =_xlfn.IFNA(IF(VLOOKUP(A121,'Title IA 2021'!A:D,3,0)=0,0,$B$5),0) -> 10000 | D121: =IFERROR(VLOOKUP(A121,'Title IA 2021'!A:D,3,0)/'Title IA 2021'!$C$3,0) -> 0.0009501531197 | E121: 16656.2 | G121: 0 | H121: 16045.5 | J121: 0 | K121: 16044 | M121: 0 | N121: 16044 | Q121: 16044 | S121: 0 | T121: 16044 | U121: =IFERROR(VLOOKUP(A121,'SY 2020-21 Final'!$A$9:$T$350,20,0),0) -> 16677 | V121: -633 | W121: -0.03795646699
A122: 03052 | B122: KIONA-BENTON | C122: =_xlfn.IFNA(IF(VLOOKUP(A122,'Title IA 2021'!A:D,3,0)=0,0,$B$5),0) -> 10000 | D122: =IFERROR(VLOOKUP(A122,'Title IA 2021'!A:D,3,0)/'Title IA 2021'!$C$3,0) -> 0.001982760962 | E122: 34758 | G122: 0 | H122: 33483.7 | J122: 0 | K122: 33482 | M122: 0 | N122: 33482 | Q122: 33482 | S122: 0 | T122: 33482 | U122: =IFERROR(VLOOKUP(A122,'SY 2020-21 Final'!$A$9:$T$350,20,0),0) -> 37574 | V122: -4092 | W122: -0.1089050939
A123: 19403 | B123: KITTITAS | C123: =_xlfn.IFNA(IF(VLOOKUP(A123,'Title IA 2021'!A:D,3,0)=0,0,$B$5),0) -> 10000 | D123: =IFERROR(VLOOKUP(A123,'Title IA 2021'!A:D,3,0)/'Title IA 2021'!$C$3,0) -> 0.0004374166775 | E123: 7667.9 | G123: 10000 | H123: 10000 | J123: 0 | K123: 10000 | M123: 0 | N123: 10000 | Q123: 10000 | S123: 0 | T123: 10000 | U123: =IFERROR(VLOOKUP(A123,'SY 2020-21 Final'!$A$9:$T$350,20,0),0) -> 10000 | V123: 0 | W123: 0
A124: 20402 | B124: KLICKITAT | C124: =_xlfn.IFNA(IF(VLOOKUP(A124,'Title IA 2021'!A:D,3,0)=0,0,$B$5),0) -> 10000 | D124: =IFERROR(VLOOKUP(A124,'Title IA 2021'!A:D,3,0)/'Title IA 2021'!$C$3,0) -> 0.0001222485261 | E124: 2143 | G124: 10000 | H124: 10000 | J124: 0 | K124: 10000 | M124: 0 | N124: 10000 | Q124: 10000 | S124: 0 | T124: 10000 | U124: =IFERROR(VLOOKUP(A124,'SY 2020-21 Final'!$A$9:$T$350,20,0),0) -> 10000 | V124: 0 | W124: 0
A125: 06101 | B125: LA CENTER | C125: =_xlfn.IFNA(IF(VLOOKUP(A125,'Title IA 2021'!A:D,3,0)=0,0,$B$5),0) -> 10000 | D125: =IFERROR(VLOOKUP(A125,'Title IA 2021'!A:D,3,0)/'Title IA 2021'!$C$3,0) -> 0.0002789462037 | E125: 4889.9 | G125: 10000 | H125: 10000 | J125: 0 | K125: 10000 | M125: 0 | N125: 10000 | Q125: 10000 | S125: 0 | T125: 10000 | U125: =IFERROR(VLOOKUP(A125,'SY 2020-21 Final'!$A$9:$T$350,20,0),0) -> 10000 | V125: 0 | W125: 0
A126: 29311 | B126: LA CONNER | C126: =_xlfn.IFNA(IF(VLOOKUP(A126,'Title IA 2021'!A:D,3,0)=0,0,$B$5),0) -> 10000 | D126: =IFERROR(VLOOKUP(A126,'Title IA 2021'!A:D,3,0)/'Title IA 2021'!$C$3,0) -> 0.0004430940027 | E126: 7767.4 | G126: 10000 | H126: 10000 | J126: 0 | K126: 10000 | M126: 0 | N126: 10000 | Q126: 10000 | S126: 0 | T126: 10000 | U126: =IFERROR(VLOOKUP(A126,'SY 2020-21 Final'!$A$9:$T$350,20,0),0) -> 10000 | V126: 0 | W126: 0
A127: 38126 | B127: LACROSSE | C127: =_xlfn.IFNA(IF(VLOOKUP(A127,'Title IA 2021'!A:D,3,0)=0,0,$B$5),0) -> 10000 | D127: =IFERROR(VLOOKUP(A127,'Title IA 2021'!A:D,3,0)/'Title IA 2021'!$C$3,0) -> 0.0001435264582 | E127: 2516 | G127: 10000 | H127: 10000 | J127: 0 | K127: 10000 | M127: 0 | N127: 10000 | Q127: 10000 | S127: 0 | T127: 10000 | U127: =IFERROR(VLOOKUP(A127,'SY 2020-21 Final'!$A$9:$T$350,20,0),0) -> 10000 | V127: 0 | W127: 0
A128: 04129 | B128: LAKE CHELAN | C128: =_xlfn.IFNA(IF(VLOOKUP(A128,'Title IA 2021'!A:D,3,0)=0,0,$B$5),0) -> 10000 | D128: =IFERROR(VLOOKUP(A128,'Title IA 2021'!A:D,3,0)/'Title IA 2021'!$C$3,0) -> 0.001005026635 | E128: 17618.2 | G128: 0 | H128: 16972.3 | J128: 0 | K128: 16971 | M128: 0 | N128: 16971 | Q128: 16971 | S128: 0 | T128: 16971 | U128: =IFERROR(VLOOKUP(A128,'SY 2020-21 Final'!$A$9:$T$350,20,0),0) -> 20553 | V128: -3582 | W128: -0.1742811268
A129: 31004 | B129: LAKE STEVENS | C129: =_xlfn.IFNA(IF(VLOOKUP(A129,'Title IA 2021'!A:D,3,0)=0,0,$B$5),0) -> 10000 | D129: =IFERROR(VLOOKUP(A129,'Title IA 2021'!A:D,3,0)/'Title IA 2021'!$C$3,0) -> 0.003228704038 | E129: 56599.5 | G129: 0 | H129: 54524.6 | J129: 0 | K129: 54522 | M129: 0 | N129: 54522 | Q129: 54522 | S129: 0 | T129: 54522 | U129: =IFERROR(VLOOKUP(A129,'SY 2020-21 Final'!$A$9:$T$350,20,0),0) -> 56643 | V129: -2121 | W129: -0.03744505058
A130: 17414 | B130: LAKE WASHINGTON | C130: =_xlfn.IFNA(IF(VLOOKUP(A130,'Title IA 2021'!A:D,3,0)=0,0,$B$5),0) -> 10000 | D130: =IFERROR(VLOOKUP(A130,'Title IA 2021'!A:D,3,0)/'Title IA 2021'!$C$3,0) -> 0.004591734834 | E130: 80493.5 | G130: 0 | H130: 77542.6 | J130: 0 | K130: 77538 | M130: 0 | N130: 77538 | Q130: 77538 | S130: 0 | T130: 77538 | U130: =IFERROR(VLOOKUP(A130,'SY 2020-21 Final'!$A$9:$T$350,20,0),0) -> 154590 | V130: -77052 | W130: -0.4984281001
A131: 31306 | B131: LAKEWOOD | C131: =_xlfn.IFNA(IF(VLOOKUP(A131,'Title IA 2021'!A:D,3,0)=0,0,$B$5),0) -> 10000 | D131: =IFERROR(VLOOKUP(A131,'Title IA 2021'!A:D,3,0)/'Title IA 2021'!$C$3,0) -> 0.001135193651 | E131: 19900 | G131: 0 | H131: 19170.4 | J131: 0 | K131: 19169 | M131: 0 | N131: 19169 | Q131: 19169 | S131: 0 | T131: 19169 | U131: =IFERROR(VLOOKUP(A131,'SY 2020-21 Final'!$A$9:$T$350,20,0),0) -> 18174 | V131: 995 | W131: 0.05474854187
A132: 38264 | B132: LAMONT | C132: =_xlfn.IFNA(IF(VLOOKUP(A132,'Title IA 2021'!A:D,3,0)=0,0,$B$5),0) -> 0 | D132: =IFERROR(VLOOKUP(A132,'Title IA 2021'!A:D,3,0)/'Title IA 2021'!$C$3,0) -> 0 | E132: 0 | G132: 0 | H132: 0 | J132: 0 | K132: 0 | M132: 0 | N132: 0 | Q132: 0 | S132: 0 | T132: 0 | U132: =IFERROR(VLOOKUP(A132,'SY 2020-21 Final'!$A$9:$T$350,20,0),0) -> 0 | V132: 0 | W132: 0
A133: 32362 | B133: LIBERTY | C133: =_xlfn.IFNA(IF(VLOOKUP(A133,'Title IA 2021'!A:D,3,0)=0,0,$B$5),0) -> 10000 | D133: =IFERROR(VLOOKUP(A133,'Title IA 2021'!A:D,3,0)/'Title IA 2021'!$C$3,0) -> 0.0003907636844 | E133: 6850.1 | G133: 10000 | H133: 10000 | J133: 0 | K133: 10000 | M133: 0 | N133: 10000 | Q133: 10000 | S133: 0 | T133: 10000 | U133: =IFERROR(VLOOKUP(A133,'SY 2020-21 Final'!$A$9:$T$350,20,0),0) -> 10000 | V133: 0 | W133: 0
A134: 01158 | B134: LIND | C134: =_xlfn.IFNA(IF(VLOOKUP(A134,'Title IA 2021'!A:D,3,0)=0,0,$B$5),0) -> 10000 | D134: =IFERROR(VLOOKUP(A134,'Title IA 2021'!A:D,3,0)/'Title IA 2021'!$C$3,0) -> 0.0002901914222 | E134: 5087 | G134: 10000 | H134: 10000 | J134: 0 | K134: 10000 | M134: 0 | N134: 10000 | Q134: 10000 | S134: 0 | T134: 10000 | U134: =IFERROR(VLOOKUP(A134,'SY 2020-21 Final'!$A$9:$T$350,20,0),0) -> 10000 | V134: 0 | W134: 0
A135: 08122 | B135: LONGVIEW | C135: =_xlfn.IFNA(IF(VLOOKUP(A135,'Title IA 2021'!A:D,3,0)=0,0,$B$5),0) -> 10000 | D135: =IFERROR(VLOOKUP(A135,'Title IA 2021'!A:D,3,0)/'Title IA 2021'!$C$3,0) -> 0.01064076507 | E135: 186533.6 | G135: 0 | H135: 179695.4 | J135: 0 | K135: 179686 | M135: 0 | N135: 179686 | Q135: 179686 | S135: 0 | T135: 179686 | U135: =IFERROR(VLOOKUP(A135,'SY 2020-21 Final'!$A$9:$T$350,20,0),0) -> 186652 | V135: -6966 | W135: -0.03732078949
A136: 33183 | B136: LOON LAKE | C136: =_xlfn.IFNA(IF(VLOOKUP(A136,'Title IA 2021'!A:D,3,0)=0,0,$B$5),0) -> 10000 | D136: =IFERROR(VLOOKUP(A136,'Title IA 2021'!A:D,3,0)/'Title IA 2021'!$C$3,0) -> 0.0002997513901 | E136: 5254.6 | G136: 10000 | H136: 10000 | J136: 0 | K136: 10000 | M136: 0 | N136: 10000 | Q136: 10000 | S136: 0 | T136: 10000 | U136: =IFERROR(VLOOKUP(A136,'SY 2020-21 Final'!$A$9:$T$350,20,0),0) -> 10000 | V136: 0 | W136: 0
A137: 28144 | B137: LOPEZ | C137: =_xlfn.IFNA(IF(VLOOKUP(A137,'Title IA 2021'!A:D,3,0)=0,0,$B$5),0) -> 10000 | D137: =IFERROR(VLOOKUP(A137,'Title IA 2021'!A:D,3,0)/'Title IA 2021'!$C$3,0) -> 0.0003536750363 | E137: =IF(D137=0,0,ROUNDDOWN(D137*$C$1,1)+$C$1*$D$5) -> 6199.9 | G137: =IF(AND($C137<>0,E137<$B$5),$B$5,0) -> 10000 | H137: =ROUNDDOWN(IF(G137=0,IF(E137=$B$5,$B$5,E137*(1-$G$5)),G137),1) -> 10000 | J137: =IF(AND($C137<>0,H137<10000),10000,0) -> 0 | K137: =ROUNDDOWN(IF(J137=0,IF(H137=$B$5,$B$5,H137*(1-$J$5)),J137),0) -> 10000 | M137: =IF(AND(C137<>0,K137<10000),10000,0) -> 0 | N137: =IF(M137=0,IF(K137=$B$5,$B$5,K137*(1-$M$5)),M137) -> 10000 | Q137: 10000 | S137: =ROUND(IF(R137>0,-(0.9-R137)*Q137,0),0) -> 0 | T137: =Q137+S137 -> 10000 | U137: =IFERROR(VLOOKUP(A137,'SY 2020-21 Final'!$A$9:$T$350,20,0),0) -> 10000 | V137: =T137-U137 -> 0 | W137: =IFERROR(V137/U137,0) -> 0
A138: 32903 | B138: LUMEN CHARTER | C138: =_xlfn.IFNA(IF(VLOOKUP(A138,'Title IA 2021'!A:D,3,0)=0,0,$B$5),0) -> 10000 | D138: =IFERROR(VLOOKUP(A138,'Title IA 2021'!A:D,3,0)/'Title IA 2021'!$C$3,0) -> 8.105399451e-05 | E138: 1420.8 | G138: 10000 | H138: 10000 | J138: 0 | K138: 10000 | M138: 0 | N138: 10000 | Q138: 10000 | S138: 0 | T138: 10000 | U138: =IFERROR(VLOOKUP(A138,'SY 2020-21 Final'!$A$9:$T$350,20,0),0) -> 0 | V138: 10000 | W138: 0
A139: 20406 | B139: LYLE | C139: =_xlfn.IFNA(IF(VLOOKUP(A139,'Title IA 2021'!A:D,3,0)=0,0,$B$5),0) -> 10000 | D139: =IFERROR(VLOOKUP(A139,'Title IA 2021'!A:D,3,0)/'Title IA 2021'!$C$3,0) -> 0.000874802714 | E139: 15335.3 | G139: 0 | H139: 14773.1 | J139: 0 | K139: 14772 | M139: 0 | N139: 14772 | Q139: 14772 | S139: 0 | T139: 14772 | U139: =IFERROR(VLOOKUP(A139,'SY 2020-21 Final'!$A$9:$T$350,20,0),0) -> 15355 | V139: -583 | W139: -0.03796808857
A140: 37504 | B140: LYNDEN | C140: =_xlfn.IFNA(IF(VLOOKUP(A140,'Title IA 2021'!A:D,3,0)=0,0,$B$5),0) -> 10000 | D140: =IFERROR(VLOOKUP(A140,'Title IA 2021'!A:D,3,0)/'Title IA 2021'!$C$3,0) -> 0.00150400968 | E140: 26365.4 | G140: 0 | H140: 25398.8 | J140: 0 | K140: 25397 | M140: 0 | N140: 25397 | Q140: 25397 | S140: 0 | T140: 25397 | U140: =IFERROR(VLOOKUP(A140,'SY 2020-21 Final'!$A$9:$T$350,20,0),0) -> 25028 | V140: 369 | W140: 0.01474348729
A141: 39120 | B141: MABTON | C141: =_xlfn.IFNA(IF(VLOOKUP(A141,'Title IA 2021'!A:D,3,0)=0,0,$B$5),0) -> 10000 | D141: =IFERROR(VLOOKUP(A141,'Title IA 2021'!A:D,3,0)/'Title IA 2021'!$C$3,0) -> 0.00159530212 | E141: 27965.8 | G141: 0 | H141: 26940.5 | J141: 0 | K141: 26939 | M141: 0 | N141: 26939 | Q141: 26939 | S141: 0 | T141: 26939 | U141: =IFERROR(VLOOKUP(A141,'SY 2020-21 Final'!$A$9:$T$350,20,0),0) -> 27993 | V141: -1054 | W141: -0.03765227021
A142: 09207 | B142: MANSFIELD | C142: =_xlfn.IFNA(IF(VLOOKUP(A142,'Title IA 2021'!A:D,3,0)=0,0,$B$5),0) -> 10000 | D142: =IFERROR(VLOOKUP(A142,'Title IA 2021'!A:D,3,0)/'Title IA 2021'!$C$3,0) -> 0.0001011413078 | E142: 1773 | G142: 10000 | H142: 10000 | J142: 0 | K142: 10000 | M142: 0 | N142: 10000 | Q142: 10000 | S142: 0 | T142: 10000 | U142: =IFERROR(VLOOKUP(A142,'SY 2020-21 Final'!$A$9:$T$350,20,0),0) -> 0 | V142: 10000 | W142: 0
A143: 04019 | B143: MANSON | C143: =_xlfn.IFNA(IF(VLOOKUP(A143,'Title IA 2021'!A:D,3,0)=0,0,$B$5),0) -> 10000 | D143: =IFERROR(VLOOKUP(A143,'Title IA 2021'!A:D,3,0)/'Title IA 2021'!$C$3,0) -> 0.0005565091886 | E143: 9755.6 | G143: 10000 | H143: 10000 | J143: 0 | K143: 10000 | M143: 0 | N143: 10000 | Q143: 10000 | S143: 0 | T143: 10000 | U143: =IFERROR(VLOOKUP(A143,'SY 2020-21 Final'!$A$9:$T$350,20,0),0) -> 11386 | V143: -1386 | W143: -0.1217284384
A144: 23311 | B144: MARY M KNIGHT | C144: =_xlfn.IFNA(IF(VLOOKUP(A144,'Title IA 2021'!A:D,3,0)=0,0,$B$5),0) -> 10000 | D144: =IFERROR(VLOOKUP(A144,'Title IA 2021'!A:D,3,0)/'Title IA 2021'!$C$3,0) -> 0.0003446184551 | E144: 6041.1 | G144: 10000 | H144: 10000 | J144: 0 | K144: 10000 | M144: 0 | N144: 10000 | Q144: 10000 | S144: 0 | T144: 10000 | U144: =IFERROR(VLOOKUP(A144,'SY 2020-21 Final'!$A$9:$T$350,20,0),0) -> 10000 | V144: 0 | W144: 0
A145: 33207 | B145: MARY WALKER | C145: =_xlfn.IFNA(IF(VLOOKUP(A145,'Title IA 2021'!A:D,3,0)=0,0,$B$5),0) -> 10000 | D145: =IFERROR(VLOOKUP(A145,'Title IA 2021'!A:D,3,0)/'Title IA 2021'!$C$3,0) -> 0.0009729937388 | E145: 17056.6 | G145: 0 | H145: 16431.3 | J145: 0 | K145: 16430 | M145: 0 | N145: 16430 | Q145: 16430 | S145: 0 | T145: 16430 | U145: =IFERROR(VLOOKUP(A145,'SY 2020-21 Final'!$A$9:$T$350,20,0),0) -> 17242 | V145: -812 | W145: -0.04709430461
A146: 31025 | B146: MARYSVILLE | C146: =_xlfn.IFNA(IF(VLOOKUP(A146,'Title IA 2021'!A:D,3,0)=0,0,$B$5),0) -> 10000 | D146: =IFERROR(VLOOKUP(A146,'Title IA 2021'!A:D,3,0)/'Title IA 2021'!$C$3,0) -> 0.00701376406 | E146: 122951.9 | G146: 0 | H146: 118444.5 | J146: 0 | K146: 118438 | M146: 0 | N146: 118438 | Q146: 118438 | S146: 0 | T146: 118438 | U146: =IFERROR(VLOOKUP(A146,'SY 2020-21 Final'!$A$9:$T$350,20,0),0) -> 123034 | V146: -4596 | W146: -0.03735552774
A147: 14065 | B147: MCCLEARY | C147: =_xlfn.IFNA(IF(VLOOKUP(A147,'Title IA 2021'!A:D,3,0)=0,0,$B$5),0) -> 10000 | D147: =IFERROR(VLOOKUP(A147,'Title IA 2021'!A:D,3,0)/'Title IA 2021'!$C$3,0) -> 0.0006280863835 | E147: 11010.4 | G147: 0 | H147: 10606.7 | J147: 0 | K147: 10606 | M147: 0 | N147: 10606 | Q147: 10606 | S147: 0 | T147: 10606 | U147: =IFERROR(VLOOKUP(A147,'SY 2020-21 Final'!$A$9:$T$350,20,0),0) -> 12341 | V147: -1735 | W147: -0.140588283
A148: 32354 | B148: MEAD | C148: =_xlfn.IFNA(IF(VLOOKUP(A148,'Title IA 2021'!A:D,3,0)=0,0,$B$5),0) -> 10000 | D148: =IFERROR(VLOOKUP(A148,'Title IA 2021'!A:D,3,0)/'Title IA 2021'!$C$3,0) -> 0.005016667524 | E148: 87942.6 | G148: 0 | H148: 84718.6 | J148: 0 | K148: 84714 | M148: 0 | N148: 84714 | Q148: 84714 | S148: 0 | T148: 84714 | U148: =IFERROR(VLOOKUP(A148,'SY 2020-21 Final'!$A$9:$T$350,20,0),0) -> 88004 | V148: -3290 | W148: -0.03738466433
A149: 32326 | B149: MEDICAL LAKE | C149: =_xlfn.IFNA(IF(VLOOKUP(A149,'Title IA 2021'!A:D,3,0)=0,0,$B$5),0) -> 10000 | D149: =IFERROR(VLOOKUP(A149,'Title IA 2021'!A:D,3,0)/'Title IA 2021'!$C$3,0) -> 0.0009573756228 | E149: 16782.8 | G149: 0 | H149: 16167.5 | J149: 0 | K149: 16166 | M149: 0 | N149: 16166 | Q149: 16166 | S149: 0 | T149: 16166 | U149: =IFERROR(VLOOKUP(A149,'SY 2020-21 Final'!$A$9:$T$350,20,0),0) -> 16803 | V149: -637 | W149: -0.03790989704
A150: 17400 | B150: MERCER ISLAND | C150: =_xlfn.IFNA(IF(VLOOKUP(A150,'Title IA 2021'!A:D,3,0)=0,0,$B$5),0) -> 10000 | D150: =IFERROR(VLOOKUP(A150,'Title IA 2021'!A:D,3,0)/'Title IA 2021'!$C$3,0) -> 0.000424149158 | E150: 7435.3 | G150: 10000 | H150: 10000 | J150: 0 | K150: 10000 | M150: 0 | N150: 10000 | Q150: 10000 | S150: 0 | T150: 10000 | U150: =IFERROR(VLOOKUP(A150,'SY 2020-21 Final'!$A$9:$T$350,20,0),0) -> 10000 | V150: 0 | W150: 0
A151: 37505 | B151: MERIDIAN | C151: =_xlfn.IFNA(IF(VLOOKUP(A151,'Title IA 2021'!A:D,3,0)=0,0,$B$5),0) -> 10000 | D151: =IFERROR(VLOOKUP(A151,'Title IA 2021'!A:D,3,0)/'Title IA 2021'!$C$3,0) -> 0.001213516226 | E151: 21273 | G151: 0 | H151: 20493.1 | J151: 0 | K151: 20492 | M151: 0 | N151: 20492 | Q151: 20492 | S151: 0 | T151: 20492 | U151: =IFERROR(VLOOKUP(A151,'SY 2020-21 Final'!$A$9:$T$350,20,0),0) -> 21168 | V151: -676 | W151: -0.03193499622
A152: 24350 | B152: METHOW VALLEY | C152: =_xlfn.IFNA(IF(VLOOKUP(A152,'Title IA 2021'!A:D,3,0)=0,0,$B$5),0) -> 10000 | D152: =IFERROR(VLOOKUP(A152,'Title IA 2021'!A:D,3,0)/'Title IA 2021'!$C$3,0) -> 0.0009808290604 | E152: 17194 | G152: 0 | H152: 16563.6 | J152: 0 | K152: 16562 | M152: 0 | N152: 16562 | Q152: 16562 | S152: 0 | T152: 16562 | U152: =IFERROR(VLOOKUP(A152,'SY 2020-21 Final'!$A$9:$T$350,20,0),0) -> 17215 | V152: -653 | W152: -0.03793203602
A153: 30031 | B153: MILL A | C153: =_xlfn.IFNA(IF(VLOOKUP(A153,'Title IA 2021'!A:D,3,0)=0,0,$B$5),0) -> 10000 | D153: =IFERROR(VLOOKUP(A153,'Title IA 2021'!A:D,3,0)/'Title IA 2021'!$C$3,0) -> 7.090309462e-05 | E153: 1242.9 | G153: 10000 | H153: 10000 | J153: 0 | K153: 10000 | M153: 0 | N153: 10000 | Q153: 10000 | S153: 0 | T153: 10000 | U153: =IFERROR(VLOOKUP(A153,'SY 2020-21 Final'!$A$9:$T$350,20,0),0) -> 10000 | V153: 0 | W153: 0
A154: 31103 | B154: MONROE | C154: =_xlfn.IFNA(IF(VLOOKUP(A154,'Title IA 2021'!A:D,3,0)=0,0,$B$5),0) -> 10000 | D154: =IFERROR(VLOOKUP(A154,'Title IA 2021'!A:D,3,0)/'Title IA 2021'!$C$3,0) -> 0.002552310052 | E154: 44742.2 | G154: 0 | H154: 43101.9 | J154: 0 | K154: 43099 | M154: 0 | N154: 43099 | Q154: 43099 | S154: 0 | T154: 43099 | U154: =IFERROR(VLOOKUP(A154,'SY 2020-21 Final'!$A$9:$T$350,20,0),0) -> 46876 | V154: -3777 | W154: -0.08057428108
A155: 14066 | B155: MONTESANO | C155: =_xlfn.IFNA(IF(VLOOKUP(A155,'Title IA 2021'!A:D,3,0)=0,0,$B$5),0) -> 10000 | D155: =IFERROR(VLOOKUP(A155,'Title IA 2021'!A:D,3,0)/'Title IA 2021'!$C$3,0) -> 0.001437588914 | E155: 25201 | G155: 0 | H155: 24277.1 | J155: 0 | K155: 24275 | M155: 0 | N155: 24275 | Q155: 24275 | S155: 0 | T155: 24275 | U155: =IFERROR(VLOOKUP(A155,'SY 2020-21 Final'!$A$9:$T$350,20,0),0) -> 15737 | V155: 8538 | W155: 0.5425430514
A156: 21214 | B156: MORTON | C156: =_xlfn.IFNA(IF(VLOOKUP(A156,'Title IA 2021'!A:D,3,0)=0,0,$B$5),0) -> 10000 | D156: =IFERROR(VLOOKUP(A156,'Title IA 2021'!A:D,3,0)/'Title IA 2021'!$C$3,0) -> 0.0004166859048 | E156: 7304.5 | G156: 10000 | H156: 10000 | J156: 0 | K156: 10000 | M156: 0 | N156: 10000 | Q156: 10000 | S156: 0 | T156: 10000 | U156: =IFERROR(VLOOKUP(A156,'SY 2020-21 Final'!$A$9:$T$350,20,0),0) -> 10000 | V156: 0 | W156: 0
A157: 13161 | B157: MOSES LAKE | C157: =_xlfn.IFNA(IF(VLOOKUP(A157,'Title IA 2021'!A:D,3,0)=0,0,$B$5),0) -> 10000 | D157: =IFERROR(VLOOKUP(A157,'Title IA 2021'!A:D,3,0)/'Title IA 2021'!$C$3,0) -> 0.00857769863 | E157: 150367.9 | G157: 0 | H157: 144855.5 | J157: 0 | K157: 144848 | M157: 0 | N157: 144848 | Q157: 144848 | S157: 0 | T157: 144848 | U157: =IFERROR(VLOOKUP(A157,'SY 2020-21 Final'!$A$9:$T$350,20,0),0) -> 150466 | V157: -5618 | W157: -0.03733733867
A158: 21206 | B158: MOSSYROCK | C158: =_xlfn.IFNA(IF(VLOOKUP(A158,'Title IA 2021'!A:D,3,0)=0,0,$B$5),0) -> 10000 | D158: =IFERROR(VLOOKUP(A158,'Title IA 2021'!A:D,3,0)/'Title IA 2021'!$C$3,0) -> 0.0005617225227 | E158: 9847 | G158: 10000 | H158: 10000 | J158: 0 | K158: 10000 | M158: 0 | N158: 10000 | Q158: 10000 | S158: 0 | T158: 10000 | U158: =IFERROR(VLOOKUP(A158,'SY 2020-21 Final'!$A$9:$T$350,20,0),0) -> 10000 | V158: 0 | W158: 0
A159: 39209 | B159: MOUNT ADAMS | C159: =_xlfn.IFNA(IF(VLOOKUP(A159,'Title IA 2021'!A:D,3,0)=0,0,$B$5),0) -> 10000 | D159: =IFERROR(VLOOKUP(A159,'Title IA 2021'!A:D,3,0)/'Title IA 2021'!$C$3,0) -> 0.002112337046 | E159: 37029.4 | G159: 0 | H159: 35671.9 | J159: 0 | K159: 35670 | M159: 0 | N159: 35670 | Q159: 35670 | S159: 0 | T159: 35670 | U159: =IFERROR(VLOOKUP(A159,'SY 2020-21 Final'!$A$9:$T$350,20,0),0) -> 37339 | V159: -1669 | W159: -0.04469857254
A160: 37507 | B160: MOUNT BAKER | C160: =_xlfn.IFNA(IF(VLOOKUP(A160,'Title IA 2021'!A:D,3,0)=0,0,$B$5),0) -> 10000 | D160: =IFERROR(VLOOKUP(A160,'Title IA 2021'!A:D,3,0)/'Title IA 2021'!$C$3,0) -> 0.003008640933 | E160: 52741.7 | G160: 0 | H160: 50808.2 | J160: 0 | K160: 50805 | M160: 0 | N160: 50805 | Q160: 50805 | S160: 0 | T160: 50805 | U160: =IFERROR(VLOOKUP(A160,'SY 2020-21 Final'!$A$9:$T$350,20,0),0) -> 44579 | V160: 6226 | W160: 0.1396621728
A161: 30029 | B161: MOUNT PLEASANT | C161: =_xlfn.IFNA(IF(VLOOKUP(A161,'Title IA 2021'!A:D,3,0)=0,0,$B$5),0) -> 0 | D161: =IFERROR(VLOOKUP(A161,'Title IA 2021'!A:D,3,0)/'Title IA 2021'!$C$3,0) -> 0 | E161: 0 | G161: 0 | H161: 0 | J161: 0 | K161: 0 | M161: 0 | N161: 0 | Q161: 0 | S161: 0 | T161: 0 | U161: =IFERROR(VLOOKUP(A161,'SY 2020-21 Final'!$A$9:$T$350,20,0),0) -> 0 | V161: 0 | W161: 0
A162: 29320 | B162: MOUNT VERNON | C162: =_xlfn.IFNA(IF(VLOOKUP(A162,'Title IA 2021'!A:D,3,0)=0,0,$B$5),0) -> 10000 | D162: =IFERROR(VLOOKUP(A162,'Title IA 2021'!A:D,3,0)/'Title IA 2021'!$C$3,0) -> 0.006337116192 | E162: 111090.2 | G162: 0 | H162: 107017.7 | J162: 0 | K162: 107012 | M162: 0 | N162: 107012 | Q162: 107012 | S162: 0 | T162: 107012 | U162: =IFERROR(VLOOKUP(A162,'SY 2020-21 Final'!$A$9:$T$350,20,0),0) -> 120399 | V162: -13387 | W162: -0.1111886311
A163: 31006 | B163: MUKILTEO | C163: =_xlfn.IFNA(IF(VLOOKUP(A163,'Title IA 2021'!A:D,3,0)=0,0,$B$5),0) -> 10000 | D163: =IFERROR(VLOOKUP(A163,'Title IA 2021'!A:D,3,0)/'Title IA 2021'!$C$3,0) -> 0.01286431991 | E163: 225512.8 | G163: 0 | H163: 217245.6 | J163: 0 | K163: 217235 | M163: 0 | N163: 217235 | Q163: =N163 -> 217235 | S163: 0 | T163: 217235 | U163: =IFERROR(VLOOKUP(A163,'SY 2020-21 Final'!$A$9:$T$350,20,0),0) -> 220272 | V163: -3037 | W163: -0.01378749909
A164: 39003 | B164: NACHES VALLEY | C164: =_xlfn.IFNA(IF(VLOOKUP(A164,'Title IA 2021'!A:D,3,0)=0,0,$B$5),0) -> 10000 | D164: =IFERROR(VLOOKUP(A164,'Title IA 2021'!A:D,3,0)/'Title IA 2021'!$C$3,0) -> 0.001297949476 | E164: 22753.1 | G164: 0 | H164: 21918.9 | J164: 0 | K164: 21917 | M164: 0 | N164: 21917 | Q164: 21917 | S164: 0 | T164: 21917 | U164: =IFERROR(VLOOKUP(A164,'SY 2020-21 Final'!$A$9:$T$350,20,0),0) -> 25023 | V164: -3106 | W164: -0.1241258043
A165: 21014 | B165: NAPAVINE | C165: =_xlfn.IFNA(IF(VLOOKUP(A165,'Title IA 2021'!A:D,3,0)=0,0,$B$5),0) -> 10000 | D165: =IFERROR(VLOOKUP(A165,'Title IA 2021'!A:D,3,0)/'Title IA 2021'!$C$3,0) -> 0.0005406459453 | E165: 9477.5 | G165: 10000 | H165: 10000 | J165: 0 | K165: 10000 | M165: 0 | N165: 10000 | Q165: 10000 | S165: 0 | T165: 10000 | U165: =IFERROR(VLOOKUP(A165,'SY 2020-21 Final'!$A$9:$T$350,20,0),0) -> 10000 | V165: 0 | W165: 0
A166: 25155 | B166: NASELLE-GRAYS | C166: =_xlfn.IFNA(IF(VLOOKUP(A166,'Title IA 2021'!A:D,3,0)=0,0,$B$5),0) -> 10000 | D166: =IFERROR(VLOOKUP(A166,'Title IA 2021'!A:D,3,0)/'Title IA 2021'!$C$3,0) -> 0.0003259143606 | E166: 5713.3 | G166: 10000 | H166: 10000 | J166: 0 | K166: 10000 | M166: 0 | N166: 10000 | Q166: 10000 | S166: 0 | T166: 10000 | U166: =IFERROR(VLOOKUP(A166,'SY 2020-21 Final'!$A$9:$T$350,20,0),0) -> 10000 | V166: 0 | W166: 0
A167: 24014 | B167: NESPELEM | C167: =_xlfn.IFNA(IF(VLOOKUP(A167,'Title IA 2021'!A:D,3,0)=0,0,$B$5),0) -> 10000 | D167: =IFERROR(VLOOKUP(A167,'Title IA 2021'!A:D,3,0)/'Title IA 2021'!$C$3,0) -> 0.0006575541964 | E167: 11526.9 | G167: 0 | H167: 11104.3 | J167: 0 | K167: 11103 | M167: 0 | N167: 11103 | Q167: 11103 | S167: 0 | T167: 11103 | U167: =IFERROR(VLOOKUP(A167,'SY 2020-21 Final'!$A$9:$T$350,20,0),0) -> 11544 | V167: -441 | W167: -0.0382016632
A168: 26056 | B168: NEWPORT | C168: =_xlfn.IFNA(IF(VLOOKUP(A168,'Title IA 2021'!A:D,3,0)=0,0,$B$5),0) -> 10000 | D168: =IFERROR(VLOOKUP(A168,'Title IA 2021'!A:D,3,0)/'Title IA 2021'!$C$3,0) -> 0.001711851434 | E168: 30008.9 | G168: 0 | H168: 28908.7 | J168: 0 | K168: 28907 | M168: 0 | N168: 28907 | Q168: 28907 | S168: 0 | T168: 28907 | U168: =IFERROR(VLOOKUP(A168,'SY 2020-21 Final'!$A$9:$T$350,20,0),0) -> 30037 | V168: -1130 | W168: -0.03762026834
A169: 32325 | B169: NINE MILE FALLS | C169: =_xlfn.IFNA(IF(VLOOKUP(A169,'Title IA 2021'!A:D,3,0)=0,0,$B$5),0) -> 10000 | D169: =IFERROR(VLOOKUP(A169,'Title IA 2021'!A:D,3,0)/'Title IA 2021'!$C$3,0) -> 0.002177085692 | E169: 38164.5 | G169: 0 | H169: 36765.4 | J169: 0 | K169: 36763 | M169: 0 | N169: 36763 | Q169: 36763 | S169: 0 | T169: 36763 | U169: =IFERROR(VLOOKUP(A169,'SY 2020-21 Final'!$A$9:$T$350,20,0),0) -> 38197 | V169: -1434 | W169: -0.03754221536
A170: 37506 | B170: NOOKSACK VALLEY | C170: =_xlfn.IFNA(IF(VLOOKUP(A170,'Title IA 2021'!A:D,3,0)=0,0,$B$5),0) -> 10000 | D170: =IFERROR(VLOOKUP(A170,'Title IA 2021'!A:D,3,0)/'Title IA 2021'!$C$3,0) -> 0.001550443809 | E170: 27179.4 | G170: 0 | H170: 26183 | J170: 0 | K170: 26181 | M170: 0 | N170: 26181 | Q170: 26181 | S170: 0 | T170: 26181 | U170: =IFERROR(VLOOKUP(A170,'SY 2020-21 Final'!$A$9:$T$350,20,0),0) -> 26059 | V170: 122 | W170: 0.004681683871
A171: 14064 | B171: NORTH BEACH | C171: =_xlfn.IFNA(IF(VLOOKUP(A171,'Title IA 2021'!A:D,3,0)=0,0,$B$5),0) -> 10000 | D171: =IFERROR(VLOOKUP(A171,'Title IA 2021'!A:D,3,0)/'Title IA 2021'!$C$3,0) -> 0.0007395493049 | E171: 12964.3 | G171: 0 | H171: 12489 | J171: 0 | K171: 12488 | M171: 0 | N171: 12488 | Q171: 12488 | S171: 0 | T171: 12488 | U171: =IFERROR(VLOOKUP(A171,'SY 2020-21 Final'!$A$9:$T$350,20,0),0) -> 11934 | V171: 554 | W171: 0.0464219876
A172: 11051 | B172: NORTH FRANKLIN | C172: =_xlfn.IFNA(IF(VLOOKUP(A172,'Title IA 2021'!A:D,3,0)=0,0,$B$5),0) -> 10000 | D172: =IFERROR(VLOOKUP(A172,'Title IA 2021'!A:D,3,0)/'Title IA 2021'!$C$3,0) -> 0.003802271466 | E172: 66654.2 | G172: 0 | H172: 64210.7 | J172: 0 | K172: 64207 | M172: 0 | N172: 64207 | Q172: 64207 | S172: 0 | T172: 64207 | U172: =IFERROR(VLOOKUP(A172,'SY 2020-21 Final'!$A$9:$T$350,20,0),0) -> 70507 | V172: -6300 | W172: -0.08935283022
A173: 18400 | B173: NORTH KITSAP | C173: =_xlfn.IFNA(IF(VLOOKUP(A173,'Title IA 2021'!A:D,3,0)=0,0,$B$5),0) -> 10000 | D173: =IFERROR(VLOOKUP(A173,'Title IA 2021'!A:D,3,0)/'Title IA 2021'!$C$3,0) -> 0.0028916714 | E173: 50691.2 | G173: 0 | H173: 48832.9 | J173: 0 | K173: 48830 | M173: 0 | N173: 48830 | Q173: 48830 | S173: 0 | T173: 48830 | U173: =IFERROR(VLOOKUP(A173,'SY 2020-21 Final'!$A$9:$T$350,20,0),0) -> 50731 | V173: -1901 | W173: -0.03747215706
A174: 23403 | B174: NORTH MASON | C174: =_xlfn.IFNA(IF(VLOOKUP(A174,'Title IA 2021'!A:D,3,0)=0,0,$B$5),0) -> 10000 | D174: =IFERROR(VLOOKUP(A174,'Title IA 2021'!A:D,3,0)/'Title IA 2021'!$C$3,0) -> 0.002677648934 | E174: 46939.4 | G174: 0 | H174: 45218.6 | J174: 0 | K174: 45216 | M174: 0 | N174: 45216 | Q174: 45216 | S174: 0 | T174: 45216 | U174: =IFERROR(VLOOKUP(A174,'SY 2020-21 Final'!$A$9:$T$350,20,0),0) -> 44842 | V174: 374 | W174: 0.008340395165
A175: 25200 | B175: NORTH RIVER | C175: =_xlfn.IFNA(IF(VLOOKUP(A175,'Title IA 2021'!A:D,3,0)=0,0,$B$5),0) -> 10000 | D175: =IFERROR(VLOOKUP(A175,'Title IA 2021'!A:D,3,0)/'Title IA 2021'!$C$3,0) -> 7.517531466e-05 | E175: 1317.8 | G175: 10000 | H175: 10000 | J175: 0 | K175: 10000 | M175: 0 | N175: 10000 | Q175: 10000 | S175: 0 | T175: 10000 | U175: =IFERROR(VLOOKUP(A175,'SY 2020-21 Final'!$A$9:$T$350,20,0),0) -> 10000 | V175: 0 | W175: 0
A176: 34003 | B176: NORTH THURSTON | C176: =_xlfn.IFNA(IF(VLOOKUP(A176,'Title IA 2021'!A:D,3,0)=0,0,$B$5),0) -> 10000 | D176: =IFERROR(VLOOKUP(A176,'Title IA 2021'!A:D,3,0)/'Title IA 2021'!$C$3,0) -> 0.01004302196 | E176: 176055.1 | G176: 0 | H176: 169601 | J176: 0 | K176: 169592 | M176: 0 | N176: 169592 | Q176: 169592 | S176: 0 | T176: 169592 | U176: =IFERROR(VLOOKUP(A176,'SY 2020-21 Final'!$A$9:$T$350,20,0),0) -> 192472 | V176: -22880 | W176: -0.1188744337
A177: 33211 | B177: NORTHPORT | C177: =_xlfn.IFNA(IF(VLOOKUP(A177,'Title IA 2021'!A:D,3,0)=0,0,$B$5),0) -> 10000 | D177: =IFERROR(VLOOKUP(A177,'Title IA 2021'!A:D,3,0)/'Title IA 2021'!$C$3,0) -> 0.0003729175357 | E177: 6537.2 | G177: 10000 | H177: 10000 | J177: 0 | K177: 10000 | M177: 0 | N177: 10000 | Q177: 10000 | S177: 0 | T177: 10000 | U177: =IFERROR(VLOOKUP(A177,'SY 2020-21 Final'!$A$9:$T$350,20,0),0) -> 10000 | V177: 0 | W177: 0
A178: 17417 | B178: NORTHSHORE | C178: =_xlfn.IFNA(IF(VLOOKUP(A178,'Title IA 2021'!A:D,3,0)=0,0,$B$5),0) -> 10000 | D178: =IFERROR(VLOOKUP(A178,'Title IA 2021'!A:D,3,0)/'Title IA 2021'!$C$3,0) -> 0.00282747429 | E178: 49565.9 | G178: 0 | H178: 47748.8 | J178: 0 | K178: 47746 | M178: 0 | N178: 47746 | Q178: 47746 | S178: 0 | T178: 47746 | U178: =IFERROR(VLOOKUP(A178,'SY 2020-21 Final'!$A$9:$T$350,20,0),0) -> 49605 | V178: -1859 | W178: -0.03747606088
A179: 15201 | B179: OAK HARBOR | C179: =_xlfn.IFNA(IF(VLOOKUP(A179,'Title IA 2021'!A:D,3,0)=0,0,$B$5),0) -> 10000 | D179: =IFERROR(VLOOKUP(A179,'Title IA 2021'!A:D,3,0)/'Title IA 2021'!$C$3,0) -> 0.004014858186 | E179: 70380.8 | G179: 0 | H179: 67800.6 | J179: 0 | K179: 67797 | M179: 0 | N179: 67797 | Q179: 67797 | S179: 0 | T179: 67797 | U179: =IFERROR(VLOOKUP(A179,'SY 2020-21 Final'!$A$9:$T$350,20,0),0) -> 70432 | V179: -2635 | W179: -0.03741197183
A180: 38324 | B180: OAKESDALE | C180: =_xlfn.IFNA(IF(VLOOKUP(A180,'Title IA 2021'!A:D,3,0)=0,0,$B$5),0) -> 0 | D180: =IFERROR(VLOOKUP(A180,'Title IA 2021'!A:D,3,0)/'Title IA 2021'!$C$3,0) -> 0 | E180: 0 | G180: 0 | H180: 0 | J180: 0 | K180: 0 | M180: 0 | N180: 0 | Q180: 0 | S180: 0 | T180: 0 | U180: =IFERROR(VLOOKUP(A180,'SY 2020-21 Final'!$A$9:$T$350,20,0),0) -> 10000 | V180: -10000 | W180: -1
A181: 14400 | B181: OAKVILLE | C181: =_xlfn.IFNA(IF(VLOOKUP(A181,'Title IA 2021'!A:D,3,0)=0,0,$B$5),0) -> 10000 | D181: =IFERROR(VLOOKUP(A181,'Title IA 2021'!A:D,3,0)/'Title IA 2021'!$C$3,0) -> 0.0007320160153 | E181: 12832.3 | G181: 0 | H181: 12361.8 | J181: 0 | K181: 12361 | M181: 0 | N181: 12361 | Q181: 12361 | S181: 0 | T181: 12361 | U181: =IFERROR(VLOOKUP(A181,'SY 2020-21 Final'!$A$9:$T$350,20,0),0) -> 12851 | V181: -490 | W181: -0.03812932846
A182: 25101 | B182: OCEAN BEACH | C182: =_xlfn.IFNA(IF(VLOOKUP(A182,'Title IA 2021'!A:D,3,0)=0,0,$B$5),0) -> 10000 | D182: =IFERROR(VLOOKUP(A182,'Title IA 2021'!A:D,3,0)/'Title IA 2021'!$C$3,0) -> 0.001123103618 | E182: 19688.1 | G182: 0 | H182: 18966.3 | J182: 0 | K182: 18965 | M182: 0 | N182: 18965 | Q182: 18965 | S182: 0 | T182: 18965 | U182: =IFERROR(VLOOKUP(A182,'SY 2020-21 Final'!$A$9:$T$350,20,0),0) -> 19710 | V182: -745 | W182: -0.03779807204
A183: 14172 | B183: OCOSTA | C183: =_xlfn.IFNA(IF(VLOOKUP(A183,'Title IA 2021'!A:D,3,0)=0,0,$B$5),0) -> 10000 | D183: =IFERROR(VLOOKUP(A183,'Title IA 2021'!A:D,3,0)/'Title IA 2021'!$C$3,0) -> 0.001157128174 | E183: 20284.5 | G183: 0 | H183: 19540.8 | J183: 0 | K183: 19539 | M183: 0 | N183: 19539 | Q183: 19539 | S183: 0 | T183: 19539 | U183: =IFERROR(VLOOKUP(A183,'SY 2020-21 Final'!$A$9:$T$350,20,0),0) -> 20307 | V183: -768 | W183: -0.03781947112
A184: 22105 | B184: ODESSA | C184: =_xlfn.IFNA(IF(VLOOKUP(A184,'Title IA 2021'!A:D,3,0)=0,0,$B$5),0) -> 10000 | D184: =IFERROR(VLOOKUP(A184,'Title IA 2021'!A:D,3,0)/'Title IA 2021'!$C$3,0) -> 0.0002129456567 | E184: 3732.9 | G184: 10000 | H184: 10000 | J184: 0 | K184: 10000 | M184: 0 | N184: 10000 | Q184: 10000 | S184: 0 | T184: 10000 | U184: =IFERROR(VLOOKUP(A184,'SY 2020-21 Final'!$A$9:$T$350,20,0),0) -> 10000 | V184: 0 | W184: 0
A185: 24105 | B185: OKANOGAN | C185: =_xlfn.IFNA(IF(VLOOKUP(A185,'Title IA 2021'!A:D,3,0)=0,0,$B$5),0) -> 10000 | D185: =IFERROR(VLOOKUP(A185,'Title IA 2021'!A:D,3,0)/'Title IA 2021'!$C$3,0) -> 0.002311958278 | E185: 40528.8 | G185: 0 | H185: 39043 | J185: 0 | K185: 39041 | M185: 0 | N185: 39041 | Q185: 39041 | S185: 0 | T185: 39041 | U185: =IFERROR(VLOOKUP(A185,'SY 2020-21 Final'!$A$9:$T$350,20,0),0) -> 31196 | V185: 7845 | W185: 0.251474548
A186: 34111 | B186: OLYMPIA | C186: =_xlfn.IFNA(IF(VLOOKUP(A186,'Title IA 2021'!A:D,3,0)=0,0,$B$5),0) -> 10000 | D186: =IFERROR(VLOOKUP(A186,'Title IA 2021'!A:D,3,0)/'Title IA 2021'!$C$3,0) -> 0.006419338918 | E186: 112531.6 | G186: 0 | H186: 108406.2 | J186: 0 | K186: 108401 | M186: 0 | N186: 108401 | Q186: 108401 | S186: 0 | T186: 108401 | U186: =IFERROR(VLOOKUP(A186,'SY 2020-21 Final'!$A$9:$T$350,20,0),0) -> 112607 | V186: -4206 | W186: -0.03735114158
A187: 24019 | B187: OMAK | C187: =_xlfn.IFNA(IF(VLOOKUP(A187,'Title IA 2021'!A:D,3,0)=0,0,$B$5),0) -> 10000 | D187: =IFERROR(VLOOKUP(A187,'Title IA 2021'!A:D,3,0)/'Title IA 2021'!$C$3,0) -> 0.002742218112 | E187: 48071.3 | G187: 0 | H187: 46309 | J187: 0 | K187: 46306 | M187: 0 | N187: 46306 | Q187: 46306 | S187: 0 | T187: 46306 | U187: =IFERROR(VLOOKUP(A187,'SY 2020-21 Final'!$A$9:$T$350,20,0),0) -> 48110 | V187: -1804 | W187: -0.03749740179
A188: 21300 | B188: ONALASKA | C188: =_xlfn.IFNA(IF(VLOOKUP(A188,'Title IA 2021'!A:D,3,0)=0,0,$B$5),0) -> 10000 | D188: =IFERROR(VLOOKUP(A188,'Title IA 2021'!A:D,3,0)/'Title IA 2021'!$C$3,0) -> 0.000579354185 | E188: 10156.1 | G188: 0 | H188: 9783.7 | J188: 10000 | K188: 10000 | M188: 0 | N188: 10000 | Q188: 10000 | S188: 0 | T188: 10000 | U188: =IFERROR(VLOOKUP(A188,'SY 2020-21 Final'!$A$9:$T$350,20,0),0) -> 10463 | V188: -463 | W188: -0.04425117079
A189: 33030 | B189: ONION CREEK | C189: =_xlfn.IFNA(IF(VLOOKUP(A189,'Title IA 2021'!A:D,3,0)=0,0,$B$5),0) -> 10000 | D189: =IFERROR(VLOOKUP(A189,'Title IA 2021'!A:D,3,0)/'Title IA 2021'!$C$3,0) -> 0.0001387990016 | E189: 2433.1 | G189: 10000 | H189: 10000 | J189: 0 | K189: 10000 | M189: 0 | N189: 10000 | Q189: 10000 | S189: 0 | T189: 10000 | U189: =IFERROR(VLOOKUP(A189,'SY 2020-21 Final'!$A$9:$T$350,20,0),0) -> 10000 | V189: 0 | W189: 0
A190: 28137 | B190: ORCAS ISLAND | C190: =_xlfn.IFNA(IF(VLOOKUP(A190,'Title IA 2021'!A:D,3,0)=0,0,$B$5),0) -> 10000 | D190: =IFERROR(VLOOKUP(A190,'Title IA 2021'!A:D,3,0)/'Title IA 2021'!$C$3,0) -> 0.0004697034552 | E190: 8233.9 | G190: 10000 | H190: 10000 | J190: 0 | K190: 10000 | M190: 0 | N190: 10000 | Q190: 10000 | S190: 0 | T190: 10000 | U190: =IFERROR(VLOOKUP(A190,'SY 2020-21 Final'!$A$9:$T$350,20,0),0) -> 10000 | V190: 0 | W190: 0
A191: 32123 | B191: ORCHARD PRAIRIE | C191: =_xlfn.IFNA(IF(VLOOKUP(A191,'Title IA 2021'!A:D,3,0)=0,0,$B$5),0) -> 10000 | D191: =IFERROR(VLOOKUP(A191,'Title IA 2021'!A:D,3,0)/'Title IA 2021'!$C$3,0) -> 0.0001110427031 | E191: 1946.5 | G191: 10000 | H191: 10000 | J191: 0 | K191: 10000 | M191: 0 | N191: 10000 | Q191: 10000 | S191: 0 | T191: 10000 | U191: =IFERROR(VLOOKUP(A191,'SY 2020-21 Final'!$A$9:$T$350,20,0),0) -> 10000 | V191: 0 | W191: 0
A192: 10065 | B192: ORIENT | C192: =_xlfn.IFNA(IF(VLOOKUP(A192,'Title IA 2021'!A:D,3,0)=0,0,$B$5),0) -> 10000 | D192: =IFERROR(VLOOKUP(A192,'Title IA 2021'!A:D,3,0)/'Title IA 2021'!$C$3,0) -> 0.0001825586161 | E192: 3200.2 | G192: 10000 | H192: 10000 | J192: 0 | K192: 10000 | M192: 0 | N192: 10000 | Q192: 10000 | S192: 0 | T192: 10000 | U192: =IFERROR(VLOOKUP(A192,'SY 2020-21 Final'!$A$9:$T$350,20,0),0) -> 10000 | V192: 0 | W192: 0
A193: 09013 | B193: ORONDO | C193: =_xlfn.IFNA(IF(VLOOKUP(A193,'Title IA 2021'!A:D,3,0)=0,0,$B$5),0) -> 10000 | D193: =IFERROR(VLOOKUP(A193,'Title IA 2021'!A:D,3,0)/'Title IA 2021'!$C$3,0) -> 0.0004147949221 | E193: 7271.3 | G193: 10000 | H193: 10000 | J193: 0 | K193: 10000 | M193: 0 | N193: 10000 | Q193: 10000 | S193: 0 | T193: 10000 | U193: =IFERROR(VLOOKUP(A193,'SY 2020-21 Final'!$A$9:$T$350,20,0),0) -> 10000 | V193: 0 | W193: 0
A194: 24410 | B194: OROVILLE | C194: =_xlfn.IFNA(IF(VLOOKUP(A194,'Title IA 2021'!A:D,3,0)=0,0,$B$5),0) -> 10000 | D194: =IFERROR(VLOOKUP(A194,'Title IA 2021'!A:D,3,0)/'Title IA 2021'!$C$3,0) -> 0.001952023739 | E194: 34219.1 | G194: 0 | H194: 32964.6 | J194: 0 | K194: 32963 | M194: 0 | N194: 32963 | Q194: 32963 | S194: 0 | T194: 32963 | U194: =IFERROR(VLOOKUP(A194,'SY 2020-21 Final'!$A$9:$T$350,20,0),0) -> 27260 | V194: 5703 | W194: 0.2092076302
A195: 27344 | B195: ORTING | C195: =_xlfn.IFNA(IF(VLOOKUP(A195,'Title IA 2021'!A:D,3,0)=0,0,$B$5),0) -> 10000 | D195: =IFERROR(VLOOKUP(A195,'Title IA 2021'!A:D,3,0)/'Title IA 2021'!$C$3,0) -> 0.001593279819 | E195: 27930.3 | G195: 0 | H195: 26906.3 | J195: 0 | K195: 26905 | M195: 0 | N195: 26905 | Q195: 26905 | S195: 0 | T195: 26905 | U195: =IFERROR(VLOOKUP(A195,'SY 2020-21 Final'!$A$9:$T$350,20,0),0) -> 29732 | V195: -2827 | W195: -0.09508273914
A196: 01147 | B196: OTHELLO | C196: =_xlfn.IFNA(IF(VLOOKUP(A196,'Title IA 2021'!A:D,3,0)=0,0,$B$5),0) -> 10000 | D196: =IFERROR(VLOOKUP(A196,'Title IA 2021'!A:D,3,0)/'Title IA 2021'!$C$3,0) -> 0.006091170261 | E196: 106778.8 | G196: 0 | H196: 102864.3 | J196: 0 | K196: 102859 | M196: 0 | N196: 102859 | Q196: 102859 | S196: 0 | T196: 102859 | U196: =IFERROR(VLOOKUP(A196,'SY 2020-21 Final'!$A$9:$T$350,20,0),0) -> 106851 | V196: -3992 | W196: -0.0373604365
A197: 09102 | B197: PALISADES | C197: =_xlfn.IFNA(IF(VLOOKUP(A197,'Title IA 2021'!A:D,3,0)=0,0,$B$5),0) -> 10000 | D197: =IFERROR(VLOOKUP(A197,'Title IA 2021'!A:D,3,0)/'Title IA 2021'!$C$3,0) -> 1.18055097e-05 | E197: 206.9 | G197: 10000 | H197: 10000 | J197: 0 | K197: 10000 | M197: 0 | N197: 10000 | Q197: 10000 | S197: 0 | T197: 10000 | U197: =IFERROR(VLOOKUP(A197,'SY 2020-21 Final'!$A$9:$T$350,20,0),0) -> 10000 | V197: 0 | W197: 0
A198: 38301 | B198: PALOUSE | C198: =_xlfn.IFNA(IF(VLOOKUP(A198,'Title IA 2021'!A:D,3,0)=0,0,$B$5),0) -> 10000 | D198: =IFERROR(VLOOKUP(A198,'Title IA 2021'!A:D,3,0)/'Title IA 2021'!$C$3,0) -> 0.0001261880733 | E198: 2212 | G198: 10000 | H198: 10000 | J198: 0 | K198: 10000 | M198: 0 | N198: 10000 | Q198: 10000 | S198: 0 | T198: 10000 | U198: =IFERROR(VLOOKUP(A198,'SY 2020-21 Final'!$A$9:$T$350,20,0),0) -> 10000 | V198: 0 | W198: 0
A199: 11001 | B199: PASCO | C199: =_xlfn.IFNA(IF(VLOOKUP(A199,'Title IA 2021'!A:D,3,0)=0,0,$B$5),0) -> 10000 | D199: =IFERROR(VLOOKUP(A199,'Title IA 2021'!A:D,3,0)/'Title IA 2021'!$C$3,0) -> 0.02200485289 | E199: 385747.3 | G199: 0 | H199: 371606.1 | J199: 0 | K199: 371588 | M199: 0 | N199: 371588 | Q199: 371588 | S199: 0 | T199: 371588 | U199: =IFERROR(VLOOKUP(A199,'SY 2020-21 Final'!$A$9:$T$350,20,0),0) -> 385981 | V199: -14393 | W199: -0.03728940026
A200: 24122 | B200: PATEROS | C200: =_xlfn.IFNA(IF(VLOOKUP(A200,'Title IA 2021'!A:D,3,0)=0,0,$B$5),0) -> 10000 | D200: =IFERROR(VLOOKUP(A200,'Title IA 2021'!A:D,3,0)/'Title IA 2021'!$C$3,0) -> 0.0003802100752 | E200: 6665.1 | G200: 10000 | H200: 10000 | J200: 0 | K200: 10000 | M200: 0 | N200: 10000 | Q200: 10000 | S200: 0 | T200: 10000 | U200: =IFERROR(VLOOKUP(A200,'SY 2020-21 Final'!$A$9:$T$350,20,0),0) -> 10000 | V200: 0 | W200: 0
A201: 03050 | B201: PATERSON | C201: =_xlfn.IFNA(IF(VLOOKUP(A201,'Title IA 2021'!A:D,3,0)=0,0,$B$5),0) -> 10000 | D201: =IFERROR(VLOOKUP(A201,'Title IA 2021'!A:D,3,0)/'Title IA 2021'!$C$3,0) -> 6.646016086e-05 | E201: =IF(D201=0,0,ROUNDDOWN(D201*$C$1,1)+$C$1*$D$5) -> 1165 | G201: =IF(AND($C201<>0,E201<$B$5),$B$5,0) -> 10000 | H201: =ROUNDDOWN(IF(G201=0,IF(E201=$B$5,$B$5,E201*(1-$G$5)),G201),1) -> 10000 | J201: =IF(AND($C201<>0,H201<10000),10000,0) -> 0 | K201: =ROUNDDOWN(IF(J201=0,IF(H201=$B$5,$B$5,H201*(1-$J$5)),J201),0) -> 10000 | M201: =IF(AND(C201<>0,K201<10000),10000,0) -> 0 | N201: =IF(M201=0,IF(K201=$B$5,$B$5,K201*(1-$M$5)),M201) -> 10000 | Q201: 10000 | S201: =ROUND(IF(R201>0,-(0.9-R201)*Q201,0),0) -> 0 | T201: =Q201+S201 -> 10000 | U201: =IFERROR(VLOOKUP(A201,'SY 2020-21 Final'!$A$9:$T$350,20,0),0) -> 10000 | V201: =T201-U201 -> 0 | W201: =IFERROR(V201/U201,0) -> 0
A202: 21301 | B202: PE ELL | C202: =_xlfn.IFNA(IF(VLOOKUP(A202,'Title IA 2021'!A:D,3,0)=0,0,$B$5),0) -> 10000 | D202: =IFERROR(VLOOKUP(A202,'Title IA 2021'!A:D,3,0)/'Title IA 2021'!$C$3,0) -> 0.0001693830195 | E202: 2969.3 | G202: 10000 | H202: 10000 | J202: 0 | K202: 10000 | M202: 0 | N202: 10000 | Q202: 10000 | S202: 0 | T202: 10000 | U202: =IFERROR(VLOOKUP(A202,'SY 2020-21 Final'!$A$9:$T$350,20,0),0) -> 10000 | V202: 0 | W202: 0
... 121 more rows

Sheet SY 2021-22 Prelim (hidden)
A1: Preliminary Title IV Allocations SY 2021-22 | C1: 16870345
G2: First Reallocation | J2: Second Reallocation | M2: Third Reallocation | P2: Adjust until all eligible LEAs meet min.
B4: Min. Allocation | C4: Sufficient for $10K each LEA? | D4: Adjust to 100% | G4: Precentage to adjust other LEAs | H4: Allocation Pool | J4: Precentage to adjust other LEAs | K4: Allocation Pool | M4: Precentage to adjust other LEAs | N4: Allocation Pool
B5: 10000 | C5: Yes | D5: -1.495249865e-18 | G5: 0.03945139889 | H5: 23.4 | J5: 2.625993678e-05 | K5: 77 | M5: 0 | N5: 77 | Q5: adjust rounding
A6: CoDistID | B6: District | C6: Minimum Allocation | D6: % of Title IA Received | E6: Initial Formula Allocation | G6: Adjusted allocation for LEAs below $10K | H6: Adjusted Allocation for All Other LEAs | J6: Adjusted allocation for LEAs below $10K | K6: Adjusted Allocation for All Other LEAs | M6: Adjusted allocation for LEAs below $10K | N6: Adjusted Allocation for All Other LEAs | Q6: Subtotal After Re-allocation | R6: MOE | S6: MOE Deduction | T6: Final Allocation | U6: PY Allocation | V6: Difference | W6: % Change
B7: State Totals | C7: 2970000 | D7: 1 | E7: 16870330.5 | G7: 1190000 | H7: 16870321.6 | J7: 20000 | K7: 16870268 | M7: 0 | N7: 16870268 | Q7: 16870349 | R7: 0 | S7: 0 | T7: 16870349 | U7: 18407083 | V7: -1536734 | W7: -0.06253446749
A9: 14005 | B9: ABERDEEN | C9: 10000 | D9: 0.007134042813 | E9: 120353.7 | G9: 0 | H9: 115605.5 | J9: 0 | K9: 115602 | M9: 0 | N9: 115602 | Q9: 115602 | S9: 0 | T9: 115602 | U9: 125144 | V9: -9542 | W9: -0.07624816212
A10: 21226 | B10: ADNA | C10: 10000 | D10: 0.0005285996855 | E10: 8917.6 | G10: 10000 | H10: 10000 | J10: 0 | K10: 10000 | M10: 0 | N10: 10000 | Q10: 10000 | S10: 0 | T10: 10000 | U10: 10815 | V10: -815 | W10: -0.07535829866
A11: 22017 | B11: ALMIRA | C11: 10000 | D11: 6.342670953e-06 | E11: 107 | G11: 10000 | H11: 10000 | J11: 0 | K11: 10000 | M11: 0 | N11: 10000 | Q11: 10000 | S11: 0 | T11: 10000 | U11: 10000 | V11: 0 | W11: 0
A12: 29103 | B12: ANACORTES | C12: 10000 | D12: 0.001313952792 | E12: 22166.8 | G12: 0 | H12: 21292.2 | J12: 0 | K12: 21291 | M12: 0 | N12: 21291 | Q12: 21291 | S12: 0 | T12: 21291 | U12: 23058 | V12: -1767 | W12: -0.07663283893
A13: 31016 | B13: ARLINGTON | C13: 10000 | D13: 0.002230431538 | E13: 37628.1 | G13: 0 | H13: 36143.6 | J13: 0 | K13: 36142 | M13: 0 | N13: 36142 | Q13: 36142 | S13: 0 | T13: 36142 | U13: 39133 | V13: -2991 | W13: -0.07643165615
A14: 02420 | B14: ASOTIN-ANATONE | C14: 10000 | D14: 0.0004481103594 | E14: 7559.7 | G14: 10000 | H14: 10000 | J14: 0 | K14: 10000 | M14: 0 | N14: 10000 | Q14: 10000 | S14: 0 | T14: 10000 | U14: 10000 | V14: 0 | W14: 0
A15: 17408 | B15: AUBURN | C15: 10000 | D15: 0.01998276649 | E15: 337116.1 | G15: 0 | H15: 323816.3 | J15: 0 | K15: 323807 | M15: 0 | N15: 323807 | Q15: 323807 | S15: 0 | T15: 323807 | U15: 350513 | V15: -26706 | W15: -0.07619118264
A16: 18303 | B16: BAINBRIDGE ISLAND | C16: 10000 | D16: 0.0004153946088 | E16: 7007.8 | G16: 10000 | H16: 10000 | J16: 0 | K16: 10000 | M16: 0 | N16: 10000 | Q16: 10000 | S16: 0 | T16: 10000 | U16: 10000 | V16: 0 | W16: 0
A17: 06119 | B17: BATTLE GROUND | C17: 10000 | D17: 0.007383521203 | E17: 124562.5 | G17: 0 | H17: 119648.3 | J17: 0 | K17: 119645 | M17: 0 | N17: 119645 | Q17: 119645 | S17: 0 | T17: 119645 | U17: 137839 | V17: -18194 | W17: -0.1319945734
A18: 17405 | B18: BELLEVUE | C18: 10000 | D18: 0.008532297537 | E18: 143942.8 | G18: 0 | H18: 138264 | J18: 0 | K18: 138260 | M18: 0 | N18: 138260 | Q18: 138260 | S18: 0 | T18: 138260 | U18: 149669 | V18: -11409 | W18: -0.07622821025
A19: 37501 | B19: BELLINGHAM | C19: 10000 | D19: 0.009289837441 | E19: 156722.7 | G19: 0 | H19: 150539.7 | J19: 0 | K19: 150535 | M19: 0 | N19: 150535 | Q19: 150535 | S19: 0 | T19: 150535 | U19: 151057 | V19: -522 | W19: -0.003455649192
A20: 01122 | B20: BENGE | C20: 0 | D20: 0 | E20: 0 | G20: 0 | H20: 0 | J20: 0 | K20: 0 | M20: 0 | N20: 0 | Q20: 0 | S20: 0 | T20: 0 | U20: 0 | V20: 0 | W20: 0
A21: 27403 | B21: BETHEL | C21: 10000 | D21: 0.01532949593 | E21: 258613.8 | G21: 0 | H21: 248411.1 | J21: 0 | K21: 248404 | M21: 0 | N21: 248404 | Q21: 248404 | S21: 0 | T21: 248404 | U21: 270671 | V21: -22267 | W21: -0.08226592431
A22: 20203 | B22: BICKLETON | C22: 10000 | D22: 6.434593721e-06 | E22: 108.5 | G22: 10000 | H22: 10000 | J22: 0 | K22: 10000 | M22: 0 | N22: 10000 | Q22: 10000 | S22: 0 | T22: 10000 | U22: 10000 | V22: 0 | W22: 0
A23: 37503 | B23: BLAINE | C23: 10000 | D23: 0.002396824879 | E23: 40435.2 | G23: 0 | H23: 38839.9 | J23: 0 | K23: 38838 | M23: 0 | N23: 38838 | Q23: 38838 | S23: 0 | T23: 38838 | U23: 42052 | V23: -3214 | W23: -0.07642918292
A24: 21234 | B24: BOISTFORT | C24: 10000 | D24: 0.0001455925318 | E24: 2456.1 | G24: 10000 | H24: 10000 | J24: 0 | K24: 10000 | M24: 0 | N24: 10000 | Q24: 10000 | S24: 0 | T24: 10000 | U24: 10000 | V24: 0 | W24: 0
A25: 18100 | B25: BREMERTON | C25: 10000 | D25: 0.005685576371 | E25: 95917.6 | G25: 0 | H25: 92133.5 | J25: 0 | K25: 92131 | M25: 0 | N25: 92131 | Q25: 92131 | S25: 0 | T25: 92131 | U25: 98778 | V25: -6647 | W25: -0.06729231205
A26: 24111 | B26: BREWSTER | C26: 10000 | D26: 0.001318071808 | E26: 22236.3 | G26: 0 | H26: 21359 | J26: 0 | K26: 21358 | M26: 0 | N26: 21358 | Q26: 21358 | S26: 0 | T26: 21358 | U26: 25331 | V26: -3973 | W26: -0.1568433935
A27: 09075 | B27: BRIDGEPORT | C27: 10000 | D27: 0.001341271363 | E27: 22627.7 | G27: 0 | H27: 21735 | J27: 0 | K27: 21734 | M27: 0 | N27: 21734 | Q27: 21734 | S27: 0 | T27: 21734 | U27: 23682 | V27: -1948 | W27: -0.08225656617
A28: 16046 | B28: BRINNON | C28: 10000 | D28: 0.0001971655816 | E28: 3326.2 | G28: 10000 | H28: 10000 | J28: 0 | K28: 10000 | M28: 0 | N28: 10000 | Q28: 10000 | S28: 0 | T28: 10000 | U28: 10000 | V28: 0 | W28: 0
A29: 29100 | B29: BURLINGTON-EDISON | C29: 10000 | D29: 0.003689123294 | E29: 62236.7 | G29: 0 | H29: 59781.3 | J29: 0 | K29: 59779 | M29: 0 | N29: 59779 | Q29: 59779 | S29: 0 | T29: 59779 | U29: 69151 | V29: -9372 | W29: -0.1355294934
A30: 06117 | B30: CAMAS | C30: 10000 | D30: 0.0009052685455 | E30: 15272.1 | G30: 0 | H30: 14669.5 | J30: 0 | K30: 14669 | M30: 0 | N30: 14669 | Q30: 14669 | S30: 0 | T30: 14669 | U30: 30426 | V30: -15757 | W30: -0.5178794452
A31: 05401 | B31: CAPE FLATTERY | C31: 10000 | D31: 0.0005279956216 | E31: 8907.4 | G31: 10000 | H31: 10000 | J31: 0 | K31: 10000 | M31: 0 | N31: 10000 | Q31: 10000 | S31: 0 | T31: 10000 | U31: 10803 | V31: -803 | W31: -0.0743312043
A32: 27019 | B32: CARBONADO | C32: 10000 | D32: 8.241970419e-05 | E32: 1390.4 | G32: 10000 | H32: 10000 | J32: 0 | K32: 10000 | M32: 0 | N32: 10000 | Q32: 10000 | S32: 0 | T32: 10000 | U32: 10000 | V32: 0 | W32: 0
A33: 04228 | B33: CASCADE | C33: 10000 | D33: 0.002225441445 | E33: 37543.9 | G33: 0 | H33: 36062.7 | J33: 0 | K33: 36061 | M33: 0 | N33: 36061 | Q33: 36061 | S33: 0 | T33: 36061 | U33: 41651 | V33: -5590 | W33: -0.1342104631
A34: 04222 | B34: CASHMERE | C34: 10000 | D34: 0.001691365789 | E34: 28533.9 | G34: 0 | H34: 27408.1 | J34: 0 | K34: 27407 | M34: 0 | N34: 27407 | Q34: 27407 | S34: 0 | T34: 27407 | U34: 29678 | V34: -2271 | W34: -0.07652132893
A35: 08401 | B35: CASTLE ROCK | C35: 10000 | D35: 0.001023341152 | E35: 17264.1 | G35: 0 | H35: 16583 | J35: 0 | K35: 16582 | M35: 0 | N35: 16582 | Q35: 16582 | S35: 0 | T35: 16582 | U35: 17960 | V35: -1378 | W35: -0.07672605791
A36: 18901 | B36: CATALYST BREMERTON CHARTER | C36: 10000 | D36: 0.0002535492562 | E36: 4277.4 | G36: 10000 | H36: 10000 | J36: 0 | K36: 10000 | M36: 0 | N36: 10000 | Q36: 10000 | S36: 0 | T36: 10000 | U36: 0 | V36: 10000 | W36: 0
A37: 20215 | B37: CENTERVILLE | C37: 10000 | D37: 0.0001194514476 | E37: 2015.1 | G37: 10000 | H37: 10000 | J37: 0 | K37: 10000 | M37: 0 | N37: 10000 | Q37: 10000 | S37: 0 | T37: 10000 | U37: 10000 | V37: 0 | W37: 0
A38: 18401 | B38: CENTRAL KITSAP | C38: 10000 | D38: 0.005520526853 | E38: 93133.1 | G38: 0 | H38: 89458.8 | J38: 0 | K38: 89456 | M38: 0 | N38: 89456 | Q38: 89456 | S38: 0 | T38: 89456 | U38: 84445 | V38: 5011 | W38: 0.05934039908
A39: 32356 | B39: CENTRAL VALLEY | C39: 10000 | D39: 0.01279168342 | E39: 215800.1 | G39: 0 | H39: 207286.4 | J39: 0 | K39: 207280 | M39: 0 | N39: 207280 | Q39: 207280 | S39: 0 | T39: 207280 | U39: 224380 | V39: -17100 | W39: -0.07621000089
A40: 21401 | B40: CENTRALIA | C40: 10000 | D40: 0.005683427129 | E40: 95881.3 | G40: 0 | H40: 92098.6 | J40: 0 | K40: 92096 | M40: 0 | N40: 92096 | Q40: 92096 | S40: 0 | T40: 92096 | U40: 100445 | V40: -8349 | W40: -0.08312011549
A41: 21302 | B41: CHEHALIS | C41: 10000 | D41: 0.002354321542 | E41: 39718.2 | G41: 0 | H41: 38151.2 | J41: 0 | K41: 38150 | M41: 0 | N41: 38150 | Q41: 38150 | S41: 0 | T41: 38150 | U41: 43319 | V41: -5169 | W41: -0.1193240841
A42: 32360 | B42: CHENEY | C42: 10000 | D42: 0.003585430035 | E42: 60487.4 | G42: 0 | H42: 58101 | J42: 0 | K42: 58099 | M42: 0 | N42: 58099 | Q42: 58099 | S42: 0 | T42: 58099 | U42: 62900 | V42: -4801 | W42: -0.07632750397
A43: 33036 | B43: CHEWELAH | C43: 10000 | D43: 0.001531323874 | E43: 25833.9 | G43: 0 | H43: 24814.7 | J43: 0 | K43: 24814 | M43: 0 | N43: 24814 | Q43: 24814 | S43: 0 | T43: 24814 | U43: 26870 | V43: -2056 | W43: -0.07651656122
A44: 16049 | B44: CHIMACUM | C44: 10000 | D44: 0.0007191599597 | E44: 12132.4 | G44: 0 | H44: 11653.7 | J44: 0 | K44: 11653 | M44: 0 | N44: 11653 | Q44: 11653 | S44: 0 | T44: 11653 | U44: 12625 | V44: -972 | W44: -0.07699009901
A45: 02250 | B45: CLARKSTON | C45: 10000 | D45: 0.003275842909 | E45: 55264.6 | G45: 0 | H45: 53084.3 | J45: 0 | K45: 53082 | M45: 0 | N45: 53082 | Q45: 53082 | S45: 0 | T45: 53082 | U45: 57470 | V45: -4388 | W45: -0.07635287976
A46: 19404 | B46: CLE ELUM-ROSLYN | C46: 10000 | D46: 0.0008692173116 | E46: 14663.9 | G46: 0 | H46: 14085.3 | J46: 0 | K46: 14084 | M46: 0 | N46: 14084 | Q46: 14084 | S46: 0 | T46: 14084 | U46: 14093 | V46: -9 | W46: -0.0006386149152
A47: 27400 | B47: CLOVER PARK | C47: 10000 | D47: 0.0172315312 | E47: 290701.8 | G47: 0 | H47: 279233.2 | J47: 0 | K47: 279225 | M47: 0 | N47: 279225 | Q47: 279225 | S47: 0 | T47: 279225 | U47: 315964 | V47: -36739 | W47: -0.1162759048
A48: 38300 | B48: COLFAX | C48: 10000 | D48: 0.0004172505732 | E48: 7039.1 | G48: 10000 | H48: 10000 | J48: 0 | K48: 10000 | M48: 0 | N48: 10000 | Q48: 10000 | S48: 0 | T48: 10000 | U48: 10000 | V48: 0 | W48: 0
A49: 36250 | B49: COLLEGE PLACE | C49: 10000 | D49: 0.001664222309 | E49: 28076 | G49: 0 | H49: 26968.3 | J49: 0 | K49: 26967 | M49: 0 | N49: 26967 | Q49: 26967 | S49: 0 | T49: 26967 | U49: 32185 | V49: -5218 | W49: -0.1621252136
A50: 38306 | B50: COLTON | C50: 10000 | D50: 0.0001739704033 | E50: 2934.9 | G50: 10000 | H50: 10000 | J50: 0 | K50: 10000 | M50: 0 | N50: 10000 | Q50: 10000 | S50: 0 | T50: 10000 | U50: 10000 | V50: 0 | W50: 0
A51: 33206 | B51: COLUMBIA (STEV) | C51: 10000 | D51: 0.000300451754 | E51: 5068.7 | G51: 10000 | H51: 10000 | J51: 0 | K51: 10000 | M51: 0 | N51: 10000 | Q51: 10000 | S51: 0 | T51: 10000 | U51: 10000 | V51: 0 | W51: 0
A52: 36400 | B52: COLUMBIA (WALLA) | C52: 10000 | D52: 0.001023678202 | E52: 17269.8 | G52: 0 | H52: 16588.4 | J52: 0 | K52: 16587 | M52: 0 | N52: 16587 | Q52: 16587 | S52: 0 | T52: 16587 | U52: 18101 | V52: -1514 | W52: -0.08364178775
A53: 33115 | B53: COLVILLE | C53: 10000 | D53: 0.002698318424 | E53: 45521.5 | G53: 0 | H53: 43725.6 | J53: 0 | K53: 43724 | M53: 0 | N53: 43724 | Q53: 43724 | S53: 0 | T53: 43724 | U53: 47811 | V53: -4087 | W53: -0.08548242036
A54: 29011 | B54: CONCRETE | C54: 10000 | D54: 0.0006009691671 | E54: 10138.5 | G54: 0 | H54: 9738.5 | J54: 10000 | K54: 10000 | M54: 0 | N54: 10000 | Q54: 10000 | S54: 0 | T54: 10000 | U54: 12295 | V54: -2295 | W54: -0.1866612444
A55: 29317 | B55: CONWAY | C55: 10000 | D55: 0.000181424902 | E55: 3060.7 | G55: 10000 | H55: 10000 | J55: 0 | K55: 10000 | M55: 0 | N55: 10000 | Q55: 10000 | S55: 0 | T55: 10000 | U55: 10000 | V55: 0 | W55: 0
A56: 14099 | B56: COSMOPOLIS | C56: 10000 | D56: 0.0002165787946 | E56: 3653.7 | G56: 10000 | H56: 10000 | J56: 0 | K56: 10000 | M56: 0 | N56: 10000 | Q56: 10000 | S56: 0 | T56: 10000 | U56: 10000 | V56: 0 | W56: 0
A57: 13151 | B57: COULEE-HARTLINE | C57: 10000 | D57: 0.0003359558286 | E57: 5667.6 | G57: 10000 | H57: 10000 | J57: 0 | K57: 10000 | M57: 0 | N57: 10000 | Q57: 10000 | S57: 0 | T57: 10000 | U57: 10000 | V57: 0 | W57: 0
A58: 15204 | B58: COUPEVILLE | C58: 10000 | D58: 0.0009858716808 | E58: 16631.9 | G58: 0 | H58: 15975.7 | J58: 0 | K58: 15975 | M58: 0 | N58: 15975 | Q58: 15975 | S58: 0 | T58: 15975 | U58: 18457 | V58: -2482 | W58: -0.134474725
A59: 05313 | B59: CRESCENT | C59: 10000 | D59: 0.0004319932342 | E59: 7287.8 | G59: 10000 | H59: 10000 | J59: 0 | K59: 10000 | M59: 0 | N59: 10000 | Q59: 10000 | S59: 0 | T59: 10000 | U59: 10000 | V59: 0 | W59: 0
A60: 22073 | B60: CRESTON | C60: 10000 | D60: 6.138689955e-05 | E60: 1035.6 | G60: 10000 | H60: 10000 | J60: 0 | K60: 10000 | M60: 0 | N60: 10000 | Q60: 10000 | S60: 0 | T60: 10000 | U60: 10000 | V60: 0 | W60: 0
A61: 10050 | B61: CURLEW | C61: 10000 | D61: 0.0002833059692 | E61: 4779.4 | G61: 10000 | H61: 10000 | J61: 0 | K61: 10000 | M61: 0 | N61: 10000 | Q61: 10000 | S61: 0 | T61: 10000 | U61: 10000 | V61: 0 | W61: 0
A62: 26059 | B62: CUSICK | C62: 10000 | D62: 0.0005919213404 | E62: 9985.9 | G62: 10000 | H62: 10000 | J62: 0 | K62: 10000 | M62: 0 | N62: 10000 | Q62: 10000 | S62: 0 | T62: 10000 | U62: 10393 | V62: -393 | W62: -0.03781391321
A63: 19007 | B63: DAMMAN | C63: 0 | D63: 0 | E63: 0 | G63: 0 | H63: 0 | J63: 0 | K63: 0 | M63: 0 | N63: 0 | Q63: 0 | S63: 0 | T63: 0 | U63: 0 | V63: 0 | W63: 0
A64: 31330 | B64: DARRINGTON | C64: 10000 | D64: 0.0006822901754 | E64: 11510.4 | G64: 0 | H64: 11056.2 | J64: 0 | K64: 11055 | M64: 0 | N64: 11055 | Q64: 11055 | S64: 0 | T64: 11055 | U64: 12778 | V64: -1723 | W64: -0.1348411332
A65: 22207 | B65: DAVENPORT | C65: 10000 | D65: 0.0006185920748 | E65: 10435.8 | G65: 0 | H65: 10024 | J65: 0 | K65: 10023 | M65: 0 | N65: 10023 | Q65: 10023 | S65: 0 | T65: 10023 | U65: 10861 | V65: -838 | W65: -0.07715679956
A66: 07002 | B66: DAYTON | C66: 10000 | D66: 0.0006259765371 | E66: 10560.4 | G66: 0 | H66: 10143.7 | J66: 0 | K66: 10143 | M66: 0 | N66: 10143 | Q66: 10143 | S66: 0 | T66: 10143 | U66: 11179 | V66: -1036 | W66: -0.09267376331
A67: 32414 | B67: DEER PARK | C67: 10000 | D67: 0.002177645983 | E67: 36737.6 | G67: 0 | H67: 35288.2 | J67: 0 | K67: 35287 | M67: 0 | N67: 35287 | Q67: 35287 | S67: 0 | T67: 35287 | U67: 40775 | V67: -5488 | W67: -0.1345922747
A68: 27343 | B68: DIERINGER | C68: 10000 | D68: 0.0004550352079 | E68: 7676.6 | G68: 10000 | H68: 10000 | J68: 0 | K68: 10000 | M68: 0 | N68: 10000 | Q68: 10000 | S68: 0 | T68: 10000 | U68: 10000 | V68: 0 | W68: 0
A69: 36101 | B69: DIXIE | C69: 10000 | D69: 9.963114808e-05 | E69: 1680.8 | G69: 10000 | H69: 10000 | J69: 0 | K69: 10000 | M69: 0 | N69: 10000 | Q69: 10000 | S69: 0 | T69: 10000 | U69: 10000 | V69: 0 | W69: 0
A70: 32361 | B70: EAST VALLEY (SPK) | C70: 10000 | D70: 0.00479652125 | E70: 80918.9 | G70: 0 | H70: 77726.5 | J70: 0 | K70: 77724 | M70: 0 | N70: 77724 | Q70: 77724 | S70: 0 | T70: 77724 | U70: 84143 | V70: -6419 | W70: -0.07628679748
A71: 39090 | B71: EAST VALLEY (YAK) | C71: 10000 | D71: 0.002647069293 | E71: 44656.9 | G71: 0 | H71: 42895.1 | J71: 0 | K71: 42893 | M71: 0 | N71: 42893 | Q71: 42893 | S71: 0 | T71: 42893 | U71: 46441 | V71: -3548 | W71: -0.07639801038
A72: 09206 | B72: EASTMONT | C72: 10000 | D72: 0.006149142887 | E72: 103738.1 | G72: 0 | H72: 99645.4 | J72: 0 | K72: 99642 | M72: 0 | N72: 99642 | Q72: 99642 | S72: 0 | T72: 99642 | U72: 114163 | V72: -14521 | W72: -0.127195326
A73: 19028 | B73: EASTON | C73: 10000 | D73: 7.184858594e-05 | E73: 1212.1 | G73: 10000 | H73: 10000 | J73: 0 | K73: 10000 | M73: 0 | N73: 10000 | Q73: 10000 | S73: 0 | T73: 10000 | U73: 10000 | V73: 0 | W73: 0
A74: 27404 | B74: EATONVILLE | C74: 10000 | D74: 0.0007961868615 | E74: 13431.9 | G74: 0 | H74: 12901.9 | J74: 0 | K74: 12901 | M74: 0 | N74: 12901 | Q74: 12901 | S74: 0 | T74: 12901 | U74: 13976 | V74: -1075 | W74: -0.07691757298
A75: 31015 | B75: EDMONDS | C75: 10000 | D75: 0.01211147245 | E75: 204324.7 | G75: 0 | H75: 196263.8 | J75: 0 | K75: 196258 | M75: 0 | N75: 196258 | Q75: 196258 | S75: 0 | T75: 196258 | U75: 212449 | V75: -16191 | W75: -0.07621123187
A76: 19401 | B76: ELLENSBURG | C76: 10000 | D76: 0.002999483674 | E76: 50602.3 | G76: 0 | H76: 48605.9 | J76: 0 | K76: 48604 | M76: 0 | N76: 48604 | Q76: 48604 | S76: 0 | T76: 48604 | U76: 55938 | V76: -7334 | W76: -0.1311094426
A77: 14068 | B77: ELMA | C77: 10000 | D77: 0.00185543042 | E77: 31301.7 | G77: 0 | H77: 30066.8 | J77: 0 | K77: 30066 | M77: 0 | N77: 30066 | Q77: 30066 | S77: 0 | T77: 30066 | U77: 32799 | V77: -2733 | W77: -0.08332571115
A78: 38308 | B78: ENDICOTT | C78: 10000 | D78: 9.344605901e-05 | E78: 1576.4 | G78: 10000 | H78: 10000 | J78: 0 | K78: 10000 | M78: 0 | N78: 10000 | Q78: 10000 | S78: 0 | T78: 10000 | U78: 10000 | V78: 0 | W78: 0
A79: 04127 | B79: ENTIAT | C79: 10000 | D79: 0.0007412345557 | E79: 12504.8 | G79: 0 | H79: 12011.4 | J79: 0 | K79: 12011 | M79: 0 | N79: 12011 | Q79: 12011 | S79: 0 | T79: 12011 | U79: 13109 | V79: -1098 | W79: -0.08375924937
A80: 17216 | B80: ENUMCLAW | C80: 10000 | D80: 0.002365768115 | E80: 39911.3 | G80: 0 | H80: 38336.7 | J80: 0 | K80: 38335 | M80: 0 | N80: 38335 | Q80: 38335 | S80: 0 | T80: 38335 | U80: 44306 | V80: -5971 | W80: -0.1347673001
A81: 13165 | B81: EPHRATA | C81: 10000 | D81: 0.002432858604 | E81: 41043.1 | G81: 0 | H81: 39423.8 | J81: 0 | K81: 39422 | M81: 0 | N81: 39422 | Q81: 39422 | S81: 0 | T81: 39422 | U81: 42684 | V81: -3262 | W81: -0.07642207853
A82: 21036 | B82: EVALINE | C82: 10000 | D82: 0.0003949133407 | E82: 6662.3 | G82: 10000 | H82: 10000 | J82: 0 | K82: 10000 | M82: 0 | N82: 10000 | Q82: 10000 | S82: 0 | T82: 10000 | U82: 10000 | V82: 0 | W82: 0
A83: 31002 | B83: EVERETT | C83: 10000 | D83: 0.01370943157 | E83: 231282.8 | G83: 0 | H83: 222158.3 | J83: 0 | K83: 222152 | M83: 0 | N83: 222152 | Q83: 222152 | S83: 0 | T83: 222152 | U83: 240477 | V83: -18325 | W83: -0.07620271377
A84: 06114 | B84: EVERGREEN (CLARK) | C84: 10000 | D84: 0.0244173134 | E84: 411928.5 | G84: 0 | H84: 395677.3 | J84: 0 | K84: 395666 | M84: 0 | N84: 395666 | Q84: 395666 | S84: 0 | T84: 395666 | U84: 451118 | V84: -55452 | W84: -0.1229212756
A85: 33205 | B85: EVERGREEN (STEV) | C85: 10000 | D85: 1.18405279e-05 | E85: 199.7 | G85: 10000 | H85: 10000 | J85: 0 | K85: 10000 | M85: 0 | N85: 10000 | Q85: 10000 | S85: 0 | T85: 10000 | U85: 10000 | V85: 0 | W85: 0
A86: 17210 | B86: FEDERAL WAY | C86: 10000 | D86: 0.03154414684 | E86: 532160.6 | G86: 0 | H86: 511166.1 | J86: 0 | K86: 511152 | M86: 0 | N86: 511152 | Q86: 511152 | S86: 0 | T86: 511152 | U86: 553303 | V86: -42151 | W86: -0.07618068219
A87: 37502 | B87: FERNDALE | C87: 10000 | D87: 0.00425247854 | E87: 71740.7 | G87: 0 | H87: 68910.4 | J87: 0 | K87: 68908 | M87: 0 | N87: 68908 | Q87: 68908 | S87: 0 | T87: 68908 | U87: 69708 | V87: -800 | W87: -0.0114764446
A88: 27417 | B88: FIFE | C88: 10000 | D88: 0.002312680529 | E88: 39015.7 | G88: 0 | H88: 37476.4 | J88: 0 | K88: 37475 | M88: 0 | N88: 37475 | Q88: 37475 | S88: 0 | T88: 37475 | U88: 40576 | V88: -3101 | W88: -0.07642448738
A89: 03053 | B89: FINLEY | C89: 10000 | D89: 0.0007824028237 | E89: 13199.4 | G89: 0 | H89: 12678.6 | J89: 0 | K89: 12678 | M89: 0 | N89: 12678 | Q89: 12678 | S89: 0 | T89: 12678 | U89: 13734 | V89: -1056 | W89: -0.07688947138
A90: 27402 | B90: FRANKLIN PIERCE | C90: 10000 | D90: 0.009702478744 | E90: 163684.1 | G90: 0 | H90: 157226.5 | J90: 0 | K90: 157222 | M90: 0 | N90: 157222 | Q90: 157222 | S90: 0 | T90: 157222 | U90: 170195 | V90: -12973 | W90: -0.07622433091
A91: 32358 | B91: FREEMAN | C91: 10000 | D91: 0.0003065536749 | E91: 5171.6 | G91: 10000 | H91: 10000 | J91: 0 | K91: 10000 | M91: 0 | N91: 10000 | Q91: 10000 | S91: 0 | T91: 10000 | U91: 10000 | V91: 0 | W91: 0
A92: 38302 | B92: GARFIELD | C92: 10000 | D92: 0.0003051179288 | E92: 5147.4 | G92: 10000 | H92: 10000 | J92: 0 | K92: 10000 | M92: 0 | N92: 10000 | Q92: 10000 | S92: 0 | T92: 10000 | U92: 10000 | V92: 0 | W92: 0
A93: 20401 | B93: GLENWOOD | C93: 0 | D93: 0 | E93: 0 | G93: 0 | H93: 0 | J93: 0 | K93: 0 | M93: 0 | N93: 0 | Q93: 0 | S93: 0 | T93: 0 | U93: 0 | V93: 0 | W93: 0
A94: 20404 | B94: GOLDENDALE | C94: 10000 | D94: 0.001658536229 | E94: 27980 | G94: 0 | H94: 26876.1 | J94: 0 | K94: 26875 | M94: 0 | N94: 26875 | Q94: 26875 | S94: 0 | T94: 26875 | U94: 29319 | V94: -2444 | W94: -0.08335891401
A95: 13301 | B95: GRAND COULEE | C95: 10000 | D95: 0.0008160159156 | E95: 13766.4 | G95: 0 | H95: 13223.2 | J95: 0 | K95: 13222 | M95: 0 | N95: 13222 | Q95: 13222 | S95: 0 | T95: 13222 | U95: 14324 | V95: -1102 | W95: -0.07693381737
A96: 39200 | B96: GRANDVIEW | C96: 10000 | D96: 0.004758224474 | E96: 80272.8 | G96: 0 | H96: 77105.9 | J96: 0 | K96: 77103 | M96: 0 | N96: 77103 | Q96: 77103 | S96: 0 | T96: 77103 | U96: 84750 | V96: -7647 | W96: -0.0902300885
A97: 39204 | B97: GRANGER | C97: 10000 | D97: 0.003858786459 | E97: 65099 | G97: 0 | H97: 62530.7 | J97: 0 | K97: 62529 | M97: 0 | N97: 62529 | Q97: 62529 | S97: 0 | T97: 62529 | U97: 68201 | V97: -5672 | W97: -0.08316593598
A98: 31332 | B98: GRANITE FALLS | C98: 10000 | D98: 0.0008792237614 | E98: 14832.8 | G98: 0 | H98: 14247.6 | J98: 0 | K98: 14247 | M98: 0 | N98: 14247 | Q98: 14328 | S98: 0 | T98: 14328 | U98: 15433 | V98: -1105 | W98: -0.07159981857
A99: 23054 | B99: GRAPEVIEW | C99: 10000 | D99: 0.0002719031688 | E99: 4587.1 | G99: 10000 | H99: 10000 | J99: 0 | K99: 10000 | M99: 0 | N99: 10000 | Q99: 10000 | S99: 0 | T99: 10000 | U99: 10000 | V99: 0 | W99: 0
A100: 32312 | B100: GREAT NORTHERN | C100: 10000 | D100: 9.44834731e-05 | E100: 1593.9 | G100: 10000 | H100: 10000 | J100: 0 | K100: 10000 | M100: 0 | N100: 10000 | Q100: 10000 | S100: 0 | T100: 10000 | U100: 10000 | V100: 0 | W100: 0
A101: 06103 | B101: GREEN MOUNTAIN | C101: 10000 | D101: 7.326682292e-05 | E101: 1236 | G101: 10000 | H101: 10000 | J101: 0 | K101: 10000 | M101: 0 | N101: 10000 | Q101: 10000 | S101: 0 | T101: 10000 | U101: 10000 | V101: 0 | W101: 0
A102: 34324 | B102: GRIFFIN | C102: 10000 | D102: 0.000154202631 | E102: 2601.4 | G102: 10000 | H102: 10000 | J102: 0 | K102: 10000 | M102: 0 | N102: 10000 | Q102: 10000 | S102: 0 | T102: 10000 | U102: 10000 | V102: 0 | W102: 0
A103: 22204 | B103: HARRINGTON | C103: 10000 | D103: 0.0001546447358 | E103: 2608.9 | G103: 10000 | H103: 10000 | J103: 0 | K103: 10000 | M103: 0 | N103: 10000 | Q103: 10000 | S103: 0 | T103: 10000 | U103: 10000 | V103: 0 | W103: 0
A104: 39203 | B104: HIGHLAND | C104: 10000 | D104: 0.001227160191 | E104: 20702.6 | G104: 0 | H104: 19885.8 | J104: 0 | K104: 19885 | M104: 0 | N104: 19885 | Q104: 19885 | S104: 0 | T104: 19885 | U104: 24934 | V104: -5049 | W104: -0.2024945857
A105: 17401 | B105: HIGHLINE | C105: 10000 | D105: 0.03257440408 | E105: 549541.4 | G105: 0 | H105: 527861.2 | J105: 0 | K105: 527847 | M105: 0 | N105: 527847 | Q105: 527847 | S105: 0 | T105: 527847 | U105: 571373 | V105: -43526 | W105: -0.0761779083
A106: 06098 | B106: HOCKINSON | C106: 10000 | D106: 0.0003084709211 | E106: 5204 | G106: 10000 | H106: 10000 | J106: 0 | K106: 10000 | M106: 0 | N106: 10000 | Q106: 10000 | S106: 0 | T106: 10000 | U106: 10378 | V106: -378 | W106: -0.03642320293
A107: 23404 | B107: HOOD CANAL | C107: 10000 | D107: 0.0008338007825 | E107: 14066.5 | G107: 0 | H107: 13511.5 | J107: 0 | K107: 13511 | M107: 0 | N107: 13511 | Q107: 13511 | S107: 0 | T107: 13511 | U107: 17054 | V107: -3543 | W107: -0.2077518471
A108: 14028 | B108: HOQUIAM | C108: 10000 | D108: 0.002809562482 | E108: 47398.2 | G108: 0 | H108: 45528.2 | J108: 0 | K108: 45527 | M108: 0 | N108: 45527 | Q108: 45527 | S108: 0 | T108: 45527 | U108: 48764 | V108: -3237 | W108: -0.06638093676
A109: 27902 | B109: IMPACT COMMENCEMENT BAY CHARTER | C109: 0 | D109: 0 | E109: 0 | G109: 0 | H109: 0 | J109: 0 | K109: 0 | M109: 0 | N109: 0 | Q109: 0 | S109: 0 | T109: 0 | U109: 0 | V109: 0 | W109: 0
A110: 17911 | B110: IMPACT PUGET SOUND CHARTER | C110: 10000 | D110: 0.000398375765 | E110: 6720.7 | G110: 10000 | H110: 10000 | J110: 0 | K110: 10000 | M110: 0 | N110: 10000 | Q110: 10000 | S110: 0 | T110: 10000 | U110: 10000 | V110: 0 | W110: 0
A111: 17916 | B111: IMPACT SALISH SEA CHARTER | C111: 10000 | D111: 0.0003263214471 | E111: 5505.1 | G111: 10000 | H111: 10000 | J111: 0 | K111: 10000 | M111: 0 | N111: 10000 | Q111: 10000 | S111: 0 | T111: 10000 | U111: 0 | V111: 10000 | W111: 0
A112: 10070 | B112: INCHELIUM | C112: 10000 | D112: 0.0004873745129 | E112: 8222.1 | G112: 10000 | H112: 10000 | J112: 0 | K112: 10000 | M112: 0 | N112: 10000 | Q112: 10000 | S112: 0 | T112: 10000 | U112: 10000 | V112: 0 | W112: 0
A113: 31063 | B113: INDEX | C113: 0 | D113: 0 | E113: 0 | G113: 0 | H113: 0 | J113: 0 | K113: 0 | M113: 0 | N113: 0 | Q113: 0 | S113: 0 | T113: 0 | U113: 0 | V113: 0 | W113: 0
A114: 17411 | B114: ISSAQUAH | C114: 10000 | D114: 0.002726976441 | E114: 46005 | G114: 0 | H114: 44190 | J114: 0 | K114: 44188 | M114: 0 | N114: 44188 | Q114: 44188 | S114: 0 | T114: 44188 | U114: 47843 | V114: -3655 | W114: -0.07639571097
A115: 11056 | B115: KAHLOTUS | C115: 10000 | D115: 7.515780557e-06 | E115: 126.7 | G115: 10000 | H115: 10000 | J115: 0 | K115: 10000 | M115: 0 | N115: 10000 | Q115: 10000 | S115: 0 | T115: 10000 | U115: 10000 | V115: 0 | W115: 0
A116: 08402 | B116: KALAMA | C116: 10000 | D116: 0.0006524459169 | E116: 11006.9 | G116: 0 | H116: 10572.6 | J116: 0 | K116: 10572 | M116: 0 | N116: 10572 | Q116: 10572 | S116: 0 | T116: 10572 | U116: 11455 | V116: -883 | W116: -0.07708424269
A117: 10003 | B117: KELLER | C117: 10000 | D117: 0.0002307961827 | E117: 3893.6 | G117: 10000 | H117: 10000 | J117: 0 | K117: 10000 | M117: 0 | N117: 10000 | Q117: 10000 | S117: 0 | T117: 10000 | U117: 10000 | V117: 0 | W117: 0
A118: 08458 | B118: KELSO | C118: 10000 | D118: 0.005851273725 | E118: 98713 | G118: 0 | H118: 94818.6 | J118: 0 | K118: 94816 | M118: 0 | N118: 94816 | Q118: 94816 | S118: 0 | T118: 94816 | U118: 102643 | V118: -7827 | W118: -0.07625459116
A119: 03017 | B119: KENNEWICK | C119: 10000 | D119: 0.02254510488 | E119: 380343.6 | G119: 0 | H119: 365338.5 | J119: 0 | K119: 365328 | M119: 0 | N119: 365328 | Q119: 365328 | S119: 0 | T119: 365328 | U119: 395457 | V119: -30129 | W119: -0.07618780297
A120: 17415 | B120: KENT | C120: 10000 | D120: 0.03808890781 | E120: 642573 | G120: 0 | H120: 617222.5 | J120: 0 | K120: 617206 | M120: 0 | N120: 617206 | Q120: 617206 | S120: 0 | T120: 617206 | U120: 668099 | V120: -50893 | W120: -0.07617583622
A121: 33212 | B121: KETTLE FALLS | C121: 10000 | D121: 0.0009501531197 | E121: 16029.4 | G121: 0 | H121: 15397 | J121: 0 | K121: 15396 | M121: 0 | N121: 15396 | Q121: 15396 | S121: 0 | T121: 15396 | U121: 16677 | V121: -1281 | W121: -0.07681237633
A122: 03052 | B122: KIONA-BENTON | C122: 10000 | D122: 0.001982760962 | E122: 33449.8 | G122: 0 | H122: 32130.1 | J122: 0 | K122: 32129 | M122: 0 | N122: 32129 | Q122: 32129 | S122: 0 | T122: 32129 | U122: 37574 | V122: -5445 | W122: -0.1449140363
A123: 19403 | B123: KITTITAS | C123: 10000 | D123: 0.0004374166775 | E123: 7379.3 | G123: 10000 | H123: 10000 | J123: 0 | K123: 10000 | M123: 0 | N123: 10000 | Q123: 10000 | S123: 0 | T123: 10000 | U123: 10000 | V123: 0 | W123: 0
A124: 20402 | B124: KLICKITAT | C124: 10000 | D124: 0.0001222485261 | E124: 2062.3 | G124: 10000 | H124: 10000 | J124: 0 | K124: 10000 | M124: 0 | N124: 10000 | Q124: 10000 | S124: 0 | T124: 10000 | U124: 10000 | V124: 0 | W124: 0
A125: 06101 | B125: LA CENTER | C125: 10000 | D125: 0.0002789462037 | E125: 4705.9 | G125: 10000 | H125: 10000 | J125: 0 | K125: 10000 | M125: 0 | N125: 10000 | Q125: 10000 | S125: 0 | T125: 10000 | U125: 10000 | V125: 0 | W125: 0
A126: 29311 | B126: LA CONNER | C126: 10000 | D126: 0.0004430940027 | E126: 7475.1 | G126: 10000 | H126: 10000 | J126: 0 | K126: 10000 | M126: 0 | N126: 10000 | Q126: 10000 | S126: 0 | T126: 10000 | U126: 10000 | V126: 0 | W126: 0
A127: 38126 | B127: LACROSSE | C127: 10000 | D127: 0.0001435264582 | E127: 2421.3 | G127: 10000 | H127: 10000 | J127: 0 | K127: 10000 | M127: 0 | N127: 10000 | Q127: 10000 | S127: 0 | T127: 10000 | U127: 10000 | V127: 0 | W127: 0
A128: 04129 | B128: LAKE CHELAN | C128: 10000 | D128: 0.001005026635 | E128: 16955.1 | G128: 0 | H128: 16286.1 | J128: 0 | K128: 16285 | M128: 0 | N128: 16285 | Q128: 16285 | S128: 0 | T128: 16285 | U128: 20553 | V128: -4268 | W128: -0.2076582494
A129: 31004 | B129: LAKE STEVENS | C129: 10000 | D129: 0.003228704038 | E129: 54469.3 | G129: 0 | H129: 52320.4 | J129: 0 | K129: 52319 | M129: 0 | N129: 52319 | Q129: 52319 | S129: 0 | T129: 52319 | U129: 56643 | V129: -4324 | W129: -0.0763377646
A130: 17414 | B130: LAKE WASHINGTON | C130: 10000 | D130: 0.004591734834 | E130: 77464.1 | G130: 0 | H130: 74408 | J130: 0 | K130: 74406 | M130: 0 | N130: 74406 | Q130: 74406 | S130: 0 | T130: 74406 | U130: 154590 | V130: -80184 | W130: -0.5186881428
A131: 31306 | B131: LAKEWOOD | C131: 10000 | D131: 0.001135193651 | E131: 19151.1 | G131: 0 | H131: 18395.5 | J131: 0 | K131: 18395 | M131: 0 | N131: 18395 | Q131: 18395 | S131: 0 | T131: 18395 | U131: 18174 | V131: 221 | W131: 0.0121602289
A132: 38264 | B132: LAMONT | C132: 0 | D132: 0 | E132: 0 | G132: 0 | H132: 0 | J132: 0 | K132: 0 | M132: 0 | N132: 0 | Q132: 0 | S132: 0 | T132: 0 | U132: 0 | V132: 0 | W132: 0
A133: 32362 | B133: LIBERTY | C133: 10000 | D133: 0.0003907636844 | E133: 6592.3 | G133: 10000 | H133: 10000 | J133: 0 | K133: 10000 | M133: 0 | N133: 10000 | Q133: 10000 | S133: 0 | T133: 10000 | U133: 10000 | V133: 0 | W133: 0
A134: 01158 | B134: LIND | C134: 10000 | D134: 0.0002901914222 | E134: 4895.6 | G134: 10000 | H134: 10000 | J134: 0 | K134: 10000 | M134: 0 | N134: 10000 | Q134: 10000 | S134: 0 | T134: 10000 | U134: 10000 | V134: 0 | W134: 0
A135: 08122 | B135: LONGVIEW | C135: 10000 | D135: 0.01064076507 | E135: 179513.3 | G135: 0 | H135: 172431.2 | J135: 0 | K135: 172426 | M135: 0 | N135: 172426 | Q135: 172426 | S135: 0 | T135: 172426 | U135: 186652 | V135: -14226 | W135: -0.07621670274
A136: 33183 | B136: LOON LAKE | C136: 10000 | D136: 0.0002997513901 | E136: 5056.9 | G136: 10000 | H136: 10000 | J136: 0 | K136: 10000 | M136: 0 | N136: 10000 | Q136: 10000 | S136: 0 | T136: 10000 | U136: 10000 | V136: 0 | W136: 0
A137: 28144 | B137: LOPEZ | C137: 10000 | D137: 0.0003536750363 | E137: 5966.6 | G137: 10000 | H137: 10000 | J137: 0 | K137: 10000 | M137: 0 | N137: 10000 | Q137: 10000 | S137: 0 | T137: 10000 | U137: 10000 | V137: 0 | W137: 0
A138: 32903 | B138: LUMEN CHARTER | C138: 10000 | D138: 8.105399451e-05 | E138: 1367.4 | G138: 10000 | H138: 10000 | J138: 0 | K138: 10000 | M138: 0 | N138: 10000 | Q138: 10000 | S138: 0 | T138: 10000 | U138: 0 | V138: 10000 | W138: 0
A139: 20406 | B139: LYLE | C139: 10000 | D139: 0.000874802714 | E139: 14758.2 | G139: 0 | H139: 14175.9 | J139: 0 | K139: 14175 | M139: 0 | N139: 14175 | Q139: 14175 | S139: 0 | T139: 14175 | U139: 15355 | V139: -1180 | W139: -0.07684793227
A140: 37504 | B140: LYNDEN | C140: 10000 | D140: 0.00150400968 | E140: 25373.1 | G140: 0 | H140: 24372 | J140: 0 | K140: 24371 | M140: 0 | N140: 24371 | Q140: 24371 | S140: 0 | T140: 24371 | U140: 25028 | V140: -657 | W140: -0.02625059933
A141: 39120 | B141: MABTON | C141: 10000 | D141: 0.00159530212 | E141: 26913.2 | G141: 0 | H141: 25851.4 | J141: 0 | K141: 25850 | M141: 0 | N141: 25850 | Q141: 25850 | S141: 0 | T141: 25850 | U141: 27993 | V141: -2143 | W141: -0.076554853
A142: 09207 | B142: MANSFIELD | C142: 10000 | D142: 0.0001011413078 | E142: 1706.2 | G142: 10000 | H142: 10000 | J142: 0 | K142: 10000 | M142: 0 | N142: 10000 | Q142: 10000 | S142: 0 | T142: 10000 | U142: 0 | V142: 10000 | W142: 0
A143: 04019 | B143: MANSON | C143: 10000 | D143: 0.0005565091886 | E143: 9388.5 | G143: 10000 | H143: 10000 | J143: 0 | K143: 10000 | M143: 0 | N143: 10000 | Q143: 10000 | S143: 0 | T143: 10000 | U143: 11386 | V143: -1386 | W143: -0.1217284384
A144: 23311 | B144: MARY M KNIGHT | C144: 10000 | D144: 0.0003446184551 | E144: 5813.8 | G144: 10000 | H144: 10000 | J144: 0 | K144: 10000 | M144: 0 | N144: 10000 | Q144: 10000 | S144: 0 | T144: 10000 | U144: 10000 | V144: 0 | W144: 0
A145: 33207 | B145: MARY WALKER | C145: 10000 | D145: 0.0009729937388 | E145: 16414.7 | G145: 0 | H145: 15767.1 | J145: 0 | K145: 15766 | M145: 0 | N145: 15766 | Q145: 15766 | S145: 0 | T145: 15766 | U145: 17242 | V145: -1476 | W145: -0.08560491822
A146: 31025 | B146: MARYSVILLE | C146: 10000 | D146: 0.00701376406 | E146: 118324.6 | G146: 0 | H146: 113656.5 | J146: 0 | K146: 113653 | M146: 0 | N146: 113653 | Q146: 113653 | S146: 0 | T146: 113653 | U146: 123034 | V146: -9381 | W146: -0.07624721622
A147: 14065 | B147: MCCLEARY | C147: 10000 | D147: 0.0006280863835 | E147: 10596 | G147: 0 | H147: 10177.9 | J147: 0 | K147: 10177 | M147: 0 | N147: 10177 | Q147: 10177 | S147: 0 | T147: 10177 | U147: 12341 | V147: -2164 | W147: -0.1753504578
A148: 32354 | B148: MEAD | C148: 10000 | D148: 0.005016667524 | E148: 84632.9 | G148: 0 | H148: 81294 | J148: 0 | K148: 81291 | M148: 0 | N148: 81291 | Q148: 81291 | S148: 0 | T148: 81291 | U148: 88004 | V148: -6713 | W148: -0.07628062361
A149: 32326 | B149: MEDICAL LAKE | C149: 10000 | D149: 0.0009573756228 | E149: 16151.2 | G149: 0 | H149: 15514 | J149: 0 | K149: 15513 | M149: 0 | N149: 15513 | Q149: 15513 | S149: 0 | T149: 15513 | U149: 16803 | V149: -1290 | W149: -0.076772005
A150: 17400 | B150: MERCER ISLAND | C150: 10000 | D150: 0.000424149158 | E150: 7155.5 | G150: 10000 | H150: 10000 | J150: 0 | K150: 10000 | M150: 0 | N150: 10000 | Q150: 10000 | S150: 0 | T150: 10000 | U150: 10000 | V150: 0 | W150: 0
A151: 37505 | B151: MERIDIAN | C151: 10000 | D151: 0.001213516226 | E151: 20472.4 | G151: 0 | H151: 19664.7 | J151: 0 | K151: 19664 | M151: 0 | N151: 19664 | Q151: 19664 | S151: 0 | T151: 19664 | U151: 21168 | V151: -1504 | W151: -0.07105064248
A152: 24350 | B152: METHOW VALLEY | C152: 10000 | D152: 0.0009808290604 | E152: 16546.9 | G152: 0 | H152: 15894.1 | J152: 0 | K152: 15893 | M152: 0 | N152: 15893 | Q152: 15893 | S152: 0 | T152: 15893 | U152: 17215 | V152: -1322 | W152: -0.07679349405
A153: 30031 | B153: MILL A | C153: 10000 | D153: 7.090309462e-05 | E153: 1196.1 | G153: 10000 | H153: 10000 | J153: 0 | K153: 10000 | M153: 0 | N153: 10000 | Q153: 10000 | S153: 0 | T153: 10000 | U153: 10000 | V153: 0 | W153: 0
A154: 31103 | B154: MONROE | C154: 10000 | D154: 0.002552310052 | E154: 43058.3 | G154: 0 | H154: 41359.5 | J154: 0 | K154: 41358 | M154: 0 | N154: 41358 | Q154: 41358 | S154: 0 | T154: 41358 | U154: 46876 | V154: -5518 | W154: -0.1177148221
A155: 14066 | B155: MONTESANO | C155: 10000 | D155: 0.001437588914 | E155: 24252.6 | G155: 0 | H155: 23295.8 | J155: 0 | K155: 23295 | M155: 0 | N155: 23295 | Q155: 23295 | S155: 0 | T155: 23295 | U155: 15737 | V155: 7558 | W155: 0.4802694287
A156: 21214 | B156: MORTON | C156: 10000 | D156: 0.0004166859048 | E156: 7029.6 | G156: 10000 | H156: 10000 | J156: 0 | K156: 10000 | M156: 0 | N156: 10000 | Q156: 10000 | S156: 0 | T156: 10000 | U156: 10000 | V156: 0 | W156: 0
A157: 13161 | B157: MOSES LAKE | C157: 10000 | D157: 0.00857769863 | E157: 144708.7 | G157: 0 | H157: 138999.7 | J157: 0 | K157: 138996 | M157: 0 | N157: 138996 | Q157: 138996 | S157: 0 | T157: 138996 | U157: 150466 | V157: -11470 | W157: -0.07622984595
A158: 21206 | B158: MOSSYROCK | C158: 10000 | D158: 0.0005617225227 | E158: 9476.4 | G158: 10000 | H158: 10000 | J158: 0 | K158: 10000 | M158: 0 | N158: 10000 | Q158: 10000 | S158: 0 | T158: 10000 | U158: 10000 | V158: 0 | W158: 0
A159: 39209 | B159: MOUNT ADAMS | C159: 10000 | D159: 0.002112337046 | E159: 35635.8 | G159: 0 | H159: 34229.9 | J159: 0 | K159: 34229 | M159: 0 | N159: 34229 | Q159: 34229 | S159: 0 | T159: 34229 | U159: 37339 | V159: -3110 | W159: -0.08329092906
A160: 37507 | B160: MOUNT BAKER | C160: 10000 | D160: 0.003008640933 | E160: 50756.8 | G160: 0 | H160: 48754.3 | J160: 0 | K160: 48753 | M160: 0 | N160: 48753 | Q160: 48753 | S160: 0 | T160: 48753 | U160: 44579 | V160: 4174 | W160: 0.09363153054
A161: 30029 | B161: MOUNT PLEASANT | C161: 0 | D161: 0 | E161: 0 | G161: 0 | H161: 0 | J161: 0 | K161: 0 | M161: 0 | N161: 0 | Q161: 0 | S161: 0 | T161: 0 | U161: 0 | V161: 0 | W161: 0
A162: 29320 | B162: MOUNT VERNON | C162: 10000 | D162: 0.006337116192 | E162: 106909.3 | G162: 0 | H162: 102691.5 | J162: 0 | K162: 102688 | M162: 0 | N162: 102688 | Q162: 102688 | S162: 0 | T162: 102688 | U162: 120399 | V162: -17711 | W162: -0.1471025507
A163: 31006 | B163: MUKILTEO | C163: 10000 | D163: 0.01286431991 | E163: 217025.5 | G163: 0 | H163: 208463.5 | J163: 0 | K163: 208458 | M163: 0 | N163: 208458 | Q163: 208458 | S163: 0 | T163: 208458 | U163: 220272 | V163: -11814 | W163: -0.05363368926
A164: 39003 | B164: NACHES VALLEY | C164: 10000 | D164: 0.001297949476 | E164: 21896.8 | G164: 0 | H164: 21032.9 | J164: 0 | K164: 21032 | M164: 0 | N164: 21032 | Q164: 21032 | S164: 0 | T164: 21032 | U164: 25023 | V164: -3991 | W164: -0.1594932662
A165: 21014 | B165: NAPAVINE | C165: 10000 | D165: 0.0005406459453 | E165: 9120.8 | G165: 10000 | H165: 10000 | J165: 0 | K165: 10000 | M165: 0 | N165: 10000 | Q165: 10000 | S165: 0 | T165: 10000 | U165: 10000 | V165: 0 | W165: 0
A166: 25155 | B166: NASELLE-GRAYS | C166: 10000 | D166: 0.0003259143606 | E166: 5498.2 | G166: 10000 | H166: 10000 | J166: 0 | K166: 10000 | M166: 0 | N166: 10000 | Q166: 10000 | S166: 0 | T166: 10000 | U166: 10000 | V166: 0 | W166: 0
A167: 24014 | B167: NESPELEM | C167: 10000 | D167: 0.0006575541964 | E167: 11093.1 | G167: 0 | H167: 10655.4 | J167: 0 | K167: 10655 | M167: 0 | N167: 10655 | Q167: 10655 | S167: 0 | T167: 10655 | U167: 11544 | V167: -889 | W167: -0.07700970201
A168: 26056 | B168: NEWPORT | C168: 10000 | D168: 0.001711851434 | E168: 28879.5 | G168: 0 | H168: 27740.1 | J168: 0 | K168: 27739 | M168: 0 | N168: 27739 | Q168: 27739 | S168: 0 | T168: 27739 | U168: 30037 | V168: -2298 | W168: -0.07650564304
A169: 32325 | B169: NINE MILE FALLS | C169: 10000 | D169: 0.002177085692 | E169: 36728.1 | G169: 0 | H169: 35279.1 | J169: 0 | K169: 35278 | M169: 0 | N169: 35278 | Q169: 35278 | S169: 0 | T169: 35278 | U169: 38197 | V169: -2919 | W169: -0.07641961411
A170: 37506 | B170: NOOKSACK VALLEY | C170: 10000 | D170: 0.001550443809 | E170: 26156.5 | G170: 0 | H170: 25124.5 | J170: 0 | K170: 25123 | M170: 0 | N170: 25123 | Q170: 25123 | S170: 0 | T170: 25123 | U170: 26059 | V170: -936 | W170: -0.03591849265
A171: 14064 | B171: NORTH BEACH | C171: 10000 | D171: 0.0007395493049 | E171: 12476.4 | G171: 0 | H171: 11984.1 | J171: 0 | K171: 11983 | M171: 0 | N171: 11983 | Q171: 11983 | S171: 0 | T171: 11983 | U171: 11934 | V171: 49 | W171: 0.004105915871
A172: 11051 | B172: NORTH FRANKLIN | C172: 10000 | D172: 0.003802271466 | E172: 64145.6 | G172: 0 | H172: 61614.9 | J172: 0 | K172: 61613 | M172: 0 | N172: 61613 | Q172: 61613 | S172: 0 | T172: 61613 | U172: 70507 | V172: -8894 | W172: -0.1261435035
A173: 18400 | B173: NORTH KITSAP | C173: 10000 | D173: 0.0028916714 | E173: 48783.4 | G173: 0 | H173: 46858.8 | J173: 0 | K173: 46857 | M173: 0 | N173: 46857 | Q173: 46857 | S173: 0 | T173: 46857 | U173: 50731 | V173: -3874 | W173: -0.07636356468
A174: 23403 | B174: NORTH MASON | C174: 10000 | D174: 0.002677648934 | E174: 45172.8 | G174: 0 | H174: 43390.6 | J174: 0 | K174: 43389 | M174: 0 | N174: 43389 | Q174: 43389 | S174: 0 | T174: 43389 | U174: 44842 | V174: -1453 | W174: -0.03240265822
A175: 25200 | B175: NORTH RIVER | C175: 10000 | D175: 7.517531466e-05 | E175: 1268.2 | G175: 10000 | H175: 10000 | J175: 0 | K175: 10000 | M175: 0 | N175: 10000 | Q175: 10000 | S175: 0 | T175: 10000 | U175: 10000 | V175: 0 | W175: 0
A176: 34003 | B176: NORTH THURSTON | C176: 10000 | D176: 0.01004302196 | E176: 169429.2 | G176: 0 | H176: 162744.9 | J176: 0 | K176: 162740 | M176: 0 | N176: 162740 | Q176: 162740 | S176: 0 | T176: 162740 | U176: 192472 | V176: -29732 | W176: -0.1544744171
A177: 33211 | B177: NORTHPORT | C177: 10000 | D177: 0.0003729175357 | E177: 6291.2 | G177: 10000 | H177: 10000 | J177: 0 | K177: 10000 | M177: 0 | N177: 10000 | Q177: 10000 | S177: 0 | T177: 10000 | U177: 10000 | V177: 0 | W177: 0
A178: 17417 | B178: NORTHSHORE | C178: 10000 | D178: 0.00282747429 | E178: 47700.4 | G178: 0 | H178: 45818.5 | J178: 0 | K178: 45817 | M178: 0 | N178: 45817 | Q178: 45817 | S178: 0 | T178: 45817 | U178: 49605 | V178: -3788 | W178: -0.07636326983
A179: 15201 | B179: OAK HARBOR | C179: 10000 | D179: 0.004014858186 | E179: 67732 | G179: 0 | H179: 65059.8 | J179: 0 | K179: 65058 | M179: 0 | N179: 65058 | Q179: 65058 | S179: 0 | T179: 65058 | U179: 70432 | V179: -5374 | W179: -0.07630054521
A180: 38324 | B180: OAKESDALE | C180: 0 | D180: 0 | E180: 0 | G180: 0 | H180: 0 | J180: 0 | K180: 0 | M180: 0 | N180: 0 | Q180: 0 | S180: 0 | T180: 0 | U180: 10000 | V180: -10000 | W180: -1
A181: 14400 | B181: OAKVILLE | C181: 10000 | D181: 0.0007320160153 | E181: 12349.3 | G181: 0 | H181: 11862.1 | J181: 0 | K181: 11861 | M181: 0 | N181: 11861 | Q181: 11861 | S181: 0 | T181: 11861 | U181: 12851 | V181: -990 | W181: -0.07703680647
A182: 25101 | B182: OCEAN BEACH | C182: 10000 | D182: 0.001123103618 | E182: 18947.1 | G182: 0 | H182: 18199.6 | J182: 0 | K182: 18199 | M182: 0 | N182: 18199 | Q182: 18199 | S182: 0 | T182: 18199 | U182: 19710 | V182: -1511 | W182: -0.0766615931
A183: 14172 | B183: OCOSTA | C183: 10000 | D183: 0.001157128174 | E183: 19521.1 | G183: 0 | H183: 18750.9 | J183: 0 | K183: 18750 | M183: 0 | N183: 18750 | Q183: 18750 | S183: 0 | T183: 18750 | U183: 20307 | V183: -1557 | W183: -0.0766730684
A184: 22105 | B184: ODESSA | C184: 10000 | D184: 0.0002129456567 | E184: 3592.4 | G184: 10000 | H184: 10000 | J184: 0 | K184: 10000 | M184: 0 | N184: 10000 | Q184: 10000 | S184: 0 | T184: 10000 | U184: 10000 | V184: 0 | W184: 0
A185: 24105 | B185: OKANOGAN | C185: 10000 | D185: 0.002311958278 | E185: 39003.5 | G185: 0 | H185: 37464.7 | J185: 0 | K185: 37463 | M185: 0 | N185: 37463 | Q185: 37463 | S185: 0 | T185: 37463 | U185: 31196 | V185: 6267 | W185: 0.2008911399
A186: 34111 | B186: OLYMPIA | C186: 10000 | D186: 0.006419338918 | E186: 108296.4 | G186: 0 | H186: 104023.9 | J186: 0 | K186: 104021 | M186: 0 | N186: 104021 | Q186: 104021 | S186: 0 | T186: 104021 | U186: 112607 | V186: -8586 | W186: -0.07624748017
A187: 24019 | B187: OMAK | C187: 10000 | D187: 0.002742218112 | E187: 46262.1 | G187: 0 | H187: 44436.9 | J187: 0 | K187: 44435 | M187: 0 | N187: 44435 | Q187: 44435 | S187: 0 | T187: 44435 | U187: 48110 | V187: -3675 | W187: -0.07638744544
A188: 21300 | B188: ONALASKA | C188: 10000 | D188: 0.000579354185 | E188: 9773.9 | G188: 10000 | H188: 10000 | J188: 0 | K188: 10000 | M188: 0 | N188: 10000 | Q188: 10000 | S188: 0 | T188: 10000 | U188: 10463 | V188: -463 | W188: -0.04425117079
A189: 33030 | B189: ONION CREEK | C189: 10000 | D189: 0.0001387990016 | E189: 2341.5 | G189: 10000 | H189: 10000 | J189: 0 | K189: 10000 | M189: 0 | N189: 10000 | Q189: 10000 | S189: 0 | T189: 10000 | U189: 10000 | V189: 0 | W189: 0
A190: 28137 | B190: ORCAS ISLAND | C190: 10000 | D190: 0.0004697034552 | E190: 7924 | G190: 10000 | H190: 10000 | J190: 0 | K190: 10000 | M190: 0 | N190: 10000 | Q190: 10000 | S190: 0 | T190: 10000 | U190: 10000 | V190: 0 | W190: 0
A191: 32123 | B191: ORCHARD PRAIRIE | C191: 10000 | D191: 0.0001110427031 | E191: 1873.3 | G191: 10000 | H191: 10000 | J191: 0 | K191: 10000 | M191: 0 | N191: 10000 | Q191: 10000 | S191: 0 | T191: 10000 | U191: 10000 | V191: 0 | W191: 0
A192: 10065 | B192: ORIENT | C192: 10000 | D192: 0.0001825586161 | E192: 3079.8 | G192: 10000 | H192: 10000 | J192: 0 | K192: 10000 | M192: 0 | N192: 10000 | Q192: 10000 | S192: 0 | T192: 10000 | U192: 10000 | V192: 0 | W192: 0
A193: 09013 | B193: ORONDO | C193: 10000 | D193: 0.0004147949221 | E193: 6997.7 | G193: 10000 | H193: 10000 | J193: 0 | K193: 10000 | M193: 0 | N193: 10000 | Q193: 10000 | S193: 0 | T193: 10000 | U193: 10000 | V193: 0 | W193: 0
A194: 24410 | B194: OROVILLE | C194: 10000 | D194: 0.001952023739 | E194: 32931.3 | G194: 0 | H194: 31632.1 | J194: 0 | K194: 31631 | M194: 0 | N194: 31631 | Q194: 31631 | S194: 0 | T194: 31631 | U194: 27260 | V194: 4371 | W194: 0.1603448276
A195: 27344 | B195: ORTING | C195: 10000 | D195: 0.001593279819 | E195: 26879.1 | G195: 0 | H195: 25818.6 | J195: 0 | K195: 25817 | M195: 0 | N195: 25817 | Q195: 25817 | S195: 0 | T195: 25817 | U195: 29732 | V195: -3915 | W195: -0.1316763084
A196: 01147 | B196: OTHELLO | C196: 10000 | D196: 0.006091170261 | E196: 102760.1 | G196: 0 | H196: 98706 | J196: 0 | K196: 98703 | M196: 0 | N196: 98703 | Q196: 98703 | S196: 0 | T196: 98703 | U196: 106851 | V196: -8148 | W196: -0.07625572058
A197: 09102 | B197: PALISADES | C197: 10000 | D197: 1.18055097e-05 | E197: 199.1 | G197: 10000 | H197: 10000 | J197: 0 | K197: 10000 | M197: 0 | N197: 10000 | Q197: 10000 | S197: 0 | T197: 10000 | U197: 10000 | V197: 0 | W197: 0
A198: 38301 | B198: PALOUSE | C198: 10000 | D198: 0.0001261880733 | E198: 2128.8 | G198: 10000 | H198: 10000 | J198: 0 | K198: 10000 | M198: 0 | N198: 10000 | Q198: 10000 | S198: 0 | T198: 10000 | U198: 10000 | V198: 0 | W198: 0
A199: 11001 | B199: PASCO | C199: 10000 | D199: 0.02200485289 | E199: 371229.4 | G199: 0 | H199: 356583.8 | J199: 0 | K199: 356574 | M199: 0 | N199: 356574 | Q199: 356574 | S199: 0 | T199: 356574 | U199: 385981 | V199: -29407 | W199: -0.076187688
A200: 24122 | B200: PATEROS | C200: 10000 | D200: 0.0003802100752 | E200: 6414.2 | G200: 10000 | H200: 10000 | J200: 0 | K200: 10000 | M200: 0 | N200: 10000 | Q200: 10000 | S200: 0 | T200: 10000 | U200: 10000 | V200: 0 | W200: 0
A201: 03050 | B201: PATERSON | C201: 10000 | D201: 6.646016086e-05 | E201: 1121.2 | G201: 10000 | H201: 10000 | J201: 0 | K201: 10000 | M201: 0 | N201: 10000 | Q201: 10000 | S201: 0 | T201: 10000 | U201: 10000 | V201: 0 | W201: 0
A202: 21301 | B202: PE ELL | C202: 10000 | D202: 0.0001693830195 | E202: 2857.5 | G202: 10000 | H202: 10000 | J202: 0 | K202: 10000 | M202: 0 | N202: 10000 | Q202: 10000 | S202: 0 | T202: 10000 | U202: 10000 | V202: 0 | W202: 0
... 121 more rows

Sheet SY 2020-21 Final (hidden)
A1: Preliminary Title IV Allocations SY 2019-20 | C1: 18407083
G2: First Reallocation | J2: Second Reallocation | M2: Third Reallocation | P2: Adjust until all eligible LEAs meet min.
B4: Min. Allocation | C4: Sufficient for $10K each LEA? | D4: Adjust to 100% | G4: Precentage to adjust other LEAs | H4: Allocation Pool | J4: Precentage to adjust other LEAs | K4: Allocation Pool | M4: Precentage to adjust other LEAs | N4: Allocation Pool
B5: 10000 | C5: Yes | D5: 6.356722797e-07 | G5: 0.03163726277 | H5: 24.39999998 | J5: 3.048299375e-05 | K5: 81 | M5: 0 | N5: 81 | Q5: rounding ok
A6: CoDistID | B6: District | C6: Minimum Allocation | D6: % of Title IA Received | E6: Initial Formula Allocation | G6: Adjusted allocation for LEAs below $10K | H6: Adjusted Allocation for All Other LEAs | J6: Adjusted allocation for LEAs below $10K | K6: Adjusted Allocation for All Other LEAs | M6: Adjusted allocation for LEAs below $10K | N6: Adjusted Allocation for All Other LEAs | Q6: Subtotal After Re-allocation | R6: MOE | S6: MOE Deduction | T6: Final Allocation | U6: PY Allocation | V6: Difference | W6: % Change
B7: State Totals | C7: 2950000 | D7: 0.9998124767 | E7: 18407068.46 | G7: 1040000 | H7: 18407058.6 | J7: 40000 | K7: 18407002 | M7: 0 | N7: 18407002 | Q7: 18407083 | R7: 0 | S7: 0 | T7: 18407083 | U7: 15237983 | V7: 3169100 | W7: 0.1026180751
A9: 01109 | B9: WASHTUCNA | C9: 10000 | D9: 6.163559914e-06 | E9: 125.1008724 | G9: 10000 | H9: 10000 | J9: 0 | K9: 10000 | M9: 0 | N9: 10000 | Q9: 10000 | S9: 0 | T9: 10000 | U9: 10000 | V9: 0 | W9: 0
A10: 01122 | B10: BENGE | C10: 0 | D10: 0 | E10: 0 | G10: 0 | H10: 0 | J10: 0 | K10: 0 | M10: 0 | N10: 0 | Q10: 0 | S10: 0 | T10: 0 | U10: 0 | V10: 0 | W10: 0
A11: 01147 | B11: OTHELLO | C11: 10000 | D11: 0.005994134579 | E11: 110346.2009 | G11: 0 | H11: 106855.1 | J11: 0 | K11: 106851 | M11: 0 | N11: 106851 | Q11: 106851 | S11: 0 | T11: 106851 | U11: 100201 | V11: 6650 | W11: 0.06636660313
A12: 01158 | B12: LIND | C12: 10000 | D12: 0.0003196087529 | E12: 5894.700872 | G12: 10000 | H12: 10000 | J12: 0 | K12: 10000 | M12: 0 | N12: 10000 | Q12: 10000 | S12: 0 | T12: 10000 | U12: 10000 | V12: 0 | W12: 0
A13: 01160 | B13: RITZVILLE | C13: 10000 | D13: 0.0002411386106 | E13: 4450.300872 | G13: 10000 | H13: 10000 | J13: 0 | K13: 10000 | M13: 0 | N13: 10000 | Q13: 10000 | S13: 0 | T13: 10000 | U13: 10000 | V13: 0 | W13: 0
A14: 02250 | B14: CLARKSTON | C14: 10000 | D14: 0.003223657082 | E14: 59349.80087 | G14: 0 | H14: 57472.1 | J14: 0 | K14: 57470 | M14: 0 | N14: 57470 | Q14: 57470 | S14: 0 | T14: 57470 | U14: 52129 | V14: 5341 | W14: 0.1024573654
A15: 02420 | B15: ASOTIN-ANATONE | C15: 10000 | D15: 0.0004840614097 | E15: 8921.800872 | G15: 10000 | H15: 10000 | J15: 0 | K15: 10000 | M15: 0 | N15: 10000 | Q15: 10000 | S15: 0 | T15: 10000 | U15: 10000 | V15: 0 | W15: 0
A16: 03017 | B16: KENNEWICK | C16: 10000 | D16: 0.02218594306 | E16: 408390.1009 | G16: 0 | H16: 395469.7 | J16: 0 | K16: 395457 | M16: 0 | N16: 395457 | Q16: 395457 | S16: 0 | T16: 395457 | U16: 292018 | V16: 103439 | W16: 0.3542213151
A17: 03050 | B17: PATERSON | C17: 10000 | D17: 7.07571556e-05 | E17: 1314.100872 | G17: 10000 | H17: 10000 | J17: 0 | K17: 10000 | M17: 0 | N17: 10000 | Q17: 10000 | S17: 0 | T17: 10000 | U17: 10000 | V17: 0 | W17: 0
A18: 03052 | B18: KIONA-BENTON | C18: 10000 | D18: 0.00210743382 | E18: 38803.40087 | G18: 0 | H18: 37575.7 | J18: 0 | K18: 37574 | M18: 0 | N18: 37574 | Q18: 37574 | S18: 0 | T18: 37574 | U18: 35263 | V18: 2311 | W18: 0.06553611434
A19: 03053 | B19: FINLEY | C19: 10000 | D19: 0.0007699370504 | E19: 14183.90087 | G19: 0 | H19: 13735.1 | J19: 0 | K19: 13734 | M19: 0 | N19: 13734 | Q19: 13734 | S19: 0 | T19: 13734 | U19: 11277 | V19: 2457 | W19: 0.217877095
A20: 03116 | B20: PROSSER | C20: 10000 | D20: 0.003326614996 | E20: 61244.90087 | G20: 0 | H20: 59307.2 | J20: 0 | K20: 59305 | M20: 0 | N20: 59305 | Q20: 59305 | S20: 0 | T20: 59305 | U20: 45722 | V20: 13583 | W20: 0.2970779931
A21: 03400 | B21: RICHLAND | C21: 10000 | D21: 0.008043945089 | E21: 148077.2009 | G21: 0 | H21: 143392.4 | J21: 0 | K21: 143388 | M21: 0 | N21: 143388 | Q21: 143388 | S21: 0 | T21: 143388 | U21: 104355 | V21: 39033 | W21: 0.3740405347
A22: 04019 | B22: MANSON | C22: 10000 | D22: 0.0006381802863 | E22: 11758.70087 | G22: 0 | H22: 11386.6 | J22: 0 | K22: 11386 | M22: 0 | N22: 11386 | Q22: 11386 | S22: 0 | T22: 11386 | U22: 12482 | V22: -1096 | W22: -0.08780644128
A23: 04069 | B23: STEHEKIN | C23: 0 | D23: 0 | E23: 0 | G23: 0 | H23: 0 | J23: 0 | K23: 0 | M23: 0 | N23: 0 | Q23: 0 | S23: 0 | T23: 0 | U23: 0 | V23: 0 | W23: 0
A24: 04127 | B24: ENTIAT | C24: 10000 | D24: 0.0007348807363 | E24: 13538.70087 | G24: 0 | H24: 13110.3 | J24: 0 | K24: 13109 | M24: 0 | N24: 13109 | Q24: 13109 | S24: 0 | T24: 13109 | U24: 10000 | V24: 3109 | W24: 0.3109
A25: 04129 | B25: LAKE CHELAN | C25: 10000 | D25: 0.00115251741 | E25: 21226.10087 | G25: 0 | H25: 20554.5 | J25: 0 | K25: 20553 | M25: 0 | N25: 20553 | Q25: 20553 | S25: 0 | T25: 20553 | U25: 22498 | V25: -1945 | W25: -0.08645212908
A26: 04222 | B26: CASHMERE | C26: 10000 | D26: 0.001664421549 | E26: 30648.80087 | G26: 0 | H26: 29679.1 | J26: 0 | K26: 29678 | M26: 0 | N26: 29678 | Q26: 29678 | S26: 0 | T26: 29678 | U26: 23266 | V26: 6412 | W26: 0.2755952893
A27: 04228 | B27: CASCADE | C27: 10000 | D27: 0.002336159943 | E27: 43013.50087 | G27: 0 | H27: 41652.6 | J27: 0 | K27: 41651 | M27: 0 | N27: 41651 | Q27: 41651 | S27: 0 | T27: 41651 | U27: 22293 | V27: 19358 | W27: 0.8683443233
A28: 04246 | B28: WENATCHEE | C28: 10000 | D28: 0.007651167539 | E28: 140847.3009 | G28: 0 | H28: 136391.2 | J28: 0 | K28: 136387 | M28: 0 | N28: 136387 | Q28: 136387 | S28: 0 | T28: 136387 | U28: 104507 | V28: 31880 | W28: 0.3050513363
A29: 05121 | B29: PORT ANGELES | C29: 10000 | D29: 0.006436941967 | E29: 118497.0009 | G29: 0 | H29: 114748 | J29: 0 | K29: 114744 | M29: 0 | N29: 114744 | Q29: 114744 | S29: 0 | T29: 114744 | U29: 77880 | V29: 36864 | W29: 0.4733436055
A30: 05313 | B30: CRESCENT | C30: 10000 | D30: 0.0004953897255 | E30: 9130.300872 | G30: 10000 | H30: 10000 | J30: 0 | K30: 10000 | M30: 0 | N30: 10000 | Q30: 10000 | S30: 0 | T30: 10000 | U30: 10000 | V30: 0 | W30: 0
A31: 05323 | B31: SEQUIM | C31: 10000 | D31: 0.003580930137 | E31: 65926.10087 | G31: 0 | H31: 63840.3 | J31: 0 | K31: 63838 | M31: 0 | N31: 63838 | Q31: 63838 | S31: 0 | T31: 63838 | U31: 47671 | V31: 16167 | W31: 0.3391370015
A32: 05401 | B32: CAPE FLATTERY | C32: 10000 | D32: 0.0006054843937 | E32: 11156.90087 | G32: 0 | H32: 10803.9 | J32: 0 | K32: 10803 | M32: 0 | N32: 10803 | Q32: 10803 | S32: 0 | T32: 10803 | U32: 11190 | V32: -387 | W32: -0.0345844504
A33: 05402 | B33: QUILLAYUTE VALLEY | C33: 10000 | D33: 0.001991423159 | E33: 36667.90087 | G33: 0 | H33: 35507.8 | J33: 0 | K33: 35506 | M33: 0 | N33: 35506 | Q33: 35506 | S33: 0 | T33: 35506 | U33: 28422 | V33: 7084 | W33: 0.2492435437
A34: 06037 | B34: VANCOUVER | C34: 10000 | D34: 0.02789814173 | E34: 513535.1009 | G34: 0 | H34: 497288.2 | J34: 0 | K34: 497273 | M34: 0 | N34: 497273 | Q34: 497273 | S34: 0 | T34: 497273 | U34: 368368 | V34: 128905 | W34: 0.3499353907
A35: 06098 | B35: HOCKINSON | C35: 10000 | D35: 0.0005816198068 | E35: 10717.60087 | G35: 0 | H35: 10378.5 | J35: 0 | K35: 10378 | M35: 0 | N35: 10378 | Q35: 10378 | S35: 0 | T35: 10378 | U35: 10000 | V35: 378 | W35: 0.0378
A36: 06101 | B36: LA CENTER | C36: 10000 | D36: 0.000519130529 | E36: 9567.300872 | G36: 10000 | H36: 10000 | J36: 0 | K36: 10000 | M36: 0 | N36: 10000 | Q36: 10000 | S36: 0 | T36: 10000 | U36: 10000 | V36: 0 | W36: 0
A37: 06103 | B37: GREEN MOUNTAIN | C37: 10000 | D37: 7.210169949e-05 | E37: 1338.800872 | G37: 10000 | H37: 10000 | J37: 0 | K37: 10000 | M37: 0 | N37: 10000 | Q37: 10000 | S37: 0 | T37: 10000 | U37: 10000 | V37: 0 | W37: 0
A38: 06112 | B38: WASHOUGAL | C38: 10000 | D38: 0.001879446129 | E38: 34606.80087 | G38: 0 | H38: 33511.9 | J38: 0 | K38: 33510 | M38: 0 | N38: 33510 | Q38: 33510 | S38: 0 | T38: 33510 | U38: 29481 | V38: 4029 | W38: 0.1366642923
A39: 06114 | B39: EVERGREEN (CLARK) | C39: 10000 | D39: 0.02530869532 | E39: 465870.9009 | G39: 0 | H39: 451132 | J39: 0 | K39: 451118 | M39: 0 | N39: 451118 | Q39: 451118 | S39: 0 | T39: 451118 | U39: 374792 | V39: 76326 | W39: 0.2036489573
A40: 06117 | B40: CAMAS | C40: 10000 | D40: 0.001706401197 | E40: 31421.50087 | G40: 0 | H40: 30427.4 | J40: 0 | K40: 30426 | M40: 0 | N40: 30426 | Q40: 30426 | S40: 0 | T40: 30426 | U40: 14292 | V40: 16134 | W40: 1.128883291
A41: 06119 | B41: BATTLE GROUND | C41: 10000 | D41: 0.007732638362 | E41: 142347.0009 | G41: 0 | H41: 137843.5 | J41: 0 | K41: 137839 | M41: 0 | N41: 137839 | Q41: 137839 | S41: 0 | T41: 137839 | U41: 103641 | V41: 34198 | W41: 0.3299659401
A42: 06122 | B42: RIDGEFIELD | C42: 10000 | D42: 0.001100750336 | E42: 20273.30087 | G42: 0 | H42: 19631.9 | J42: 0 | K42: 19631 | M42: 0 | N42: 19631 | Q42: 19631 | S42: 0 | T42: 19631 | U42: 13139 | V42: 6492 | W42: 0.4941015298
A43: 07002 | B43: DAYTON | C43: 10000 | D43: 0.0006265617197 | E43: 11544.80087 | G43: 0 | H43: 11179.5 | J43: 0 | K43: 11179 | M43: 0 | N43: 11179 | Q43: 11179 | S43: 0 | T43: 11179 | U43: 10522 | V43: 657 | W43: 0.06244060065
A44: 07035 | B44: STARBUCK | C44: 0 | D44: 0 | E44: 0 | G44: 0 | H44: 0 | J44: 0 | K44: 0 | M44: 0 | N44: 0 | Q44: 0 | S44: 0 | T44: 0 | U44: 0 | V44: 0 | W44: 0
A45: 08122 | B45: LONGVIEW | C45: 10000 | D45: 0.01047124803 | E45: 192756.8009 | G45: 0 | H45: 186658.5 | J45: 0 | K45: 186652 | M45: 0 | N45: 186652 | Q45: 186652 | S45: 0 | T45: 186652 | U45: 147387 | V45: 39265 | W45: 0.2664074851
A46: 08130 | B46: TOUTLE LAKE | C46: 10000 | D46: 0.0003605084974 | E46: 6647.600872 | G46: 10000 | H46: 10000 | J46: 0 | K46: 10000 | M46: 0 | N46: 10000 | Q46: 10000 | S46: 0 | T46: 10000 | U46: 10000 | V46: 0 | W46: 0
A47: 08401 | B47: CASTLE ROCK | C47: 10000 | D47: 0.001007037761 | E47: 18548.30087 | G47: 0 | H47: 17961.4 | J47: 0 | K47: 17960 | M47: 0 | N47: 17960 | Q47: 17960 | S47: 0 | T47: 17960 | U47: 14617 | V47: 3343 | W47: 0.2287063009
A48: 08402 | B48: KALAMA | C48: 10000 | D48: 0.000642051719 | E48: 11829.90087 | G48: 0 | H48: 11455.6 | J48: 0 | K48: 11455 | M48: 0 | N48: 11455 | Q48: 11455 | S48: 0 | T48: 11455 | U48: 10400 | V48: 1055 | W48: 0.1014423077
A49: 08404 | B49: WOODLAND | C49: 10000 | D49: 0.001999405054 | E49: 36814.90087 | G49: 0 | H49: 35650.1 | J49: 0 | K49: 35649 | M49: 0 | N49: 35649 | Q49: 35649 | S49: 0 | T49: 35649 | U49: 37676 | V49: -2027 | W49: -0.05380082811
A50: 08458 | B50: KELSO | C50: 10000 | D50: 0.005758058283 | E50: 106000.7009 | G50: 0 | H50: 102647.1 | J50: 0 | K50: 102643 | M50: 0 | N50: 102643 | Q50: 102643 | S50: 0 | T50: 102643 | U50: 83410 | V50: 19233 | W50: 0.2305838628
A51: 09013 | B51: ORONDO | C51: 10000 | D51: 0.0004081864505 | E51: 7525.200872 | G51: 10000 | H51: 10000 | J51: 0 | K51: 10000 | M51: 0 | N51: 10000 | Q51: 10000 | S51: 0 | T51: 10000 | U51: 10000 | V51: 0 | W51: 0
A52: 09075 | B52: BRIDGEPORT | C52: 10000 | D52: 0.001328033742 | E52: 24456.90087 | G52: 0 | H52: 23683.1 | J52: 0 | K52: 23682 | M52: 0 | N52: 23682 | Q52: 23682 | S52: 0 | T52: 23682 | U52: 20154 | V52: 3528 | W52: 0.1750520988
A53: 09102 | B53: PALISADES | C53: 10000 | D53: 0.0001265493243 | E53: 2341.100872 | G53: 10000 | H53: 10000 | J53: 0 | K53: 10000 | M53: 0 | N53: 10000 | Q53: 10000 | S53: 0 | T53: 10000 | U53: 10000 | V53: 0 | W53: 0
A54: 09206 | B54: EASTMONT | C54: 10000 | D54: 0.006404327174 | E54: 117896.6009 | G54: 0 | H54: 114166.6 | J54: 0 | K54: 114163 | M54: 0 | N54: 114163 | Q54: 114163 | S54: 0 | T54: 114163 | U54: 85258 | V54: 28905 | W54: 0.3390297685
A55: 09207 | B55: MANSFIELD | C55: 0 | D55: 0 | E55: 0 | G55: 0 | H55: 0 | J55: 0 | K55: 0 | M55: 0 | N55: 0 | Q55: 0 | S55: 0 | T55: 0 | U55: 10000 | V55: -10000 | W55: -1
A56: 09209 | B56: WATERVILLE | C56: 10000 | D56: 0.0004142731794 | E56: 7637.200872 | G56: 10000 | H56: 10000 | J56: 0 | K56: 10000 | M56: 0 | N56: 10000 | Q56: 10000 | S56: 0 | T56: 10000 | U56: 10000 | V56: 0 | W56: 0
A57: 10003 | B57: KELLER | C57: 10000 | D57: 0.0002499613796 | E57: 4612.700872 | G57: 10000 | H57: 10000 | J57: 0 | K57: 10000 | M57: 0 | N57: 10000 | Q57: 10000 | S57: 0 | T57: 10000 | U57: 10000 | V57: 0 | W57: 0
A58: 10050 | B58: CURLEW | C58: 10000 | D58: 0.0002787943763 | E58: 5143.400872 | G58: 10000 | H58: 10000 | J58: 0 | K58: 10000 | M58: 0 | N58: 10000 | Q58: 10000 | S58: 0 | T58: 10000 | U58: 10000 | V58: 0 | W58: 0
A59: 10065 | B59: ORIENT | C59: 10000 | D59: 0.0001852183901 | E59: 3421.000872 | G59: 10000 | H59: 10000 | J59: 0 | K59: 10000 | M59: 0 | N59: 10000 | Q59: 10000 | S59: 0 | T59: 10000 | U59: 10000 | V59: 0 | W59: 0
A60: 10070 | B60: INCHELIUM | C60: 10000 | D60: 0.0005055314279 | E60: 9317.000872 | G60: 10000 | H60: 10000 | J60: 0 | K60: 10000 | M60: 0 | N60: 10000 | Q60: 10000 | S60: 0 | T60: 10000 | U60: 10000 | V60: 0 | W60: 0
A61: 10309 | B61: REPUBLIC | C61: 10000 | D61: 0.0004051174757 | E61: 7468.700872 | G61: 10000 | H61: 10000 | J61: 0 | K61: 10000 | M61: 0 | N61: 10000 | Q61: 10000 | S61: 0 | T61: 10000 | U61: 10000 | V61: 0 | W61: 0
A62: 11001 | B62: PASCO | C62: 10000 | D62: 0.0216542976 | E62: 398604.1009 | G62: 0 | H62: 385993.3 | J62: 0 | K62: 385981 | M62: 0 | N62: 385981 | Q62: 385981 | S62: 0 | T62: 385981 | U62: 343050 | V62: 42931 | W62: 0.1251450226
A63: 11051 | B63: NORTH FRANKLIN | C63: 10000 | D63: 0.003955080419 | E63: 72813.10087 | G63: 0 | H63: 70509.4 | J63: 0 | K63: 70507 | M63: 0 | N63: 70507 | Q63: 70507 | S63: 0 | T63: 70507 | U63: 66133 | V63: 4374 | W63: 0.06613944627
A64: 11054 | B64: STAR | C64: 0 | D64: 0 | E64: 0 | G64: 0 | H64: 0 | J64: 0 | K64: 0 | M64: 0 | N64: 0 | Q64: 0 | S64: 0 | T64: 0 | U64: 0 | V64: 0 | W64: 0
A65: 11056 | B65: KAHLOTUS | C65: 10000 | D65: 8.62215445e-06 | E65: 170.4008724 | G65: 10000 | H65: 10000 | J65: 0 | K65: 10000 | M65: 0 | N65: 10000 | Q65: 10000 | S65: 0 | T65: 10000 | U65: 10000 | V65: 0 | W65: 0
A66: 12110 | B66: POMEROY | C66: 10000 | D66: 0.0003844371102 | E66: 7088.000872 | G66: 10000 | H66: 10000 | J66: 0 | K66: 10000 | M66: 0 | N66: 10000 | Q66: 10000 | S66: 0 | T66: 10000 | U66: 10000 | V66: 0 | W66: 0
A67: 13073 | B67: WAHLUKE | C67: 10000 | D67: 0.002761415698 | E67: 50841.30087 | G67: 0 | H67: 49232.8 | J67: 0 | K67: 49231 | M67: 0 | N67: 49231 | Q67: 49231 | S67: 0 | T67: 49231 | U67: 43993 | V67: 5238 | W67: 0.1190643966
A68: 13144 | B68: QUINCY | C68: 10000 | D68: 0.004227502084 | E68: 77827.60087 | G68: 0 | H68: 75365.3 | J68: 0 | K68: 75363 | M68: 0 | N68: 75363 | Q68: 75363 | S68: 0 | T68: 75363 | U68: 63038 | V68: 12325 | W68: 0.1955169898
A69: 13146 | B69: WARDEN | C69: 10000 | D69: 0.001730120658 | E69: 31858.10087 | G69: 0 | H69: 30850.1 | J69: 0 | K69: 30849 | M69: 0 | N69: 30849 | Q69: 30849 | S69: 0 | T69: 30849 | U69: 24937 | V69: 5912 | W69: 0.2370774351
A70: 13151 | B70: COULEE-HARTLINE | C70: 10000 | D70: 0.0003348213066 | E70: 6174.700872 | G70: 10000 | H70: 10000 | J70: 0 | K70: 10000 | M70: 0 | N70: 10000 | Q70: 10000 | S70: 0 | T70: 10000 | U70: 10000 | V70: 0 | W70: 0
A71: 13156 | B71: SOAP LAKE | C71: 10000 | D71: 0.0008466059307 | E71: 15595.20087 | G71: 0 | H71: 15101.8 | J71: 0 | K71: 15101 | M71: 0 | N71: 15101 | Q71: 15101 | S71: 0 | T71: 15101 | U71: 15555 | V71: -454 | W71: -0.02918675667
A72: 13160 | B72: ROYAL | C72: 10000 | D72: 0.002579364456 | E72: 47490.20087 | G72: 0 | H72: 45987.7 | J72: 0 | K72: 45986 | M72: 0 | N72: 45986 | Q72: 45986 | S72: 0 | T72: 45986 | U72: 31873 | V72: 14113 | W72: 0.4427885671
A73: 13161 | B73: MOSES LAKE | C73: 10000 | D73: 0.008441050791 | E73: 155386.8009 | G73: 0 | H73: 150470.7 | J73: 0 | K73: 150466 | M73: 0 | N73: 150466 | Q73: 150466 | S73: 0 | T73: 150466 | U73: 125355 | V73: 25111 | W73: 0.2003190938
A74: 13165 | B74: EPHRATA | C74: 10000 | D74: 0.002394099114 | E74: 44080.00087 | G74: 0 | H74: 42685.4 | J74: 0 | K74: 42684 | M74: 0 | N74: 42684 | Q74: 42684 | S74: 0 | T74: 42684 | U74: 38696 | V74: 3988 | W74: 0.1030597478
A75: 13167 | B75: WILSON CREEK | C75: 10000 | D75: 9.844622289e-05 | E75: 1823.800872 | G75: 10000 | H75: 10000 | J75: 0 | K75: 10000 | M75: 0 | N75: 10000 | Q75: 10000 | S75: 0 | T75: 10000 | U75: 10000 | V75: 0 | W75: 0
A76: 13301 | B76: GRAND COULEE | C76: 10000 | D76: 0.0008030170984 | E76: 14792.90087 | G76: 0 | H76: 14324.8 | J76: 0 | K76: 14324 | M76: 0 | N76: 14324 | Q76: 14324 | S76: 0 | T76: 14324 | U76: 12399 | V76: 1925 | W76: 0.155254456
A77: 14005 | B77: ABERDEEN | C77: 10000 | D77: 0.007020392915 | E77: 129236.6009 | G77: 0 | H77: 125147.9 | J77: 0 | K77: 125144 | M77: 0 | N77: 125144 | Q77: 125144 | S77: 0 | T77: 125144 | U77: 83118 | V77: 42026 | W77: 0.5056185183
A78: 14028 | B78: HOQUIAM | C78: 10000 | D78: 0.002735207764 | E78: 50358.80087 | G78: 0 | H78: 48765.5 | J78: 0 | K78: 48764 | M78: 0 | N78: 48764 | Q78: 48764 | S78: 0 | T78: 48764 | U78: 45752 | V78: 3012 | W78: 0.06583318762
A79: 14064 | B79: NORTH BEACH | C79: 10000 | D79: 0.0006689255232 | E79: 12324.60087 | G79: 0 | H79: 11934.6 | J79: 0 | K79: 11934 | M79: 0 | N79: 11934 | Q79: 11934 | S79: 0 | T79: 11934 | U79: 11229 | V79: 705 | W79: 0.06278386321
A80: 14065 | B80: MCCLEARY | C80: 10000 | D80: 0.0006917571589 | E80: 12744.90087 | G80: 0 | H80: 12341.6 | J80: 0 | K80: 12341 | M80: 0 | N80: 12341 | Q80: 12341 | S80: 0 | T80: 12341 | U80: 11611 | V80: 730 | W80: 0.06287141504
A81: 14066 | B81: MONTESANO | C81: 10000 | D81: 0.0008823195774 | E81: 16252.60087 | G81: 0 | H81: 15738.4 | J81: 0 | K81: 15737 | M81: 0 | N81: 15737 | Q81: 15737 | S81: 0 | T81: 15737 | U81: 15696 | V81: 41 | W81: 0.002612130479
A82: 14068 | B82: ELMA | C82: 10000 | D82: 0.001839532384 | E82: 33872.10087 | G82: 0 | H82: 32800.4 | J82: 0 | K82: 32799 | M82: 0 | N82: 32799 | Q82: 32799 | S82: 0 | T82: 32799 | U82: 25663 | V82: 7136 | W82: 0.2780656977
A83: 14077 | B83: TAHOLAH | C83: 10000 | D83: 0.0004400969588 | E83: 8112.600872 | G83: 10000 | H83: 10000 | J83: 0 | K83: 10000 | M83: 0 | N83: 10000 | Q83: 10000 | S83: 0 | T83: 10000 | U83: 10000 | V83: 0 | W83: 0
A84: 14097 | B84: QUINAULT | C84: 10000 | D84: 0.0002406477454 | E84: 4441.300872 | G84: 10000 | H84: 10000 | J84: 0 | K84: 10000 | M84: 0 | N84: 10000 | Q84: 10000 | S84: 0 | T84: 10000 | U84: 10000 | V84: 0 | W84: 0
A85: 14099 | B85: COSMOPOLIS | C85: 10000 | D85: 0.0002197539602 | E85: 4056.700872 | G85: 10000 | H85: 10000 | J85: 0 | K85: 10000 | M85: 0 | N85: 10000 | Q85: 10000 | S85: 0 | T85: 10000 | U85: 10000 | V85: 0 | W85: 0
A86: 14104 | B86: SATSOP | C86: 10000 | D86: 9.361440168e-05 | E86: 1734.800872 | G86: 10000 | H86: 10000 | J86: 0 | K86: 10000 | M86: 0 | N86: 10000 | Q86: 10000 | S86: 0 | T86: 10000 | U86: 10000 | V86: 0 | W86: 0
A87: 14117 | B87: WISHKAH VALLEY | C87: 10000 | D87: 8.917954105e-05 | E87: 1653.200872 | G87: 10000 | H87: 10000 | J87: 0 | K87: 10000 | M87: 0 | N87: 10000 | Q87: 10000 | S87: 0 | T87: 10000 | U87: 10000 | V87: 0 | W87: 0
A88: 14172 | B88: OCOSTA | C88: 10000 | D88: 0.001138692084 | E88: 20971.60087 | G88: 0 | H88: 20308.1 | J88: 0 | K88: 20307 | M88: 0 | N88: 20307 | Q88: 20307 | S88: 0 | T88: 20307 | U88: 19078 | V88: 1229 | W88: 0.0644197505
A89: 14400 | B89: OAKVILLE | C89: 10000 | D89: 0.0007203553939 | E89: 13271.30087 | G89: 0 | H89: 12851.4 | J89: 0 | K89: 12851 | M89: 0 | N89: 12851 | Q89: 12851 | S89: 0 | T89: 12851 | U89: 10000 | V89: 2851 | W89: 0.2851
A90: 15201 | B90: OAK HARBOR | C90: 10000 | D90: 0.003950897394 | E90: 72736.10087 | G90: 0 | H90: 70434.9 | J90: 0 | K90: 70432 | M90: 0 | N90: 70432 | Q90: 70432 | S90: 0 | T90: 70432 | U90: 59679 | V90: 10753 | W90: 0.1801806331
A91: 15204 | B91: COUPEVILLE | C91: 10000 | D91: 0.001034918906 | E91: 19061.50087 | G91: 0 | H91: 18458.4 | J91: 0 | K91: 18457 | M91: 0 | N91: 18457 | Q91: 18457 | S91: 0 | T91: 18457 | U91: 16780 | V91: 1677 | W91: 0.09994040524
A92: 15206 | B92: SOUTH WHIDBEY | C92: 10000 | D92: 0.0007786957935 | E92: 14345.20087 | G92: 0 | H92: 13891.3 | J92: 0 | K92: 13890 | M92: 0 | N92: 13890 | Q92: 13890 | S92: 0 | T92: 13890 | U92: 11472 | V92: 2418 | W92: 0.2107740586
A93: 16020 | B93: QUEETS-CLEARWATER | C93: 10000 | D93: 0.0001092153792 | E93: 2022.000872 | G93: 10000 | H93: 10000 | J93: 0 | K93: 10000 | M93: 0 | N93: 10000 | Q93: 10000 | S93: 0 | T93: 10000 | U93: 10000 | V93: 0 | W93: 0
A94: 16046 | B94: BRINNON | C94: 10000 | D94: 0.0001535426435 | E94: 2837.900872 | G94: 10000 | H94: 10000 | J94: 0 | K94: 10000 | M94: 0 | N94: 10000 | Q94: 10000 | S94: 0 | T94: 10000 | U94: 10000 | V94: 0 | W94: 0
A95: 16048 | B95: QUILCENE | C95: 10000 | D95: 0.0001756614575 | E95: 3245.100872 | G95: 10000 | H95: 10000 | J95: 0 | K95: 10000 | M95: 0 | N95: 10000 | Q95: 10000 | S95: 0 | T95: 10000 | U95: 10000 | V95: 0 | W95: 0
A96: 16049 | B96: CHIMACUM | C96: 10000 | D96: 0.0007077038762 | E96: 13038.40087 | G96: 0 | H96: 12625.9 | J96: 0 | K96: 12625 | M96: 0 | N96: 12625 | Q96: 12625 | S96: 0 | T96: 12625 | U96: 11877 | V96: 748 | W96: 0.06297886672
A97: 16050 | B97: PORT TOWNSEND | C97: 10000 | D97: 0.001887842059 | E97: 34761.30087 | G97: 0 | H97: 33661.5 | J97: 0 | K97: 33660 | M97: 0 | N97: 33660 | Q97: 33660 | S97: 0 | T97: 33660 | U97: 30334 | V97: 3326 | W97: 0.1096459418
A98: 17001 | B98: SEATTLE | C98: 10000 | D98: 0.05486505662 | E98: 1009917.301 | G98: 0 | H98: 977966.2 | J98: 0 | K98: 977936 | M98: 0 | N98: 977936 | Q98: 978017 | S98: 0 | T98: 978017 | U98: 708126 | V98: 269891 | W98: 0.3811341484
A99: 17210 | B99: FEDERAL WAY | C99: 10000 | D99: 0.03104162558 | E99: 571397.4009 | G99: 0 | H99: 553319.9 | J99: 0 | K99: 553303 | M99: 0 | N99: 553303 | Q99: 553303 | S99: 0 | T99: 553303 | U99: 362708 | V99: 190595 | W99: 0.5254777948
A100: 17216 | B100: ENUMCLAW | C100: 10000 | D100: 0.00248509699 | E100: 45755.00087 | G100: 0 | H100: 44307.4 | J100: 0 | K100: 44306 | M100: 0 | N100: 44306 | Q100: 44306 | S100: 0 | T100: 44306 | U100: 31259 | V100: 13047 | W100: 0.4173837935
A101: 17400 | B101: MERCER ISLAND | C101: 10000 | D101: 0.0004321364053 | E101: 7966.000872 | G101: 10000 | H101: 10000 | J101: 0 | K101: 10000 | M101: 0 | N101: 10000 | Q101: 10000 | S101: 0 | T101: 10000 | U101: 10000 | V101: 0 | W101: 0
A102: 17401 | B102: HIGHLINE | C102: 10000 | D102: 0.03205546716 | E102: 590059.3009 | G102: 0 | H102: 571391.4 | J102: 0 | K102: 571373 | M102: 0 | N102: 571373 | Q102: 571373 | S102: 0 | T102: 571373 | U102: 409917 | V102: 161456 | W102: 0.3938748576
A103: 17402 | B103: VASHON ISLAND | C103: 10000 | D103: 0.0006248799728 | E103: 11513.90087 | G103: 0 | H103: 11149.6 | J103: 0 | K103: 11149 | M103: 0 | N103: 11149 | Q103: 11149 | S103: 0 | T103: 11149 | U103: 10000 | V103: 1149 | W103: 0.1149
A104: 17403 | B104: RENTON | C104: 10000 | D104: 0.02010728675 | E104: 370128.1009 | G104: 0 | H104: 358418.2 | J104: 0 | K104: 358407 | M104: 0 | N104: 358407 | Q104: 358407 | S104: 0 | T104: 358407 | U104: 243306 | V104: 115101 | W104: 0.4730709477
A105: 17404 | B105: SKYKOMISH | C105: 10000 | D105: 7.589203273e-06 | E105: 151.3008724 | G105: 10000 | H105: 10000 | J105: 0 | K105: 10000 | M105: 0 | N105: 10000 | Q105: 10000 | S105: 0 | T105: 10000 | U105: 10000 | V105: 0 | W105: 0
A106: 17405 | B106: BELLEVUE | C106: 10000 | D106: 0.00839636925 | E106: 154564.3009 | G106: 0 | H106: 149674.3 | J106: 0 | K106: 149669 | M106: 0 | N106: 149669 | Q106: 149669 | S106: 0 | T106: 149669 | U106: 101871 | V106: 47798 | W106: 0.4692012447
A107: 17406 | B107: TUKWILA | C107: 10000 | D107: 0.007360874111 | E107: 135503.9009 | G107: 0 | H107: 131216.9 | J107: 0 | K107: 131212 | M107: 0 | N107: 131212 | Q107: 131212 | S107: 0 | T107: 131212 | U107: 102987 | V107: 28225 | W107: 0.2740637168
A108: 17407 | B108: RIVERVIEW | C108: 10000 | D108: 0.001248009904 | E108: 22983.90087 | G108: 0 | H108: 22256.7 | J108: 0 | K108: 22256 | M108: 0 | N108: 22256 | Q108: 22256 | S108: 0 | T108: 22256 | U108: 20905 | V108: 1351 | W108: 0.06462568763
A109: 17408 | B109: AUBURN | C109: 10000 | D109: 0.01966442387 | E109: 361976.3009 | G109: 0 | H109: 350524.3 | J109: 0 | K109: 350513 | M109: 0 | N109: 350513 | Q109: 350513 | S109: 0 | T109: 350513 | U109: 260780 | V109: 89733 | W109: 0.3440946392
A110: 17409 | B110: TAHOMA | C110: 10000 | D110: 0.0009969686212 | E110: 18362.90087 | G110: 0 | H110: 17781.9 | J110: 0 | K110: 17781 | M110: 0 | N110: 17781 | Q110: 17781 | S110: 0 | T110: 17781 | U110: 15350 | V110: 2431 | W110: 0.1583713355
A111: 17410 | B111: SNOQUALMIE VALLEY | C111: 10000 | D111: 0.00218227156 | E111: 40180.90087 | G111: 0 | H111: 38909.6 | J111: 0 | K111: 38908 | M111: 0 | N111: 38908 | Q111: 38908 | S111: 0 | T111: 38908 | U111: 14834 | V111: 24074 | W111: 1.622893353
A112: 17411 | B112: ISSAQUAH | C112: 10000 | D112: 0.002683534594 | E112: 49407.70087 | G112: 0 | H112: 47844.5 | J112: 0 | K112: 47843 | M112: 0 | N112: 47843 | Q112: 47843 | S112: 0 | T112: 47843 | U112: 28302 | V112: 19541 | W112: 0.6904459049
A113: 17412 | B113: SHORELINE | C113: 10000 | D113: 0.004220151911 | E113: 77692.30087 | G113: 0 | H113: 75234.3 | J113: 0 | K113: 75232 | M113: 0 | N113: 75232 | Q113: 75232 | S113: 0 | T113: 75232 | U113: 55256 | V113: 19976 | W113: 0.3615173013
A114: 17414 | B114: LAKE WASHINGTON | C114: 10000 | D114: 0.008672436123 | E114: 159645.9009 | G114: 0 | H114: 154595.1 | J114: 0 | K114: 154590 | M114: 0 | N114: 154590 | Q114: 154590 | S114: 0 | T114: 154590 | U114: 56273 | V114: 98317 | W114: 1.74714339
A115: 17415 | B115: KENT | C115: 10000 | D115: 0.03748212312 | E115: 689948.2009 | G115: 0 | H115: 668120.1 | J115: 0 | K115: 668099 | M115: 0 | N115: 668099 | Q115: 668099 | S115: 0 | T115: 668099 | U115: 412382 | V115: 255717 | W115: 0.6200973854
A116: 17417 | B116: NORTHSHORE | C116: 10000 | D116: 0.002782428999 | E116: 51228.10087 | G116: 0 | H116: 49607.3 | J116: 0 | K116: 49605 | M116: 0 | N116: 49605 | Q116: 49605 | S116: 0 | T116: 49605 | U116: 43227 | V116: 6378 | W116: 0.1475466722
A117: 17902 | B117: SUMMIT SIERRA CHARTER | C117: 10000 | D117: 0.000453188121 | E117: 8353.500872 | G117: 10000 | H117: 10000 | J117: 0 | K117: 10000 | M117: 0 | N117: 10000 | Q117: 10000 | S117: 0 | T117: 10000 | U117: 10000 | V117: 0 | W117: 0
A118: 17905 | B118: SUMMIT ATLAS CHARTER | C118: 10000 | D118: 0.0005761989473 | E118: 10617.80087 | G118: 0 | H118: 10281.8 | J118: 0 | K118: 10281 | M118: 0 | N118: 10281 | Q118: 10281 | S118: 0 | T118: 10281 | U118: 10000 | V118: 281 | W118: 0.0281
A119: 17908 | B119: RAINIER PREP CHARTER | C119: 10000 | D119: 0.0005962860061 | E119: 10987.50087 | G119: 0 | H119: 10639.8 | J119: 0 | K119: 10639 | M119: 0 | N119: 10639 | Q119: 10639 | S119: 0 | T119: 10639 | U119: 10000 | V119: 639 | W119: 0.0639
A120: 17910 | B120: RAINIER VALLEY CHARTER | C120: 10000 | D120: 0.000608570442 | E120: 11213.70087 | G120: 0 | H120: 10858.9 | J120: 0 | K120: 10858 | M120: 0 | N120: 10858 | Q120: 10858 | S120: 0 | T120: 10858 | U120: 10000 | V120: 858 | W120: 0.0858
A121: 17911 | B121: IMPACT CHARTER | C121: 10000 | D121: 0.0004502045141 | E121: 8298.600872 | G121: 10000 | H121: 10000 | J121: 0 | K121: 10000 | M121: 0 | N121: 10000 | Q121: 10000 | S121: 0 | T121: 10000 | U121: 10000 | V121: 0 | W121: 0
A122: 17916 | B122: IMPACT SALISH SEA ELEMENTARY CHARTER | C122: 0 | D122: 0 | E122: 0 | G122: 0 | H122: 0 | J122: 0 | K122: 0 | M122: 0 | N122: 0 | Q122: 0 | S122: 0 | T122: 0 | U122: 0 | V122: 0 | W122: 0
A123: 18100 | B123: BREMERTON | C123: 10000 | D123: 0.005541176951 | E123: 102008.6009 | G123: 0 | H123: 98781.3 | J123: 0 | K123: 98778 | M123: 0 | N123: 98778 | Q123: 98778 | S123: 0 | T123: 98778 | U123: 90197 | V123: 8581 | W123: 0.09513620187
A124: 18303 | B124: BAINBRIDGE ISLAND | C124: 10000 | D124: 0.0004087754888 | E124: 7536.000872 | G124: 10000 | H124: 10000 | J124: 0 | K124: 10000 | M124: 0 | N124: 10000 | Q124: 10000 | S124: 0 | T124: 10000 | U124: 10000 | V124: 0 | W124: 0
A125: 18400 | B125: NORTH KITSAP | C125: 10000 | D125: 0.002845605488 | E125: 52390.90087 | G125: 0 | H125: 50733.3 | J125: 0 | K125: 50731 | M125: 0 | N125: 50731 | Q125: 50731 | S125: 0 | T125: 50731 | U125: 41472 | V125: 9259 | W125: 0.2232590664
A126: 18401 | B126: CENTRAL KITSAP | C126: 10000 | D126: 0.004737041534 | E126: 87206.80087 | G126: 0 | H126: 84447.8 | J126: 0 | K126: 84445 | M126: 0 | N126: 84445 | Q126: 84445 | S126: 0 | T126: 84445 | U126: 77111 | V126: 7334 | W126: 0.09510964713
A127: 18402 | B127: SOUTH KITSAP | C127: 10000 | D127: 0.007773320418 | E127: 143095.8009 | G127: 0 | H127: 138568.6 | J127: 0 | K127: 138564 | M127: 0 | N127: 138564 | Q127: 138564 | S127: 0 | T127: 138564 | U127: 122905 | V127: 15659 | W127: 0.1274073471
A128: 18901 | B128: CATALYST CHARTER | C128: 0 | D128: 0 | E128: 0 | G128: 0 | H128: 0 | J128: 0 | K128: 0 | M128: 0 | N128: 0 | Q128: 0 | S128: 0 | T128: 0 | U128: 0 | V128: 0 | W128: 0
A129: 18902 | B129: SUQUAMISH | C129: 10000 | D129: 7.97933442e-05 | E129: 1480.400872 | G129: 10000 | H129: 10000 | J129: 0 | K129: 10000 | M129: 0 | N129: 10000 | Q129: 10000 | S129: 0 | T129: 10000 | U129: 10000 | V129: 0 | W129: 0
A130: 19007 | B130: DAMMAN | C130: 0 | D130: 0 | E130: 0 | G130: 0 | H130: 0 | J130: 0 | K130: 0 | M130: 0 | N130: 0 | Q130: 0 | S130: 0 | T130: 0 | U130: 0 | V130: 0 | W130: 0
A131: 19028 | B131: EASTON | C131: 10000 | D131: 5.287258771e-05 | E131: 984.9008724 | G131: 10000 | H131: 10000 | J131: 0 | K131: 10000 | M131: 0 | N131: 10000 | Q131: 10000 | S131: 0 | T131: 10000 | U131: 10000 | V131: 0 | W131: 0
A132: 19400 | B132: THORP | C132: 10000 | D132: 0.000129780498 | E132: 2400.500872 | G132: 10000 | H132: 10000 | J132: 0 | K132: 10000 | M132: 0 | N132: 10000 | Q132: 10000 | S132: 0 | T132: 10000 | U132: 10000 | V132: 0 | W132: 0
A133: 19401 | B133: ELLENSBURG | C133: 10000 | D133: 0.003137704446 | E133: 57767.60087 | G133: 0 | H133: 55939.9 | J133: 0 | K133: 55938 | M133: 0 | N133: 55938 | Q133: 55938 | S133: 0 | T133: 55938 | U133: 42320 | V133: 13618 | W133: 0.3217863894
A134: 19403 | B134: KITTITAS | C134: 10000 | D134: 0.0004304503899 | E134: 7935.000872 | G134: 10000 | H134: 10000 | J134: 0 | K134: 10000 | M134: 0 | N134: 10000 | Q134: 10000 | S134: 0 | T134: 10000 | U134: 10000 | V134: 0 | W134: 0
A135: 19404 | B135: CLE ELUM-ROSLYN | C135: 10000 | D135: 0.0007900795984 | E135: 14554.70087 | G135: 0 | H135: 14094.2 | J135: 0 | K135: 14093 | M135: 0 | N135: 14093 | Q135: 14093 | S135: 0 | T135: 14093 | U135: 14812 | V135: -719 | W135: -0.04854172293
A136: 20094 | B136: WISHRAM | C136: 10000 | D136: 0.0001585238585 | E136: 2929.600872 | G136: 10000 | H136: 10000 | J136: 0 | K136: 10000 | M136: 0 | N136: 10000 | Q136: 10000 | S136: 0 | T136: 10000 | U136: 10000 | V136: 0 | W136: 0
A137: 20203 | B137: BICKLETON | C137: 10000 | D137: 6.989920855e-05 | E137: 1298.300872 | G137: 10000 | H137: 10000 | J137: 0 | K137: 10000 | M137: 0 | N137: 10000 | Q137: 10000 | S137: 0 | T137: 10000 | U137: 10000 | V137: 0 | W137: 0
A138: 20215 | B138: CENTERVILLE | C138: 10000 | D138: 0.0001188363376 | E138: 2199.100872 | G138: 10000 | H138: 10000 | J138: 0 | K138: 10000 | M138: 0 | N138: 10000 | Q138: 10000 | S138: 0 | T138: 10000 | U138: 10000 | V138: 0 | W138: 0
A139: 20400 | B139: TROUT LAKE | C139: 10000 | D139: 0.0002541870889 | E139: 4690.500872 | G139: 10000 | H139: 10000 | J139: 0 | K139: 10000 | M139: 0 | N139: 10000 | Q139: 10000 | S139: 0 | T139: 10000 | U139: 10000 | V139: 0 | W139: 0
A140: 20401 | B140: GLENWOOD | C140: 0 | D140: 0 | E140: 0 | G140: 0 | H140: 0 | J140: 0 | K140: 0 | M140: 0 | N140: 0 | Q140: 0 | S140: 0 | T140: 0 | U140: 10000 | V140: -10000 | W140: -1
A141: 20402 | B141: KLICKITAT | C141: 10000 | D141: 0.0001357690538 | E141: 2510.800872 | G141: 10000 | H141: 10000 | J141: 0 | K141: 10000 | M141: 0 | N141: 10000 | Q141: 10000 | S141: 0 | T141: 10000 | U141: 10000 | V141: 0 | W141: 0
A142: 20403 | B142: ROOSEVELT | C142: 10000 | D142: 6.436737084e-06 | E142: 130.1008724 | G142: 10000 | H142: 10000 | J142: 0 | K142: 10000 | M142: 0 | N142: 10000 | Q142: 10000 | S142: 0 | T142: 10000 | U142: 10000 | V142: 0 | W142: 0
A143: 20404 | B143: GOLDENDALE | C143: 10000 | D143: 0.001644321685 | E143: 30278.80087 | G143: 0 | H143: 29320.8 | J143: 0 | K143: 29319 | M143: 0 | N143: 29319 | Q143: 29319 | S143: 0 | T143: 29319 | U143: 23503 | V143: 5816 | W143: 0.2474577713
A144: 20405 | B144: WHITE SALMON | C144: 10000 | D144: 0.0009097397359 | E144: 16757.30087 | G144: 0 | H144: 16227.1 | J144: 0 | K144: 16226 | M144: 0 | N144: 16226 | Q144: 16226 | S144: 0 | T144: 16226 | U144: 15023 | V144: 1203 | W144: 0.08007721494
A145: 20406 | B145: LYLE | C145: 10000 | D145: 0.0008608666327 | E145: 15857.70087 | G145: 0 | H145: 15356 | J145: 0 | K145: 15355 | M145: 0 | N145: 15355 | Q145: 15355 | S145: 0 | T145: 15355 | U145: 10000 | V145: 5355 | W145: 0.5355
A146: 21014 | B146: NAPAVINE | C146: 10000 | D146: 0.0005320338819 | E146: 9804.800872 | G146: 10000 | H146: 10000 | J146: 0 | K146: 10000 | M146: 0 | N146: 10000 | Q146: 10000 | S146: 0 | T146: 10000 | U146: 10000 | V146: 0 | W146: 0
A147: 21036 | B147: EVALINE | C147: 10000 | D147: 0.0003886201357 | E147: 7165.000872 | G147: 10000 | H147: 10000 | J147: 0 | K147: 10000 | M147: 0 | N147: 10000 | Q147: 10000 | S147: 0 | T147: 10000 | U147: 10000 | V147: 0 | W147: 0
A148: 21206 | B148: MOSSYROCK | C148: 10000 | D148: 0.0005527740049 | E148: 10186.60087 | G148: 0 | H148: 9864.3 | J148: 10000 | K148: 10000 | M148: 0 | N148: 10000 | Q148: 10000 | S148: 0 | T148: 10000 | U148: 10000 | V148: 0 | W148: 0
A149: 21214 | B149: MORTON | C149: 10000 | D149: 0.000451288686 | E149: 8318.600872 | G149: 10000 | H149: 10000 | J149: 0 | K149: 10000 | M149: 0 | N149: 10000 | Q149: 10000 | S149: 0 | T149: 10000 | U149: 10000 | V149: 0 | W149: 0
A150: 21226 | B150: ADNA | C150: 10000 | D150: 0.0006061758734 | E150: 11169.60087 | G150: 0 | H150: 10816.2 | J150: 0 | K150: 10815 | M150: 0 | N150: 10815 | Q150: 10815 | S150: 0 | T150: 10815 | U150: 10322 | V150: 493 | W150: 0.04776206162
A151: 21232 | B151: WINLOCK | C151: 10000 | D151: 0.001381785618 | E151: 25446.30087 | G151: 0 | H151: 24641.2 | J151: 0 | K151: 24640 | M151: 0 | N151: 24640 | Q151: 24640 | S151: 0 | T151: 24640 | U151: 23140 | V151: 1500 | W151: 0.06482281763
A152: 21234 | B152: BOISTFORT | C152: 10000 | D152: 0.0001328195941 | E152: 2456.500872 | G152: 10000 | H152: 10000 | J152: 0 | K152: 10000 | M152: 0 | N152: 10000 | Q152: 10000 | S152: 0 | T152: 10000 | U152: 10000 | V152: 0 | W152: 0
A153: 21237 | B153: TOLEDO | C153: 10000 | D153: 0.0005573838697 | E153: 10271.50087 | G153: 0 | H153: 9946.5 | J153: 10000 | K153: 10000 | M153: 0 | N153: 10000 | Q153: 10000 | S153: 0 | T153: 10000 | U153: 10000 | V153: 0 | W153: 0
A154: 21300 | B154: ONALASKA | C154: 10000 | D154: 0.0005864260176 | E154: 10806.00087 | G154: 0 | H154: 10464.1 | J154: 0 | K154: 10463 | M154: 0 | N154: 10463 | Q154: 10463 | S154: 0 | T154: 10463 | U154: 10000 | V154: 463 | W154: 0.0463
A155: 21301 | B155: PE ELL | C155: 10000 | D155: 0.0001789822675 | E155: 3306.200872 | G155: 10000 | H155: 10000 | J155: 0 | K155: 10000 | M155: 0 | N155: 10000 | Q155: 10000 | S155: 0 | T155: 10000 | U155: 10000 | V155: 0 | W155: 0
A156: 21302 | B156: CHEHALIS | C156: 10000 | D156: 0.002429744466 | E156: 44736.20087 | G156: 0 | H156: 43320.8 | J156: 0 | K156: 43319 | M156: 0 | N156: 43319 | Q156: 43319 | S156: 0 | T156: 43319 | U156: 35401 | V156: 7918 | W156: 0.2236659981
A157: 21303 | B157: WHITE PASS | C157: 10000 | D157: 0.0005703512485 | E157: 10510.20087 | G157: 0 | H157: 10177.6 | J157: 0 | K157: 10177 | M157: 0 | N157: 10177 | Q157: 10177 | S157: 0 | T157: 10177 | U157: 10000 | V157: 177 | W157: 0.0177
A158: 21401 | B158: CENTRALIA | C158: 10000 | D158: 0.005634723058 | E158: 103730.5009 | G158: 0 | H158: 100448.7 | J158: 0 | K158: 100445 | M158: 0 | N158: 100445 | Q158: 100445 | S158: 0 | T158: 100445 | U158: 84322 | V158: 16123 | W158: 0.1912075141
A159: 22008 | B159: SPRAGUE | C159: 10000 | D159: 0.000105241505 | E159: 1948.800872 | G159: 10000 | H159: 10000 | J159: 0 | K159: 10000 | M159: 0 | N159: 10000 | Q159: 10000 | S159: 0 | T159: 10000 | U159: 10000 | V159: 0 | W159: 0
A160: 22009 | B160: REARDAN-EDWALL | C160: 10000 | D160: 0.0005195829787 | E160: 9575.700872 | G160: 10000 | H160: 10000 | J160: 0 | K160: 10000 | M160: 0 | N160: 10000 | Q160: 10000 | S160: 0 | T160: 10000 | U160: 10000 | V160: 0 | W160: 0
A161: 22017 | B161: ALMIRA | C161: 10000 | D161: 7.277610563e-06 | E161: 145.6008724 | G161: 10000 | H161: 10000 | J161: 0 | K161: 10000 | M161: 0 | N161: 10000 | Q161: 10000 | S161: 0 | T161: 10000 | U161: 10000 | V161: 0 | W161: 0
A162: 22073 | B162: CRESTON | C162: 10000 | D162: 6.24892778e-05 | E162: 1161.900872 | G162: 10000 | H162: 10000 | J162: 0 | K162: 10000 | M162: 0 | N162: 10000 | Q162: 10000 | S162: 0 | T162: 10000 | U162: 10000 | V162: 0 | W162: 0
A163: 22105 | B163: ODESSA | C163: 10000 | D163: 0.0002095525003 | E163: 3868.900872 | G163: 10000 | H163: 10000 | J163: 0 | K163: 10000 | M163: 0 | N163: 10000 | Q163: 10000 | S163: 0 | T163: 10000 | U163: 10000 | V163: 0 | W163: 0
A164: 22200 | B164: WILBUR | C164: 10000 | D164: 0.0001345909773 | E164: 2489.100872 | G164: 10000 | H164: 10000 | J164: 0 | K164: 10000 | M164: 0 | N164: 10000 | Q164: 10000 | S164: 0 | T164: 10000 | U164: 10000 | V164: 0 | W164: 0
A165: 22204 | B165: HARRINGTON | C165: 10000 | D165: 0.000152181026 | E165: 2812.900872 | G165: 10000 | H165: 10000 | J165: 0 | K165: 10000 | M165: 0 | N165: 10000 | Q165: 10000 | S165: 0 | T165: 10000 | U165: 10000 | V165: 0 | W165: 0
A166: 22207 | B166: DAVENPORT | C166: 10000 | D166: 0.0006087369093 | E166: 11216.70087 | G166: 0 | H166: 10861.8 | J166: 0 | K166: 10861 | M166: 0 | N166: 10861 | Q166: 10861 | S166: 0 | T166: 10861 | U166: 10224 | V166: 637 | W166: 0.06230438185
A167: 23042 | B167: SOUTHSIDE | C167: 10000 | D167: 0.0002883299669 | E167: 5319.000872 | G167: 10000 | H167: 10000 | J167: 0 | K167: 10000 | M167: 0 | N167: 10000 | Q167: 10000 | S167: 0 | T167: 10000 | U167: 10000 | V167: 0 | W167: 0
A168: 23054 | B168: GRAPEVIEW | C168: 10000 | D168: 0.0002926922648 | E168: 5399.300872 | G168: 10000 | H168: 10000 | J168: 0 | K168: 10000 | M168: 0 | N168: 10000 | Q168: 10000 | S168: 0 | T168: 10000 | U168: 10000 | V168: 0 | W168: 0
A169: 23309 | B169: SHELTON | C169: 10000 | D169: 0.004996009223 | E169: 91973.60087 | G169: 0 | H169: 89063.8 | J169: 0 | K169: 89061 | M169: 0 | N169: 89061 | Q169: 89061 | S169: 0 | T169: 89061 | U169: 83525 | V169: 5536 | W169: 0.06627955702
A170: 23311 | B170: MARY M KNIGHT | C170: 10000 | D170: 0.0003182343303 | E170: 5869.400872 | G170: 10000 | H170: 10000 | J170: 0 | K170: 10000 | M170: 0 | N170: 10000 | Q170: 10000 | S170: 0 | T170: 10000 | U170: 10000 | V170: 0 | W170: 0
A171: 23402 | B171: PIONEER | C171: 10000 | D171: 0.001544872389 | E171: 28448.20087 | G171: 0 | H171: 27548.1 | J171: 0 | K171: 27547 | M171: 0 | N171: 27547 | Q171: 27547 | S171: 0 | T171: 27547 | U171: 25864 | V171: 1683 | W171: 0.06507114135
A172: 23403 | B172: NORTH MASON | C172: 10000 | D172: 0.002515184895 | E172: 46308.90087 | G172: 0 | H172: 44843.8 | J172: 0 | K172: 44842 | M172: 0 | N172: 44842 | Q172: 44842 | S172: 0 | T172: 44842 | U172: 39362 | V172: 5480 | W172: 0.1392205681
A173: 23404 | B173: HOOD CANAL | C173: 10000 | D173: 0.0009561670498 | E173: 17611.90087 | G173: 0 | H173: 17054.7 | J173: 0 | K173: 17054 | M173: 0 | N173: 17054 | Q173: 17054 | S173: 0 | T173: 17054 | U173: 17031 | V173: 23 | W173: 0.001350478539
A174: 24014 | B174: NESPELEM | C174: 10000 | D174: 0.0006470798863 | E174: 11922.50087 | G174: 0 | H174: 11545.3 | J174: 0 | K174: 11544 | M174: 0 | N174: 11544 | Q174: 11544 | S174: 0 | T174: 11544 | U174: 10799 | V174: 745 | W174: 0.06898786925
A175: 24019 | B175: OMAK | C175: 10000 | D175: 0.002698533728 | E175: 49683.80087 | G175: 0 | H175: 48111.9 | J175: 0 | K175: 48110 | M175: 0 | N175: 48110 | Q175: 48110 | S175: 0 | T175: 48110 | U175: 37654 | V175: 10456 | W175: 0.2776863016
A176: 24105 | B176: OKANOGAN | C176: 10000 | D176: 0.001749593068 | E176: 32216.60087 | G176: 0 | H176: 31197.3 | J176: 0 | K176: 31196 | M176: 0 | N176: 31196 | Q176: 31196 | S176: 0 | T176: 31196 | U176: 26768 | V176: 4428 | W176: 0.1654213987
A177: 24111 | B177: BREWSTER | C177: 10000 | D177: 0.001420529824 | E177: 26159.50087 | G177: 0 | H177: 25331.8 | J177: 0 | K177: 25331 | M177: 0 | N177: 25331 | Q177: 25331 | S177: 0 | T177: 25331 | U177: 23918 | V177: 1413 | W177: 0.05907684589
A178: 24122 | B178: PATEROS | C178: 10000 | D178: 0.0003741545508 | E178: 6898.700872 | G178: 10000 | H178: 10000 | J178: 0 | K178: 10000 | M178: 0 | N178: 10000 | Q178: 10000 | S178: 0 | T178: 10000 | U178: 10000 | V178: 0 | W178: 0
A179: 24350 | B179: METHOW VALLEY | C179: 10000 | D179: 0.0009652032384 | E179: 17778.20087 | G179: 0 | H179: 17215.7 | J179: 0 | K179: 17215 | M179: 0 | N179: 17215 | Q179: 17215 | S179: 0 | T179: 17215 | U179: 15250 | V179: 1965 | W179: 0.128852459
A180: 24404 | B180: TONASKET | C180: 10000 | D180: 0.001372950044 | E180: 25283.70087 | G180: 0 | H180: 24483.7 | J180: 0 | K180: 24482 | M180: 0 | N180: 24482 | Q180: 24482 | S180: 0 | T180: 24482 | U180: 18158 | V180: 6324 | W180: 0.3482762419
A181: 24410 | B181: OROVILLE | C181: 10000 | D181: 0.001528801889 | E181: 28152.40087 | G181: 0 | H181: 27261.7 | J181: 0 | K181: 27260 | M181: 0 | N181: 27260 | Q181: 27260 | S181: 0 | T181: 27260 | U181: 25596 | V181: 1664 | W181: 0.06501015784
A182: 25101 | B182: OCEAN BEACH | C182: 10000 | D182: 0.001105210807 | E182: 20355.40087 | G182: 0 | H182: 19711.4 | J182: 0 | K182: 19710 | M182: 0 | N182: 19710 | Q182: 19710 | S182: 0 | T182: 19710 | U182: 15312 | V182: 4398 | W182: 0.2872257053
A183: 25116 | B183: RAYMOND | C183: 10000 | D183: 0.0009244272772 | E183: 17027.70087 | G183: 0 | H183: 16488.9 | J183: 0 | K183: 16488 | M183: 0 | N183: 16488 | Q183: 16488 | S183: 0 | T183: 16488 | U183: 13992 | V183: 2496 | W183: 0.1783876501
A184: 25118 | B184: SOUTH BEND | C184: 10000 | D184: 0.001021806402 | E184: 18820.10087 | G184: 0 | H184: 18224.6 | J184: 0 | K184: 18224 | M184: 0 | N184: 18224 | Q184: 18224 | S184: 0 | T184: 18224 | U184: 13826 | V184: 4398 | W184: 0.3180963402
A185: 25155 | B185: NASELLE-GRAYS | C185: 10000 | D185: 0.0003207228036 | E185: 5915.200872 | G185: 10000 | H185: 10000 | J185: 0 | K185: 10000 | M185: 0 | N185: 10000 | Q185: 10000 | S185: 0 | T185: 10000 | U185: 10000 | V185: 0 | W185: 0
A186: 25160 | B186: WILLAPA VALLEY | C186: 10000 | D186: 0.0007308257627 | E186: 13464.00087 | G186: 0 | H186: 13038 | J186: 0 | K186: 13037 | M186: 0 | N186: 13037 | Q186: 13037 | S186: 0 | T186: 13037 | U186: 10000 | V186: 3037 | W186: 0.3037
A187: 25200 | B187: NORTH RIVER | C187: 10000 | D187: 6.556252097e-06 | E187: 132.3008724 | G187: 10000 | H187: 10000 | J187: 0 | K187: 10000 | M187: 0 | N187: 10000 | Q187: 10000 | S187: 0 | T187: 10000 | U187: 10000 | V187: 0 | W187: 0
A188: 26056 | B188: NEWPORT | C188: 10000 | D188: 0.00168458117 | E188: 31019.90087 | G188: 0 | H188: 30038.5 | J188: 0 | K188: 30037 | M188: 0 | N188: 30037 | Q188: 30037 | S188: 0 | T188: 30037 | U188: 30792 | V188: -755 | W188: -0.02451935568
A189: 26059 | B189: CUSICK | C189: 10000 | D189: 0.000582490559 | E189: 10733.60087 | G189: 0 | H189: 10394 | J189: 0 | K189: 10393 | M189: 0 | N189: 10393 | Q189: 10393 | S189: 0 | T189: 10393 | U189: 10000 | V189: 393 | W189: 0.0393
A190: 26070 | B190: SELKIRK | C190: 10000 | D190: 0.0005464183673 | E190: 10069.60087 | G190: 0 | H190: 9751 | J190: 10000 | K190: 10000 | M190: 0 | N190: 10000 | Q190: 10000 | S190: 0 | T190: 10000 | U190: 10000 | V190: 0 | W190: 0
A191: 27001 | B191: STEILACOOM | C191: 10000 | D191: 0.001354758152 | E191: 24948.80087 | G191: 0 | H191: 24159.4 | J191: 0 | K191: 24158 | M191: 0 | N191: 24158 | Q191: 24158 | S191: 0 | T191: 24158 | U191: 22688 | V191: 1470 | W191: 0.06479196051
A192: 27003 | B192: PUYALLUP | C192: 10000 | D192: 0.01236113465 | E192: 227544.1009 | G192: 0 | H192: 220345.2 | J192: 0 | K192: 220338 | M192: 0 | N192: 220338 | Q192: 220338 | S192: 0 | T192: 220338 | U192: 190364 | V192: 29974 | W192: 0.1574562417
A193: 27010 | B193: TACOMA | C193: 10000 | D193: 0.04240267568 | E193: 780521.2009 | G193: 0 | H193: 755827.6 | J193: 0 | K193: 755804 | M193: 0 | N193: 755804 | Q193: 755804 | S193: 0 | T193: 755804 | U193: 708501 | V193: 47303 | W193: 0.06676490224
A194: 27019 | B194: CARBONADO | C194: 10000 | D194: 0.000103320728 | E194: 1913.500872 | G194: 10000 | H194: 10000 | J194: 0 | K194: 10000 | M194: 0 | N194: 10000 | Q194: 10000 | S194: 0 | T194: 10000 | U194: 10000 | V194: 0 | W194: 0
A195: 27083 | B195: UNIVERSITY PLACE | C195: 10000 | D195: 0.003231412752 | E195: 59492.50087 | G195: 0 | H195: 57610.3 | J195: 0 | K195: 57608 | M195: 0 | N195: 57608 | Q195: 57608 | S195: 0 | T195: 57608 | U195: 50428 | V195: 7180 | W195: 0.1423812168
A196: 27320 | B196: SUMNER | C196: 10000 | D196: 0.003739103987 | E196: 68837.60087 | G196: 0 | H196: 66659.7 | J196: 0 | K196: 66657 | M196: 0 | N196: 66657 | Q196: 66657 | S196: 0 | T196: 66657 | U196: 63605 | V196: 3052 | W196: 0.04798364908
A197: 27343 | B197: DIERINGER | C197: 10000 | D197: 0.0002580457165 | E197: 4761.500872 | G197: 10000 | H197: 10000 | J197: 0 | K197: 10000 | M197: 0 | N197: 10000 | Q197: 10000 | S197: 0 | T197: 10000 | U197: 10000 | V197: 0 | W197: 0
A198: 27344 | B198: ORTING | C198: 10000 | D198: 0.001667469182 | E198: 30704.90087 | G198: 0 | H198: 29733.4 | J198: 0 | K198: 29732 | M198: 0 | N198: 29732 | Q198: 29732 | S198: 0 | T198: 29732 | U198: 31724 | V198: -1992 | W198: -0.06279157735
A199: 27400 | B199: CLOVER PARK | C199: 10000 | D199: 0.01772608245 | E199: 326297.1009 | G199: 0 | H199: 315973.9 | J199: 0 | K199: 315964 | M199: 0 | N199: 315964 | Q199: 315964 | S199: 0 | T199: 315964 | U199: 296214 | V199: 19750 | W199: 0.06667476892
A200: 27401 | B200: PENINSULA | C200: 10000 | D200: 0.003220532618 | E200: 59292.30087 | G200: 0 | H200: 57416.4 | J200: 0 | K200: 57414 | M200: 0 | N200: 57414 | Q200: 57414 | S200: 0 | T200: 57414 | U200: 46366 | V200: 11048 | W200: 0.2382780486
A201: 27402 | B201: FRANKLIN PIERCE | C201: 10000 | D201: 0.009547909198 | E201: 175760.8009 | G201: 0 | H201: 170200.2 | J201: 0 | K201: 170195 | M201: 0 | N201: 170195 | Q201: 170195 | S201: 0 | T201: 170195 | U201: 159576 | V201: 10619 | W201: 0.0665450945
A202: 27403 | B202: BETHEL | C202: 10000 | D202: 0.01518497134 | E202: 279522.7009 | G202: 0 | H202: 270679.3 | J202: 0 | K202: 270671 | M202: 0 | N202: 270671 | Q202: 270671 | S202: 0 | T202: 270671 | U202: 253758 | V202: 16913 | W202: 0.06665011546
... 116 more rows

Sheet SY 2020-21 Prelim (hidden)
A1: Preliminary Title IV Allocations SY 2019-20 | C1: 18107083
G2: First Reallocation | J2: Second Reallocation | M2: Third Reallocation | P2: Adjust until all eligible LEAs meet min.
B4: Min. Allocation | C4: Sufficient for $10K each LEA? | D4: Adjust to 100% | G4: Precentage to adjust other LEAs | H4: Allocation Pool | J4: Precentage to adjust other LEAs | K4: Allocation Pool | M4: Precentage to adjust other LEAs | N4: Allocation Pool
B5: 10000 | C5: Yes | D5: 6.356722797e-07 | G5: 0.03262171967 | H5: 24.20000001 | J5: 4.561374702e-05 | K5: 75 | M5: 0 | N5: 75 | Q5: adjust rounding
A6: CoDistID | B6: District | C6: Minimum Allocation | D6: % of Title IA Received | E6: Initial Formula Allocation | G6: Adjusted allocation for LEAs below $10K | H6: Adjusted Allocation for All Other LEAs | J6: Adjusted allocation for LEAs below $10K | K6: Adjusted Allocation for All Other LEAs | M6: Adjusted allocation for LEAs below $10K | N6: Adjusted Allocation for All Other LEAs | Q6: Subtotal After Re-allocation | R6: MOE | S6: MOE Deduction | T6: Final Allocation | U6: PY Allocation | V6: Difference | W6: % Change
B7: State Totals | C7: 2950000 | D7: 0.9998124767 | E7: 18107068 | G7: 1050000 | H7: 18107058.8 | J7: 30000 | K7: 18107008 | M7: 0 | N7: 18107008 | Q7: 18107008 | R7: 0 | S7: 0 | T7: 18107008 | U7: 15237983 | V7: 2869025 | W7: 0.09358414275
A9: 14005 | B9: ABERDEEN | C9: 10000 | D9: 0.007020392915 | E9: 127130.3102 | G9: 0 | H9: 122983.1 | J9: 0 | K9: 122977 | M9: 0 | N9: 122977 | Q9: 122977 | S9: 0 | T9: 122977 | U9: 83118 | V9: 39859 | W9: 0.4795471498
A10: 21226 | B10: ADNA | C10: 10000 | D10: 0.0006061758734 | E10: 10987.51017 | G10: 0 | H10: 10629 | J10: 0 | K10: 10628 | M10: 0 | N10: 10628 | Q10: 10628 | S10: 0 | T10: 10628 | U10: 10322 | V10: 306 | W10: 0.02964541755
A11: 22017 | B11: ALMIRA | C11: 10000 | D11: 7.277610563e-06 | E11: 143.2101707 | G11: 10000 | H11: 10000 | J11: 0 | K11: 10000 | M11: 0 | N11: 10000 | Q11: 10000 | S11: 0 | T11: 10000 | U11: 10000 | V11: 0 | W11: 0
A12: 29103 | B12: ANACORTES | C12: 10000 | D12: 0.001293020112 | E12: 23424.31017 | G12: 0 | H12: 22660.1 | J12: 0 | K12: 22659 | M12: 0 | N12: 22659 | Q12: 22659 | S12: 0 | T12: 22659 | U12: 21407 | V12: 1252 | W12: 0.05848554211
A13: 31016 | B13: ARLINGTON | C13: 10000 | D13: 0.002194897467 | E13: 39754.61017 | G13: 0 | H13: 38457.7 | J13: 0 | K13: 38455 | M13: 0 | N13: 38455 | Q13: 38455 | S13: 0 | T13: 38455 | U13: 37502 | V13: 953 | W13: 0.02541197803
A14: 02420 | B14: ASOTIN-ANATONE | C14: 10000 | D14: 0.0004840614097 | E14: 8776.410171 | G14: 10000 | H14: 10000 | J14: 0 | K14: 10000 | M14: 0 | N14: 10000 | Q14: 10000 | S14: 0 | T14: 10000 | U14: 10000 | V14: 0 | W14: 0
A15: 17408 | B15: AUBURN | C15: 10000 | D15: 0.01966442387 | E15: 356076.8102 | G15: 0 | H15: 344460.9 | J15: 0 | K15: 344445 | M15: 0 | N15: 344445 | Q15: 344445 | S15: 0 | T15: 344445 | U15: 260780 | V15: 83665 | W15: 0.3208259836
A16: 18303 | B16: BAINBRIDGE ISLAND | C16: 10000 | D16: 0.0004087754888 | E16: 7413.210171 | G16: 10000 | H16: 10000 | J16: 0 | K16: 10000 | M16: 0 | N16: 10000 | Q16: 10000 | S16: 0 | T16: 10000 | U16: 10000 | V16: 0 | W16: 0
A17: 06119 | B17: BATTLE GROUND | C17: 10000 | D17: 0.007732638362 | E17: 140027.0102 | G17: 0 | H17: 135459 | J17: 0 | K17: 135452 | M17: 0 | N17: 135452 | Q17: 135452 | S17: 0 | T17: 135452 | U17: 103641 | V17: 31811 | W17: 0.3069345143
A18: 17405 | B18: BELLEVUE | C18: 10000 | D18: 0.00839636925 | E18: 152045.2102 | G18: 0 | H18: 147085.2 | J18: 0 | K18: 147078 | M18: 0 | N18: 147078 | Q18: 147078 | S18: 0 | T18: 147078 | U18: 101871 | V18: 45207 | W18: 0.4437671172
A19: 37501 | B19: BELLINGHAM | C19: 10000 | D19: 0.008474211938 | E19: 153454.7102 | G19: 0 | H19: 148448.7 | J19: 0 | K19: 148441 | M19: 0 | N19: 148441 | Q19: 148441 | S19: 0 | T19: 148441 | U19: 141637 | V19: 6804 | W19: 0.04803829508
A20: 01122 | B20: BENGE | C20: 0 | D20: 0 | E20: 0 | G20: 0 | H20: 0 | J20: 0 | K20: 0 | M20: 0 | N20: 0 | Q20: 0 | S20: 0 | T20: 0 | U20: 0 | V20: 0 | W20: 0
A21: 27403 | B21: BETHEL | C21: 10000 | D21: 0.01518497134 | E21: 274967.0102 | G21: 0 | H21: 265997.1 | J21: 0 | K21: 265984 | M21: 0 | N21: 265984 | Q21: 265984 | S21: 0 | T21: 265984 | U21: 253758 | V21: 12226 | W21: 0.04817976182
A22: 20203 | B22: BICKLETON | C22: 10000 | D22: 6.989920855e-05 | E22: 1277.110171 | G22: 10000 | H22: 10000 | J22: 0 | K22: 10000 | M22: 0 | N22: 10000 | Q22: 10000 | S22: 0 | T22: 10000 | U22: 10000 | V22: 0 | W22: 0
A23: 37503 | B23: BLAINE | C23: 10000 | D23: 0.002358641571 | E23: 42719.61017 | G23: 0 | H23: 41326 | J23: 0 | K23: 41324 | M23: 0 | N23: 41324 | Q23: 41324 | S23: 0 | T23: 41324 | U23: 25425 | V23: 15899 | W23: 0.6253294002
A24: 21234 | B24: BOISTFORT | C24: 10000 | D24: 0.0001328195941 | E24: 2416.410171 | G24: 10000 | H24: 10000 | J24: 0 | K24: 10000 | M24: 0 | N24: 10000 | Q24: 10000 | S24: 0 | T24: 10000 | U24: 10000 | V24: 0 | W24: 0
A25: 18100 | B25: BREMERTON | C25: 10000 | D25: 0.005541176951 | E25: 100346.0102 | G25: 0 | H25: 97072.5 | J25: 0 | K25: 97068 | M25: 0 | N25: 97068 | Q25: 97068 | S25: 0 | T25: 97068 | U25: 90197 | V25: 6871 | W25: 0.07617769992
A26: 24111 | B26: BREWSTER | C26: 10000 | D26: 0.001420529824 | E26: 25733.11017 | G26: 0 | H26: 24893.6 | J26: 0 | K26: 24892 | M26: 0 | N26: 24892 | Q26: 24892 | S26: 0 | T26: 24892 | U26: 23918 | V26: 974 | W26: 0.04072246843
A27: 09075 | B27: BRIDGEPORT | C27: 10000 | D27: 0.001328033742 | E27: 24058.31017 | G27: 0 | H27: 23273.4 | J27: 0 | K27: 23272 | M27: 0 | N27: 23272 | Q27: 23272 | S27: 0 | T27: 23272 | U27: 20154 | V27: 3118 | W27: 0.1547087427
A28: 16046 | B28: BRINNON | C28: 10000 | D28: 0.0001535426435 | E28: 2791.710171 | G28: 10000 | H28: 10000 | J28: 0 | K28: 10000 | M28: 0 | N28: 10000 | Q28: 10000 | S28: 0 | T28: 10000 | U28: 10000 | V28: 0 | W28: 0
A29: 29100 | B29: BURLINGTON-EDISON | C29: 10000 | D29: 0.003879038993 | E29: 70249.51017 | G29: 0 | H29: 67957.8 | J29: 0 | K29: 67954 | M29: 0 | N29: 67954 | Q29: 67954 | S29: 0 | T29: 67954 | U29: 64863 | V29: 3091 | W29: 0.04765428673
A30: 06117 | B30: CAMAS | C30: 10000 | D30: 0.001706401197 | E30: 30909.41017 | G30: 0 | H30: 29901 | J30: 0 | K30: 29899 | M30: 0 | N30: 29899 | Q30: 29899 | S30: 0 | T30: 29899 | U30: 14292 | V30: 15607 | W30: 1.092009516
A31: 05401 | B31: CAPE FLATTERY | C31: 10000 | D31: 0.0006054843937 | E31: 10975.01017 | G31: 0 | H31: 10616.9 | J31: 0 | K31: 10616 | M31: 0 | N31: 10616 | Q31: 10616 | S31: 0 | T31: 10616 | U31: 11190 | V31: -574 | W31: -0.05129579982
A32: 27019 | B32: CARBONADO | C32: 10000 | D32: 0.000103320728 | E32: 1882.310171 | G32: 10000 | H32: 10000 | J32: 0 | K32: 10000 | M32: 0 | N32: 10000 | Q32: 10000 | S32: 0 | T32: 10000 | U32: 10000 | V32: 0 | W32: 0
A33: 04228 | B33: CASCADE | C33: 10000 | D33: 0.002336159943 | E33: 42312.51017 | G33: 0 | H33: 40932.2 | J33: 0 | K33: 40930 | M33: 0 | N33: 40930 | Q33: 40930 | S33: 0 | T33: 40930 | U33: 22293 | V33: 18637 | W33: 0.8360023326
A34: 04222 | B34: CASHMERE | C34: 10000 | D34: 0.001664421549 | E34: 30149.31017 | G34: 0 | H34: 29165.7 | J34: 0 | K34: 29164 | M34: 0 | N34: 29164 | Q34: 29164 | S34: 0 | T34: 29164 | U34: 23266 | V34: 5898 | W34: 0.2535029657
A35: 08401 | B35: CASTLE ROCK | C35: 10000 | D35: 0.001007037761 | E35: 18246.01017 | G35: 0 | H35: 17650.7 | J35: 0 | K35: 17649 | M35: 0 | N35: 17649 | Q35: 17649 | S35: 0 | T35: 17649 | U35: 14617 | V35: 3032 | W35: 0.2074297051
A36: 20215 | B36: CENTERVILLE | C36: 10000 | D36: 0.0001188363376 | E36: 2163.210171 | G36: 10000 | H36: 10000 | J36: 0 | K36: 10000 | M36: 0 | N36: 10000 | Q36: 10000 | S36: 0 | T36: 10000 | U36: 10000 | V36: 0 | W36: 0
A37: 18401 | B37: CENTRAL KITSAP | C37: 10000 | D37: 0.004737041534 | E37: 85785.51017 | G37: 0 | H37: 82987 | J37: 0 | K37: 82983 | M37: 0 | N37: 82983 | Q37: 82983 | S37: 0 | T37: 82983 | U37: 77111 | V37: 5872 | W37: 0.07614996563
A38: 32356 | B38: CENTRAL VALLEY | C38: 10000 | D38: 0.01258790158 | E38: 227941.6102 | G38: 0 | H38: 220505.7 | J38: 0 | K38: 220495 | M38: 0 | N38: 220495 | Q38: 220495 | S38: 0 | T38: 220495 | U38: 181842 | V38: 38653 | W38: 0.2125636542
A39: 21401 | B39: CENTRALIA | C39: 10000 | D39: 0.005634723058 | E39: 102039.8102 | G39: 0 | H39: 98711 | J39: 0 | K39: 98706 | M39: 0 | N39: 98706 | Q39: 98706 | S39: 0 | T39: 98706 | U39: 84322 | V39: 14384 | W39: 0.1705841892
A40: 21302 | B40: CHEHALIS | C40: 10000 | D40: 0.002429744466 | E40: 44007.01017 | G40: 0 | H40: 42571.4 | J40: 0 | K40: 42569 | M40: 0 | N40: 42569 | Q40: 42569 | S40: 0 | T40: 42569 | U40: 35401 | V40: 7168 | W40: 0.2024801559
A41: 32360 | B41: CHENEY | C41: 10000 | D41: 0.003528309384 | E41: 63898.81017 | G41: 0 | H41: 61814.3 | J41: 0 | K41: 61811 | M41: 0 | N41: 61811 | Q41: 61811 | S41: 0 | T41: 61811 | U41: 58412 | V41: 3399 | W41: 0.05819009793
A42: 33036 | B42: CHEWELAH | C42: 10000 | D42: 0.001506930641 | E42: 27297.61017 | G42: 0 | H42: 26407.1 | J42: 0 | K42: 26405 | M42: 0 | N42: 26405 | Q42: 26405 | S42: 0 | T42: 26405 | U42: 26175 | V42: 230 | W42: 0.008787010506
A43: 16049 | B43: CHIMACUM | C43: 10000 | D43: 0.0007077038762 | E43: 12825.91017 | G43: 0 | H43: 12407.5 | J43: 0 | K43: 12406 | M43: 0 | N43: 12406 | Q43: 12406 | S43: 0 | T43: 12406 | U43: 11877 | V43: 529 | W43: 0.04453986697
A44: 02250 | B44: CLARKSTON | C44: 10000 | D44: 0.003223657082 | E44: 58382.51017 | G44: 0 | H44: 56477.9 | J44: 0 | K44: 56475 | M44: 0 | N44: 56475 | Q44: 56475 | S44: 0 | T44: 56475 | U44: 52129 | V44: 4346 | W44: 0.0833701011
A45: 19404 | B45: CLE ELUM-ROSLYN | C45: 10000 | D45: 0.0007900795984 | E45: 14317.51017 | G45: 0 | H45: 13850.4 | J45: 0 | K45: 13849 | M45: 0 | N45: 13849 | Q45: 13849 | S45: 0 | T45: 13849 | U45: 14812 | V45: -963 | W45: -0.06501485282
A46: 27400 | B46: CLOVER PARK | C46: 10000 | D46: 0.01772608245 | E46: 320979.1102 | G46: 0 | H46: 310508.2 | J46: 0 | K46: 310494 | M46: 0 | N46: 310494 | Q46: 310494 | S46: 0 | T46: 310494 | U46: 296214 | V46: 14280 | W46: 0.04820838988
A47: 38300 | B47: COLFAX | C47: 10000 | D47: 0.0004777783348 | E47: 8662.610171 | G47: 10000 | H47: 10000 | J47: 0 | K47: 10000 | M47: 0 | N47: 10000 | Q47: 10000 | S47: 0 | T47: 10000 | U47: 10000 | V47: 0 | W47: 0
A48: 36250 | B48: COLLEGE PLACE | C48: 10000 | D48: 0.00180511206 | E48: 32696.81017 | G48: 0 | H48: 31630.1 | J48: 0 | K48: 31628 | M48: 0 | N48: 31628 | Q48: 31628 | S48: 0 | T48: 31628 | U48: 30212 | V48: 1416 | W48: 0.04686879386
A49: 38306 | B49: COLTON | C49: 10000 | D49: 0.0001995004341 | E49: 3623.810171 | G49: 10000 | H49: 10000 | J49: 0 | K49: 10000 | M49: 0 | N49: 10000 | Q49: 10000 | S49: 0 | T49: 10000 | U49: 10000 | V49: 0 | W49: 0
A50: 33206 | B50: COLUMBIA (STEV) | C50: 10000 | D50: 0.0003201294969 | E50: 5808.110171 | G50: 10000 | H50: 10000 | J50: 0 | K50: 10000 | M50: 0 | N50: 10000 | Q50: 10000 | S50: 0 | T50: 10000 | U50: 10000 | V50: 0 | W50: 0
A51: 36400 | B51: COLUMBIA (WALLA) | C51: 10000 | D51: 0.00101490441 | E51: 18388.41017 | G51: 0 | H51: 17788.5 | J51: 0 | K51: 17787 | M51: 0 | N51: 17787 | Q51: 17787 | S51: 0 | T51: 17787 | U51: 12840 | V51: 4947 | W51: 0.3852803738
A52: 33115 | B52: COLVILLE | C52: 10000 | D52: 0.002681763211 | E52: 48570.41017 | G52: 0 | H52: 46985.9 | J52: 0 | K52: 46983 | M52: 0 | N52: 46983 | Q52: 46983 | S52: 0 | T52: 46983 | U52: 42994 | V52: 3989 | W52: 0.09278038796
A53: 29011 | B53: CONCRETE | C53: 10000 | D53: 0.0006891662442 | E53: 12490.21017 | G53: 0 | H53: 12082.7 | J53: 0 | K53: 12082 | M53: 0 | N53: 12082 | Q53: 12082 | S53: 0 | T53: 12082 | U53: 12873 | V53: -791 | W53: -0.06144643828
A54: 29317 | B54: CONWAY | C54: 10000 | D54: 0.0001785340862 | E54: 3244.210171 | G54: 10000 | H54: 10000 | J54: 0 | K54: 10000 | M54: 0 | N54: 10000 | Q54: 10000 | S54: 0 | T54: 10000 | U54: 10000 | V54: 0 | W54: 0
A55: 14099 | B55: COSMOPOLIS | C55: 10000 | D55: 0.0002197539602 | E55: 3990.610171 | G55: 10000 | H55: 10000 | J55: 0 | K55: 10000 | M55: 0 | N55: 10000 | Q55: 10000 | S55: 0 | T55: 10000 | U55: 10000 | V55: 0 | W55: 0
A56: 13151 | B56: COULEE-HARTLINE | C56: 10000 | D56: 0.0003348213066 | E56: 6074.110171 | G56: 10000 | H56: 10000 | J56: 0 | K56: 10000 | M56: 0 | N56: 10000 | Q56: 10000 | S56: 0 | T56: 10000 | U56: 10000 | V56: 0 | W56: 0
A57: 15204 | B57: COUPEVILLE | C57: 10000 | D57: 0.001034918906 | E57: 18750.81017 | G57: 0 | H57: 18139.1 | J57: 0 | K57: 18138 | M57: 0 | N57: 18138 | Q57: 18138 | S57: 0 | T57: 18138 | U57: 16780 | V57: 1358 | W57: 0.08092967819
A58: 05313 | B58: CRESCENT | C58: 10000 | D58: 0.0004953897255 | E58: 8981.510171 | G58: 10000 | H58: 10000 | J58: 0 | K58: 10000 | M58: 0 | N58: 10000 | Q58: 10000 | S58: 0 | T58: 10000 | U58: 10000 | V58: 0 | W58: 0
A59: 22073 | B59: CRESTON | C59: 10000 | D59: 6.24892778e-05 | E59: 1142.910171 | G59: 10000 | H59: 10000 | J59: 0 | K59: 10000 | M59: 0 | N59: 10000 | Q59: 10000 | S59: 0 | T59: 10000 | U59: 10000 | V59: 0 | W59: 0
A60: 10050 | B60: CURLEW | C60: 10000 | D60: 0.0002787943763 | E60: 5059.610171 | G60: 10000 | H60: 10000 | J60: 0 | K60: 10000 | M60: 0 | N60: 10000 | Q60: 10000 | S60: 0 | T60: 10000 | U60: 10000 | V60: 0 | W60: 0
A61: 26059 | B61: CUSICK | C61: 10000 | D61: 0.000582490559 | E61: 10558.71017 | G61: 0 | H61: 10214.2 | J61: 0 | K61: 10213 | M61: 0 | N61: 10213 | Q61: 10213 | S61: 0 | T61: 10213 | U61: 10000 | V61: 213 | W61: 0.0213
A62: 19007 | B62: DAMMAN | C62: 0 | D62: 0 | E62: 0 | G62: 0 | H62: 0 | J62: 0 | K62: 0 | M62: 0 | N62: 0 | Q62: 0 | S62: 0 | T62: 0 | U62: 0 | V62: 0 | W62: 0
A63: 31330 | B63: DARRINGTON | C63: 10000 | D63: 0.0007162577364 | E63: 12980.81017 | G63: 0 | H63: 12557.3 | J63: 0 | K63: 12556 | M63: 0 | N63: 12556 | Q63: 12556 | S63: 0 | T63: 12556 | U63: 14002 | V63: -1446 | W63: -0.1032709613
A64: 22207 | B64: DAVENPORT | C64: 10000 | D64: 0.0006087369093 | E64: 11033.91017 | G64: 0 | H64: 10673.9 | J64: 0 | K64: 10673 | M64: 0 | N64: 10673 | Q64: 10673 | S64: 0 | T64: 10673 | U64: 10224 | V64: 449 | W64: 0.04391627543
A65: 07002 | B65: DAYTON | C65: 10000 | D65: 0.0006265617197 | E65: 11356.71017 | G65: 0 | H65: 10986.2 | J65: 0 | K65: 10985 | M65: 0 | N65: 10985 | Q65: 10985 | S65: 0 | T65: 10985 | U65: 10522 | V65: 463 | W65: 0.04400304125
A66: 32414 | B66: DEER PARK | C66: 10000 | D66: 0.00228704781 | E66: 41423.21017 | G66: 0 | H66: 40071.9 | J66: 0 | K66: 40070 | M66: 0 | N66: 40070 | Q66: 40070 | S66: 0 | T66: 40070 | U66: 39689 | V66: 381 | W66: 0.009599637179
A67: 27343 | B67: DIERINGER | C67: 10000 | D67: 0.0002580457165 | E67: 4683.910171 | G67: 10000 | H67: 10000 | J67: 0 | K67: 10000 | M67: 0 | N67: 10000 | Q67: 10000 | S67: 0 | T67: 10000 | U67: 10000 | V67: 0 | W67: 0
A68: 36101 | B68: DIXIE | C68: 10000 | D68: 9.877915757e-05 | E68: 1800.110171 | G68: 10000 | H68: 10000 | J68: 0 | K68: 10000 | M68: 0 | N68: 10000 | Q68: 10000 | S68: 0 | T68: 10000 | U68: 10000 | V68: 0 | W68: 0
A69: 32361 | B69: EAST VALLEY (SPK) | C69: 10000 | D69: 0.004720108817 | E69: 85478.91017 | G69: 0 | H69: 82690.4 | J69: 0 | K69: 82686 | M69: 0 | N69: 82686 | Q69: 82686 | S69: 0 | T69: 82686 | U69: 76313 | V69: 6373 | W69: 0.08351132835
A70: 39090 | B70: EAST VALLEY (YAK) | C70: 10000 | D70: 0.002604897985 | E70: 47178.61017 | G70: 0 | H70: 45639.5 | J70: 0 | K70: 45637 | M70: 0 | N70: 45637 | Q70: 45637 | S70: 0 | T70: 45637 | U70: 30172 | V70: 15465 | W70: 0.5125613151
A71: 09206 | B71: EASTMONT | C71: 10000 | D71: 0.006404327174 | E71: 115975.1102 | G71: 0 | H71: 112191.8 | J71: 0 | K71: 112186 | M71: 0 | N71: 112186 | Q71: 112186 | S71: 0 | T71: 112186 | U71: 85258 | V71: 26928 | W71: 0.3158413287
A72: 19028 | B72: EASTON | C72: 10000 | D72: 5.287258771e-05 | E72: 968.8101707 | G72: 10000 | H72: 10000 | J72: 0 | K72: 10000 | M72: 0 | N72: 10000 | Q72: 10000 | S72: 0 | T72: 10000 | U72: 10000 | V72: 0 | W72: 0
A73: 27404 | B73: EATONVILLE | C73: 10000 | D73: 0.0007835020043 | E73: 14198.41017 | G73: 0 | H73: 13735.2 | J73: 0 | K73: 13734 | M73: 0 | N73: 13734 | Q73: 13734 | S73: 0 | T73: 13734 | U73: 12110 | V73: 1624 | W73: 0.1341040462
A74: 31015 | B74: EDMONDS | C74: 10000 | D74: 0.01191852788 | E74: 215821.2102 | G74: 0 | H74: 208780.7 | J74: 0 | K74: 208771 | M74: 0 | N74: 208771 | Q74: 208771 | S74: 0 | T74: 208771 | U74: 200695 | V74: 8076 | W74: 0.04024016543
A75: 19401 | B75: ELLENSBURG | C75: 10000 | D75: 0.003137704446 | E75: 56826.11017 | G75: 0 | H75: 54972.3 | J75: 0 | K75: 54969 | M75: 0 | N75: 54969 | Q75: 54969 | S75: 0 | T75: 54969 | U75: 42320 | V75: 12649 | W75: 0.298889414
A76: 14068 | B76: ELMA | C76: 10000 | D76: 0.001839532384 | E76: 33320.01017 | G76: 0 | H76: 32233 | J76: 0 | K76: 32231 | M76: 0 | N76: 32231 | Q76: 32231 | S76: 0 | T76: 32231 | U76: 25663 | V76: 6568 | W76: 0.2559326657
A77: 38308 | B77: ENDICOTT | C77: 10000 | D77: 7.284866832e-05 | E77: 1330.510171 | G77: 10000 | H77: 10000 | J77: 0 | K77: 10000 | M77: 0 | N77: 10000 | Q77: 10000 | S77: 0 | T77: 10000 | U77: 10000 | V77: 0 | W77: 0
A78: 04127 | B78: ENTIAT | C78: 10000 | D78: 0.0007348807363 | E78: 13318.01017 | G78: 0 | H78: 12883.5 | J78: 0 | K78: 12882 | M78: 0 | N78: 12882 | Q78: 12882 | S78: 0 | T78: 12882 | U78: 10000 | V78: 2882 | W78: 0.2882
A79: 17216 | B79: ENUMCLAW | C79: 10000 | D79: 0.00248509699 | E79: 45009.31017 | G79: 0 | H79: 43541 | J79: 0 | K79: 43539 | M79: 0 | N79: 43539 | Q79: 43539 | S79: 0 | T79: 43539 | U79: 31259 | V79: 12280 | W79: 0.3928468601
A80: 13165 | B80: EPHRATA | C80: 10000 | D80: 0.002394099114 | E80: 43361.61017 | G80: 0 | H80: 41947 | J80: 0 | K80: 41945 | M80: 0 | N80: 41945 | Q80: 41945 | S80: 0 | T80: 41945 | U80: 38696 | V80: 3249 | W80: 0.08396216663
A81: 21036 | B81: EVALINE | C81: 10000 | D81: 0.0003886201357 | E81: 7048.210171 | G81: 10000 | H81: 10000 | J81: 0 | K81: 10000 | M81: 0 | N81: 10000 | Q81: 10000 | S81: 0 | T81: 10000 | U81: 10000 | V81: 0 | W81: 0
A82: 31002 | B82: EVERETT | C82: 10000 | D82: 0.01349102958 | E82: 244294.6102 | G82: 0 | H82: 236325.2 | J82: 0 | K82: 236314 | M82: 0 | N82: 236314 | Q82: 236314 | S82: 0 | T82: 236314 | U82: 244406 | V82: -8092 | W82: -0.03310884348
A83: 06114 | B83: EVERGREEN (CLARK) | C83: 10000 | D83: 0.02530869532 | E83: 458278.1102 | G83: 0 | H83: 443328.2 | J83: 0 | K83: 443307 | M83: 0 | N83: 443307 | Q83: 443307 | S83: 0 | T83: 443307 | U83: 374792 | V83: 68515 | W83: 0.1828080642
A84: 33205 | B84: EVERGREEN (STEV) | C84: 10000 | D84: 0.0001439174166 | E84: 2617.410171 | G84: 10000 | H84: 10000 | J84: 0 | K84: 10000 | M84: 0 | N84: 10000 | Q84: 10000 | S84: 0 | T84: 10000 | U84: 10000 | V84: 0 | W84: 0
A85: 17210 | B85: FEDERAL WAY | C85: 10000 | D85: 0.03104162558 | E85: 562084.7102 | G85: 0 | H85: 543748.5 | J85: 0 | K85: 543723 | M85: 0 | N85: 543723 | Q85: 543723 | S85: 0 | T85: 543723 | U85: 362708 | V85: 181015 | W85: 0.4990653639
A86: 37502 | B86: FERNDALE | C86: 10000 | D86: 0.003910253753 | E86: 70814.71017 | G86: 0 | H86: 68504.6 | J86: 0 | K86: 68501 | M86: 0 | N86: 68501 | Q86: 68501 | S86: 0 | T86: 68501 | U86: 65384 | V86: 3117 | W86: 0.04767221339
A87: 27417 | B87: FIFE | C87: 10000 | D87: 0.002275839009 | E87: 41220.31017 | G87: 0 | H87: 39875.6 | J87: 0 | K87: 39873 | M87: 0 | N87: 39873 | Q87: 39873 | S87: 0 | T87: 39873 | U87: 38077 | V87: 1796 | W87: 0.04716758148
A88: 03053 | B88: FINLEY | C88: 10000 | D88: 0.0007699370504 | E88: 13952.81017 | G88: 0 | H88: 13497.6 | J88: 0 | K88: 13496 | M88: 0 | N88: 13496 | Q88: 13496 | S88: 0 | T88: 13496 | U88: 11277 | V88: 2219 | W88: 0.1967721912
A89: 27402 | B89: FRANKLIN PIERCE | C89: 10000 | D89: 0.009547909198 | E89: 172896.2102 | G89: 0 | H89: 167256 | J89: 0 | K89: 167248 | M89: 0 | N89: 167248 | Q89: 167248 | S89: 0 | T89: 167248 | U89: 159576 | V89: 7672 | W89: 0.04807740512
A90: 32358 | B90: FREEMAN | C90: 10000 | D90: 0.0003016686959 | E90: 5473.810171 | G90: 10000 | H90: 10000 | J90: 0 | K90: 10000 | M90: 0 | N90: 10000 | Q90: 10000 | S90: 0 | T90: 10000 | U90: 10000 | V90: 0 | W90: 0
A91: 38302 | B91: GARFIELD | C91: 10000 | D91: 0.0003022833446 | E91: 5484.910171 | G91: 10000 | H91: 10000 | J91: 0 | K91: 10000 | M91: 0 | N91: 10000 | Q91: 10000 | S91: 0 | T91: 10000 | U91: 10000 | V91: 0 | W91: 0
A92: 20401 | B92: GLENWOOD | C92: 0 | D92: 0 | E92: 0 | G92: 0 | H92: 0 | J92: 0 | K92: 0 | M92: 0 | N92: 0 | Q92: 0 | S92: 0 | T92: 0 | U92: 10000 | V92: -10000 | W92: -1
A93: 20404 | B93: GOLDENDALE | C93: 10000 | D93: 0.001644321685 | E93: 29785.31017 | G93: 0 | H93: 28813.6 | J93: 0 | K93: 28812 | M93: 0 | N93: 28812 | Q93: 28812 | S93: 0 | T93: 28812 | U93: 23503 | V93: 5309 | W93: 0.2258860571
A94: 13301 | B94: GRAND COULEE | C94: 10000 | D94: 0.0008030170984 | E94: 14551.71017 | G94: 0 | H94: 14077 | J94: 0 | K94: 14076 | M94: 0 | N94: 14076 | Q94: 14076 | S94: 0 | T94: 14076 | U94: 12399 | V94: 1677 | W94: 0.135252843
A95: 39200 | B95: GRANDVIEW | C95: 10000 | D95: 0.004754144986 | E95: 86095.11017 | G95: 0 | H95: 83286.5 | J95: 0 | K95: 83282 | M95: 0 | N95: 83282 | Q95: 83282 | S95: 0 | T95: 83282 | U95: 79484 | V95: 3798 | W95: 0.04778320165
A96: 39204 | B96: GRANGER | C96: 10000 | D96: 0.003825722492 | E96: 69284.11017 | G96: 0 | H96: 67023.9 | J96: 0 | K96: 67020 | M96: 0 | N96: 67020 | Q96: 67020 | S96: 0 | T96: 67020 | U96: 54705 | V96: 12315 | W96: 0.2251165341
A97: 31332 | B97: GRANITE FALLS | C97: 10000 | D97: 0.0008652161255 | E97: 15678.01017 | G97: 0 | H97: 15166.5 | J97: 0 | K97: 15165 | M97: 0 | N97: 15165 | Q97: 15165 | S97: 0 | T97: 15165 | U97: 13886 | V97: 1279 | W97: 0.09210715829
A98: 23054 | B98: GRAPEVIEW | C98: 10000 | D98: 0.0002926922648 | E98: 5311.310171 | G98: 10000 | H98: 10000 | J98: 0 | K98: 10000 | M98: 0 | N98: 10000 | Q98: 10000 | S98: 0 | T98: 10000 | U98: 10000 | V98: 0 | W98: 0
A99: 32312 | B99: GREAT NORTHERN | C99: 10000 | D99: 9.918465493e-05 | E99: 1807.410171 | G99: 10000 | H99: 10000 | J99: 0 | K99: 10000 | M99: 0 | N99: 10000 | Q99: 10000 | S99: 0 | T99: 10000 | U99: 10000 | V99: 0 | W99: 0
A100: 06103 | B100: GREEN MOUNTAIN | C100: 10000 | D100: 7.210169949e-05 | E100: 1317.010171 | G100: 10000 | H100: 10000 | J100: 0 | K100: 10000 | M100: 0 | N100: 10000 | Q100: 10000 | S100: 0 | T100: 10000 | U100: 10000 | V100: 0 | W100: 0
A101: 34324 | B101: GRIFFIN | C101: 10000 | D101: 0.0003506783877 | E101: 6361.210171 | G101: 10000 | H101: 10000 | J101: 0 | K101: 10000 | M101: 0 | N101: 10000 | Q101: 10000 | S101: 0 | T101: 10000 | U101: 10000 | V101: 0 | W101: 0
A102: 22204 | B102: HARRINGTON | C102: 10000 | D102: 0.000152181026 | E102: 2767.010171 | G102: 10000 | H102: 10000 | J102: 0 | K102: 10000 | M102: 0 | N102: 10000 | Q102: 10000 | S102: 0 | T102: 10000 | U102: 10000 | V102: 0 | W102: 0
A103: 39203 | B103: HIGHLAND | C103: 10000 | D103: 0.001398308569 | E103: 25330.71017 | G103: 0 | H103: 24504.3 | J103: 0 | K103: 24503 | M103: 0 | N103: 24503 | Q103: 24503 | S103: 0 | T103: 24503 | U103: 25629 | V103: -1126 | W103: -0.04393460533
A104: 17401 | B104: HIGHLINE | C104: 10000 | D104: 0.03205546716 | E104: 580442.5102 | G104: 0 | H104: 561507.4 | J104: 0 | K104: 561481 | M104: 0 | N104: 561481 | Q104: 561481 | S104: 0 | T104: 561481 | U104: 409917 | V104: 151564 | W104: 0.3697431431
A105: 06098 | B105: HOCKINSON | C105: 10000 | D105: 0.0005816198068 | E105: 10542.91017 | G105: 0 | H105: 10198.9 | J105: 0 | K105: 10198 | M105: 0 | N105: 10198 | Q105: 10198 | S105: 0 | T105: 10198 | U105: 10000 | V105: 198 | W105: 0.0198
A106: 23404 | B106: HOOD CANAL | C106: 10000 | D106: 0.0009561670498 | E106: 17324.81017 | G106: 0 | H106: 16759.6 | J106: 0 | K106: 16758 | M106: 0 | N106: 16758 | Q106: 16758 | S106: 0 | T106: 16758 | U106: 17031 | V106: -273 | W106: -0.01602959309
A107: 14028 | B107: HOQUIAM | C107: 10000 | D107: 0.002735207764 | E107: 49538.11017 | G107: 0 | H107: 47922 | J107: 0 | K107: 47919 | M107: 0 | N107: 47919 | Q107: 47919 | S107: 0 | T107: 47919 | U107: 45752 | V107: 2167 | W107: 0.04736404966
A108: 17911 | B108: IMPACT CHARTER | C108: 10000 | D108: 0.0004502045141 | E108: 8163.310171 | G108: 10000 | H108: 10000 | J108: 0 | K108: 10000 | M108: 0 | N108: 10000 | Q108: 10000 | S108: 0 | T108: 10000 | U108: 10000 | V108: 0 | W108: 0
A109: 10070 | B109: INCHELIUM | C109: 10000 | D109: 0.0005055314279 | E109: 9165.110171 | G109: 10000 | H109: 10000 | J109: 0 | K109: 10000 | M109: 0 | N109: 10000 | Q109: 10000 | S109: 0 | T109: 10000 | U109: 10000 | V109: 0 | W109: 0
A110: 31063 | B110: INDEX | C110: 0 | D110: 0 | E110: 0 | G110: 0 | H110: 0 | J110: 0 | K110: 0 | M110: 0 | N110: 0 | Q110: 0 | S110: 0 | T110: 0 | U110: 10000 | V110: -10000 | W110: -1
A111: 17411 | B111: ISSAQUAH | C111: 10000 | D111: 0.002683534594 | E111: 48602.41017 | G111: 0 | H111: 47016.9 | J111: 0 | K111: 47014 | M111: 0 | N111: 47014 | Q111: 47014 | S111: 0 | T111: 47014 | U111: 28302 | V111: 18712 | W111: 0.6611546887
A112: 11056 | B112: KAHLOTUS | C112: 10000 | D112: 8.62215445e-06 | E112: 167.6101707 | G112: 10000 | H112: 10000 | J112: 0 | K112: 10000 | M112: 0 | N112: 10000 | Q112: 10000 | S112: 0 | T112: 10000 | U112: 10000 | V112: 0 | W112: 0
A113: 08402 | B113: KALAMA | C113: 10000 | D113: 0.000642051719 | E113: 11637.11017 | G113: 0 | H113: 11257.4 | J113: 0 | K113: 11256 | M113: 0 | N113: 11256 | Q113: 11256 | S113: 0 | T113: 11256 | U113: 10400 | V113: 856 | W113: 0.08230769231
A114: 10003 | B114: KELLER | C114: 10000 | D114: 0.0002499613796 | E114: 4537.510171 | G114: 10000 | H114: 10000 | J114: 0 | K114: 10000 | M114: 0 | N114: 10000 | Q114: 10000 | S114: 0 | T114: 10000 | U114: 10000 | V114: 0 | W114: 0
A115: 08458 | B115: KELSO | C115: 10000 | D115: 0.005758058283 | E115: 104273.1102 | G115: 0 | H115: 100871.5 | J115: 0 | K115: 100866 | M115: 0 | N115: 100866 | Q115: 100866 | S115: 0 | T115: 100866 | U115: 83410 | V115: 17456 | W115: 0.2092794629
A116: 03017 | B116: KENNEWICK | C116: 10000 | D116: 0.02218594306 | E116: 401734.2102 | G116: 0 | H116: 388628.9 | J116: 0 | K116: 388611 | M116: 0 | N116: 388611 | Q116: 388611 | S116: 0 | T116: 388611 | U116: 292018 | V116: 96593 | W116: 0.3307775548
A117: 17415 | B117: KENT | C117: 10000 | D117: 0.03748212312 | E117: 678703.4102 | G117: 0 | H117: 656562.9 | J117: 0 | K117: 656532 | M117: 0 | N117: 656532 | Q117: 656532 | S117: 0 | T117: 656532 | U117: 412382 | V117: 244150 | W117: 0.5920481495
A118: 33212 | B118: KETTLE FALLS | C118: 10000 | D118: 0.000935017161 | E118: 16941.91017 | G118: 0 | H118: 16389.2 | J118: 0 | K118: 16388 | M118: 0 | N118: 16388 | Q118: 16388 | S118: 0 | T118: 16388 | U118: 15675 | V118: 713 | W118: 0.04548644338
A119: 03052 | B119: KIONA-BENTON | C119: 10000 | D119: 0.00210743382 | E119: 38170.91017 | G119: 0 | H119: 36925.7 | J119: 0 | K119: 36924 | M119: 0 | N119: 36924 | Q119: 36924 | S119: 0 | T119: 36924 | U119: 35263 | V119: 1661 | W119: 0.04710319598
A120: 19403 | B120: KITTITAS | C120: 10000 | D120: 0.0004304503899 | E120: 7805.710171 | G120: 10000 | H120: 10000 | J120: 0 | K120: 10000 | M120: 0 | N120: 10000 | Q120: 10000 | S120: 0 | T120: 10000 | U120: 10000 | V120: 0 | W120: 0
A121: 20402 | B121: KLICKITAT | C121: 10000 | D121: 0.0001357690538 | E121: 2469.810171 | G121: 10000 | H121: 10000 | J121: 0 | K121: 10000 | M121: 0 | N121: 10000 | Q121: 10000 | S121: 0 | T121: 10000 | U121: 10000 | V121: 0 | W121: 0
A122: 06101 | B122: LA CENTER | C122: 10000 | D122: 0.000519130529 | E122: 9411.410171 | G122: 10000 | H122: 10000 | J122: 0 | K122: 10000 | M122: 0 | N122: 10000 | Q122: 10000 | S122: 0 | T122: 10000 | U122: 10000 | V122: 0 | W122: 0
A123: 29311 | B123: LA CONNER | C123: 10000 | D123: 0.0004758874365 | E123: 8628.410171 | G123: 10000 | H123: 10000 | J123: 0 | K123: 10000 | M123: 0 | N123: 10000 | Q123: 10000 | S123: 0 | T123: 10000 | U123: 10000 | V123: 0 | W123: 0
A124: 38126 | B124: LACROSSE | C124: 10000 | D124: 0.0001422954272 | E124: 2588.010171 | G124: 10000 | H124: 10000 | J124: 0 | K124: 10000 | M124: 0 | N124: 10000 | Q124: 10000 | S124: 0 | T124: 10000 | U124: 10000 | V124: 0 | W124: 0
A125: 04129 | B125: LAKE CHELAN | C125: 10000 | D125: 0.00115251741 | E125: 20880.21017 | G125: 0 | H125: 20199 | J125: 0 | K125: 20198 | M125: 0 | N125: 20198 | Q125: 20198 | S125: 0 | T125: 20198 | U125: 22498 | V125: -2300 | W125: -0.1022313094
A126: 31004 | B126: LAKE STEVENS | C126: 10000 | D126: 0.003177268183 | E126: 57542.51017 | G126: 0 | H126: 55665.3 | J126: 0 | K126: 55662 | M126: 0 | N126: 55662 | Q126: 55662 | S126: 0 | T126: 55662 | U126: 44870 | V126: 10792 | W126: 0.2405170493
A127: 17414 | B127: LAKE WASHINGTON | C127: 10000 | D127: 0.008672436123 | E127: 157044.0102 | G127: 0 | H127: 151920.9 | J127: 0 | K127: 151913 | M127: 0 | N127: 151913 | Q127: 151913 | S127: 0 | T127: 151913 | U127: 56273 | V127: 95640 | W127: 1.699571731
A128: 31306 | B128: LAKEWOOD | C128: 10000 | D128: 0.001019031946 | E128: 18463.11017 | G128: 0 | H128: 17860.8 | J128: 0 | K128: 17859 | M128: 0 | N128: 17859 | Q128: 17859 | S128: 0 | T128: 17859 | U128: 17002 | V128: 857 | W128: 0.05040583461
A129: 38264 | B129: LAMONT | C129: 0 | D129: 0 | E129: 0 | G129: 0 | H129: 0 | J129: 0 | K129: 0 | M129: 0 | N129: 0 | Q129: 0 | S129: 0 | T129: 0 | U129: 0 | V129: 0 | W129: 0
A130: 32362 | B130: LIBERTY | C130: 10000 | D130: 0.0003845395517 | E130: 6974.310171 | G130: 10000 | H130: 10000 | J130: 0 | K130: 10000 | M130: 0 | N130: 10000 | Q130: 10000 | S130: 0 | T130: 10000 | U130: 10000 | V130: 0 | W130: 0
A131: 01158 | B131: LIND | C131: 10000 | D131: 0.0003196087529 | E131: 5798.610171 | G131: 10000 | H131: 10000 | J131: 0 | K131: 10000 | M131: 0 | N131: 10000 | Q131: 10000 | S131: 0 | T131: 10000 | U131: 10000 | V131: 0 | W131: 0
A132: 08122 | B132: LONGVIEW | C132: 10000 | D132: 0.01047124803 | E132: 189615.2102 | G132: 0 | H132: 183429.6 | J132: 0 | K132: 183421 | M132: 0 | N132: 183421 | Q132: 183421 | S132: 0 | T132: 183421 | U132: 147387 | V132: 36034 | W132: 0.2444856059
A133: 33183 | B133: LOON LAKE | C133: 10000 | D133: 0.0002949758552 | E133: 5352.610171 | G133: 10000 | H133: 10000 | J133: 0 | K133: 10000 | M133: 0 | N133: 10000 | Q133: 10000 | S133: 0 | T133: 10000 | U133: 10000 | V133: 0 | W133: 0
A134: 28144 | B134: LOPEZ | C134: 10000 | D134: 0.0003339590912 | E134: 6058.510171 | G134: 10000 | H134: 10000 | J134: 0 | K134: 10000 | M134: 0 | N134: 10000 | Q134: 10000 | S134: 0 | T134: 10000 | U134: 10000 | V134: 0 | W134: 0
A135: 20406 | B135: LYLE | C135: 10000 | D135: 0.0008608666327 | E135: 15599.21017 | G135: 0 | H135: 15090.3 | J135: 0 | K135: 15089 | M135: 0 | N135: 15089 | Q135: 15089 | S135: 0 | T135: 15089 | U135: 10000 | V135: 5089 | W135: 0.5089
A136: 37504 | B136: LYNDEN | C136: 10000 | D136: 0.001403575766 | E136: 25426.11017 | G136: 0 | H136: 24596.6 | J136: 0 | K136: 24595 | M136: 0 | N136: 24595 | Q136: 24595 | S136: 0 | T136: 24595 | U136: 22873 | V136: 1722 | W136: 0.07528527084
A137: 39120 | B137: MABTON | C137: 10000 | D137: 0.001569889442 | E137: 28437.61017 | G137: 0 | H137: 27509.9 | J137: 0 | K137: 27508 | M137: 0 | N137: 27508 | Q137: 27508 | S137: 0 | T137: 27508 | U137: 23224 | V137: 4284 | W137: 0.1844643472
A138: 09207 | B138: MANSFIELD | C138: 0 | D138: 0 | E138: 0 | G138: 0 | H138: 0 | J138: 0 | K138: 0 | M138: 0 | N138: 0 | Q138: 0 | S138: 0 | T138: 0 | U138: 10000 | V138: -10000 | W138: -1
A139: 04019 | B139: MANSON | C139: 10000 | D139: 0.0006381802863 | E139: 11567.01017 | G139: 0 | H139: 11189.6 | J139: 0 | K139: 11189 | M139: 0 | N139: 11189 | Q139: 11189 | S139: 0 | T139: 11189 | U139: 12482 | V139: -1293 | W139: -0.1035891684
A140: 23311 | B140: MARY M KNIGHT | C140: 10000 | D140: 0.0003182343303 | E140: 5773.710171 | G140: 10000 | H140: 10000 | J140: 0 | K140: 10000 | M140: 0 | N140: 10000 | Q140: 10000 | S140: 0 | T140: 10000 | U140: 10000 | V140: 0 | W140: 0
A141: 33207 | B141: MARY WALKER | C141: 10000 | D141: 0.0009667483967 | E141: 17516.41017 | G141: 0 | H141: 16944.9 | J141: 0 | K141: 16944 | M141: 0 | N141: 16944 | Q141: 16944 | S141: 0 | T141: 16944 | U141: 12288 | V141: 4656 | W141: 0.37890625
A142: 31025 | B142: MARYSVILLE | C142: 10000 | D142: 0.006902030369 | E142: 124987.1102 | G142: 0 | H142: 120909.8 | J142: 0 | K142: 120904 | M142: 0 | N142: 120904 | Q142: 120904 | S142: 0 | T142: 120904 | U142: 115370 | V142: 5534 | W142: 0.04796740921
A143: 14065 | B143: MCCLEARY | C143: 10000 | D143: 0.0006917571589 | E143: 12537.21017 | G143: 0 | H143: 12128.2 | J143: 0 | K143: 12127 | M143: 0 | N143: 12127 | Q143: 12127 | S143: 0 | T143: 12127 | U143: 11611 | V143: 516 | W143: 0.04444061666
A144: 32354 | B144: MEAD | C144: 10000 | D144: 0.004936746851 | E144: 89401.51017 | G144: 0 | H144: 86485 | J144: 0 | K144: 86481 | M144: 0 | N144: 86481 | Q144: 86481 | S144: 0 | T144: 86481 | U144: 78653 | V144: 7828 | W144: 0.09952576507
A145: 32326 | B145: MEDICAL LAKE | C145: 10000 | D145: 0.0009421240358 | E145: 17070.61017 | G145: 0 | H145: 16513.7 | J145: 0 | K145: 16512 | M145: 0 | N145: 16512 | Q145: 16512 | S145: 0 | T145: 16512 | U145: 13060 | V145: 3452 | W145: 0.2643185299
A146: 17400 | B146: MERCER ISLAND | C146: 10000 | D146: 0.0004321364053 | E146: 7836.210171 | G146: 10000 | H146: 10000 | J146: 0 | K146: 10000 | M146: 0 | N146: 10000 | Q146: 10000 | S146: 0 | T146: 10000 | U146: 10000 | V146: 0 | W146: 0
A147: 37505 | B147: MERIDIAN | C147: 10000 | D147: 0.001186967612 | E147: 21504.01017 | G147: 0 | H147: 20802.5 | J147: 0 | K147: 20801 | M147: 0 | N147: 20801 | Q147: 20801 | S147: 0 | T147: 20801 | U147: 17700 | V147: 3101 | W147: 0.1751977401
A148: 24350 | B148: METHOW VALLEY | C148: 10000 | D148: 0.0009652032384 | E148: 17488.51017 | G148: 0 | H148: 16918 | J148: 0 | K148: 16917 | M148: 0 | N148: 16917 | Q148: 16917 | S148: 0 | T148: 16917 | U148: 15250 | V148: 1667 | W148: 0.1093114754
A149: 30031 | B149: MILL A | C149: 10000 | D149: 6.977542515e-05 | E149: 1274.910171 | G149: 10000 | H149: 10000 | J149: 0 | K149: 10000 | M149: 0 | N149: 10000 | Q149: 10000 | S149: 0 | T149: 10000 | U149: 10000 | V149: 0 | W149: 0
A150: 31103 | B150: MONROE | C150: 10000 | D150: 0.002629300389 | E150: 47620.41017 | G150: 0 | H150: 46066.9 | J150: 0 | K150: 46064 | M150: 0 | N150: 46064 | Q150: 46064 | S150: 0 | T150: 46064 | U150: 37712 | V150: 8352 | W150: 0.2214679678
A151: 14066 | B151: MONTESANO | C151: 10000 | D151: 0.0008823195774 | E151: 15987.71017 | G151: 0 | H151: 15466.1 | J151: 0 | K151: 15465 | M151: 0 | N151: 15465 | Q151: 15465 | S151: 0 | T151: 15465 | U151: 15696 | V151: -231 | W151: -0.01471712538
A152: 21214 | B152: MORTON | C152: 10000 | D152: 0.000451288686 | E152: 8183.010171 | G152: 10000 | H152: 10000 | J152: 0 | K152: 10000 | M152: 0 | N152: 10000 | Q152: 10000 | S152: 0 | T152: 10000 | U152: 10000 | V152: 0 | W152: 0
A153: 13161 | B153: MOSES LAKE | C153: 10000 | D153: 0.008441050791 | E153: 152854.3102 | G153: 0 | H153: 147867.9 | J153: 0 | K153: 147861 | M153: 0 | N153: 147861 | Q153: 147861 | S153: 0 | T153: 147861 | U153: 125355 | V153: 22506 | W153: 0.1795381118
A154: 21206 | B154: MOSSYROCK | C154: 10000 | D154: 0.0005527740049 | E154: 10020.61017 | G154: 0 | H154: 9693.7 | J154: 10000 | K154: 10000 | M154: 0 | N154: 10000 | Q154: 10000 | S154: 0 | T154: 10000 | U154: 10000 | V154: 0 | W154: 0
A155: 39209 | B155: MOUNT ADAMS | C155: 10000 | D155: 0.002094235948 | E155: 37932.01017 | G155: 0 | H155: 36694.6 | J155: 0 | K155: 36692 | M155: 0 | N155: 36692 | Q155: 36692 | S155: 0 | T155: 36692 | U155: 27115 | V155: 9577 | W155: 0.3531993362
A156: 37507 | B156: MOUNT BAKER | C156: 10000 | D156: 0.002500429059 | E156: 45286.91017 | G156: 0 | H156: 43809.5 | J156: 0 | K156: 43807 | M156: 0 | N156: 43807 | Q156: 43807 | S156: 0 | T156: 43807 | U156: 35655 | V156: 8152 | W156: 0.228635535
A157: 30029 | B157: MOUNT PLEASANT | C157: 0 | D157: 0 | E157: 0 | G157: 0 | H157: 0 | J157: 0 | K157: 0 | M157: 0 | N157: 0 | Q157: 0 | S157: 0 | T157: 0 | U157: 0 | V157: 0 | W157: 0
A158: 29320 | B158: MOUNT VERNON | C158: 10000 | D158: 0.006754215909 | E158: 122310.6102 | G158: 0 | H158: 118320.6 | J158: 0 | K158: 118315 | M158: 0 | N158: 118315 | Q158: 118315 | S158: 0 | T158: 118315 | U158: 112900 | V158: 5415 | W158: 0.04796279894
A159: 31006 | B159: MUKILTEO | C159: 10000 | D159: 0.0123574553 | E159: 223768.9102 | G159: 0 | H159: 216469.1 | J159: 0 | K159: 216459 | M159: 0 | N159: 216459 | Q159: 216459 | S159: 0 | T159: 216459 | U159: 214911 | V159: 1548 | W159: 0.007202981699
A160: 39003 | B160: NACHES VALLEY | C160: 10000 | D160: 0.001403298321 | E160: 25421.11017 | G160: 0 | H160: 24591.8 | J160: 0 | K160: 24590 | M160: 0 | N160: 24590 | Q160: 24590 | S160: 0 | T160: 24590 | U160: 26980 | V160: -2390 | W160: -0.0885841364
A161: 21014 | B161: NAPAVINE | C161: 10000 | D161: 0.0005320338819 | E161: 9645.010171 | G161: 10000 | H161: 10000 | J161: 0 | K161: 10000 | M161: 0 | N161: 10000 | Q161: 10000 | S161: 0 | T161: 10000 | U161: 10000 | V161: 0 | W161: 0
A162: 25155 | B162: NASELLE-GRAYS | C162: 10000 | D162: 0.0003207228036 | E162: 5818.810171 | G162: 10000 | H162: 10000 | J162: 0 | K162: 10000 | M162: 0 | N162: 10000 | Q162: 10000 | S162: 0 | T162: 10000 | U162: 10000 | V162: 0 | W162: 0
A163: 24014 | B163: NESPELEM | C163: 10000 | D163: 0.0006470798863 | E163: 11728.21017 | G163: 0 | H163: 11345.6 | J163: 0 | K163: 11345 | M163: 0 | N163: 11345 | Q163: 11345 | S163: 0 | T163: 11345 | U163: 10799 | V163: 546 | W163: 0.05056023706
A164: 26056 | B164: NEWPORT | C164: 10000 | D164: 0.00168458117 | E164: 30514.31017 | G164: 0 | H164: 29518.8 | J164: 0 | K164: 29517 | M164: 0 | N164: 29517 | Q164: 29517 | S164: 0 | T164: 29517 | U164: 30792 | V164: -1275 | W164: -0.04140685892
A165: 32325 | B165: NINE MILE FALLS | C165: 10000 | D165: 0.002142404766 | E165: 38804.21017 | G165: 0 | H165: 37538.3 | J165: 0 | K165: 37536 | M165: 0 | N165: 37536 | Q165: 37536 | S165: 0 | T165: 37536 | U165: 28922 | V165: 8614 | W165: 0.2978355577
A166: 37506 | B166: NOOKSACK VALLEY | C166: 10000 | D166: 0.001461386885 | E166: 26472.91017 | G166: 0 | H166: 25609.3 | J166: 0 | K166: 25608 | M166: 0 | N166: 25608 | Q166: 25608 | S166: 0 | T166: 25608 | U166: 21286 | V166: 4322 | W166: 0.2030442544
A167: 14064 | B167: NORTH BEACH | C167: 10000 | D167: 0.0006689255232 | E167: 12123.71017 | G167: 0 | H167: 11728.2 | J167: 0 | K167: 11727 | M167: 0 | N167: 11727 | Q167: 11727 | S167: 0 | T167: 11727 | U167: 11229 | V167: 498 | W167: 0.04434945231
A168: 11051 | B168: NORTH FRANKLIN | C168: 10000 | D168: 0.003955080419 | E168: 71626.41017 | G168: 0 | H168: 69289.8 | J168: 0 | K168: 69286 | M168: 0 | N168: 69286 | Q168: 69286 | S168: 0 | T168: 69286 | U168: 66133 | V168: 3153 | W168: 0.0476766516
A169: 18400 | B169: NORTH KITSAP | C169: 10000 | D169: 0.002845605488 | E169: 51537.11017 | G169: 0 | H169: 49855.8 | J169: 0 | K169: 49853 | M169: 0 | N169: 49853 | Q169: 49853 | S169: 0 | T169: 49853 | U169: 41472 | V169: 8381 | W169: 0.2020881559
A170: 23403 | B170: NORTH MASON | C170: 10000 | D170: 0.002515184895 | E170: 45554.11017 | G170: 0 | H170: 44068 | J170: 0 | K170: 44065 | M170: 0 | N170: 44065 | Q170: 44065 | S170: 0 | T170: 44065 | U170: 39362 | V170: 4703 | W170: 0.1194807174
A171: 25200 | B171: NORTH RIVER | C171: 10000 | D171: 6.556252097e-06 | E171: 130.2101707 | G171: 10000 | H171: 10000 | J171: 0 | K171: 10000 | M171: 0 | N171: 10000 | Q171: 10000 | S171: 0 | T171: 10000 | U171: 10000 | V171: 0 | W171: 0
A172: 34003 | B172: NORTH THURSTON | C172: 10000 | D172: 0.01079777585 | E172: 195527.7102 | G172: 0 | H172: 189149.2 | J172: 0 | K172: 189140 | M172: 0 | N172: 189140 | Q172: 189140 | S172: 0 | T172: 189140 | U172: 180459 | V172: 8681 | W172: 0.04810510975
A173: 33211 | B173: NORTHPORT | C173: 10000 | D173: 0.0003669751133 | E173: 6656.310171 | G173: 10000 | H173: 10000 | J173: 0 | K173: 10000 | M173: 0 | N173: 10000 | Q173: 10000 | S173: 0 | T173: 10000 | U173: 10000 | V173: 0 | W173: 0
A174: 17417 | B174: NORTHSHORE | C174: 10000 | D174: 0.002782428999 | E174: 50393.11017 | G174: 0 | H174: 48749.2 | J174: 0 | K174: 48746 | M174: 0 | N174: 48746 | Q174: 48746 | S174: 0 | T174: 48746 | U174: 43227 | V174: 5519 | W174: 0.1276748329
A175: 15201 | B175: OAK HARBOR | C175: 10000 | D175: 0.003950897394 | E175: 71550.71017 | G175: 0 | H175: 69216.6 | J175: 0 | K175: 69213 | M175: 0 | N175: 69213 | Q175: 69213 | S175: 0 | T175: 69213 | U175: 59679 | V175: 9534 | W175: 0.1597546876
A176: 38324 | B176: OAKESDALE | C176: 10000 | D176: 5.518178848e-05 | E176: 1010.610171 | G176: 10000 | H176: 10000 | J176: 0 | K176: 10000 | M176: 0 | N176: 10000 | Q176: 10000 | S176: 0 | T176: 10000 | U176: 10000 | V176: 0 | W176: 0
A177: 14400 | B177: OAKVILLE | C177: 10000 | D177: 0.0007203553939 | E177: 13055.01017 | G177: 0 | H177: 12629.1 | J177: 0 | K177: 12628 | M177: 0 | N177: 12628 | Q177: 12628 | S177: 0 | T177: 12628 | U177: 10000 | V177: 2628 | W177: 0.2628
A178: 25101 | B178: OCEAN BEACH | C178: 10000 | D178: 0.001105210807 | E178: 20023.61017 | G178: 0 | H178: 19370.4 | J178: 0 | K178: 19369 | M178: 0 | N178: 19369 | Q178: 19369 | S178: 0 | T178: 19369 | U178: 15312 | V178: 4057 | W178: 0.2649555904
A179: 14172 | B179: OCOSTA | C179: 10000 | D179: 0.001138692084 | E179: 20629.81017 | G179: 0 | H179: 19956.8 | J179: 0 | K179: 19955 | M179: 0 | N179: 19955 | Q179: 19955 | S179: 0 | T179: 19955 | U179: 19078 | V179: 877 | W179: 0.04596917916
A180: 22105 | B180: ODESSA | C180: 10000 | D180: 0.0002095525003 | E180: 3805.810171 | G180: 10000 | H180: 10000 | J180: 0 | K180: 10000 | M180: 0 | N180: 10000 | Q180: 10000 | S180: 0 | T180: 10000 | U180: 10000 | V180: 0 | W180: 0
A181: 24105 | B181: OKANOGAN | C181: 10000 | D181: 0.001749593068 | E181: 31691.51017 | G181: 0 | H181: 30657.6 | J181: 0 | K181: 30656 | M181: 0 | N181: 30656 | Q181: 30656 | S181: 0 | T181: 30656 | U181: 26768 | V181: 3888 | W181: 0.1452480574
A182: 34111 | B182: OLYMPIA | C182: 10000 | D182: 0.006317072679 | E182: 114395.2102 | G182: 0 | H182: 110663.4 | J182: 0 | K182: 110658 | M182: 0 | N182: 110658 | Q182: 110658 | S182: 0 | T182: 110658 | U182: 81960 | V182: 28698 | W182: 0.3501464129
A183: 24019 | B183: OMAK | C183: 10000 | D183: 0.002698533728 | E183: 48874.01017 | G183: 0 | H183: 47279.6 | J183: 0 | K183: 47277 | M183: 0 | N183: 47277 | Q183: 47277 | S183: 0 | T183: 47277 | U183: 37654 | V183: 9623 | W183: 0.2555638179
A184: 21300 | B184: ONALASKA | C184: 10000 | D184: 0.0005864260176 | E184: 10629.91017 | G184: 0 | H184: 10283.1 | J184: 0 | K184: 10282 | M184: 0 | N184: 10282 | Q184: 10282 | S184: 0 | T184: 10282 | U184: 10000 | V184: 282 | W184: 0.0282
A185: 33030 | B185: ONION CREEK | C185: 10000 | D185: 0.000150324275 | E185: 2733.410171 | G185: 10000 | H185: 10000 | J185: 0 | K185: 10000 | M185: 0 | N185: 10000 | Q185: 10000 | S185: 0 | T185: 10000 | U185: 10000 | V185: 0 | W185: 0
A186: 28137 | B186: ORCAS ISLAND | C186: 10000 | D186: 0.0005376340139 | E186: 9746.410171 | G186: 10000 | H186: 10000 | J186: 0 | K186: 10000 | M186: 0 | N186: 10000 | Q186: 10000 | S186: 0 | T186: 10000 | U186: 10000 | V186: 0 | W186: 0
A187: 32123 | B187: ORCHARD PRAIRIE | C187: 10000 | D187: 0.0001092751367 | E187: 1990.110171 | G187: 10000 | H187: 10000 | J187: 0 | K187: 10000 | M187: 0 | N187: 10000 | Q187: 10000 | S187: 0 | T187: 10000 | U187: 10000 | V187: 0 | W187: 0
A188: 10065 | B188: ORIENT | C188: 10000 | D188: 0.0001852183901 | E188: 3365.210171 | G188: 10000 | H188: 10000 | J188: 0 | K188: 10000 | M188: 0 | N188: 10000 | Q188: 10000 | S188: 0 | T188: 10000 | U188: 10000 | V188: 0 | W188: 0
A189: 09013 | B189: ORONDO | C189: 10000 | D189: 0.0004081864505 | E189: 7402.510171 | G189: 10000 | H189: 10000 | J189: 0 | K189: 10000 | M189: 0 | N189: 10000 | Q189: 10000 | S189: 0 | T189: 10000 | U189: 10000 | V189: 0 | W189: 0
A190: 24410 | B190: OROVILLE | C190: 10000 | D190: 0.001528801889 | E190: 27693.61017 | G190: 0 | H190: 26790.1 | J190: 0 | K190: 26788 | M190: 0 | N190: 26788 | Q190: 26788 | S190: 0 | T190: 26788 | U190: 25596 | V190: 1192 | W190: 0.04656977653
A191: 27344 | B191: ORTING | C191: 10000 | D191: 0.001667469182 | E191: 30204.51017 | G191: 0 | H191: 29219.1 | J191: 0 | K191: 29217 | M191: 0 | N191: 29217 | Q191: 29217 | S191: 0 | T191: 29217 | U191: 31724 | V191: -2507 | W191: -0.07902534359
A192: 01147 | B192: OTHELLO | C192: 10000 | D192: 0.005994134579 | E192: 108547.7102 | G192: 0 | H192: 105006.6 | J192: 0 | K192: 105001 | M192: 0 | N192: 105001 | Q192: 105001 | S192: 0 | T192: 105001 | U192: 100201 | V192: 4800 | W192: 0.04790371354
A193: 09102 | B193: PALISADES | C193: 10000 | D193: 0.0001265493243 | E193: 2302.910171 | G193: 10000 | H193: 10000 | J193: 0 | K193: 10000 | M193: 0 | N193: 10000 | Q193: 10000 | S193: 0 | T193: 10000 | U193: 10000 | V193: 0 | W193: 0
A194: 38301 | B194: PALOUSE | C194: 10000 | D194: 0.0002505888334 | E194: 4548.910171 | G194: 10000 | H194: 10000 | J194: 0 | K194: 10000 | M194: 0 | N194: 10000 | Q194: 10000 | S194: 0 | T194: 10000 | U194: 10000 | V194: 0 | W194: 0
A195: 11001 | B195: PASCO | C195: 10000 | D195: 0.0216542976 | E195: 392107.6102 | G195: 0 | H195: 379316.3 | J195: 0 | K195: 379298 | M195: 0 | N195: 379298 | Q195: 379298 | S195: 0 | T195: 379298 | U195: 343050 | V195: 36248 | W195: 0.1056638974
A196: 24122 | B196: PATEROS | C196: 10000 | D196: 0.0003741545508 | E196: 6786.310171 | G196: 10000 | H196: 10000 | J196: 0 | K196: 10000 | M196: 0 | N196: 10000 | Q196: 10000 | S196: 0 | T196: 10000 | U196: 10000 | V196: 0 | W196: 0
A197: 03050 | B197: PATERSON | C197: 10000 | D197: 7.07571556e-05 | E197: 1292.710171 | G197: 10000 | H197: 10000 | J197: 0 | K197: 10000 | M197: 0 | N197: 10000 | Q197: 10000 | S197: 0 | T197: 10000 | U197: 10000 | V197: 0 | W197: 0
A198: 21301 | B198: PE ELL | C198: 10000 | D198: 0.0001789822675 | E198: 3252.310171 | G198: 10000 | H198: 10000 | J198: 0 | K198: 10000 | M198: 0 | N198: 10000 | Q198: 10000 | S198: 0 | T198: 10000 | U198: 10000 | V198: 0 | W198: 0
A199: 27401 | B199: PENINSULA | C199: 10000 | D199: 0.003220532618 | E199: 58325.91017 | G199: 0 | H199: 56423.2 | J199: 0 | K199: 56420 | M199: 0 | N199: 56420 | Q199: 56420 | S199: 0 | T199: 56420 | U199: 46366 | V199: 10054 | W199: 0.2168399258
A200: 23402 | B200: PIONEER | C200: 10000 | D200: 0.001544872389 | E200: 27984.61017 | G200: 0 | H200: 27071.7 | J200: 0 | K200: 27070 | M200: 0 | N200: 27070 | Q200: 27070 | S200: 0 | T200: 27070 | U200: 25864 | V200: 1206 | W200: 0.0466285184
A201: 12110 | B201: POMEROY | C201: 10000 | D201: 0.0003844371102 | E201: 6972.510171 | G201: 10000 | H201: 10000 | J201: 0 | K201: 10000 | M201: 0 | N201: 10000 | Q201: 10000 | S201: 0 | T201: 10000 | U201: 10000 | V201: 0 | W201: 0
A202: 05121 | B202: PORT ANGELES | C202: 10000 | D202: 0.006436941967 | E202: 116565.7102 | G202: 0 | H202: 112763.1 | J202: 0 | K202: 112757 | M202: 0 | N202: 112757 | Q202: 112757 | S202: 0 | T202: 112757 | U202: 77880 | V202: 34877 | W202: 0.4478299949
... 113 more rows

Sheet SY 2019-20 Final (hidden)
A1: Preliminary Title IV Allocations SY 2019-20 | C1: 15352025
C2: 15352024.84 | G2: First Reallocation | J2: Second Reallocation | M2: Third Reallocation | P2: Adjust until all eligible LEAs meet min.
B4: Min. Allocation | C4: Sufficient for $10K each LEA? | D4: Adjust to 100% | G4: Precentage to adjust other LEAs | H4: Allocation Pool | J4: Precentage to adjust other LEAs | K4: Allocation Pool | M4: Precentage to adjust other LEAs | N4: Allocation Pool
B5: 10000 | C5: Yes | D5: 3.6747012e-06 | G5: 0.04561002407 | H5: 25.2 | J5: 4.966733316e-06 | K5: 104 | M5: 0 | N5: 2 | Q5: rounding ok
A6: CoDistID | B6: District | C6: Minimum Allocation | D6: % of Title IA Received | E6: Initial Formula Allocation | G6: Adjusted allocation for LEAs below $10K | H6: Adjusted Allocation for All Other LEAs | J6: Adjusted allocation for LEAs below $10K | K6: Adjusted Allocation for All Other LEAs | M6: Adjusted allocation for LEAs below $10K | N6: Adjusted Allocation for All Other LEAs | Q6: Subtotal After Re-allocation | R6: MOE | S6: MOE Deduction | T6: Final Allocation | U6: PY Allocation | V6: Difference | W6: % Change
B7: State Totals | C7: 2980000 | D7: 0.998904939 | E7: 15352009.2 | G7: 1220000 | H7: 15351999.8 | J7: 10000 | K7: 15351921 | M7: 0 | N7: 15352023 | Q7: 15352025 | R7: 0.896 | S7: -43 | T7: 15351982 | U7: 14657604 | V7: 694378 | W7: 0.02066625598
A9: 14005 | B9: ABERDEEN | C9: 10000 | D9: 0.005669241971 | E9: 87090.7141 | G9: 0 | H9: 83118.5 | J9: 0 | K9: 83118 | M9: 0 | N9: 83118 | Q9: 83118 | S9: 0 | T9: 83118 | U9: 78130 | V9: 4988 | W9: 0.06384231409
A10: 21226 | B10: ADNA | C10: 10000 | D10: 0.0006938752862 | E10: 10708.7141 | G10: 0 | H10: 10220.2 | J10: 0 | K10: 10220 | M10: 0 | N10: 10322 | Q10: 10322 | S10: 0 | T10: 10322 | U10: 10587 | V10: -265 | W10: -0.02503069803
A11: 22017 | B11: ALMIRA | C11: 10000 | D11: 8.531577567e-05 | E11: 1366.114105 | G11: 10000 | H11: 10000 | J11: 0 | K11: 10000 | M11: 0 | N11: 10000 | Q11: 10000 | S11: 0 | T11: 10000 | U11: 10000 | V11: 0 | W11: 0
A12: 29103 | B12: ANACORTES | C12: 10000 | D12: 0.001457436051 | E12: 22430.9141 | G12: 0 | H12: 21407.8 | J12: 0 | K12: 21407 | M12: 0 | N12: 21407 | Q12: 21407 | S12: 0 | T12: 21407 | U12: 22436 | V12: -1029 | W12: -0.04586379034
A13: 31016 | B13: ARLINGTON | C13: 10000 | D13: 0.002555915232 | E13: 39294.8141 | G13: 0 | H13: 37502.5 | J13: 0 | K13: 37502 | M13: 0 | N13: 37502 | Q13: 37502 | S13: 0 | T13: 37502 | U13: 39384 | V13: -1882 | W13: -0.0477859029
A14: 17915 | B14: ASHE | C14: 0 | D14: 0 | E14: 0 | G14: 0 | H14: 0 | J14: 0 | K14: 0 | M14: 0 | N14: 0 | Q14: 0 | S14: 0 | T14: 0 | U14: 0 | V14: 0 | W14: 0
A15: 02420 | B15: ASOTIN-ANATONE | C15: 10000 | D15: 0.0005519828476 | E15: 8530.414105 | G15: 10000 | H15: 10000 | J15: 0 | K15: 10000 | M15: 0 | N15: 10000 | Q15: 10000 | S15: 0 | T15: 10000 | U15: 10000 | V15: 0 | W15: 0
A16: 17408 | B16: AUBURN | C16: 10000 | D16: 0.01779492979 | E16: 273244.6141 | G16: 0 | H16: 260781.9 | J16: 0 | K16: 260780 | M16: 0 | N16: 260780 | Q16: 260780 | S16: 0 | T16: 260780 | U16: 246002 | V16: 14778 | W16: 0.06007268234
A17: 18303 | B17: BAINBRIDGE ISLAND | C17: 10000 | D17: 0.000525302383 | E17: 8120.814105 | G17: 10000 | H17: 10000 | J17: 0 | K17: 10000 | M17: 0 | N17: 10000 | Q17: 10000 | S17: 0 | T17: 10000 | U17: 14150 | V17: -4150 | W17: -0.2932862191
A18: 06119 | B18: BATTLE GROUND | C18: 10000 | D18: 0.00707002422 | E18: 108595.5141 | G18: 0 | H18: 103642.4 | J18: 0 | K18: 103641 | M18: 0 | N18: 103641 | Q18: 103641 | S18: 0 | T18: 103641 | U18: 100124 | V18: 3517 | W18: 0.03512644321
A19: 17405 | B19: BELLEVUE | C19: 10000 | D19: 0.006949210023 | E19: 106740.8141 | G19: 0 | H19: 101872.3 | J19: 0 | K19: 101871 | M19: 0 | N19: 101871 | Q19: 101871 | S19: 0 | T19: 101871 | U19: 96337 | V19: 5534 | W19: 0.05744418033
A20: 37501 | B20: BELLINGHAM | C20: 10000 | D20: 0.009663284388 | E20: 148407.3141 | G20: 0 | H20: 141638.4 | J20: 0 | K20: 141637 | M20: 0 | N20: 141637 | Q20: 141637 | S20: 0 | T20: 141637 | U20: 141978 | V20: -341 | W20: -0.002401780558
A21: 01122 | B21: BENGE | C21: 0 | D21: 0 | E21: 0 | G21: 0 | H21: 0 | J21: 0 | K21: 0 | M21: 0 | N21: 0 | Q21: 0 | S21: 0 | T21: 0 | U21: 0 | V21: 0 | W21: 0
A22: 27403 | B22: BETHEL | C22: 10000 | D22: 0.01731567942 | E22: 265887.1141 | G22: 0 | H22: 253759.9 | J22: 0 | K22: 253758 | M22: 0 | N22: 253758 | Q22: 253758 | S22: 0 | T22: 253758 | U22: 246411 | V22: 7347 | W22: 0.02981603906
A23: 20203 | B23: BICKLETON | C23: 10000 | D23: 8.774565535e-05 | E23: 1403.414105 | G23: 10000 | H23: 10000 | J23: 0 | K23: 10000 | M23: 0 | N23: 10000 | Q23: 10000 | S23: 0 | T23: 10000 | U23: 10000 | V23: 0 | W23: 0
A24: 37503 | B24: BLAINE | C24: 10000 | D24: 0.001731660508 | E24: 26640.8141 | G24: 0 | H24: 25425.7 | J24: 0 | K24: 25425 | M24: 0 | N24: 25425 | Q24: 25425 | S24: 0 | T24: 25425 | U24: 24610 | V24: 815 | W24: 0.03311661926
A25: 21234 | B25: BOISTFORT | C25: 10000 | D25: 0.0001464243571 | E25: 2304.314105 | G25: 10000 | H25: 10000 | J25: 0 | K25: 10000 | M25: 0 | N25: 10000 | Q25: 10000 | S25: 0 | T25: 10000 | U25: 10000 | V25: 0 | W25: 0
A26: 18100 | B26: BREMERTON | C26: 10000 | D26: 0.00615242644 | E26: 94508.6141 | G26: 0 | H26: 90198 | J26: 0 | K26: 90197 | M26: 0 | N26: 90197 | Q26: 90197 | S26: 0 | T26: 90197 | U26: 79739 | V26: 10458 | W26: 0.1311528863
A27: 24111 | B27: BREWSTER | C27: 10000 | D27: 0.001628805244 | E27: 25061.8141 | G27: 0 | H27: 23918.7 | J27: 0 | K27: 23918 | M27: 0 | N27: 23918 | Q27: 23918 | S27: 0 | T27: 23918 | U27: 23356 | V27: 562 | W27: 0.02406233944
A28: 09075 | B28: BRIDGEPORT | C28: 10000 | D28: 0.001371922606 | E28: 21118.1141 | G28: 0 | H28: 20154.9 | J28: 0 | K28: 20154 | M28: 0 | N28: 20154 | Q28: 20154 | S28: 0 | T28: 20154 | U28: 16824 | V28: 3330 | W28: 0.1979315264
A29: 16046 | B29: BRINNON | C29: 10000 | D29: 0.0001908950123 | E29: 2987.014105 | G29: 10000 | H29: 10000 | J29: 0 | K29: 10000 | M29: 0 | N29: 10000 | Q29: 10000 | S29: 0 | T29: 10000 | U29: 10000 | V29: 0 | W29: 0
A30: 29100 | B30: BURLINGTON-EDISON | C30: 10000 | D30: 0.004423330804 | E30: 67963.4141 | G30: 0 | H30: 64863.6 | J30: 0 | K30: 64863 | M30: 0 | N30: 64863 | Q30: 64863 | S30: 0 | T30: 64863 | U30: 64221 | V30: 642 | W30: 0.009996730042
A31: 06117 | B31: CAMAS | C31: 10000 | D31: 0.000971807239 | E31: 14975.6141 | G31: 0 | H31: 14292.5 | J31: 0 | K31: 14292 | M31: 0 | N31: 14292 | Q31: 14292 | S31: 0 | T31: 14292 | U31: 25990 | V31: -11698 | W31: -0.4500961908
A32: 05401 | B32: CAPE FLATTERY | C32: 10000 | D32: 0.0007600798653 | E32: 11725.1141 | G32: 0 | H32: 11190.3 | J32: 0 | K32: 11190 | M32: 0 | N32: 11190 | Q32: 11190 | S32: 0 | T32: 11190 | U32: 10953 | V32: 237 | W32: 0.02163790742
A33: 27019 | B33: CARBONADO | C33: 10000 | D33: 0.0001282195442 | E33: 2024.814105 | G33: 10000 | H33: 10000 | J33: 0 | K33: 10000 | M33: 0 | N33: 10000 | Q33: 10000 | S33: 0 | T33: 10000 | U33: 10000 | V33: 0 | W33: 0
A34: 04228 | B34: CASCADE | C34: 10000 | D34: 0.001517884129 | E34: 23358.9141 | G34: 0 | H34: 22293.5 | J34: 0 | K34: 22293 | M34: 0 | N34: 22293 | Q34: 22293 | S34: 0 | T34: 22293 | U34: 21150 | V34: 1143 | W34: 0.05404255319
A35: 04222 | B35: CASHMERE | C35: 10000 | D35: 0.001584286377 | E35: 24378.4141 | G35: 0 | H35: 23266.5 | J35: 0 | K35: 23266 | M35: 0 | N35: 23266 | Q35: 23266 | S35: 0 | T35: 23266 | U35: 22419 | V35: 847 | W35: 0.03778045408
A36: 08401 | B36: CASTLE ROCK | C36: 10000 | D36: 0.0009939895335 | E36: 15316.1141 | G36: 0 | H36: 14617.5 | J36: 0 | K36: 14617 | M36: 0 | N36: 14617 | Q36: 14617 | S36: 0 | T36: 14617 | U36: 15023 | V36: -406 | W36: -0.02702522798
A37: 20215 | B37: CENTERVILLE | C37: 10000 | D37: 0.0001491820777 | E37: 2346.614105 | G37: 10000 | H37: 10000 | J37: 0 | K37: 10000 | M37: 0 | N37: 10000 | Q37: 10000 | S37: 0 | T37: 10000 | U37: 10000 | V37: 0 | W37: 0
A38: 18401 | B38: CENTRAL KITSAP | C38: 10000 | D38: 0.005259286555 | E38: 80797.0141 | G38: 0 | H38: 77111.8 | J38: 0 | K38: 77111 | M38: 0 | N38: 77111 | Q38: 77111 | S38: 0 | T38: 77111 | U38: 65304 | V38: 11807 | W38: 0.1808005635
A39: 32356 | B39: CENTRAL VALLEY | C39: 10000 | D39: 0.01240732245 | E39: 190533.9141 | G39: 0 | H39: 181843.6 | J39: 0 | K39: 181842 | M39: 0 | N39: 181842 | Q39: 181842 | S39: 0 | T39: 181842 | U39: 181966 | V39: -124 | W39: -0.0006814459844
A40: 21401 | B40: CENTRALIA | C40: 10000 | D40: 0.005751452901 | E40: 88352.8141 | G40: 0 | H40: 84323 | J40: 0 | K40: 84322 | M40: 0 | N40: 84322 | Q40: 84322 | S40: 0 | T40: 84322 | U40: 81130 | V40: 3192 | W40: 0.0393442623
A41: 21302 | B41: CHEHALIS | C41: 10000 | D41: 0.002412518582 | E41: 37093.4141 | G41: 0 | H41: 35401.5 | J41: 0 | K41: 35401 | M41: 0 | N41: 35401 | Q41: 35401 | S41: 0 | T41: 35401 | U41: 33984 | V41: 1417 | W41: 0.04169609228
A42: 32360 | B42: CHENEY | C42: 10000 | D42: 0.003983059747 | E42: 61204.4141 | G42: 0 | H42: 58412.8 | J42: 0 | K42: 58412 | M42: 0 | N42: 58412 | Q42: 58412 | S42: 0 | T42: 58412 | U42: 61380 | V42: -2968 | W42: -0.04835451287
A43: 33036 | B43: CHEWELAH | C43: 10000 | D43: 0.001782827796 | E43: 27426.4141 | G43: 0 | H43: 26175.4 | J43: 0 | K43: 26175 | M43: 0 | N43: 26175 | Q43: 26175 | S43: 0 | T43: 26175 | U43: 25691 | V43: 484 | W43: 0.01883928224
A44: 16049 | B44: CHIMACUM | C44: 10000 | D44: 0.0008070045062 | E44: 12445.5141 | G44: 0 | H44: 11877.8 | J44: 0 | K44: 11877 | M44: 0 | N44: 11877 | Q44: 11877 | S44: 0 | T44: 11877 | U44: 11383 | V44: 494 | W44: 0.04339804972
A45: 02250 | B45: CLARKSTON | C45: 10000 | D45: 0.003554253479 | E45: 54621.3141 | G45: 0 | H45: 52130 | J45: 0 | K45: 52129 | M45: 0 | N45: 52129 | Q45: 52129 | S45: 0 | T45: 52129 | U45: 50136 | V45: 1993 | W45: 0.0397518749
A46: 19404 | B46: CLE ELUM-ROSLYN | C46: 10000 | D46: 0.001007286375 | E46: 15520.2141 | G46: 0 | H46: 14812.3 | J46: 0 | K46: 14812 | M46: 0 | N46: 14812 | Q46: 14812 | S46: 0 | T46: 14812 | U46: 14208 | V46: 604 | W46: 0.04251126126
A47: 27400 | B47: CLOVER PARK | C47: 10000 | D47: 0.02021334951 | E47: 310372.2141 | G47: 0 | H47: 296216.1 | J47: 0 | K47: 296214 | M47: 0 | N47: 296214 | Q47: 296214 | S47: 0 | T47: 296214 | U47: 281472 | V47: 14742 | W47: 0.05237465894
A48: 38300 | B48: COLFAX | C48: 10000 | D48: 0.0005647445372 | E48: 8726.314105 | G48: 10000 | H48: 10000 | J48: 0 | K48: 10000 | M48: 0 | N48: 10000 | Q48: 10000 | S48: 0 | T48: 10000 | U48: 10000 | V48: 0 | W48: 0
A49: 36250 | B49: COLLEGE PLACE | C49: 10000 | D49: 0.002058397366 | E49: 31656.9141 | G49: 0 | H49: 30213 | J49: 0 | K49: 30212 | M49: 0 | N49: 30212 | Q49: 30212 | S49: 0 | T49: 30212 | U49: 31407 | V49: -1195 | W49: -0.03804884261
A50: 38306 | B50: COLTON | C50: 10000 | D50: 0.000230476981 | E50: 3594.614105 | G50: 10000 | H50: 10000 | J50: 0 | K50: 10000 | M50: 0 | N50: 10000 | Q50: 10000 | S50: 0 | T50: 10000 | U50: 10000 | V50: 0 | W50: 0
A51: 33206 | B51: COLUMBIA (STEV) | C51: 10000 | D51: 0.0004018654591 | E51: 6225.814105 | G51: 10000 | H51: 10000 | J51: 0 | K51: 10000 | M51: 0 | N51: 10000 | Q51: 10000 | S51: 0 | T51: 10000 | U51: 10000 | V51: 0 | W51: 0
A52: 36400 | B52: COLUMBIA (WALLA) | C52: 10000 | D52: 0.0008727173239 | E52: 13454.3141 | G52: 0 | H52: 12840.6 | J52: 0 | K52: 12840 | M52: 0 | N52: 12840 | Q52: 12840 | S52: 0 | T52: 12840 | U52: 12331 | V52: 509 | W52: 0.04127807964
A53: 33115 | B53: COLVILLE | C53: 10000 | D53: 0.002930733816 | E53: 45049.0141 | G53: 0 | H53: 42994.3 | J53: 0 | K53: 42994 | M53: 0 | N53: 42994 | Q53: 42994 | S53: 0 | T53: 42994 | U53: 42380 | V53: 614 | W53: 0.01448796602
A54: 29011 | B54: CONCRETE | C54: 10000 | D54: 0.0008749736407 | E54: 13489.0141 | G54: 0 | H54: 12873.7 | J54: 0 | K54: 12873 | M54: 0 | N54: 12873 | Q54: 12873 | S54: 0 | T54: 12873 | U54: 13350 | V54: -477 | W54: -0.03573033708
A55: 29317 | B55: CONWAY | C55: 10000 | D55: 0.0002088009114 | E55: 3261.914105 | G55: 10000 | H55: 10000 | J55: 0 | K55: 10000 | M55: 0 | N55: 10000 | Q55: 10000 | S55: 0 | T55: 10000 | U55: 10000 | V55: 0 | W55: 0
A56: 14099 | B56: COSMOPOLIS | C56: 10000 | D56: 0.0002403700626 | E56: 3746.514105 | G56: 10000 | H56: 10000 | J56: 0 | K56: 10000 | M56: 0 | N56: 10000 | Q56: 10000 | S56: 0 | T56: 10000 | U56: 10000 | V56: 0 | W56: 0
A57: 13151 | B57: COULEE-HARTLINE | C57: 10000 | D57: 0.0003475788614 | E57: 5392.414105 | G57: 10000 | H57: 10000 | J57: 0 | K57: 10000 | M57: 0 | N57: 10000 | Q57: 10000 | S57: 0 | T57: 10000 | U57: 10000 | V57: 0 | W57: 0
A58: 15204 | B58: COUPEVILLE | C58: 10000 | D58: 0.001141609546 | E58: 17582.4141 | G58: 0 | H58: 16780.4 | J58: 0 | K58: 16780 | M58: 0 | N58: 16780 | Q58: 16780 | S58: 0 | T58: 16780 | U58: 16279 | V58: 501 | W58: 0.03077584618
A59: 05313 | B59: CRESCENT | C59: 10000 | D59: 0.0006321544137 | E59: 9761.214105 | G59: 10000 | H59: 10000 | J59: 0 | K59: 10000 | M59: 0 | N59: 10000 | Q59: 10000 | S59: 0 | T59: 10000 | U59: 10000 | V59: 0 | W59: 0
A60: 22073 | B60: CRESTON | C60: 10000 | D60: 6.169676657e-05 | E60: 1003.514105 | G60: 10000 | H60: 10000 | J60: 0 | K60: 10000 | M60: 0 | N60: 10000 | Q60: 10000 | S60: 0 | T60: 10000 | U60: 10000 | V60: 0 | W60: 0
A61: 10050 | B61: CURLEW | C61: 10000 | D61: 0.0002739737559 | E61: 4262.414105 | G61: 10000 | H61: 10000 | J61: 0 | K61: 10000 | M61: 0 | N61: 10000 | Q61: 10000 | S61: 0 | T61: 10000 | U61: 10000 | V61: 0 | W61: 0
A62: 26059 | B62: CUSICK | C62: 10000 | D62: 0.0005756163203 | E62: 8893.214105 | G62: 10000 | H62: 10000 | J62: 0 | K62: 10000 | M62: 0 | N62: 10000 | Q62: 10000 | S62: 0 | T62: 10000 | U62: 10000 | V62: 0 | W62: 0
A63: 19007 | B63: DAMMAN | C63: 0 | D63: 0 | E63: 0 | G63: 0 | H63: 0 | J63: 0 | K63: 0 | M63: 0 | N63: 0 | Q63: 0 | S63: 0 | T63: 0 | U63: 0 | V63: 0 | W63: 0
A64: 31330 | B64: DARRINGTON | C64: 10000 | D64: 0.0009520307182 | E64: 14671.9141 | G64: 0 | H64: 14002.7 | J64: 0 | K64: 14002 | M64: 0 | N64: 14002 | Q64: 14002 | S64: 0 | T64: 14002 | U64: 14534 | V64: -532 | W64: -0.03660382551
A65: 22207 | B65: DAVENPORT | C65: 10000 | D65: 0.0006941549153 | E65: 10713.0141 | G65: 0 | H65: 10224.3 | J65: 0 | K65: 10224 | M65: 0 | N65: 10224 | Q65: 10224 | S65: 0 | T65: 10224 | U65: 10000 | V65: 224 | W65: 0.0224
A66: 07002 | B66: DAYTON | C66: 10000 | D66: 0.0007144810517 | E66: 11025.1141 | G66: 0 | H66: 10522.2 | J66: 0 | K66: 10522 | M66: 0 | N66: 10522 | Q66: 10522 | S66: 0 | T66: 10522 | U66: 10168 | V66: 354 | W66: 0.03481510622
A67: 32414 | B67: DEER PARK | C67: 10000 | D67: 0.002705198555 | E67: 41586.6141 | G67: 0 | H67: 39689.8 | J67: 0 | K67: 39689 | M67: 0 | N67: 39689 | Q67: 39689 | S67: 0 | T67: 39689 | U67: 39413 | V67: 276 | W67: 0.007002765585
A68: 27343 | B68: DIERINGER | C68: 10000 | D68: 0.0005877850035 | E68: 9080.014105 | G68: 10000 | H68: 10000 | J68: 0 | K68: 10000 | M68: 0 | N68: 10000 | Q68: 10000 | S68: 0 | T68: 10000 | U68: 10000 | V68: 0 | W68: 0
A69: 36101 | B69: DIXIE | C69: 10000 | D69: 0.0001008641129 | E69: 1604.814105 | G69: 10000 | H69: 10000 | J69: 0 | K69: 10000 | M69: 0 | N69: 10000 | Q69: 10000 | S69: 0 | T69: 10000 | U69: 10000 | V69: 0 | W69: 0
A70: 32361 | B70: EAST VALLEY (SPK) | C70: 10000 | D70: 0.005204802289 | E70: 79960.6141 | G70: 0 | H70: 76313.6 | J70: 0 | K70: 76313 | M70: 0 | N70: 76313 | Q70: 76313 | S70: 0 | T70: 76313 | U70: 75834 | V70: 479 | W70: 0.006316427987
A71: 39090 | B71: EAST VALLEY (YAK) | C71: 10000 | D71: 0.002055630003 | E71: 31614.4141 | G71: 0 | H71: 30172.4 | J71: 0 | K71: 30172 | M71: 0 | N71: 30172 | Q71: 30172 | S71: 0 | T71: 30172 | U71: 29044 | V71: 1128 | W71: 0.03883762567
A72: 09206 | B72: EASTMONT | C72: 10000 | D72: 0.005815304739 | E72: 89333.1141 | G72: 0 | H72: 85258.6 | J72: 0 | K72: 85258 | M72: 0 | N72: 85258 | Q72: 85258 | S72: 0 | T72: 85258 | U72: 85833 | V72: -575 | W72: -0.006699055142
A73: 19028 | B73: EASTON | C73: 10000 | D73: 5.808569537e-05 | E73: 948.1141047 | G73: 10000 | H73: 10000 | J73: 0 | K73: 10000 | M73: 0 | N73: 10000 | Q73: 10000 | S73: 0 | T73: 10000 | U73: 10000 | V73: 0 | W73: 0
A74: 27404 | B74: EATONVILLE | C74: 10000 | D74: 0.0008228951479 | E74: 12689.5141 | G74: 0 | H74: 12110.7 | J74: 0 | K74: 12110 | M74: 0 | N74: 12110 | Q74: 12110 | S74: 0 | T74: 12110 | U74: 10449 | V74: 1661 | W74: 0.1589625802
A75: 31015 | B75: EDMONDS | C75: 10000 | D75: 0.01369406909 | E75: 210288.0141 | G75: 0 | H75: 200696.7 | J75: 0 | K75: 200695 | M75: 0 | N75: 200695 | Q75: 200695 | S75: 0 | T75: 200695 | U75: 208066 | V75: -7371 | W75: -0.03542625898
A76: 19401 | B76: ELLENSBURG | C76: 10000 | D76: 0.002884773413 | E76: 44343.5141 | G76: 0 | H76: 42321 | J76: 0 | K76: 42320 | M76: 0 | N76: 42320 | Q76: 42320 | S76: 0 | T76: 42320 | U76: 41110 | V76: 1210 | W76: 0.02943322793
A77: 14068 | B77: ELMA | C77: 10000 | D77: 0.001747893455 | E77: 26890.1141 | G77: 0 | H77: 25663.6 | J77: 0 | K77: 25663 | M77: 0 | N77: 25663 | Q77: 25663 | S77: 0 | T77: 25663 | U77: 24913 | V77: 750 | W77: 0.03010476458
A78: 38308 | B78: ENDICOTT | C78: 10000 | D78: 7.983890399e-06 | E78: 178.9141047 | G78: 10000 | H78: 10000 | J78: 0 | K78: 10000 | M78: 0 | N78: 10000 | Q78: 10000 | S78: 0 | T78: 10000 | U78: 10000 | V78: 0 | W78: 0
A79: 04127 | B79: ENTIAT | C79: 10000 | D79: 0.0004491999011 | E79: 6952.514105 | G79: 10000 | H79: 10000 | J79: 0 | K79: 10000 | M79: 0 | N79: 10000 | Q79: 10000 | S79: 0 | T79: 10000 | U79: 10000 | V79: 0 | W79: 0
A80: 17216 | B80: ENUMCLAW | C80: 10000 | D80: 0.0021298474 | E80: 32753.8141 | G80: 0 | H80: 31259.9 | J80: 0 | K80: 31259 | M80: 0 | N80: 31259 | Q80: 31259 | S80: 0 | T80: 31259 | U80: 29108 | V80: 2151 | W80: 0.07389721039
A81: 13165 | B81: EPHRATA | C81: 10000 | D81: 0.002637383698 | E81: 40545.5141 | G81: 0 | H81: 38696.2 | J81: 0 | K81: 38696 | M81: 0 | N81: 38696 | Q81: 38696 | S81: 0 | T81: 38696 | U81: 37203 | V81: 1493 | W81: 0.04013117222
A82: 21036 | B82: EVALINE | C82: 10000 | D82: 0.000318314239 | E82: 4943.114105 | G82: 10000 | H82: 10000 | J82: 0 | K82: 10000 | M82: 0 | N82: 10000 | Q82: 10000 | S82: 0 | T82: 10000 | U82: 10000 | V82: 0 | W82: 0
A83: 31002 | B83: EVERETT | C83: 10000 | D83: 0.01667740691 | E83: 256088.3141 | G83: 0 | H83: 244408.1 | J83: 0 | K83: 244406 | M83: 0 | N83: 244406 | Q83: 244406 | S83: 0 | T83: 244406 | U83: 237445 | V83: 6961 | W83: 0.02931626271
A84: 06114 | B84: EVERGREEN (CLARK) | C84: 10000 | D84: 0.02557639771 | E84: 392705.8141 | G84: 0 | H84: 374794.4 | J84: 0 | K84: 374792 | M84: 0 | N84: 374792 | Q84: 374792 | S84: 0 | T84: 374792 | U84: 391593 | V84: -16801 | W84: -0.04290423986
A85: 33205 | B85: EVERGREEN (STEV) | C85: 10000 | D85: 0.0001786636536 | E85: 2799.214105 | G85: 10000 | H85: 10000 | J85: 0 | K85: 10000 | M85: 0 | N85: 10000 | Q85: 10000 | S85: 0 | T85: 10000 | U85: 10000 | V85: 0 | W85: 0
A86: 17210 | B86: FEDERAL WAY | C86: 10000 | D86: 0.02475167534 | E86: 380044.7141 | G86: 0 | H86: 362710.8 | J86: 0 | K86: 362708 | M86: 0 | N86: 362708 | Q86: 362708 | S86: 0 | T86: 362708 | U86: 329093 | V86: 33615 | W86: 0.1021443786
A87: 37502 | B87: FERNDALE | C87: 10000 | D87: 0.004458925649 | E87: 68509.9141 | G87: 0 | H87: 65385.1 | J87: 0 | K87: 65384 | M87: 0 | N87: 65384 | Q87: 65384 | S87: 0 | T87: 65384 | U87: 65600 | V87: -216 | W87: -0.003292682927
A88: 27417 | B88: FIFE | C88: 10000 | D88: 0.002595179002 | E88: 39897.6141 | G88: 0 | H88: 38077.8 | J88: 0 | K88: 38077 | M88: 0 | N88: 38077 | Q88: 38077 | S88: 0 | T88: 38077 | U88: 36607 | V88: 1470 | W88: 0.04015625427
A89: 03053 | B89: FINLEY | C89: 10000 | D89: 0.0007660099288 | E89: 11816.2141 | G89: 0 | H89: 11277.2 | J89: 0 | K89: 11277 | M89: 0 | N89: 11277 | Q89: 11277 | S89: 0 | T89: 11277 | U89: 11115 | V89: 162 | W89: 0.01457489879
A90: 27402 | B90: FRANKLIN PIERCE | C90: 10000 | D90: 0.01088764002 | E90: 167203.7141 | G90: 0 | H90: 159577.5 | J90: 0 | K90: 159576 | M90: 0 | N90: 159576 | Q90: 159576 | S90: 0 | T90: 159576 | U90: 146217 | V90: 13359 | W90: 0.09136420526
A91: 32358 | B91: FREEMAN | C91: 10000 | D91: 0.0003439967173 | E91: 5337.414105 | G91: 10000 | H91: 10000 | J91: 0 | K91: 10000 | M91: 0 | N91: 10000 | Q91: 10000 | S91: 0 | T91: 10000 | U91: 10000 | V91: 0 | W91: 0
A92: 38302 | B92: GARFIELD | C92: 10000 | D92: 0.0001846515714 | E92: 2891.114105 | G92: 10000 | H92: 10000 | J92: 0 | K92: 10000 | M92: 0 | N92: 10000 | Q92: 10000 | S92: 0 | T92: 10000 | U92: 10000 | V92: 0 | W92: 0
A93: 20401 | B93: GLENWOOD | C93: 10000 | D93: 4.618699881e-06 | E93: 127.3141047 | G93: 10000 | H93: 10000 | J93: 0 | K93: 10000 | M93: 0 | N93: 10000 | Q93: 10000 | S93: 0 | T93: 10000 | U93: 10000 | V93: 0 | W93: 0
A94: 20404 | B94: GOLDENDALE | C94: 10000 | D94: 0.001600490396 | E94: 24627.1141 | G94: 0 | H94: 23503.8 | J94: 0 | K94: 23503 | M94: 0 | N94: 23503 | Q94: 23503 | S94: 0 | T94: 23503 | U94: 23003 | V94: 500 | W94: 0.02173629527
A95: 13301 | B95: GRAND COULEE | C95: 10000 | D95: 0.0008425848873 | E95: 12991.7141 | G95: 0 | H95: 12399.1 | J95: 0 | K95: 12399 | M95: 0 | N95: 12399 | Q95: 12399 | S95: 0 | T95: 12399 | U95: 10000 | V95: 2399 | W95: 0.2399
A96: 39200 | B96: GRANDVIEW | C96: 10000 | D96: 0.005421230323 | E96: 83283.2141 | G96: 0 | H96: 79484.6 | J96: 0 | K96: 79484 | M96: 0 | N96: 79484 | Q96: 79484 | S96: 0 | T96: 79484 | U96: 77341 | V96: 2143 | W96: 0.02770845994
A97: 39204 | B97: GRANGER | C97: 10000 | D97: 0.00373002924 | E97: 57319.9141 | G97: 0 | H97: 54705.5 | J97: 0 | K97: 54705 | M97: 0 | N97: 54705 | Q97: 54705 | S97: 0 | T97: 54705 | U97: 52616 | V97: 2089 | W97: 0.03970275201
A98: 31332 | B98: GRANITE FALLS | C98: 10000 | D98: 0.0009440805761 | E98: 14549.9141 | G98: 0 | H98: 13886.2 | J98: 0 | K98: 13886 | M98: 0 | N98: 13886 | Q98: 13886 | S98: 0 | T98: 13886 | U98: 13445 | V98: 441 | W98: 0.03280029751
A99: 23054 | B99: GRAPEVIEW | C99: 10000 | D99: 0.0003337613312 | E99: 5180.314105 | G99: 10000 | H99: 10000 | J99: 0 | K99: 10000 | M99: 0 | N99: 10000 | Q99: 10000 | S99: 0 | T99: 10000 | U99: 10000 | V99: 0 | W99: 0
A100: 32312 | B100: GREAT NORTHERN | C100: 10000 | D100: 9.589346621e-05 | E100: 1528.514105 | G100: 10000 | H100: 10000 | J100: 0 | K100: 10000 | M100: 0 | N100: 10000 | Q100: 10000 | S100: 0 | T100: 10000 | U100: 10000 | V100: 0 | W100: 0
A101: 06103 | B101: GREEN MOUNTAIN | C101: 10000 | D101: 7.242873518e-05 | E101: 1168.314105 | G101: 10000 | H101: 10000 | J101: 0 | K101: 10000 | M101: 0 | N101: 10000 | Q101: 10000 | S101: 0 | T101: 10000 | U101: 10000 | V101: 0 | W101: 0
A102: 34324 | B102: GRIFFIN | C102: 10000 | D102: 0.0004661126351 | E102: 7212.114105 | G102: 10000 | H102: 10000 | J102: 0 | K102: 10000 | M102: 0 | N102: 10000 | Q102: 10000 | S102: 0 | T102: 10000 | U102: 10000 | V102: 0 | W102: 0
A103: 22204 | B103: HARRINGTON | C103: 10000 | D103: 0.0001540129099 | E103: 2420.814105 | G103: 10000 | H103: 10000 | J103: 0 | K103: 10000 | M103: 0 | N103: 10000 | Q103: 10000 | S103: 0 | T103: 10000 | U103: 10000 | V103: 0 | W103: 0
A104: 39203 | B104: HIGHLAND | C104: 10000 | D104: 0.001745613032 | E104: 26855.0141 | G104: 0 | H104: 25630.1 | J104: 0 | K104: 25629 | M104: 0 | N104: 25629 | Q104: 25629 | S104: 0 | T104: 25629 | U104: 25440 | V104: 189 | W104: 0.007429245283
A105: 17401 | B105: HIGHLINE | C105: 10000 | D105: 0.02797370544 | E105: 429509.4141 | G105: 0 | H105: 409919.4 | J105: 0 | K105: 409917 | M105: 0 | N105: 409917 | Q105: 409917 | S105: 0 | T105: 409917 | U105: 357631 | V105: 52286 | W105: 0.1462009725
A106: 06098 | B106: HOCKINSON | C106: 10000 | D106: 0.0003271177316 | E106: 5078.314105 | G106: 10000 | H106: 10000 | J106: 0 | K106: 10000 | M106: 0 | N106: 10000 | Q106: 10000 | S106: 0 | T106: 10000 | U106: 10000 | V106: 0 | W106: 0
A107: 23404 | B107: HOOD CANAL | C107: 10000 | D107: 0.00115872477 | E107: 17845.1141 | G107: 0 | H107: 17031.1 | J107: 0 | K107: 17031 | M107: 0 | N107: 17031 | Q107: 17031 | S107: 0 | T107: 17031 | U107: 16345 | V107: 686 | W107: 0.04197002141
A108: 14028 | B108: HOQUIAM | C108: 10000 | D108: 0.00311900128 | E108: 47939.3141 | G108: 0 | H108: 45752.8 | J108: 0 | K108: 45752 | M108: 0 | N108: 45752 | Q108: 45752 | S108: 0 | T108: 45752 | U108: 45461 | V108: 291 | W108: 0.006401091045
A109: 17911 | B109: IMPACT CHARTER | C109: 10000 | D109: 0.000351074224 | E109: 5446.114105 | G109: 10000 | H109: 10000 | J109: 0 | K109: 10000 | M109: 0 | N109: 10000 | Q109: 10000 | S109: 0 | T109: 10000 | U109: 0 | V109: 10000 | W109: 0
A110: 10070 | B110: INCHELIUM | C110: 10000 | D110: 0.0005764648497 | E110: 8906.314105 | G110: 10000 | H110: 10000 | J110: 0 | K110: 10000 | M110: 0 | N110: 10000 | Q110: 10000 | S110: 0 | T110: 10000 | U110: 10000 | V110: 0 | W110: 0
A111: 31063 | B111: INDEX | C111: 10000 | D111: 4.069084237e-06 | E111: 118.8141047 | G111: 10000 | H111: 10000 | J111: 0 | K111: 10000 | M111: 0 | N111: 10000 | Q111: 10000 | S111: 0 | T111: 10000 | U111: 10000 | V111: 0 | W111: 0
A112: 17411 | B112: ISSAQUAH | C112: 10000 | D112: 0.001927998644 | E112: 29655.0141 | G112: 0 | H112: 28302.4 | J112: 0 | K112: 28302 | M112: 0 | N112: 28302 | Q112: 28302 | S112: 0 | T112: 28302 | U112: 26931 | V112: 1371 | W112: 0.05090787568
A113: 11056 | B113: KAHLOTUS | C113: 10000 | D113: 0.0001073823616 | E113: 1704.914105 | G113: 10000 | H113: 10000 | J113: 0 | K113: 10000 | M113: 0 | N113: 10000 | Q113: 10000 | S113: 0 | T113: 10000 | U113: 10000 | V113: 0 | W113: 0
A114: 08402 | B114: KALAMA | C114: 10000 | D114: 0.0007061934263 | E114: 10897.8141 | G114: 0 | H114: 10400.7 | J114: 0 | K114: 10400 | M114: 0 | N114: 10400 | Q114: 10400 | S114: 0 | T114: 10400 | U114: 10078 | V114: 322 | W114: 0.03195078389
A115: 10003 | B115: KELLER | C115: 10000 | D115: 0.0002876996834 | E115: 4473.114105 | G115: 10000 | H115: 10000 | J115: 0 | K115: 10000 | M115: 0 | N115: 10000 | Q115: 10000 | S115: 0 | T115: 10000 | U115: 10000 | V115: 0 | W115: 0
A116: 08458 | B116: KELSO | C116: 10000 | D116: 0.005689177591 | E116: 87396.7141 | G116: 0 | H116: 83410.5 | J116: 0 | K116: 83410 | M116: 0 | N116: 83410 | Q116: 83410 | S116: 0 | T116: 83410 | U116: 81094 | V116: 2316 | W116: 0.02855944953
A117: 03017 | B117: KENNEWICK | C117: 10000 | D117: 0.01992694673 | E117: 305975.3141 | G117: 0 | H117: 292019.7 | J117: 0 | K117: 292018 | M117: 0 | N117: 292018 | Q117: 292018 | S117: 0 | T117: 292018 | U117: 291222 | V117: 796 | W117: 0.002733309983
A118: 17415 | B118: KENT | C118: 10000 | D118: 0.02814194568 | E118: 432092.2141 | G118: 0 | H118: 412384.4 | J118: 0 | K118: 412382 | M118: 0 | N118: 412382 | Q118: 412382 | S118: 0 | T118: 412382 | U118: 379915 | V118: 32467 | W118: 0.08545858942
A119: 33212 | B119: KETTLE FALLS | C119: 10000 | D119: 0.001066215779 | E119: 16424.9141 | G119: 0 | H119: 15675.7 | J119: 0 | K119: 15675 | M119: 0 | N119: 15675 | Q119: 15675 | S119: 0 | T119: 15675 | U119: 15170 | V119: 505 | W119: 0.03328938695
A120: 03052 | B120: KIONA-BENTON | C120: 10000 | D120: 0.002403141368 | E120: 36949.4141 | G120: 0 | H120: 35264.1 | J120: 0 | K120: 35263 | M120: 0 | N120: 35263 | Q120: 35263 | S120: 0 | T120: 35263 | U120: 34994 | V120: 269 | W120: 0.007687032063
A121: 19403 | B121: KITTITAS | C121: 10000 | D121: 0.0005620350285 | E121: 8684.714105 | G121: 10000 | H121: 10000 | J121: 0 | K121: 10000 | M121: 0 | N121: 10000 | Q121: 10000 | S121: 0 | T121: 10000 | U121: 10000 | V121: 0 | W121: 0
A122: 20402 | B122: KLICKITAT | C122: 10000 | D122: 0.0001548180486 | E122: 2433.114105 | G122: 10000 | H122: 10000 | J122: 0 | K122: 10000 | M122: 0 | N122: 10000 | Q122: 10000 | S122: 0 | T122: 10000 | U122: 10000 | V122: 0 | W122: 0
A123: 06101 | B123: LA CENTER | C123: 10000 | D123: 0.0005872257455 | E123: 9071.514105 | G123: 10000 | H123: 10000 | J123: 0 | K123: 10000 | M123: 0 | N123: 10000 | Q123: 10000 | S123: 0 | T123: 10000 | U123: 10000 | V123: 0 | W123: 0
A124: 29311 | B124: LA CONNER | C124: 10000 | D124: 0.0006325352877 | E124: 9767.014105 | G124: 10000 | H124: 10000 | J124: 0 | K124: 10000 | M124: 0 | N124: 10000 | Q124: 10000 | S124: 0 | T124: 10000 | U124: 10000 | V124: 0 | W124: 0
A125: 38126 | B125: LACROSSE | C125: 10000 | D125: 0.0001602997415 | E125: 2517.314105 | G125: 10000 | H125: 10000 | J125: 0 | K125: 10000 | M125: 0 | N125: 10000 | Q125: 10000 | S125: 0 | T125: 10000 | U125: 10000 | V125: 0 | W125: 0
A126: 04129 | B126: LAKE CHELAN | C126: 10000 | D126: 0.001531899328 | E126: 23574.1141 | G126: 0 | H126: 22498.8 | J126: 0 | K126: 22498 | M126: 0 | N126: 22498 | Q126: 22498 | S126: 0 | T126: 22498 | U126: 23374 | V126: -876 | W126: -0.03747753915
A127: 31004 | B127: LAKE STEVENS | C127: 10000 | D127: 0.003058774976 | E127: 47014.7141 | G127: 0 | H127: 44870.3 | J127: 0 | K127: 44870 | M127: 0 | N127: 44870 | Q127: 44870 | S127: 0 | T127: 44870 | U127: 46712 | V127: -1842 | W127: -0.03943312211
A128: 17414 | B128: LAKE WASHINGTON | C128: 10000 | D128: 0.003837069297 | E128: 58963.1141 | G128: 0 | H128: 56273.8 | J128: 0 | K128: 56273 | M128: 0 | N128: 56273 | Q128: 56273 | S128: 0 | T128: 56273 | U128: 50036 | V128: 6237 | W128: 0.1246502518
A129: 31306 | B129: LAKEWOOD | C129: 10000 | D129: 0.001156762545 | E129: 17815.0141 | G129: 0 | H129: 17002.4 | J129: 0 | K129: 17002 | M129: 0 | N129: 17002 | Q129: 17002 | S129: 0 | T129: 17002 | U129: 17827 | V129: -825 | W129: -0.04627811746
A130: 38264 | B130: LAMONT | C130: 0 | D130: 0 | E130: 0 | G130: 0 | H130: 0 | J130: 0 | K130: 0 | M130: 0 | N130: 0 | Q130: 0 | S130: 0 | T130: 0 | U130: 0 | V130: 0 | W130: 0
A131: 32362 | B131: LIBERTY | C131: 10000 | D131: 0.0003384475278 | E131: 5252.214105 | G131: 10000 | H131: 10000 | J131: 0 | K131: 10000 | M131: 0 | N131: 10000 | Q131: 10000 | S131: 0 | T131: 10000 | U131: 10000 | V131: 0 | W131: 0
A132: 01158 | B132: LIND | C132: 10000 | D132: 0.0003644530259 | E132: 5651.414105 | G132: 10000 | H132: 10000 | J132: 0 | K132: 10000 | M132: 0 | N132: 10000 | Q132: 10000 | S132: 0 | T132: 10000 | U132: 10000 | V132: 0 | W132: 0
A133: 08122 | B133: LONGVIEW | C133: 10000 | D133: 0.01005572924 | E133: 154432.2141 | G133: 0 | H133: 147388.5 | J133: 0 | K133: 147387 | M133: 0 | N133: 147387 | Q133: 147387 | S133: 0 | T133: 147387 | U133: 143261 | V133: 4126 | W133: 0.02880058076
A134: 33183 | B134: LOON LAKE | C134: 10000 | D134: 0.0002111922216 | E134: 3298.614105 | G134: 10000 | H134: 10000 | J134: 0 | K134: 10000 | M134: 0 | N134: 10000 | Q134: 10000 | S134: 0 | T134: 10000 | U134: 10000 | V134: 0 | W134: 0
A135: 28144 | B135: LOPEZ | C135: 10000 | D135: 0.000419231385 | E135: 6492.414105 | G135: 10000 | H135: 10000 | J135: 0 | K135: 10000 | M135: 0 | N135: 10000 | Q135: 10000 | S135: 0 | T135: 10000 | U135: 10000 | V135: 0 | W135: 0
A136: 20406 | B136: LYLE | C136: 10000 | D136: 0.0006255011717 | E136: 9659.114105 | G136: 10000 | H136: 10000 | J136: 0 | K136: 10000 | M136: 0 | N136: 10000 | Q136: 10000 | S136: 0 | T136: 10000 | U136: 10000 | V136: 0 | W136: 0
A137: 37504 | B137: LYNDEN | C137: 10000 | D137: 0.001557480561 | E137: 23966.8141 | G137: 0 | H137: 22873.6 | J137: 0 | K137: 22873 | M137: 0 | N137: 22873 | Q137: 22873 | S137: 0 | T137: 22873 | U137: 22208 | V137: 665 | W137: 0.02994416427
A138: 39120 | B138: MABTON | C138: 10000 | D138: 0.001581470802 | E138: 24335.1141 | G138: 0 | H138: 23225.1 | J138: 0 | K138: 23224 | M138: 0 | N138: 23224 | Q138: 23224 | S138: 0 | T138: 23224 | U138: 22308 | V138: 916 | W138: 0.0410615026
A139: 09207 | B139: MANSFIELD | C139: 10000 | D139: 4.102832566e-06 | E139: 119.3141047 | G139: 10000 | H139: 10000 | J139: 0 | K139: 10000 | M139: 0 | N139: 10000 | Q139: 10000 | S139: 0 | T139: 10000 | U139: 10000 | V139: 0 | W139: 0
A140: 04019 | B140: MANSON | C140: 10000 | D140: 0.0008482497854 | E140: 13078.7141 | G140: 0 | H140: 12482.1 | J140: 0 | K140: 12482 | M140: 0 | N140: 12482 | Q140: 12482 | S140: 0 | T140: 12482 | U140: 12942 | V140: -460 | W140: -0.03554319271
A141: 23311 | B141: MARY M KNIGHT | C141: 10000 | D141: 0.0002818081894 | E141: 4382.714105 | G141: 10000 | H141: 10000 | J141: 0 | K141: 10000 | M141: 0 | N141: 10000 | Q141: 10000 | S141: 0 | T141: 10000 | U141: 10000 | V141: 0 | W141: 0
A142: 33207 | B142: MARY WALKER | C142: 10000 | D142: 0.0008350638311 | E142: 12876.3141 | G142: 0 | H142: 12289 | J142: 0 | K142: 12288 | M142: 0 | N142: 12288 | Q142: 12288 | S142: 0 | T142: 12288 | U142: 11792 | V142: 496 | W142: 0.0420624152
A143: 31025 | B143: MARYSVILLE | C143: 10000 | D143: 0.007870500835 | E143: 120884.5141 | G143: 0 | H143: 115370.9 | J143: 0 | K143: 115370 | M143: 0 | N143: 115370 | Q143: 115370 | S143: 0 | T143: 115370 | U143: 114468 | V143: 902 | W143: 0.007879931509
A144: 14065 | B144: MCCLEARY | C144: 10000 | D144: 0.0007888237992 | E144: 12166.4141 | G144: 0 | H144: 11611.5 | J144: 0 | K144: 11611 | M144: 0 | N144: 11611 | Q144: 11611 | S144: 0 | T144: 11611 | U144: 10000 | V144: 1611 | W144: 0.1611
A145: 32354 | B145: MEAD | C145: 10000 | D145: 0.005364562057 | E145: 82413.2141 | G145: 0 | H145: 78654.3 | J145: 0 | K145: 78653 | M145: 0 | N145: 78653 | Q145: 78653 | S145: 0 | T145: 78653 | U145: 76444 | V145: 2209 | W145: 0.02889697033
A146: 32326 | B146: MEDICAL LAKE | C146: 10000 | D146: 0.0008877353303 | E146: 13684.9141 | G146: 0 | H146: 13060.7 | J146: 0 | K146: 13060 | M146: 0 | N146: 13060 | Q146: 13060 | S146: 0 | T146: 13060 | U146: 13239 | V146: -179 | W146: -0.01352065866
A147: 17400 | B147: MERCER ISLAND | C147: 10000 | D147: 0.0004951217345 | E147: 7657.514105 | G147: 10000 | H147: 10000 | J147: 0 | K147: 10000 | M147: 0 | N147: 10000 | Q147: 10000 | S147: 0 | T147: 10000 | U147: 10000 | V147: 0 | W147: 0
A148: 37505 | B148: MERIDIAN | C148: 10000 | D148: 0.001204434471 | E148: 18546.9141 | G148: 0 | H148: 17700.9 | J148: 0 | K148: 17700 | M148: 0 | N148: 17700 | Q148: 17700 | S148: 0 | T148: 17700 | U148: 16924 | V148: 776 | W148: 0.04585204443
A149: 24350 | B149: METHOW VALLEY | C149: 10000 | D149: 0.001037187395 | E149: 15979.3141 | G149: 0 | H149: 15250.4 | J149: 0 | K149: 15250 | M149: 0 | N149: 15250 | Q149: 15250 | S149: 0 | T149: 15250 | U149: 13765 | V149: 1485 | W149: 0.1078823102
A150: 30031 | B150: MILL A | C150: 10000 | D150: 7.428971447e-05 | E150: 1196.814105 | G150: 10000 | H150: 10000 | J150: 0 | K150: 10000 | M150: 0 | N150: 10000 | Q150: 10000 | S150: 0 | T150: 10000 | U150: 10000 | V150: 0 | W150: 0
A151: 31103 | B151: MONROE | C151: 10000 | D151: 0.002570238987 | E151: 39514.7141 | G151: 0 | H151: 37712.4 | J151: 0 | K151: 37712 | M151: 0 | N151: 37712 | Q151: 37712 | S151: 0 | T151: 37712 | U151: 36256 | V151: 1456 | W151: 0.04015887026
A152: 14066 | B152: MONTESANO | C152: 10000 | D152: 0.001067628387 | E152: 16446.6141 | G152: 0 | H152: 15696.4 | J152: 0 | K152: 15696 | M152: 0 | N152: 15696 | Q152: 15696 | S152: 0 | T152: 15696 | U152: 15583 | V152: 113 | W152: 0.007251492011
A153: 21214 | B153: MORTON | C153: 10000 | D153: 0.0005561194285 | E153: 8593.914105 | G153: 10000 | H153: 10000 | J153: 0 | K153: 10000 | M153: 0 | N153: 10000 | Q153: 10000 | S153: 0 | T153: 10000 | U153: 10000 | V153: 0 | W153: 0
A154: 13161 | B154: MOSES LAKE | C154: 10000 | D154: 0.008551980842 | E154: 131346.6141 | G154: 0 | H154: 125355.8 | J154: 0 | K154: 125355 | M154: 0 | N154: 125355 | Q154: 125355 | S154: 0 | T154: 125355 | U154: 113847 | V154: 11508 | W154: 0.1010830325
A155: 21206 | B155: MOSSYROCK | C155: 10000 | D155: 0.0006736407524 | E155: 10398.1141 | G155: 0 | H155: 9923.8 | J155: 10000 | K155: 10000 | M155: 0 | N155: 10000 | Q155: 10000 | S155: 0 | T155: 10000 | U155: 10000 | V155: 0 | W155: 0
A156: 39209 | B156: MOUNT ADAMS | C156: 10000 | D156: 0.001846973727 | E156: 28411.1141 | G156: 0 | H156: 27115.2 | J156: 0 | K156: 27115 | M156: 0 | N156: 27115 | Q156: 27115 | S156: 0 | T156: 27115 | U156: 26053 | V156: 1062 | W156: 0.04076305992
A157: 37507 | B157: MOUNT BAKER | C157: 10000 | D157: 0.002429874865 | E157: 37359.8141 | G157: 0 | H157: 35655.8 | J157: 0 | K157: 35655 | M157: 0 | N157: 35655 | Q157: 35655 | S157: 0 | T157: 35655 | U157: 30816 | V157: 4839 | W157: 0.1570288162
A158: 30029 | B158: MOUNT PLEASANT | C158: 0 | D158: 0 | E158: 0 | G158: 0 | H158: 0 | J158: 0 | K158: 0 | M158: 0 | N158: 0 | Q158: 0 | S158: 0 | T158: 0 | U158: 0 | V158: 0 | W158: 0
A159: 29320 | B159: MOUNT VERNON | C159: 10000 | D159: 0.007701947216 | E159: 118296.8141 | G159: 0 | H159: 112901.2 | J159: 0 | K159: 112900 | M159: 0 | N159: 112900 | Q159: 112900 | S159: 0 | T159: 112900 | U159: 117518 | V159: -4618 | W159: -0.03929610783
A160: 31006 | B160: MUKILTEO | C160: 10000 | D160: 0.01466430945 | E160: 225183.2141 | G160: 0 | H160: 214912.6 | J160: 0 | K160: 214911 | M160: 0 | N160: 214911 | Q160: 214911 | S160: 0 | T160: 214911 | U160: 216759 | V160: -1848 | W160: -0.008525597553
A161: 39003 | B161: NACHES VALLEY | C161: 10000 | D161: 0.001837770076 | E161: 28269.8141 | G161: 0 | H161: 26980.4 | J161: 0 | K161: 26980 | M161: 0 | N161: 26980 | Q161: 26980 | S161: 0 | T161: 26980 | U161: 26781 | V161: 199 | W161: 0.007430641126
A162: 21014 | B162: NAPAVINE | C162: 10000 | D162: 0.0004886275918 | E162: 7557.814105 | G162: 10000 | H162: 10000 | J162: 0 | K162: 10000 | M162: 0 | N162: 10000 | Q162: 10000 | S162: 0 | T162: 10000 | U162: 10000 | V162: 0 | W162: 0
A163: 25155 | B163: NASELLE-GRAYS | C163: 10000 | D163: 0.00036572582 | E163: 5671.014105 | G163: 10000 | H163: 10000 | J163: 0 | K163: 10000 | M163: 0 | N163: 10000 | Q163: 10000 | S163: 0 | T163: 10000 | U163: 10000 | V163: 0 | W163: 0
A164: 24014 | B164: NESPELEM | C164: 10000 | D164: 0.0007363644324 | E164: 11361.0141 | G164: 0 | H164: 10842.8 | J164: 0 | K164: 10842 | M164: 0 | N164: 10842 | Q164: 10842 | R164: 0.896 | S164: -43 | T164: 10799 | U164: 10257 | V164: 542 | W164: 0.05284196159
A165: 26056 | B165: NEWPORT | C165: 10000 | D165: 0.002097950408 | E165: 32264.1141 | G165: 0 | H165: 30792.5 | J165: 0 | K165: 30792 | M165: 0 | N165: 30792 | Q165: 30792 | S165: 0 | T165: 30792 | U165: 30567 | V165: 225 | W165: 0.00736087938
A166: 32325 | B166: NINE MILE FALLS | C166: 10000 | D166: 0.001970343155 | E166: 30305.1141 | G166: 0 | H166: 28922.8 | J166: 0 | K166: 28922 | M166: 0 | N166: 28922 | Q166: 28922 | S166: 0 | T166: 28922 | U166: 25465 | V166: 3457 | W166: 0.1357549578
A167: 37506 | B167: NOOKSACK VALLEY | C167: 10000 | D167: 0.001449158068 | E167: 22303.9141 | G167: 0 | H167: 21286.6 | J167: 0 | K167: 21286 | M167: 0 | N167: 21286 | Q167: 21286 | S167: 0 | T167: 21286 | U167: 20667 | V167: 619 | W167: 0.02995112982
A168: 14064 | B168: NORTH BEACH | C168: 10000 | D168: 0.0007627845528 | E168: 11766.6141 | G168: 0 | H168: 11229.9 | J168: 0 | K168: 11229 | M168: 0 | N168: 11229 | Q168: 11229 | S168: 0 | T168: 11229 | U168: 10866 | V168: 363 | W168: 0.03340695748
A169: 11051 | B169: NORTH FRANKLIN | C169: 10000 | D169: 0.004510044725 | E169: 69294.7141 | G169: 0 | H169: 66134.1 | J169: 0 | K169: 66133 | M169: 0 | N169: 66133 | Q169: 66133 | S169: 0 | T169: 66133 | U169: 47291 | V169: 18842 | W169: 0.398426762
A170: 18400 | B170: NORTH KITSAP | C170: 10000 | D170: 0.002826890208 | E170: 43454.8141 | G170: 0 | H170: 41472.8 | J170: 0 | K170: 41472 | M170: 0 | N170: 41472 | Q170: 41472 | S170: 0 | T170: 41472 | U170: 39980 | V170: 1492 | W170: 0.03731865933
A171: 23403 | B171: NORTH MASON | C171: 10000 | D171: 0.002682866803 | E171: 41243.8141 | G171: 0 | H171: 39362.6 | J171: 0 | K171: 39362 | M171: 0 | N171: 39362 | Q171: 39362 | S171: 0 | T171: 39362 | U171: 37347 | V171: 2015 | W171: 0.05395346346
A172: 25200 | B172: NORTH RIVER | C172: 10000 | D172: 6.71013204e-05 | E172: 1086.514105 | G172: 10000 | H172: 10000 | J172: 0 | K172: 10000 | M172: 0 | N172: 10000 | Q172: 10000 | S172: 0 | T172: 10000 | U172: 10000 | V172: 0 | W172: 0
A173: 34003 | B173: NORTH THURSTON | C173: 10000 | D173: 0.01231288498 | E173: 189084.1141 | G173: 0 | H173: 180459.9 | J173: 0 | K173: 180459 | M173: 0 | N173: 180459 | Q173: 180459 | S173: 0 | T173: 180459 | U173: 186120 | V173: -5661 | W173: -0.03041586074
A174: 33211 | B174: NORTHPORT | C174: 10000 | D174: 0.0004295824796 | E174: 6651.314105 | G174: 10000 | H174: 10000 | J174: 0 | K174: 10000 | M174: 0 | N174: 10000 | Q174: 10000 | S174: 0 | T174: 10000 | U174: 10000 | V174: 0 | W174: 0
A175: 17417 | B175: NORTHSHORE | C175: 10000 | D175: 0.0029466341 | E175: 45293.2141 | G175: 0 | H175: 43227.3 | J175: 0 | K175: 43227 | M175: 0 | N175: 43227 | Q175: 43227 | S175: 0 | T175: 43227 | U175: 41958 | V175: 1269 | W175: 0.03024453024
A176: 15201 | B176: OAK HARBOR | C176: 10000 | D176: 0.004069513323 | E176: 62531.6141 | G176: 0 | H176: 59679.5 | J176: 0 | K176: 59679 | M176: 0 | N176: 59679 | Q176: 59679 | S176: 0 | T176: 59679 | U176: 53221 | V176: 6458 | W176: 0.1213430789
A177: 38324 | B177: OAKESDALE | C177: 10000 | D177: 6.292616998e-05 | E177: 1022.414105 | G177: 10000 | H177: 10000 | J177: 0 | K177: 10000 | M177: 0 | N177: 10000 | Q177: 10000 | S177: 0 | T177: 10000 | U177: 10000 | V177: 0 | W177: 0
A178: 14400 | B178: OAKVILLE | C178: 10000 | D178: 0.0004612866241 | E178: 7138.014105 | G178: 10000 | H178: 10000 | J178: 0 | K178: 10000 | M178: 0 | N178: 10000 | Q178: 10000 | S178: 0 | T178: 10000 | U178: 10000 | V178: 0 | W178: 0
A179: 25101 | B179: OCEAN BEACH | C179: 10000 | D179: 0.001041444505 | E179: 16044.6141 | G179: 0 | H179: 15312.8 | J179: 0 | K179: 15312 | M179: 0 | N179: 15312 | Q179: 15312 | S179: 0 | T179: 15312 | U179: 14749 | V179: 563 | W179: 0.03817207946
A180: 14172 | B180: OCOSTA | C180: 10000 | D180: 0.001298471779 | E180: 19990.5141 | G180: 0 | H180: 19078.7 | J180: 0 | K180: 19078 | M180: 0 | N180: 19078 | Q180: 19078 | S180: 0 | T180: 19078 | U180: 16888 | V180: 2190 | W180: 0.1296778778
A181: 22105 | B181: ODESSA | C181: 10000 | D181: 0.0002289293791 | E181: 3570.914105 | G181: 10000 | H181: 10000 | J181: 0 | K181: 10000 | M181: 0 | N181: 10000 | Q181: 10000 | S181: 0 | T181: 10000 | U181: 10000 | V181: 0 | W181: 0
A182: 24105 | B182: OKANOGAN | C182: 10000 | D182: 0.001823345076 | E182: 28048.4141 | G182: 0 | H182: 26769.1 | J182: 0 | K182: 26768 | M182: 0 | N182: 26768 | Q182: 26768 | S182: 0 | T182: 26768 | U182: 25782 | V182: 986 | W182: 0.03824373594
A183: 34111 | B183: OLYMPIA | C183: 10000 | D183: 0.005590213027 | E183: 85877.4141 | G183: 0 | H183: 81960.5 | J183: 0 | K183: 81960 | M183: 0 | N183: 81960 | Q183: 81960 | S183: 0 | T183: 81960 | U183: 78856 | V183: 3104 | W183: 0.03936288932
A184: 24019 | B184: OMAK | C184: 10000 | D184: 0.00256628079 | E184: 39454.0141 | G184: 0 | H184: 37654.5 | J184: 0 | K184: 37654 | M184: 0 | N184: 37654 | Q184: 37654 | S184: 0 | T184: 37654 | U184: 35098 | V184: 2556 | W184: 0.07282466237
A185: 21300 | B185: ONALASKA | C185: 10000 | D185: 0.0005373023245 | E185: 8305.014105 | G185: 10000 | H185: 10000 | J185: 0 | K185: 10000 | M185: 0 | N185: 10000 | Q185: 10000 | S185: 0 | T185: 10000 | U185: 10000 | V185: 0 | W185: 0
A186: 33030 | B186: ONION CREEK | C186: 10000 | D186: 0.0001887110133 | E186: 2953.414105 | G186: 10000 | H186: 10000 | J186: 0 | K186: 10000 | M186: 0 | N186: 10000 | Q186: 10000 | S186: 0 | T186: 10000 | U186: 10000 | V186: 0 | W186: 0
A187: 28137 | B187: ORCAS ISLAND | C187: 10000 | D187: 0.0006264846945 | E187: 9674.214105 | G187: 10000 | H187: 10000 | J187: 0 | K187: 10000 | M187: 0 | N187: 10000 | Q187: 10000 | S187: 0 | T187: 10000 | U187: 10000 | V187: 0 | W187: 0
A188: 32123 | B188: ORCHARD PRAIRIE | C188: 10000 | D188: 0.000124608473 | E188: 1969.314105 | G188: 10000 | H188: 10000 | J188: 0 | K188: 10000 | M188: 0 | N188: 10000 | Q188: 10000 | S188: 0 | T188: 10000 | U188: 10000 | V188: 0 | W188: 0
A189: 10065 | B189: ORIENT | C189: 10000 | D189: 0.0002325067019 | E189: 3625.814105 | G189: 10000 | H189: 10000 | J189: 0 | K189: 10000 | M189: 0 | N189: 10000 | Q189: 10000 | S189: 0 | T189: 10000 | U189: 10000 | V189: 0 | W189: 0
A190: 09013 | B190: ORONDO | C190: 10000 | D190: 0.0003311337828 | E190: 5139.914105 | G190: 10000 | H190: 10000 | J190: 0 | K190: 10000 | M190: 0 | N190: 10000 | Q190: 10000 | S190: 0 | T190: 10000 | U190: 10000 | V190: 0 | W190: 0
A191: 24410 | B191: OROVILLE | C191: 10000 | D191: 0.001743318145 | E191: 26819.8141 | G191: 0 | H191: 25596.5 | J191: 0 | K191: 25596 | M191: 0 | N191: 25596 | Q191: 25596 | S191: 0 | T191: 25596 | U191: 24591 | V191: 1005 | W191: 0.04086861047
A192: 27344 | B192: ORTING | C192: 10000 | D192: 0.002161590114 | E192: 33241.1141 | G192: 0 | H192: 31724.9 | J192: 0 | K192: 31724 | M192: 0 | N192: 31724 | Q192: 31724 | S192: 0 | T192: 31724 | U192: 33254 | V192: -1530 | W192: -0.04600950262
A193: 01147 | B193: OTHELLO | C193: 10000 | D193: 0.006835212989 | E193: 104990.7141 | G193: 0 | H193: 100202 | J193: 0 | K193: 100201 | M193: 0 | N193: 100201 | Q193: 100201 | S193: 0 | T193: 100201 | U193: 71296 | V193: 28905 | W193: 0.4054224641
A194: 09102 | B194: PALISADES | C194: 10000 | D194: 0.0001588630269 | E194: 2495.214105 | G194: 10000 | H194: 10000 | J194: 0 | K194: 10000 | M194: 0 | N194: 10000 | Q194: 10000 | S194: 0 | T194: 10000 | U194: 10000 | V194: 0 | W194: 0
A195: 38301 | B195: PALOUSE | C195: 10000 | D195: 0.0002905875761 | E195: 4517.514105 | G195: 10000 | H195: 10000 | J195: 0 | K195: 10000 | M195: 0 | N195: 10000 | Q195: 10000 | S195: 0 | T195: 10000 | U195: 10000 | V195: 0 | W195: 0
A196: 11001 | B196: PASCO | C196: 10000 | D196: 0.02340993338 | E196: 359446.2141 | G196: 0 | H196: 343051.8 | J196: 0 | K196: 343050 | M196: 0 | N196: 343050 | Q196: 343050 | S196: 0 | T196: 343050 | U196: 307994 | V196: 35056 | W196: 0.1138203991
A197: 24122 | B197: PATEROS | C197: 10000 | D197: 0.0004310722273 | E197: 6674.214105 | G197: 10000 | H197: 10000 | J197: 0 | K197: 10000 | M197: 0 | N197: 10000 | Q197: 10000 | S197: 0 | T197: 10000 | U197: 10000 | V197: 0 | W197: 0
A198: 03050 | B198: PATERSON | C198: 10000 | D198: 1.200476274e-05 | E198: 240.6141047 | G198: 10000 | H198: 10000 | J198: 0 | K198: 10000 | M198: 0 | N198: 10000 | Q198: 10000 | S198: 0 | T198: 10000 | U198: 10000 | V198: 0 | W198: 0
A199: 21301 | B199: PE ELL | C199: 10000 | D199: 0.0002362334817 | E199: 3683.014105 | G199: 10000 | H199: 10000 | J199: 0 | K199: 10000 | M199: 0 | N199: 10000 | Q199: 10000 | S199: 0 | T199: 10000 | U199: 10000 | V199: 0 | W199: 0
A200: 27401 | B200: PENINSULA | C200: 10000 | D200: 0.003160887777 | E200: 48582.4141 | G200: 0 | H200: 46366.5 | J200: 0 | K200: 46366 | M200: 0 | N200: 46366 | Q200: 46366 | S200: 0 | T200: 46366 | U200: 40653 | V200: 5713 | W200: 0.1405308341
A201: 23402 | B201: PIONEER | C201: 10000 | D201: 0.001761643488 | E201: 27101.1141 | G201: 0 | H201: 25865 | J201: 0 | K201: 25864 | M201: 0 | N201: 25864 | Q201: 25864 | S201: 0 | T201: 25864 | U201: 24958 | V201: 906 | W201: 0.03630098566
A202: 12110 | B202: POMEROY | C202: 10000 | D202: 0.0003606876766 | E202: 5593.614105 | G202: 10000 | H202: 10000 | J202: 0 | K202: 10000 | M202: 0 | N202: 10000 | Q202: 10000 | S202: 0 | T202: 10000 | U202: 10000 | V202: 0 | W202: 0
... 114 more rows

Sheet SY 2019-20 Prelim (hidden)
A1: Preliminary Title IV Allocations SY 2019-20 | C1: 15352024.84
G2: First Reallocation | J2: Second Reallocation | M2: Third Reallocation | P2: Adjust until all eligible LEAs meet min.
B4: Min. Allocation | C4: Sufficient for $10K each LEA? | D4: Adjust to 100% | G4: Precentage to adjust other LEAs | H4: Allocation Pool | J4: Precentage to adjust other LEAs | K4: Allocation Pool | M4: Precentage to adjust other LEAs | N4: Allocation Pool
B5: 10000 | C5: Yes | D5: 9.118637784e-07 | G5: 0.04647999814 | H5: 24.54 | J5: 8.837646742e-06 | K5: 101.84 | M5: 0 | N5: -0.1600000001
A6: CoDistID | B6: District | C6: Minimum Allocation | D6: % of Title IA Received | E6: Initial Formula Allocation | G6: Adjusted allocation for LEAs below $10K | H6: Adjusted Allocation for All Other LEAs | J6: Adjusted allocation for LEAs below $10K | K6: Adjusted Allocation for All Other LEAs | M6: Adjusted allocation for LEAs below $10K | N6: Adjusted Allocation for All Other LEAs | Q6: Subtotal After Re-allocation | R6: MOE | S6: MOE Deduction | T6: Final Allocation | U6: PY Allocation | V6: Difference | W6: % Change
B7: State Totals | C7: 3000000 | D7: 0.9997264409 | E7: 15352008.99 | G7: 1240000 | H7: 15352000.3 | J7: 20000 | K7: 15351923 | M7: 0 | N7: 15352025 | Q7: 15352025 | R7: 0.896 | S7: -43 | T7: 15351982 | U7: 14677604 | V7: 674378 | W7: 0.01918445075
A9: 14005 | B9: ABERDEEN | C9: 10000 | D9: 0.005669241971 | E9: 87048.29896 | G9: 0 | H9: 83002.2 | J9: 0 | K9: 83001 | M9: 0 | N9: 83001 | Q9: 83001 | S9: 0 | T9: 83001 | U9: 78130 | V9: 4871 | W9: 0.06234480993
A10: 21226 | B10: ADNA | C10: 10000 | D10: 0.0006938752862 | E10: 10666.29896 | G10: 0 | H10: 10170.5 | J10: 0 | K10: 10170 | M10: 0 | N10: 10272 | Q10: 10272 | S10: 0 | T10: 10272 | U10: 10587 | V10: -315 | W10: -0.02975347124
A11: 22017 | B11: ALMIRA | C11: 10000 | D11: 8.531577567e-05 | E11: 1323.698955 | G11: 10000 | H11: 10000 | J11: 0 | K11: 10000 | M11: 0 | N11: 10000 | Q11: 10000 | S11: 0 | T11: 10000 | U11: 10000 | V11: 0 | W11: 0
A12: 29103 | B12: ANACORTES | C12: 10000 | D12: 0.001457436051 | E12: 22388.49896 | G12: 0 | H12: 21347.8 | J12: 0 | K12: 21347 | M12: 0 | N12: 21347 | Q12: 21347 | S12: 0 | T12: 21347 | U12: 22436 | V12: -1089 | W12: -0.04853806383
A13: 31016 | B13: ARLINGTON | C13: 10000 | D13: 0.002555915232 | E13: 39252.39896 | G13: 0 | H13: 37427.9 | J13: 0 | K13: 37427 | M13: 0 | N13: 37427 | Q13: 37427 | S13: 0 | T13: 37427 | U13: 39384 | V13: -1957 | W13: -0.04969022953
A14: 17915 | B14: ASHE | C14: 0 | D14: 0 | E14: 0 | G14: 0 | H14: 0 | J14: 0 | K14: 0 | M14: 0 | N14: 0 | Q14: 0 | S14: 0 | T14: 0 | U14: 0 | V14: 0 | W14: 0
A15: 02420 | B15: ASOTIN-ANATONE | C15: 10000 | D15: 0.0005519828476 | E15: 8487.998955 | G15: 10000 | H15: 10000 | J15: 0 | K15: 10000 | M15: 0 | N15: 10000 | Q15: 10000 | S15: 0 | T15: 10000 | U15: 10000 | V15: 0 | W15: 0
A16: 17408 | B16: AUBURN | C16: 10000 | D16: 0.01779492979 | E16: 273202.199 | G16: 0 | H16: 260503.7 | J16: 0 | K16: 260501 | M16: 0 | N16: 260501 | Q16: 260501 | S16: 0 | T16: 260501 | U16: 246002 | V16: 14499 | W16: 0.05893854522
A17: 18303 | B17: BAINBRIDGE ISLAND | C17: 10000 | D17: 0.000525302383 | E17: 8078.398955 | G17: 10000 | H17: 10000 | J17: 0 | K17: 10000 | M17: 0 | N17: 10000 | Q17: 10000 | S17: 0 | T17: 10000 | U17: 14150 | V17: -4150 | W17: -0.2932862191
A18: 06119 | B18: BATTLE GROUND | C18: 10000 | D18: 0.00707002422 | E18: 108553.099 | G18: 0 | H18: 103507.5 | J18: 0 | K18: 103506 | M18: 0 | N18: 103506 | Q18: 103506 | S18: 0 | T18: 103506 | U18: 100124 | V18: 3382 | W18: 0.03377811514
A19: 17405 | B19: BELLEVUE | C19: 10000 | D19: 0.006949210023 | E19: 106698.399 | G19: 0 | H19: 101739 | J19: 0 | K19: 101738 | M19: 0 | N19: 101738 | Q19: 101738 | S19: 0 | T19: 101738 | U19: 96337 | V19: 5401 | W19: 0.05606361004
A20: 37501 | B20: BELLINGHAM | C20: 10000 | D20: 0.009663284388 | E20: 148364.899 | G20: 0 | H20: 141468.8 | J20: 0 | K20: 141467 | M20: 0 | N20: 141467 | Q20: 141467 | S20: 0 | T20: 141467 | U20: 141978 | V20: -511 | W20: -0.003599149164
A21: 01122 | B21: BENGE | C21: 0 | D21: 0 | E21: 0 | G21: 0 | H21: 0 | J21: 0 | K21: 0 | M21: 0 | N21: 0 | Q21: 0 | S21: 0 | T21: 0 | U21: 0 | V21: 0 | W21: 0
A22: 27403 | B22: BETHEL | C22: 10000 | D22: 0.01731567942 | E22: 265844.699 | G22: 0 | H22: 253488.2 | J22: 0 | K22: 253485 | M22: 0 | N22: 253485 | Q22: 253485 | S22: 0 | T22: 253485 | U22: 246411 | V22: 7074 | W22: 0.02870813397
A23: 20203 | B23: BICKLETON | C23: 10000 | D23: 8.774565535e-05 | E23: 1360.998955 | G23: 10000 | H23: 10000 | J23: 0 | K23: 10000 | M23: 0 | N23: 10000 | Q23: 10000 | S23: 0 | T23: 10000 | U23: 10000 | V23: 0 | W23: 0
A24: 37503 | B24: BLAINE | C24: 10000 | D24: 0.001731660508 | E24: 26598.39896 | G24: 0 | H24: 25362.1 | J24: 0 | K24: 25361 | M24: 0 | N24: 25361 | Q24: 25361 | S24: 0 | T24: 25361 | U24: 24610 | V24: 751 | W24: 0.03051605039
A25: 21234 | B25: BOISTFORT | C25: 10000 | D25: 0.0001464243571 | E25: 2261.898955 | G25: 10000 | H25: 10000 | J25: 0 | K25: 10000 | M25: 0 | N25: 10000 | Q25: 10000 | S25: 0 | T25: 10000 | U25: 10000 | V25: 0 | W25: 0
A26: 18100 | B26: BREMERTON | C26: 10000 | D26: 0.00615242644 | E26: 94466.19896 | G26: 0 | H26: 90075.4 | J26: 0 | K26: 90074 | M26: 0 | N26: 90074 | Q26: 90074 | S26: 0 | T26: 90074 | U26: 79739 | V26: 10335 | W26: 0.1296103538
A27: 24111 | B27: BREWSTER | C27: 10000 | D27: 0.001628805244 | E27: 25019.39896 | G27: 0 | H27: 23856.4 | J27: 0 | K27: 23856 | M27: 0 | N27: 23856 | Q27: 23856 | S27: 0 | T27: 23856 | U27: 23356 | V27: 500 | W27: 0.0214077753
A28: 09075 | B28: BRIDGEPORT | C28: 10000 | D28: 0.001371922606 | E28: 21075.69896 | G28: 0 | H28: 20096.1 | J28: 0 | K28: 20095 | M28: 0 | N28: 20095 | Q28: 20095 | S28: 0 | T28: 20095 | U28: 16824 | V28: 3271 | W28: 0.1944246315
A29: 16046 | B29: BRINNON | C29: 10000 | D29: 0.0001908950123 | E29: 2944.598955 | G29: 10000 | H29: 10000 | J29: 0 | K29: 10000 | M29: 0 | N29: 10000 | Q29: 10000 | S29: 0 | T29: 10000 | U29: 10000 | V29: 0 | W29: 0
A30: 29100 | B30: BURLINGTON-EDISON | C30: 10000 | D30: 0.004423330804 | E30: 67920.99896 | G30: 0 | H30: 64764 | J30: 0 | K30: 64763 | M30: 0 | N30: 64763 | Q30: 64763 | S30: 0 | T30: 64763 | U30: 64221 | V30: 542 | W30: 0.008439606982
A31: 06117 | B31: CAMAS | C31: 10000 | D31: 0.000971807239 | E31: 14933.19896 | G31: 0 | H31: 14239.1 | J31: 0 | K31: 14238 | M31: 0 | N31: 14238 | Q31: 14238 | S31: 0 | T31: 14238 | U31: 25990 | V31: -11752 | W31: -0.452173913
A32: 05401 | B32: CAPE FLATTERY | C32: 10000 | D32: 0.0007600798653 | E32: 11682.69896 | G32: 0 | H32: 11139.6 | J32: 0 | K32: 11139 | M32: 0 | N32: 11139 | Q32: 11139 | S32: 0 | T32: 11139 | U32: 10953 | V32: 186 | W32: 0.01698164886
A33: 27019 | B33: CARBONADO | C33: 10000 | D33: 0.0001282195442 | E33: 1982.398955 | G33: 10000 | H33: 10000 | J33: 0 | K33: 10000 | M33: 0 | N33: 10000 | Q33: 10000 | S33: 0 | T33: 10000 | U33: 10000 | V33: 0 | W33: 0
A34: 04228 | B34: CASCADE | C34: 10000 | D34: 0.001517884129 | E34: 23316.49896 | G34: 0 | H34: 22232.7 | J34: 0 | K34: 22232 | M34: 0 | N34: 22232 | Q34: 22232 | S34: 0 | T34: 22232 | U34: 21150 | V34: 1082 | W34: 0.05115839243
A35: 04222 | B35: CASHMERE | C35: 10000 | D35: 0.001584286377 | E35: 24335.99896 | G35: 0 | H35: 23204.8 | J35: 0 | K35: 23204 | M35: 0 | N35: 23204 | Q35: 23204 | S35: 0 | T35: 23204 | U35: 22419 | V35: 785 | W35: 0.03501494268
A36: 08401 | B36: CASTLE ROCK | C36: 10000 | D36: 0.0009939895335 | E36: 15273.69896 | G36: 0 | H36: 14563.7 | J36: 0 | K36: 14563 | M36: 0 | N36: 14563 | Q36: 14563 | S36: 0 | T36: 14563 | U36: 15023 | V36: -460 | W36: -0.03061971643
A37: 20215 | B37: CENTERVILLE | C37: 10000 | D37: 0.0001491820777 | E37: 2304.198955 | G37: 10000 | H37: 10000 | J37: 0 | K37: 10000 | M37: 0 | N37: 10000 | Q37: 10000 | S37: 0 | T37: 10000 | U37: 10000 | V37: 0 | W37: 0
A38: 18401 | B38: CENTRAL KITSAP | C38: 10000 | D38: 0.005259286555 | E38: 80754.59896 | G38: 0 | H38: 77001.1 | J38: 0 | K38: 77000 | M38: 0 | N38: 77000 | Q38: 77000 | S38: 0 | T38: 77000 | U38: 65304 | V38: 11696 | W38: 0.1791008208
A39: 32356 | B39: CENTRAL VALLEY | C39: 10000 | D39: 0.01240732245 | E39: 190491.499 | G39: 0 | H39: 181637.4 | J39: 0 | K39: 181635 | M39: 0 | N39: 181635 | Q39: 181635 | S39: 0 | T39: 181635 | U39: 181966 | V39: -331 | W39: -0.001819021136
A40: 21401 | B40: CENTRALIA | C40: 10000 | D40: 0.005751452901 | E40: 88310.39896 | G40: 0 | H40: 84205.7 | J40: 0 | K40: 84204 | M40: 0 | N40: 84204 | Q40: 84204 | S40: 0 | T40: 84204 | U40: 81130 | V40: 3074 | W40: 0.03788980648
A41: 21302 | B41: CHEHALIS | C41: 10000 | D41: 0.002412518582 | E41: 37050.99896 | G41: 0 | H41: 35328.8 | J41: 0 | K41: 35328 | M41: 0 | N41: 35328 | Q41: 35328 | S41: 0 | T41: 35328 | U41: 33984 | V41: 1344 | W41: 0.0395480226
A42: 32360 | B42: CHENEY | C42: 10000 | D42: 0.003983059747 | E42: 61161.99896 | G42: 0 | H42: 58319.1 | J42: 0 | K42: 58318 | M42: 0 | N42: 58318 | Q42: 58318 | S42: 0 | T42: 58318 | U42: 61380 | V42: -3062 | W42: -0.04988595634
A43: 33036 | B43: CHEWELAH | C43: 10000 | D43: 0.001782827796 | E43: 27383.99896 | G43: 0 | H43: 26111.1 | J43: 0 | K43: 26110 | M43: 0 | N43: 26110 | Q43: 26110 | S43: 0 | T43: 26110 | U43: 25691 | V43: 419 | W43: 0.01630921334
A44: 16049 | B44: CHIMACUM | C44: 10000 | D44: 0.0008070045062 | E44: 12403.09896 | G44: 0 | H44: 11826.6 | J44: 0 | K44: 11826 | M44: 0 | N44: 11826 | Q44: 11826 | S44: 0 | T44: 11826 | U44: 11383 | V44: 443 | W44: 0.03891768427
A45: 02250 | B45: CLARKSTON | C45: 10000 | D45: 0.003554253479 | E45: 54578.89896 | G45: 0 | H45: 52042 | J45: 0 | K45: 52041 | M45: 0 | N45: 52041 | Q45: 52041 | S45: 0 | T45: 52041 | U45: 50136 | V45: 1905 | W45: 0.03799664911
A46: 19404 | B46: CLE ELUM-ROSLYN | C46: 10000 | D46: 0.001007286375 | E46: 15477.79896 | G46: 0 | H46: 14758.3 | J46: 0 | K46: 14758 | M46: 0 | N46: 14758 | Q46: 14758 | S46: 0 | T46: 14758 | U46: 14208 | V46: 550 | W46: 0.03871058559
A47: 27400 | B47: CLOVER PARK | C47: 10000 | D47: 0.02021334951 | E47: 310329.799 | G47: 0 | H47: 295905.6 | J47: 0 | K47: 295902 | M47: 0 | N47: 295902 | Q47: 295902 | S47: 0 | T47: 295902 | U47: 281472 | V47: 14430 | W47: 0.05126620055
A48: 38300 | B48: COLFAX | C48: 10000 | D48: 0.0005647445372 | E48: 8683.898955 | G48: 10000 | H48: 10000 | J48: 0 | K48: 10000 | M48: 0 | N48: 10000 | Q48: 10000 | S48: 0 | T48: 10000 | U48: 10000 | V48: 0 | W48: 0
A49: 36250 | B49: COLLEGE PLACE | C49: 10000 | D49: 0.002058397366 | E49: 31614.49896 | G49: 0 | H49: 30145 | J49: 0 | K49: 30144 | M49: 0 | N49: 30144 | Q49: 30144 | S49: 0 | T49: 30144 | U49: 31407 | V49: -1263 | W49: -0.04021396504
A50: 38306 | B50: COLTON | C50: 10000 | D50: 0.000230476981 | E50: 3552.198955 | G50: 10000 | H50: 10000 | J50: 0 | K50: 10000 | M50: 0 | N50: 10000 | Q50: 10000 | S50: 0 | T50: 10000 | U50: 10000 | V50: 0 | W50: 0
A51: 33206 | B51: COLUMBIA (STEV) | C51: 10000 | D51: 0.0004018654591 | E51: 6183.398955 | G51: 10000 | H51: 10000 | J51: 0 | K51: 10000 | M51: 0 | N51: 10000 | Q51: 10000 | S51: 0 | T51: 10000 | U51: 10000 | V51: 0 | W51: 0
A52: 36400 | B52: COLUMBIA (WALLA) | C52: 10000 | D52: 0.0008727173239 | E52: 13411.89896 | G52: 0 | H52: 12788.5 | J52: 0 | K52: 12788 | M52: 0 | N52: 12788 | Q52: 12788 | S52: 0 | T52: 12788 | U52: 12331 | V52: 457 | W52: 0.03706106561
A53: 33115 | B53: COLVILLE | C53: 10000 | D53: 0.002930733816 | E53: 45006.59896 | G53: 0 | H53: 42914.6 | J53: 0 | K53: 42914 | M53: 0 | N53: 42914 | Q53: 42914 | S53: 0 | T53: 42914 | U53: 42380 | V53: 534 | W53: 0.01260028315
A54: 29011 | B54: CONCRETE | C54: 10000 | D54: 0.0008749736407 | E54: 13446.59896 | G54: 0 | H54: 12821.6 | J54: 0 | K54: 12821 | M54: 0 | N54: 12821 | Q54: 12821 | S54: 0 | T54: 12821 | U54: 13350 | V54: -529 | W54: -0.03962546816
A55: 29317 | B55: CONWAY | C55: 10000 | D55: 0.0002088009114 | E55: 3219.498955 | G55: 10000 | H55: 10000 | J55: 0 | K55: 10000 | M55: 0 | N55: 10000 | Q55: 10000 | S55: 0 | T55: 10000 | U55: 10000 | V55: 0 | W55: 0
A56: 14099 | B56: COSMOPOLIS | C56: 10000 | D56: 0.0002403700626 | E56: 3704.098955 | G56: 10000 | H56: 10000 | J56: 0 | K56: 10000 | M56: 0 | N56: 10000 | Q56: 10000 | S56: 0 | T56: 10000 | U56: 10000 | V56: 0 | W56: 0
A57: 13151 | B57: COULEE-HARTLINE | C57: 10000 | D57: 0.0003475788614 | E57: 5349.998955 | G57: 10000 | H57: 10000 | J57: 0 | K57: 10000 | M57: 0 | N57: 10000 | Q57: 10000 | S57: 0 | T57: 10000 | U57: 10000 | V57: 0 | W57: 0
A58: 15204 | B58: COUPEVILLE | C58: 10000 | D58: 0.001141609546 | E58: 17539.99896 | G58: 0 | H58: 16724.7 | J58: 0 | K58: 16724 | M58: 0 | N58: 16724 | Q58: 16724 | S58: 0 | T58: 16724 | U58: 16279 | V58: 445 | W58: 0.02733583144
